Workbook

Sheet Prchi
A1: Category | B1: Code | C1: Items Name | D1: Unit | E1: Cost Pris | F1: Quantity | G1: Quantity | H1: Quantity | I1: Quantity | J1: Quantity | K1: Quantity | L1: Quantity | M1: Quantity | N1: Quantity | O1: Quantity | P1: Quantity | Q1: Quantity | R1: Quantity | S1: Quantity | T1: Quantity | U1: Quantity | V1: Quantity | W1: Quantity | X1: Quantity | Y1: Quantity | Z1: Quantity | AA1: Quantity | AB1: Quantity | AC1: Quantity | AD1: Quantity | AE1: Quantity | AF1: Quantity | AG1: Quantity | AH1: Quantity | AI1: Quantity | AJ1: Quantity | AL1: Total Quantit | AZ1: admin
F2: 2014-03-01 | G2: =+F2+1 -> 2014-03-02 | H2: 2014-03-03 | I2: 2014-03-04 | J2: 2014-03-05 | K2: 2014-03-06 | L2: 2014-03-07 | M2: 2014-03-08 | N2: 2014-03-09 | O2: 2014-03-10 | P2: 2014-03-11 | Q2: 2014-03-12 | R2: 2014-03-13 | S2: 2014-03-14 | T2: 2014-03-15 | U2: 2014-03-16 | V2: 2014-03-17 | W2: 2014-03-18 | X2: 2014-03-19 | Y2: 2014-03-20 | Z2: 2014-03-21 | AA2: 2014-03-22 | AB2: 2014-03-23 | AC2: 2014-03-24 | AD2: 2014-03-25 | AE2: 2014-03-26 | AF2: 2014-03-27 | AG2: 2014-03-28 | AH2: 2014-03-29 | AI2: 2014-03-30 | AJ2: 2014-03-31 | AZ2: 27102003
A3: Category: 20 Meat | B3: 120001 | C3: BEEF FILLET | D3: 07 KG | E3: 0 | AK3: =SUM(F3:AJ3)*(E3) -> 0 | AL3: =SUM(F3:AJ3) -> 0
B4: 120002 | C4: BEEF HELL Oriantal | D4: 07 KG | E4: 0 | AK4: 0 | AL4: 0
B5: 120003 | C5: BEEFE NECK | D5: 07 KG | E5: 0 | AK5: 0 | AL5: 0
B6: 120004 | C6: beef top side | D6: 07 KG | E6: 0 | AK6: 0 | AL6: 0
B7: 120005 | C7: Smoked Beef (Tripianco) | D7: 07 KG | E7: 0 | AK7: 0 | AL7: 0
B8: 120006 | C8: Meet Pepironi | D8: 07 KG | E8: 31.57 | AK8: 0 | AL8: 0
B9: 120007 | C9: Mortadilla TURKY | D9: 07 KG | E9: 54.95 | AK9: 0 | AL9: 0
B10: 120008 | C10: VEAL LEG IMPORTED | D10: 07 KG | E10: 0 | AK10: 0 | AL10: 0
B11: 120009 | C11: Sausages | D11: 07 KG | E11: 5.5 | AK11: 0 | AL11: 0
B12: 120100 | C12: roast beef | D12: 07 KG | E12: 0 | AK12: 0 | AL12: 0
B13: 120101 | C13: roast beef cooked | D13: 07 KG | E13: 0 | AK13: 0 | AL13: 0
B14: 120102 | C14: Mortadilla Beef | D14: 07 KG | E14: 56.95 | AK14: 0 | AL14: 0
B15: 120103 | C15: Hot Dog | D15: 07 KG | E15: 18.06 | AK15: 0 | AL15: 0
A16: Category: 21 Sea Food | B16: 121001 | C16: SF CRAB | D16: 07 KG | E16: 0 | AK16: 0 | AL16: 0
B17: 121002 | C17: salmon smoked | D17: 07 KG | E17: 0 | AK17: 0 | AL17: 0
B18: 121003 | C18: anchovies | D18: 07 KG | E18: 0 | AK18: 0 | AL18: 0
B19: 121004 | C19: SF FISH FILLET | D19: 07 KG | E19: 0 | AK19: 0 | AL19: 0
B20: 121005 | C20: SF ANCHOVIS 92 GR BOX 1*24 | D20: 07 KG | E20: 0 | AK20: 0 | AL20: 0
B21: 121006 | C21: Tuna Chunks-Dolphin 1.8 KG | D21: 07 KG | E21: 39.75 | AK21: 0 | AL21: 0
B22: 121007 | C22: TUNA Kg | D22: 07 KG | E22: 0 | AK22: 0 | AL22: 0
B23: 121009 | C23: cooked salami | D23: 07 KG | E23: 0 | AK23: 0 | AL23: 0
B24: 121010 | C24: susis village (tbs) 200GR | D24: 05 PKT | E24: 0 | AK24: 0 | AL24: 0
B25: 121011 | C25: Frozen shrimp | D25: 07 KG | E25: 65 | AK25: 0 | AL25: 0
B26: 121012 | C26: kofta | D26: 07 KG | E26: 0 | AK26: 0 | AL26: 0
B27: 121013 | C27: chicken nagts | D27: 07 KG | E27: 0 | AK27: 0 | AL27: 0
B28: 121014 | C28: fish nagts | D28: 07 KG | E28: 0 | AK28: 0 | AL28: 0
B29: 121015 | C29: Tuna Chunks-Dolny1.7 | D29: 07 KG | E29: 0 | AK29: 0 | AL29: 0
B30: 121016 | C30: Sf Calimary | D30: 07 KG | E30: 0 | AK30: 0 | AL30: 0
A31: Category: 22 Poyultry | B31: 122001 | C31: Chicken Breast | D31: 07 KG | E31: 47 | AK31: 0 | AL31: 0
B32: 122002 | C32: Chicken Whole Frozen | D32: 07 KG | E32: 0 | AK32: 0 | AL32: 0
B33: 122003 | C33: Mortadilla Chicken | D33: 07 KG | E33: 0 | AK33: 0 | AL33: 0
B34: 122006 | C34: frank fort Chicken | D34: 07 KG | E34: =6.5*2.77777777777778 -> 18.05555556 | AK34: 0 | AL34: 0
B35: 122007 | C35: liver | D35: 07 KG | E35: 0 | AK35: 0 | AL35: 0
B36: 122008 | C36: chicken parts | D36: 07 KG | E36: 0 | AK36: 0 | AL36: 0
B37: 122009 | C37: shawarma | D37: 07 KG | E37: 0 | AK37: 0 | AL37: 0
B38: 122100 | C38: chicken parmezan | D38: 07 KG | E38: 0 | AK38: 0 | AL38: 0
B39: 122101 | C39: chicken spice | D39: 07 KG | E39: 0 | AK39: 0 | AL39: 0
B40: 122102 | C40: chickin pox | D40: 07 KG | E40: 0 | AK40: 0 | AL40: 0
B41: 122103 | C41: chickin almonden | D41: 07 KG | E41: 0 | AK41: 0 | AL41: 0
B42: 122104 | C42: sudorof turkeys | D42: 07 KG | E42: 0 | AK42: 0 | AL42: 0
B43: 122105 | C43: Whole turkeys | D43: 07 KG | E43: 0 | AK43: 0 | AL43: 0
B44: 122106 | C44: Chicken shish Ni | D44: 07 KG | E44: 0 | AK44: 0 | AL44: 0
B45: 122107 | C45: Chicken Fajita | D45: 07 KG | E45: 0 | AK45: 0 | AL45: 0
A46: Category: 23 Fresh Vegatables & FRUIT FRESH | B46: 123002 | C46: Tomato Fresh | D46: 07 KG | E46: 0 | AK46: 0 | AL46: 0
B47: 123003 | C47: Cucumber | D47: 07 KG | E47: 6.95 | AK47: 0 | AL47: 0
B48: 123004 | C48: Mushroom | D48: 14 Plate | E48: =11.95*4 -> 47.8 | AK48: 0 | AL48: 0
B49: 123005 | C49: Lettuce kaposha | D49: 07 KG | E49: 18.95 | AK49: 0 | AL49: 0
B50: 123006 | C50: Carrot | D50: 07 KG | E50: 9.94 | AK50: 0 | AL50: 0
B51: 123007 | C51: Celery | D51: 07 KG | E51: 0 | AK51: 0 | AL51: 0
B52: 123008 | C52: Ginger root | D52: 07 KG | E52: 14.95 | AK52: 0 | AL52: 0
B53: 123009 | C53: Coriander | D53: 07 KG | E53: 0 | AK53: 0 | AL53: 0
B54: 123010 | C54: Garlic | D54: 07 KG | E54: 0 | AK54: 0 | AL54: 0
B55: 123011 | C55: Tomato Shary | D55: 07 KG | E55: 71.8 | AK55: 0 | AL55: 0
B56: 123012 | C56: Jirjir | D56: 07 KG | E56: 0.95 | AK56: 0 | AL56: 0
B57: 123013 | C57: Basil | D57: 07 KG | E57: 0 | AK57: 0 | AL57: 0
B58: 123014 | C58: Cabbage Red | D58: 07 KG | E58: 0 | AK58: 0 | AL58: 0
B59: 123015 | C59: Aubergine Rmy | D59: 07 KG | E59: 0 | AK59: 0 | AL59: 0
B60: 123016 | C60: Marrow | D60: 07 KG | E60: 0 | AK60: 0 | AL60: 0
B61: 123017 | C61: Green Pepper Fresh | D61: 07 KG | E61: 9.95 | AK61: 0 | AL61: 0
B62: 123018 | C62: Red Pepper Fresh | D62: 07 KG | E62: 21.95 | AK62: 0 | AL62: 0
B63: 123019 | C63: Yellow Pepper Fresh | D63: 07 KG | E63: 21.95 | AK63: 0 | AL63: 0
B64: 123020 | C64: Onion | D64: 07 KG | E64: 12.95 | AK64: 0 | AL64: 0
B65: 123021 | C65: Potato Peeled | D65: 07 KG | E65: 0 | AK65: 0 | AL65: 0
B66: 123022 | C66: Lemon | D66: 07 KG | E66: 7.95 | AK66: =SUM(F66:AJ66)*(E66) -> 0 | AL66: 0
B67: 123023 | C67: Leek | D67: 07 KG | E67: 0 | AK67: 0 | AL67: =SUM(F67:AJ67) -> 0
B68: 123024 | C68: Rose Marie | D68: 07 KG | E68: 0 | AK68: 0 | AL68: 0
B69: 123025 | C69: Mint | D69: 07 KG | E69: 0.95 | AK69: 0 | AL69: 0
B70: 123026 | C70: Vegitables | D70: 07 KG | E70: 0 | AK70: 0 | AL70: 0
B71: 123027 | C71: Lettuce Mava | D71: 07 KG | E71: 0 | AK71: 0 | AL71: 0
B72: 123028 | C72: water | D72: 07 KG | E72: 0.42375 | AK72: 0 | AL72: 0
B73: 123029 | D73: 07 KG | E73: 0 | AK73: 0 | AL73: 0
B74: 123100 | C74: Potato Bofrit | D74: 07 KG | E74: 7.5 | AK74: 0 | AL74: 0
B75: 123101 | C75: Faut BEANS | D75: 07 KG | E75: 0 | AK75: 0 | AL75: 0
B76: 123102 | C76: Green beans FASOLIA | D76: 07 KG | E76: 0 | AK76: 0 | AL76: 0
B77: 123103 | C77: Brocolli | D77: 07 KG | E77: 49.95 | AK77: 0 | AL77: 0
B78: 123104 | C78: Potato weadges | D78: 07 KG | E78: 0 | AK78: 0 | AL78: 0
B79: 123105 | C79: Appel Lobnani | D79: 07 KG | E79: 7.95 | AK79: 0 | AL79: 0
B80: 123106 | C80: Korat | D80: 07 KG | E80: 0 | AK80: 0 | AL80: 0
A81: Category: 24 Frozen Vegatables | B81: 123001 | C81: PLUE PERRY FRUZEN | D81: 07 KG | E81: 0 | AK81: 0 | AL81: 0
A82: Category: 25 Dairy Product | B82: 125001 | C82: Butter Block Newzeland | D82: 07 KG | E82: 0 | AK82: 0 | AL82: 0
B83: 125002 | C83: Butter almarai unsl | D83: 07 KG | E83: 39.5 | AK83: 0 | AL83: 0
B84: 125003 | C84: Cheese Cheddar | D84: 07 KG | E84: 60 | AK84: 0 | AL84: 0
B85: 125004 | C85: Cheese Emmental-Local Arab Dairy | D85: 07 KG | E85: 0 | AK85: 0 | AL85: 0
B86: 125005 | C86: Cheese Parmisan / Grana | D86: 07 KG | E86: 90.75 | AK86: 0 | AL86: 0
B87: 125006 | C87: Milk Powder full cream | D87: 07 KG | E87: 0 | AK87: 0 | AL87: 0
B88: 125007 | C88: Eggs W [ Cover 30 P ] | D88: 06 Each | E88: 0.475 | AK88: 0 | AL88: 0
B89: 125008 | C89: Cheese rockford- danish | D89: 07 KG | E89: 0 | AK89: 0 | AL89: 0
B90: 125009 | C90: Cheese White Feta | D90: 07 KG | E90: 29 | AK90: 0 | AL90: 0
B91: 125010 | C91: CHEESE KIRI 1*12 PSC | D91: 07 KG | E91: 0 | AK91: 0 | AL91: 0
B92: 125011 | C92: Milk Condensed | D92: 07 KG | E92: 0 | AK92: 0 | AL92: 0
B93: 125012 | C93: Shortening Savola | D93: 07 KG | E93: 0 | AK93: 0 | AL93: 0
B94: 125013 | C94: Cheese Philadelphia | D94: 07 KG | E94: =8.5/0.2 -> 42.5 | AK94: 0 | AL94: 0
B95: 125014 | C95: Cheese Gouda with Cumin-Holland Frico | D95: 07 KG | E95: 0 | AK95: 0 | AL95: 0
B96: 125015 | C96: ROMI CHEES | D96: 07 KG | E96: 0 | AK96: 0 | AL96: 0
B97: 125016 | C97: Cheese KiRi1*8 psc | D97: 05 PKT | E97: 0 | AK97: 0 | AL97: 0
B98: 125017 | C98: Unsalted Butter | D98: 07 KG | E98: =8/0.2 -> 40 | AK98: 0 | AL98: 0
B99: 125018 | C99: BUTTER | D99: 09 Gallon | E99: 0 | AK99: 0 | AL99: 0
B100: 125019 | C100: BUTTER Boretion | D100: 06 Each | E100: 1.5 | AK100: 0 | AL100: 0
B101: 125020 | C101: cotag cheese | D101: 07 KG | E101: 0 | AK101: 0 | AL101: 0
B102: 125021 | C102: Milk fresh | D102: 07 KG | E102: 4.5 | AK102: 0 | AL102: 0
B103: 125022 | C103: Milk Bonny | D103: 07 KG | E103: 14.70588235 | AK103: 0 | AL103: 0
B104: 125023 | C104: Fresh Milk Yogurt | D104: 07 KG | E104: 7 | AK104: 0 | AL104: 0
B105: 125024 | C105: Chess mozeral | D105: 07 KG | E105: =32.95/0.9 -> 36.61111111 | AK105: 0 | AL105: 0
B106: 125025 | C106: whip Cream Dessert 7 gr | D106: 07 KG | E106: 82.63888889 | AK106: 0 | AL106: 0
B107: 125026 | C107: creme laktevala | D107: 07 KG | E107: 0 | AK107: 0 | AL107: 0
B108: 125027 | C108: chees cream | D108: 07 KG | E108: 0 | AK108: 0 | AL108: 0
B109: 125030 | C109: chees mozeral banda | D109: 07 KG | E109: 0 | AK109: 0 | AL109: 0
B110: 125031 | C110: chees karish(3.5 KG) | D110: 07 KG | E110: 0 | AK110: 0 | AL110: 0
B111: 125032 | C111: creame chees | D111: 09 Gallon | E111: 0 | AK111: 0 | AL111: 0
B112: 125100 | C112: Whipping Cream Bar | D112: 05 PKT | E112: 22 | AK112: 0 | AL112: 0
B113: 125101 | C113: Cream bar (bok) | D113: 05 PKT | E113: 19.95 | AK113: 0 | AL113: 0
B114: 125102 | C114: Labneh .200g | D114: 07 KG | E114: 0 | AK114: 0 | AL114: 0
B115: 125103 | C115: cream of labani | D115: 04 Box | E115: 0 | AK115: 0 | AL115: 0
B116: 125104 | C116: President whipped cream.250 g | D116: 05 PKT | E116: 67.8 | AK116: 0 | AL116: 0
B117: 125105 | C117: Cheese Haloumi | D117: 07 KG | E117: 14.25 | AK117: 0 | AL117: 0
B118: 125106 | C118: Whipping Cream | D118: 05 PKT | E118: 19.95 | AK118: 0 | AL118: 0
B119: 125107 | C119: Cream of labani cook 1*12 | D119: 07 KG | E119: 22 | AK119: 0 | AL119: 0
B120: 125108 | C120: Beef Burger (10) | D120: 04 Box 10 | E120: 2.5 | AK120: 0 | AL120: 0
B121: 125109 | C121: grapes leave | D121: 07 KG | E121: 0 | AK121: 0 | AL121: 0
B122: 125110 | C122: Cheese Cheddar Slice | D122: Peac | E122: 0.675 | AK122: 0 | AL122: 0
B123: 125111 | C123: Chiken Burger | D123: 04 Box 10 | E123: 0 | AK123: 0 | AL123: 0
A124: Category: 26 SPICES | B124: 126001 | C124: SPICE CARNATION POWDER | D124: 07 KG | E124: 0 | AK124: 0 | AL124: 0
B125: 126002 | C125: Spices, Chilli red pepper Powder | D125: 07 KG | E125: 56 | AK125: 0 | AL125: 0
B126: 126003 | C126: Spices, Corriandar Powder | D126: 07 KG | E126: 0 | AK126: 0 | AL126: 0
B127: 126004 | C127: Spices, Cumin SEADS | D127: 07 KG | E127: 60 | AK127: 0 | AL127: 0
B128: 126005 | C128: Spices, Tumeric powder | D128: 07 KG | E128: 0 | AK128: 0 | AL128: 0
B129: 126006 | C129: Spices, Ginger Powder | D129: 07 KG | E129: 0 | AK129: 0 | AL129: 0
B130: 126007 | C130: Spices, habet el baraka Seeds | D130: 07 KG | E130: 0 | AK130: =SUM(F130:AJ130)*(E130) -> 0 | AL130: 0
B131: 126008 | C131: Spices, Nut Meg powder | D131: 07 KG | E131: 0 | AK131: 0 | AL131: =SUM(F131:AJ131) -> 0
B132: 126009 | C132: Herbs Dry, Oregano dried | D132: 07 KG | E132: 0 | AK132: 0 | AL132: 0
B133: 126010 | C133: Herbs, Oregano powder | D133: 07 KG | E133: 135 | AK133: 0 | AL133: 0
B134: 126011 | C134: Spices, Paprika | D134: 07 KG | E134: 0 | AK134: 0 | AL134: 0
B135: 126012 | C135: Spices, Black pepper powder | D135: 07 KG | E135: 54.5 | AK135: 0 | AL135: 0
B136: 126013 | C136: Pepper, portionpack | D136: 07 KG | E136: 0 | AK136: 0 | AL136: 0
B137: 126014 | C137: Spices, White pepper powder | D137: 07 KG | E137: 0 | AK137: 0 | AL137: 0
B138: 126015 | C138: Pepper, white | D138: 07 KG | E138: 0 | AK138: 0 | AL138: 0
B139: 126016 | C139: Spices, Cloves Seeds | D139: 07 KG | E139: 0 | AK139: 0 | AL139: 0
B140: 126017 | C140: Spices, mixed ( boharat) | D140: 07 KG | E140: 0 | AK140: 0 | AL140: 0
B141: 126018 | C141: Satard | D141: 05 PKT | E141: 60 | AK141: 0 | AL141: 0
B142: 126019 | C142: Salt Cooks soft for food | D142: 07 KG | E142: 2.5 | AK142: 0 | AL142: 0
B143: 126020 | C143: Spices, Cloves powder | D143: 07 KG | E143: 0 | AK143: 0 | AL143: 0
B144: 126021 | C144: Spices, seasoning mix grilled | D144: 07 KG | E144: 0 | AK144: 0 | AL144: 0
B145: 126022 | C145: CINAMOUN POWDER | D145: 07 KG | E145: 37 | AK145: 0 | AL145: 0
B146: 126024 | C146: lowra paper | D146: 07 KG | E146: 0 | AK146: 0 | AL146: 0
B147: 126025 | C147: habahan | D147: 07 KG | E147: 0 | AK147: 0 | AL147: 0
B148: 126026 | C148: pepper hot | D148: 07 KG | E148: 0 | AK148: 0 | AL148: 0
B149: 126031 | C149: Baksmt | D149: 07 KG | E149: 0 | AK149: 0 | AL149: 0
B150: 126041 | C150: Homouss | D150: 07 KG | E150: 0 | AK150: 0 | AL150: 0
B151: 126042 | C151: Cary Powder | D151: 07 KG | E151: 0 | AK151: 0 | AL151: 0
B152: 126043 | C152: Corcom | D152: 07 KG | E152: 0 | AK152: 0 | AL152: 0
B153: 126044 | C153: Maggi Cubs | D153: 06 Each | E153: 0.625 | AK153: 0 | AL153: 0
B154: 126045 | C154: Maggi(chicken shawrma) | D154: 07 KG | E154: 4.75 | AK154: 0 | AL154: 0
B155: 126046 | C155: Garlic Powder | D155: 07 KG | E155: 45 | AK155: 0 | AL155: 0
A156: Category: 27 PASTA | B156: 127001 | C156: Pasta, Farfall | D156: 07 KG | E156: 0 | AK156: 0 | AL156: 0
B157: 127002 | C157: Pasta, Penne- Local | D157: 07 KG | E157: =3.95/0.5 -> 7.9 | AK157: 0 | AL157: 0
B158: 127003 | C158: Pasta, Noodles 500G | D158: 07 KG | E158: 0 | AK158: 0 | AL158: 0
B159: 127004 | C159: Pasta, Penne Zara | D159: 07 KG | E159: 0 | AK159: 0 | AL159: 0
B160: 127005 | C160: Pasta, Spagetti | D160: 07 KG | E160: 0 | AK160: 0 | AL160: 0
B161: 127006 | C161: Pasta, She3reya vermacelli | D161: 07 KG | E161: 0 | AK161: 0 | AL161: 0
B162: 127009 | C162: Dark CHOCOLATE (super Moist ) 500 G | D162: 04 Box | E162: 8.5 | AK162: 0 | AL162: 0
B163: 127010 | C163: Chocolat Chips 300 Gr | D163: 04 Box | E163: 57.5 | AK163: 0 | AL163: 0
B164: 127012 | C164: pasta lazany(500gr) | D164: 05 PKT | E164: 0 | AK164: 0 | AL164: 0
B165: 127013 | C165: PASTS FETSHENY | D165: 07 KG | E165: 0 | AK165: 0 | AL165: 0
B166: 127014 | C166: past langoni | D166: 05 PKT | E166: 0 | AK166: 0 | AL166: 0
A167: Category: 28 CANNED & BOTTLE | B167: 128001 | C167: Rice white | D167: 07 KG | E167: 0 | AK167: 0 | AL167: 0
B168: 128002 | C168: Ketchup | D168: 07 KG | E168: 4 | AK168: 0 | AL168: 0
B169: 128003 | C169: Mustard Dijon | D169: 07 KG | E169: =3.25*1000/450 -> 7.222222222 | AK169: 0 | AL169: 0
B170: 128004 | C170: Olive Oil Saporito | D170: 12 LTR | E170: 26.5 | AK170: 0 | AL170: 0
B171: 128005 | C171: Olives Black Sliced | D171: 07 KG | E171: 18 | AK171: 0 | AL171: 0
B172: 128006 | C172: Mayonnaise | D172: 07 KG | E172: 12.5 | AK172: 0 | AL172: 0
B173: 128007 | C173: Olives Black Calamata | D173: 07 KG | E173: 0 | AK173: 0 | AL173: 0
B174: 128008 | C174: Green Pepper Corn- pickled | D174: 07 KG | E174: 0 | AK174: 0 | AL174: 0
B175: 128009 | C175: Sweet Corn whole canned | D175: 07 KG | E175: 5 | AK175: 0 | AL175: 0
B176: 128010 | C176: Sauce, Hot | D176: 07 KG | E176: 0 | AK176: 0 | AL176: 0
B177: 128011 | C177: Tomato Paste | D177: 07 KG | E177: 9.85 | AK177: 0 | AL177: 0
B178: 128012 | C178: White Vingar | D178: 12 LTR | E178: 12 | AK178: 0 | AL178: 0
B179: 128013 | C179: Chick peas in brine boiled | D179: 03 Gr | E179: 0 | AK179: 0 | AL179: 0
B180: 128014 | C180: Chicken Broth cubes magi | D180: 07 KG | E180: 0 | AK180: 0 | AL180: 0
B181: 128015 | C181: Sun Dried Tomatoes | D181: 07 KG | E181: 45 | AK181: 0 | AL181: 0
B182: 128016 | C182: Oil Sunflower Al Aseel | D182: 12 LTR | E182: 0 | AK182: 0 | AL182: 0
B183: 128017 | C183: Oil Veagtable | D183: 12 LTR | E183: 10 | AK183: 0 | AL183: 0
B184: 128018 | C184: Sauce, Sweet Chilli | D184: 07 KG | E184: 0 | AK184: 0 | AL184: 0
B185: 128019 | C185: Sodium Carbonate | D185: 07 KG | E185: 30 | AK185: 0 | AL185: 0
B186: 128020 | C186: EGG NODILES 1*400 GR | D186: 05 PKT | E186: 0 | AK186: 0 | AL186: 0
B187: 128021 | C187: Whit Sugar | D187: 07 KG | E187: =29.95/10 -> 2.995 | AK187: 0 | AL187: 0
B188: 128022 | C188: Jam | D188: 06 Each | E188: 1.5 | AK188: 0 | AL188: 0
B189: 128023 | C189: Browen Sugar | D189: 07 KG | E189: =10.75*1000/500 -> 21.5 | AK189: 0 | AL189: 0
B190: 128024 | C190: Sauce, Ranch dressing | D190: 07 KG | E190: 0 | AK190: 0 | AL190: 0
B191: 128025 | C191: Sugar Cane Honey | D191: 07 KG | E191: 0 | AK191: 0 | AL191: 0
B192: 128026 | C192: FLOUR WHITE PAKT * 1 K G | D192: 05 PKT | E192: 3.5 | AK192: 0 | AL192: 0
B193: 128027 | C193: olives blackwhole | D193: 07 KG | E193: 0 | AK193: 0 | AL193: 0
B194: 128028 | C194: olives Green | D194: 07 KG | E194: 19 | AK194: =SUM(F194:AJ194)*(E194) -> 0 | AL194: 0
B195: 128029 | C195: geeen peppercorns in vinagar | D195: 15 Jar | E195: 0 | AK195: 0 | AL195: =SUM(F195:AJ195) -> 0
B196: 128030 | C196: basmte rice | D196: 07 KG | E196: 0 | AK196: 0 | AL196: 0
B197: 128031 | C197: rosito rice | D197: 07 KG | E197: 0 | AK197: 0 | AL197: 0
B198: 128032 | C198: sesame oil heynes | D198: 07 KG | E198: 0 | AK198: 0 | AL198: 0
B199: 128033 | C199: seweet corn | D199: 04 Box | E199: 0 | AK199: 0 | AL199: 0
B200: 128034 | C200: BABEY CORN | D200: 04 Box | E200: 0 | AK200: 0 | AL200: 0
... 420 more rows

Sheet Items
B1: Category | C1: Code | D1: Items Name | E1: Unit | F1: Cost Pris | G1: isWarehouse&Direct | H1: isRecipe & Whole | I1: isFinished | J1: Column1 | K1: Column2
B4: Category: 20 Meat | C4: 120001 | D4: BEEF FILLET | E4: 07 KG | F4: =+Prchi!E3 -> 0 | G4: Warehouse | H4: Whole | I4: Non-plant
C5: 120002 | D5: BEEF HELL Oriantal | E5: 07 KG | F5: =+Prchi!E4 -> 0 | G5: Warehouse | H5: Whole | I5: Non-plant
C6: 120003 | D6: BEEFE NECK | E6: 07 KG | F6: =+Prchi!E5 -> 0 | G6: Warehouse | H6: Recipe | I6: Non-plant
C7: 120004 | D7: beef top side | E7: 07 KG | F7: =+Prchi!E6 -> 0 | G7: Warehouse | H7: Whole | I7: Non-plant
C8: 120005 | D8: Smoked Beef (Tripianco) | E8: 07 KG | F8: =+Prchi!E7 -> 0 | G8: Warehouse | H8: Whole | I8: Non-plant
C9: 120006 | D9: Meet Pepironi | E9: 07 KG | F9: =+Prchi!E8 -> 31.57 | G9: Warehouse | H9: Whole | I9: Non-plant
C10: 120007 | D10: Mortadilla TURKY | E10: 07 KG | F10: =+Prchi!E9 -> 54.95 | G10: Warehouse | H10: Whole | I10: Non-plant
C11: 120008 | D11: VEAL LEG IMPORTED | E11: 07 KG | F11: =+Prchi!E10 -> 0 | G11: Warehouse | H11: Whole | I11: Non-plant
C12: 120009 | D12: Sausages | E12: 07 KG | F12: =+Prchi!E11 -> 5.5 | G12: Warehouse | H12: Whole | I12: Non-plant
C13: 120100 | D13: roast beef | E13: 07 KG | F13: =+Prchi!E12 -> 0 | G13: Warehouse | H13: Whole | I13: Non-plant
C14: 120101 | D14: roast beef cooked | E14: 07 KG | F14: =+Prchi!E13 -> 0 | G14: Warehouse | H14: Recipe | I14: Half of a plant
C15: 120102 | D15: Mortadilla Beef | E15: 07 KG | F15: =+Prchi!E14 -> 56.95 | G15: Warehouse | H15: Whole | I15: Non-plant
C16: 120103 | D16: Hot Dog | E16: 07 KG | F16: =+Prchi!E15 -> 18.06 | G16: Warehouse | H16: Whole | I16: Non-plant
B17: Category: 21 Sea Food | C17: 121001 | D17: SF CRAB | E17: 07 KG | F17: =+Prchi!E16 -> 0 | G17: Warehouse | H17: Whole | I17: Non-plant
C18: 121002 | D18: salmon smoked | E18: 07 KG | F18: =+Prchi!E17 -> 0 | G18: Warehouse | H18: Whole | I18: Non-plant
C19: 121003 | D19: anchovies | E19: 07 KG | F19: =+Prchi!E18 -> 0 | G19: Warehouse | H19: Whole | I19: Non-plant
C20: 121004 | D20: SF FISH FILLET | E20: 07 KG | F20: =+Prchi!E19 -> 0 | G20: Warehouse | H20: Whole | I20: Non-plant
C21: 121005 | D21: SF ANCHOVIS 92 GR BOX 1*24 | E21: 07 KG | F21: =+Prchi!E20 -> 0 | G21: Warehouse | H21: Whole | I21: Non-plant
C22: 121006 | D22: Tuna Chunks-Dolphin 1.8 KG | E22: 07 KG | F22: =+Prchi!E21 -> 39.75 | G22: Warehouse | H22: Whole | I22: Non-plant
C23: 121007 | D23: TUNA Kg | E23: 07 KG | F23: =+Prchi!E22 -> 0 | G23: Warehouse | H23: Whole | I23: Non-plant
C24: 121009 | D24: cooked salami | E24: 07 KG | F24: =+Prchi!E23 -> 0 | G24: Warehouse | H24: Recipe | I24: Half of a plant
C25: 121010 | D25: susis village (tbs) 200GR | E25: 05 PKT | F25: =+Prchi!E24 -> 0 | G25: Warehouse | H25: Whole | I25: Non-plant
C26: 121011 | D26: Frozen shrimp | E26: 07 KG | F26: =+Prchi!E25 -> 65 | G26: Warehouse | H26: Whole | I26: Non-plant
C27: 121012 | D27: kofta | E27: 07 KG | F27: =+Prchi!E26 -> 0 | G27: Warehouse | H27: Whole | I27: Non-plant
C28: 121013 | D28: chicken nagts | E28: 07 KG | F28: =+Prchi!E27 -> 0 | G28: Warehouse | H28: Whole | I28: Non-plant
C29: 121014 | D29: fish nagts | E29: 07 KG | F29: =+Prchi!E28 -> 0 | G29: Warehouse | H29: Whole | I29: Non-plant
C30: 121015 | D30: Tuna Chunks-Dolny1.7 | E30: 07 KG | F30: =+Prchi!E29 -> 0 | G30: Warehouse | H30: Whole | I30: Non-plant
C31: 121016 | D31: Sf Calimary | E31: 07 KG | F31: =+Prchi!E30 -> 0
B32: Category: 22 Poyultry | C32: 122001 | D32: Chicken Breast | E32: 07 KG | F32: =+Prchi!E31 -> 47
C33: 122002 | D33: Chicken Whole Frozen | E33: 07 KG | F33: =+Prchi!E32 -> 0
C34: 122003 | D34: Mortadilla Chicken | E34: 07 KG | F34: =+Prchi!E33 -> 0
C35: 122006 | D35: chicken wwing | E35: 07 KG | F35: =+Prchi!E34 -> 18.05555556
C36: 122007 | D36: liver | E36: 07 KG | F36: =+Prchi!E35 -> 0
C37: 122008 | D37: chicken parts | E37: 07 KG | F37: =+Prchi!E36 -> 0
C38: 122009 | D38: shawarma | E38: 07 KG | F38: =+Prchi!E37 -> 0
C39: 122100 | D39: chicken parmezan | E39: 07 KG | F39: =+Prchi!E38 -> 0
C40: 122101 | D40: chicken spice | E40: 07 KG | F40: =+Prchi!E39 -> 0
C41: 122102 | D41: chickin pox | E41: 07 KG | F41: =+Prchi!E40 -> 0
C42: 122103 | D42: chickin almonden | E42: 07 KG | F42: =+Prchi!E41 -> 0
C43: 122104 | D43: sudorof turkeys | E43: 07 KG | F43: =+Prchi!E42 -> 0
C44: 122105 | D44: Whole turkeys | E44: 07 KG | F44: =+Prchi!E43 -> 0
C45: 122106 | D45: Chicken shish Ni | E45: 07 KG | F45: =+Prchi!E44 -> 0
C46: 122107 | D46: Chicken Fajita | E46: 07 KG | F46: =+Prchi!E45 -> 0
B47: Category: 23 Fresh Vegatables & FRUIT FRESH | C47: 123002 | D47: Tomato Fresh | E47: 07 KG | F47: =+Prchi!E46 -> 0
C48: 123003 | D48: Cucumber | E48: 07 KG | F48: =+Prchi!E47 -> 6.95
C49: 123004 | D49: Mushroom | E49: 14 Plate | F49: =+Prchi!E48 -> 47.8
C50: 123005 | D50: Lettuce kaposha | E50: 07 KG | F50: =+Prchi!E49 -> 18.95
C51: 123006 | D51: Carrot | E51: 07 KG | F51: =+Prchi!E50 -> 9.94
C52: 123007 | D52: Celery | E52: 07 KG | F52: =+Prchi!E51 -> 0
C53: 123008 | D53: Ginger root | E53: 07 KG | F53: =+Prchi!E52 -> 14.95
C54: 123009 | D54: Coriander | E54: 07 KG | F54: =+Prchi!E53 -> 0
C55: 123010 | D55: Garlic | E55: 07 KG | F55: =+Prchi!E54 -> 0
C56: 123011 | D56: Tomato Shary | E56: 07 KG | F56: =+Prchi!E55 -> 71.8
C57: 123012 | D57: Jirjir | E57: 07 KG | F57: =+Prchi!E56 -> 0.95
C58: 123013 | D58: Basil | E58: 07 KG | F58: =+Prchi!E57 -> 0
C59: 123014 | D59: Cabbage Red | E59: 07 KG | F59: =+Prchi!E58 -> 0
C60: 123015 | D60: Aubergine Rmy | E60: 07 KG | F60: =+Prchi!E59 -> 0
C61: 123016 | D61: Marrow | E61: 07 KG | F61: =+Prchi!E60 -> 0
C62: 123017 | D62: Green Pepper Fresh | E62: 07 KG | F62: =+Prchi!E61 -> 9.95
C63: 123018 | D63: Red Pepper Fresh | E63: 07 KG | F63: =+Prchi!E62 -> 21.95
C64: 123019 | D64: Yellow Pepper Fresh | E64: 07 KG | F64: =+Prchi!E63 -> 21.95
C65: 123020 | D65: Onion | E65: 07 KG | F65: =+Prchi!E64 -> 12.95
C66: 123021 | D66: Potato Peeled | E66: 07 KG | F66: =+Prchi!E65 -> 0
C67: 123022 | D67: Lemon | E67: 07 KG | F67: =+Prchi!E66 -> 7.95
C68: 123023 | D68: Leek | E68: 07 KG | F68: =+Prchi!E67 -> 0
C69: 123024 | D69: Rose Marie | E69: 07 KG | F69: =+Prchi!E68 -> 0
C70: 123025 | D70: Mint | E70: 07 KG | F70: =+Prchi!E69 -> 0.95
C71: 123026 | D71: Vegitables | E71: 07 KG | F71: =+Prchi!E70 -> 0
C72: 123027 | D72: Lettuce Mava | E72: 07 KG | F72: =+Prchi!E71 -> 0
C73: 123028 | D73: water | E73: 07 KG | F73: =+Prchi!E72 -> 0.42375
C74: 123029 | D74: Perrier water | E74: 07 KG | F74: =+Prchi!E73 -> 0
C75: 123100 | D75: Potato Bofrit | E75: 07 KG | F75: =+Prchi!E74 -> 7.5
C76: 123101 | D76: GREEN BEANS | E76: 07 KG | F76: =+Prchi!E75 -> 0
C77: 123102 | D77: Green beans FASOLIA | E77: 07 KG | F77: =+Prchi!E76 -> 0
C78: 123103 | D78: Brocolli | E78: 07 KG | F78: =+Prchi!E77 -> 49.95
C79: 123104 | D79: Potato weadges | E79: 07 KG | F79: =+Prchi!E78 -> 0
C80: 123105 | D80: Appel Lobnani | E80: 07 KG | F80: =+Prchi!E79 -> 7.95
C81: 123106 | D81: Korat | E81: 07 KG | F81: =+Prchi!E80 -> 0
B82: Category: 24 Frozen Vegatables | C82: 123001 | D82: PLUE PERRY FRUZEN | E82: 07 KG | F82: =+Prchi!E81 -> 0
B83: Category: 25 Dairy Product | C83: 125001 | D83: Butter Block Newzeland | E83: 07 KG | F83: =+Prchi!E82 -> 0
C84: 125002 | D84: Butter almarai unsl | E84: 07 KG | F84: =+Prchi!E83 -> 39.5
C85: 125003 | D85: Cheese Cheddar | E85: 07 KG | F85: =+Prchi!E84 -> 60
C86: 125004 | D86: Cheese Emmental-Local Arab Dairy | E86: 07 KG | F86: =+Prchi!E85 -> 0
C87: 125005 | D87: Cheese Parmisan / Grana | E87: 07 KG | F87: =+Prchi!E86 -> 90.75
C88: 125006 | D88: Milk Powder full cream | E88: 07 KG | F88: =+Prchi!E87 -> 0
C89: 125007 | D89: Eggs W [ Cover 30 P ] | E89: 06 Each | F89: =+Prchi!E88 -> 0.475
C90: 125008 | D90: Cheese rockford- danish | E90: 07 KG | F90: =+Prchi!E89 -> 0
C91: 125009 | D91: Cheese White Feta | E91: 07 KG | F91: =+Prchi!E90 -> 29
C92: 125010 | D92: CHEESE KIRI 1*12 PSC | E92: 07 KG | F92: =+Prchi!E91 -> 0
C93: 125011 | D93: Milk Condensed | E93: 07 KG | F93: =+Prchi!E92 -> 0
C94: 125012 | D94: Shortening Savola | E94: 07 KG | F94: =+Prchi!E93 -> 0
C95: 125013 | D95: Cheese Philadelphia | E95: 07 KG | F95: =+Prchi!E94 -> 42.5
C96: 125014 | D96: Cheese Gouda with Cumin-Holland Frico | E96: 07 KG | F96: =+Prchi!E95 -> 0
C97: 125015 | D97: ROMI CHEES | E97: 07 KG | F97: =+Prchi!E96 -> 0
C98: 125016 | D98: Cheese KiRi1*8 psc | E98: 05 PKT | F98: =+Prchi!E97 -> 0
C99: 125017 | D99: Unsalted Butter | E99: 07 KG | F99: =+Prchi!E98 -> 40
C100: 125018 | D100: BUTTER | E100: 09 Gallon | F100: =+Prchi!E99 -> 0
C101: 125019 | D101: BUTTER Boretion | E101: 06 Each | F101: =+Prchi!E100 -> 1.5
C102: 125020 | D102: cotag cheese | E102: 07 KG | F102: =+Prchi!E101 -> 0
C103: 125021 | D103: Milk fresh | E103: 07 KG | F103: =+Prchi!E102 -> 4.5
C104: 125022 | D104: Milk Bonny | E104: 07 KG | F104: =+Prchi!E103 -> 14.70588235
C105: 125023 | D105: Fresh Milk Yogurt | E105: 07 KG | F105: =+Prchi!E104 -> 7
C106: 125024 | D106: Chess mozeral | E106: 07 KG | F106: =+Prchi!E105 -> 36.61111111
C107: 125025 | D107: whip Cream Dessert 7 gr | E107: 07 KG | F107: =+Prchi!E106 -> 82.63888889
C108: 125026 | D108: creme laktevala | E108: 07 KG | F108: =+Prchi!E107 -> 0
C109: 125027 | D109: chees cream | E109: 07 KG | F109: =+Prchi!E108 -> 0
C110: 125030 | D110: chees mozeral banda | E110: 07 KG | F110: =+Prchi!E109 -> 0
C111: 125031 | D111: chees karish(3.5 KG) | E111: 07 KG | F111: =+Prchi!E110 -> 0
C112: 125032 | D112: creame chees | E112: 09 Gallon | F112: =+Prchi!E111 -> 0
C113: 125100 | D113: Cheese Mozyrela | E113: 05 PKT | F113: =+Prchi!E112 -> 22
C114: 125101 | D114: caramel sous gsf | E114: 05 PKT | F114: =+Prchi!E113 -> 19.95
C115: 125102 | D115: Yogurt labaneta | E115: 07 KG | F115: =+Prchi!E114 -> 0
C116: 125103 | D116: cream of labani | E116: 04 Box | F116: =+Prchi!E115 -> 0
C117: 125104 | D117: President whipped cream | E117: 05 PKT | F117: =+Prchi!E116 -> 67.8
C118: 125105 | D118: Cheese Haloumi | E118: 07 KG | F118: =+Prchi!E117 -> 14.25
C119: 125106 | D119: Whipping Cream | E119: 01 Bottel | F119: =+Prchi!E118 -> 19.95
C120: 125107 | D120: Cream of labani cook 1*12 | E120: 01 Bottel | F120: =+Prchi!E119 -> 22
C121: 125108 | D121: Beef Burger (10) | E121: 04 Box 10 | F121: =+Prchi!E120 -> 2.5 | J121: لبد وضع سعر القطعة وليس الكيس كلة
C122: 125109 | D122: grapes leave | E122: 07 KG | F122: =+Prchi!E121 -> 0
C123: 125110 | D123: Cheese Cheddar Slice | E123: Peac | F123: =+Prchi!E122 -> 0.675 | J123: لبد وضع سعر القطعة وليس الكيس كلة
C124: 125111 | D124: Chiken Burger | E124: 04 Box 10 | F124: =+Prchi!E123 -> 0
B125: Category: 26 SPICES | C125: 126001 | D125: SPICE CARNATION POWDER | E125: 07 KG | F125: =+Prchi!E124 -> 0
C126: 126002 | D126: Spices, Chilli red pepper Powder | E126: 07 KG | F126: =+Prchi!E125 -> 56
C127: 126003 | D127: Spices, Corriandar Powder | E127: 07 KG | F127: =+Prchi!E126 -> 0
C128: 126004 | D128: Spices, Cumin SEADS | E128: 07 KG | F128: =+Prchi!E127 -> 60
C129: 126005 | D129: Spices, Tumeric powder | E129: 07 KG | F129: =+Prchi!E128 -> 0
C130: 126006 | D130: Spices, Ginger Powder | E130: 07 KG | F130: =+Prchi!E129 -> 0
C131: 126007 | D131: Spices, habet el baraka Seeds | E131: 07 KG | F131: =+Prchi!E130 -> 0
C132: 126008 | D132: Spices, Nut Meg powder | E132: 07 KG | F132: =+Prchi!E131 -> 0
C133: 126009 | D133: Herbs Dry, Oregano dried | E133: 07 KG | F133: =+Prchi!E132 -> 0
C134: 126010 | D134: Herbs, Oregano powder | E134: 07 KG | F134: =+Prchi!E133 -> 135
C135: 126011 | D135: Spices, Paprika | E135: 07 KG | F135: =+Prchi!E134 -> 0
C136: 126012 | D136: Spices, Black pepper powder | E136: 07 KG | F136: =+Prchi!E135 -> 54.5
C137: 126013 | D137: Pepper, portionpack | E137: 07 KG | F137: =+Prchi!E136 -> 0
C138: 126014 | D138: Spices, White pepper powder | E138: 07 KG | F138: =+Prchi!E137 -> 0
C139: 126015 | D139: Pepper, white | E139: 07 KG | F139: =+Prchi!E138 -> 0
C140: 126016 | D140: Spices, Cloves Seeds | E140: 07 KG | F140: =+Prchi!E139 -> 0
C141: 126017 | D141: Spices, mixed ( boharat) | E141: 07 KG | F141: =+Prchi!E140 -> 0
C142: 126018 | D142: Satard | E142: 05 PKT | F142: =+Prchi!E141 -> 60
C143: 126019 | D143: Salt Cooks soft for food | E143: 07 KG | F143: =+Prchi!E142 -> 2.5
C144: 126020 | D144: Spices, Cloves powder | E144: 07 KG | F144: =+Prchi!E143 -> 0
C145: 126021 | D145: Spices, seasoning mix grilled | E145: 07 KG | F145: =+Prchi!E144 -> 0
C146: 126022 | D146: CINAMOUN POWDER | E146: 07 KG | F146: =+Prchi!E145 -> 37
C147: 126024 | D147: lowra paper | E147: 07 KG | F147: =+Prchi!E146 -> 0
C148: 126025 | D148: habahan | E148: 07 KG | F148: =+Prchi!E147 -> 0
C149: 126026 | D149: pepper hot | E149: 07 KG | F149: =+Prchi!E148 -> 0
C150: 126031 | D150: Baksmt | E150: 07 KG | F150: =+Prchi!E149 -> 0
C151: 126041 | D151: Homouss | E151: 07 KG | F151: =+Prchi!E150 -> 0
C152: 126042 | D152: Cary Powder | E152: 07 KG | F152: =+Prchi!E151 -> 0
C153: 126043 | D153: Corcom | E153: 07 KG | F153: =+Prchi!E152 -> 0
C154: 126044 | D154: Maggi Cubs | E154: 06 Each | F154: =+Prchi!E153 -> 0.625
C155: 126045 | D155: Maggi(chicken shawrma) | E155: 07 KG | F155: =+Prchi!E154 -> 4.75
C156: 126046 | D156: Garlic Powder | E156: 07 KG | F156: =+Prchi!E155 -> 45
B157: Category: 27 PASTA | C157: 127001 | D157: Pasta, Farfall | E157: 07 KG | F157: =+Prchi!E156 -> 0
C158: 127002 | D158: Pasta, Penne- Local | E158: 07 KG | F158: =+Prchi!E157 -> 7.9
C159: 127003 | D159: Pasta, Noodles 500G | E159: 07 KG | F159: =+Prchi!E158 -> 0
C160: 127004 | D160: Pasta, Penne Zara | E160: 07 KG | F160: =+Prchi!E159 -> 0
C161: 127005 | D161: Pasta, Spagetti | E161: 07 KG | F161: =+Prchi!E160 -> 0
C162: 127006 | D162: Pasta, She3reya vermacelli | E162: 07 KG | F162: =+Prchi!E161 -> 0
C163: 127009 | D163: Dark CHOCOLATE (super Moist ) 500 G | E163: 04 Box | F163: =+Prchi!E162 -> 8.5
C164: 127010 | D164: Chocolat Chips 300 Gr | E164: 04 Box | F164: =+Prchi!E163 -> 57.5
C165: 127012 | D165: pasta lazany(500gr) | E165: 05 PKT | F165: =+Prchi!E164 -> 0
C166: 127013 | D166: PASTS FETSHENY | E166: 07 KG | F166: =+Prchi!E165 -> 0
C167: 127014 | D167: past langoni | E167: 05 PKT | F167: =+Prchi!E166 -> 0
B168: Category: 28 CANNED & BOTTLE | C168: 128001 | D168: Rice white | E168: 07 KG | F168: =+Prchi!E167 -> 0
C169: 128002 | D169: Ketchup | E169: 07 KG | F169: =+Prchi!E168 -> 4
C170: 128003 | D170: Mustard Dijon | E170: 07 KG | F170: =+Prchi!E169 -> 7.222222222
C171: 128004 | D171: Olive Oil Saporito | E171: 12 LTR | F171: =+Prchi!E170 -> 26.5
C172: 128005 | D172: Olives Black Sliced | E172: 07 KG | F172: =+Prchi!E171 -> 18
C173: 128006 | D173: Mayonnaise | E173: 07 KG | F173: =+Prchi!E172 -> 12.5
C174: 128007 | D174: Olives Black Calamata | E174: 07 KG | F174: =+Prchi!E173 -> 0
C175: 128008 | D175: Green Pepper Corn- pickled | E175: 07 KG | F175: =+Prchi!E174 -> 0
C176: 128009 | D176: Sweet Corn whole canned | E176: 07 KG | F176: =+Prchi!E175 -> 5
C177: 128010 | D177: Sauce, Hot | E177: 07 KG | F177: =+Prchi!E176 -> 0
C178: 128011 | D178: Tomato Paste | E178: 07 KG | F178: =+Prchi!E177 -> 9.85 | G178: .135G
C179: 128012 | D179: White Vingar | E179: 12 LTR | F179: =+Prchi!E178 -> 12
C180: 128013 | D180: Chick peas in brine boiled | E180: 03 Gr | F180: =+Prchi!E179 -> 0
C181: 128014 | D181: Chicken Broth cubes magi | E181: 07 KG | F181: =+Prchi!E180 -> 0
C182: 128015 | D182: Sun Dried Tomatoes | E182: 07 KG | F182: =+Prchi!E181 -> 45
C183: 128016 | D183: Oil Sunflower Al Aseel | E183: 12 LTR | F183: =+Prchi!E182 -> 0
C184: 128017 | D184: Oil Veagtable | E184: 12 LTR | F184: =+Prchi!E183 -> 10
C185: 128018 | D185: Sauce, Sweet Chilli | E185: 07 KG | F185: =+Prchi!E184 -> 0
C186: 128019 | D186: Sodium Carbonate | E186: 07 KG | F186: =+Prchi!E185 -> 30
C187: 128020 | D187: EGG NODILES 1*400 GR | E187: 05 PKT | F187: =+Prchi!E186 -> 0
C188: 128021 | D188: Whit Sugar | E188: 07 KG | F188: =+Prchi!E187 -> 2.995
C189: 128022 | D189: Jam | E189: 06 Each | F189: =+Prchi!E188 -> 1.5
C190: 128023 | D190: Browen Sugar | E190: 15 Jar | F190: =+Prchi!E189 -> 21.5
C191: 128024 | D191: Sauce, Ranch dressing | E191: 07 KG | F191: =+Prchi!E190 -> 0
C192: 128025 | D192: Sugar Cane Honey | E192: 07 KG | F192: =+Prchi!E191 -> 0
C193: 128026 | D193: FLOUR WHITE PAKT * 1 K G | E193: 05 PKT | F193: =+Prchi!E192 -> 3.5
C194: 128027 | D194: olives blackwhole | E194: 07 KG | F194: =+Prchi!E193 -> 0
C195: 128028 | D195: olives Green | E195: 07 KG | F195: =+Prchi!E194 -> 19
C196: 128029 | D196: geeen peppercorns in vinagar | E196: 15 Jar | F196: =+Prchi!E195 -> 0
C197: 128030 | D197: basmte rice | E197: 07 KG | F197: =+Prchi!E196 -> 0
C198: 128031 | D198: rosito rice | E198: 07 KG | F198: =+Prchi!E197 -> 0
C199: 128032 | D199: sesame oil heynes | E199: 07 KG | F199: =+Prchi!E198 -> 0
C200: 128033 | D200: seweet corn | E200: 04 Box | F200: =+Prchi!E199 -> 0
C201: 128034 | D201: BABEY CORN | E201: 04 Box | F201: =+Prchi!E200 -> 0
C202: 128035 | D202: hany el bawady | E202: 07 KG | F202: =+Prchi!E201 -> 0
... 418 more rows

Sheet Souce
B4: Author | C4: Shef/ | G4: DATE | H4: =TODAY() -> 2016-03-05
B5: Categories | C5: Main dishes/ Salad
B6: Tools | C6: 1
B8: Yield | C8: 1 | D8: Lit 1/2
B9: Portion | C9: 1
B10: Num portions | C10: 1
B12: ingredients
B13: Quantity | C13: Measurements units | D13: Cost | E13: Item Code | F13: Unit | G13: Item Name | H13: cost | I13: % of total | J13: isWarehouse&Direct | K13: isRecipe & Whole | L13: isFinished
C14: =B14/$C$8*$C$9 -> 0 | D14: =IFERROR(INDEX(Table1_1,MATCH(G14,INDEX(Table1_1,,3),0),5),"") ->  | E14: =IFERROR(INDEX(Table1_1,MATCH(G14,INDEX(Table1_1,,3),0),2),"") ->  | F14: =IFERROR(INDEX(Table1_1,MATCH(G14,INDEX(Table1_1,,3),0),4),"") ->  | H14: =IF(OR(D14="",C14=""),"",D14*C14) ->  | I14: =IF(OR(H14="",ISERROR(H23)),"",H14/$H$23) ->  | J14: =IFERROR(INDEX(Table1_1,MATCH(G14,INDEX(Table1_1,,3),0),6),"") ->  | K14: =IFERROR(INDEX(Table1_1,MATCH(G14,INDEX(Table1_1,,3),0),7),"") ->  | L14: =IFERROR(INDEX(Table1_1,MATCH(G14,INDEX(Table1_1,,3),0),8),"") -> 
C15: 0
C16: 0
C17: 0
C18: 0
C19: 0
C20: =B20/$C$8*$C$9 -> 0 | D20: =IFERROR(INDEX(Table1_1,MATCH(G20,INDEX(Table1_1,,3),0),5),"") ->  | E20: =IFERROR(INDEX(Table1_1,MATCH(G20,INDEX(Table1_1,,3),0),2),"") ->  | F20: =IFERROR(INDEX(Table1_1,MATCH(G20,INDEX(Table1_1,,3),0),4),"") ->  | H20: =IF(OR(D20="",C20=""),"",D20*C20) ->  | J20: =IFERROR(INDEX(Table1_1,MATCH(G20,INDEX(Table1_1,,3),0),6),"") ->  | K20: =IFERROR(INDEX(Table1_1,MATCH(G20,INDEX(Table1_1,,3),0),7),"") ->  | L20: =IFERROR(INDEX(Table1_1,MATCH(G20,INDEX(Table1_1,,3),0),8),"") -> 
C21: 0 | I21: =IF(OR(H21="",ISERROR(H29)),"",H21/$H$23) -> 
E23: Total | H23: =SUM(H14:H21) -> 0 | I23: =SUM(I14:I22) -> 0
B24: =C8 -> 1 | C24: Yield portion | E24: Created by: Ayman Saleem
C26: portion | E26: Suggested price
B27: cost | C27: =H23/C10 -> 0 | E27: =C27 -> 0
B28: price | C28: =E28 -> 0 | E28: =H23*100/32 -> 0
B29: %cost | C29: =C27/C28/100 ->  | E29: =E27/E28/100 -> 
B30: Margin | C30: =C27-C28 -> 0 | E30: =E27-E28 -> 0

Sheet Breakfast
B4: Author | C4: Shef/ | G4: DATE | H4: =TODAY() -> 2016-03-05
B5: Categories | C5: Main dishes/ Salad
B6: Tools | C6: 1
B8: Yield | C8: 1 | D8: Portion
B9: Portion | C9: =+'Menu Analysis'!C5 -> 1
B10: Num portions | C10: 1
B12: ingredients
B13: Quantity | C13: Measurements units | D13: Cost | E13: Item Code | F13: Unit | G13: Item Name | H13: cost | I13: % of total | J13: isWarehouse&Direct | K13: isRecipe & Whole | L13: isFinished
C14: =B14/$C$8*$C$9 -> 0 | D14: =IFERROR(INDEX(Table1_1,MATCH(G14,INDEX(Table1_1,,3),0),5),"") ->  | E14: =IFERROR(INDEX(Table1_1,MATCH(G14,INDEX(Table1_1,,3),0),2),"") ->  | F14: =IFERROR(INDEX(Table1_1,MATCH(G14,INDEX(Table1_1,,3),0),4),"") ->  | H14: =IF(OR(D14="",C14=""),"",D14*C14) ->  | I14: =IF(OR(H14="",ISERROR(H27)),"",H14/$H$27) ->  | J14: =IFERROR(INDEX(Table1_1,MATCH(G14,INDEX(Table1_1,,3),0),6),"") ->  | K14: =IFERROR(INDEX(Table1_1,MATCH(G14,INDEX(Table1_1,,3),0),7),"") ->  | L14: =IFERROR(INDEX(Table1_1,MATCH(G14,INDEX(Table1_1,,3),0),8),"") -> 
C15: =B15/$C$8*$C$9 -> 0 | H15: =IF(OR(D15="",C15=""),"",D15*C15) ->  | I15: =IF(OR(H15="",ISERROR(H28)),"",H15/$H$27) -> 
C16: =B16/$C$8*$C$9 -> 0 | H16: =IF(OR(D16="",C16=""),"",D16*C16) ->  | I16: =IF(OR(H16="",ISERROR(H29)),"",H16/$H$27) -> 
C17: =B17/$C$8*$C$9 -> 0 | H17: =IF(OR(D17="",C17=""),"",D17*C17) ->  | I17: =IF(OR(H17="",ISERROR(H30)),"",H17/$H$27) -> 
C18: =B18/$C$8*$C$9 -> 0 | H18: =IF(OR(D18="",C18=""),"",D18*C18) ->  | I18: =IF(OR(H18="",ISERROR(H28)),"",H18/$H$27) -> 
C19: 0
C20: 0
C21: 0
C22: 0
C23: 0
C24: =B24/$C$8*$C$9 -> 0 | H24: =IF(OR(D24="",C24=""),"",D24*C24) ->  | I24: =IF(OR(H24="",ISERROR(H28)),"",H24/$H$27) ->  | J24: =IFERROR(INDEX(Table1_1,MATCH(G24,INDEX(Table1_1,,3),0),6),"") ->  | K24: =IFERROR(INDEX(Table1_1,MATCH(G24,INDEX(Table1_1,,3),0),7),"") ->  | L24: =IFERROR(INDEX(Table1_1,MATCH(G24,INDEX(Table1_1,,3),0),8),"") -> 
C25: =B25/$C$8*$C$9 -> 0 | H25: =IF(OR(D25="",C25=""),"",D25*C25) ->  | I25: =IF(OR(H25="",ISERROR(H29)),"",H25/$H$27) ->  | J25: =IFERROR(INDEX(Table1_1,MATCH(G25,INDEX(Table1_1,,3),0),6),"") ->  | K25: =IFERROR(INDEX(Table1_1,MATCH(G25,INDEX(Table1_1,,3),0),7),"") ->  | L25: =IFERROR(INDEX(Table1_1,MATCH(G25,INDEX(Table1_1,,3),0),8),"") -> 
E27: Total | H27: =SUM(H14:H25) -> 0 | I27: =SUM(I14:I26) -> 0
B28: =C8 -> 1 | C28: Yield portion | E28: Created by: Ayman Saleem
C30: portion | E30: Suggested price
B31: cost | C31: =H27/C10 -> 0 | E31: =C31 -> 0
B32: price | C32: =E32 -> 29 | E32: 29
B33: %cost | C33: =C31/C32/100 -> 0 | E33: =E31/E32/100 -> 0
B34: Margin | C34: =C31-C32 -> -29 | E34: =E31-E32 -> -29

Sheet Salad
B4: Author | C4: Shef/ | G4: DATE | H4: =TODAY() -> 2016-03-05
B5: Categories | C5: Main dishes/ Salad
B6: Tools | C6: 1
B8: Yield | C8: 1 | D8: Portion
B9: Portion | C9: =+'Menu Analysis'!C33 -> 1
B10: Num portions | C10: 1
B12: ingredients
B13: Quantity | C13: Measurements units | D13: Cost | E13: Item Code | F13: Unit | G13: Item Name | H13: cost | I13: % of total | J13: isWarehouse&Direct | K13: isRecipe & Whole | L13: isFinished
C14: =B14/$C$8*$C$9 -> 0 | D14: =IFERROR(INDEX(Table1_1,MATCH(G14,INDEX(Table1_1,,3),0),5),"") ->  | E14: =IFERROR(INDEX(Table1_1,MATCH(G14,INDEX(Table1_1,,3),0),2),"") ->  | F14: =IFERROR(INDEX(Table1_1,MATCH(G14,INDEX(Table1_1,,3),0),4),"") ->  | H14: =IF(OR(D14="",C14=""),"",D14*C14) ->  | I14: =IF(OR(H14="",ISERROR(H22)),"",H14/$H$22) ->  | J14: =IFERROR(INDEX(Table1_1,MATCH(G14,INDEX(Table1_1,,3),0),6),"") ->  | K14: =IFERROR(INDEX(Table1_1,MATCH(G14,INDEX(Table1_1,,3),0),7),"") ->  | L14: =IFERROR(INDEX(Table1_1,MATCH(G14,INDEX(Table1_1,,3),0),8),"") -> 
C15: 0
C16: 0
C17: 0
C18: 0
C19: 0
C20: 0
E22: Total | H22: =SUM(H14:H20) -> 0 | I22: =SUM(I14:I21) -> 0
B23: =C8 -> 1 | C23: Yield portion | E23: Created by: Ayman Saleem
C25: portion | E25: Suggested price
B26: cost | C26: =H22/C10 -> 0 | E26: =C26 -> 0
B27: price | C27: =E27 -> 0 | E27: =H22*100/40 -> 0
B28: %cost | C28: =C26/C27/100 ->  | E28: =E26/E27/100 -> 
B29: Margin | C29: =C26-C27 -> 0 | E29: =E26-E27 -> 0

Sheet Sandwich
B4: Author | C4: Shef/ | G4: DATE | H4: =TODAY() -> 2016-03-05
B5: Categories | C5: Main dishes/ Salad
B6: Tools | C6: 1
B8: Yield | C8: 1 | D8: Portion
B9: Portion | C9: =+'Menu Analysis'!C49 -> 1
B10: Num portions | C10: 1
B12: ingredients
B13: Quantity | C13: Measurements units | D13: Cost | E13: Item Code | F13: Unit | G13: Item Name | H13: cost | I13: % of total | J13: isWarehouse&Direct | K13: isRecipe & Whole | L13: isFinished
C14: =B14/$C$8*$C$9 -> 0 | D14: =IFERROR(INDEX(Table1_1,MATCH(G14,INDEX(Table1_1,,3),0),5),"") ->  | E14: =IFERROR(INDEX(Table1_1,MATCH(G14,INDEX(Table1_1,,3),0),2),"") ->  | F14: =IFERROR(INDEX(Table1_1,MATCH(G14,INDEX(Table1_1,,3),0),4),"") ->  | H14: =IF(OR(D14="",C14=""),"",D14*C14) ->  | I14: =IF(OR(H14="",ISERROR(H26)),"",H14/$H$26) ->  | J14: =IFERROR(INDEX(Table1_1,MATCH(G14,INDEX(Table1_1,,3),0),6),"") ->  | K14: =IFERROR(INDEX(Table1_1,MATCH(G14,INDEX(Table1_1,,3),0),7),"") ->  | L14: =IFERROR(INDEX(Table1_1,MATCH(G14,INDEX(Table1_1,,3),0),8),"") -> 
C15: 0
C16: 0
C17: 0
C18: 0
C19: 0 | D19: =IFERROR(INDEX(Table1_1,MATCH(G19,INDEX(Table1_1,,3),0),5),"") ->  | E19: =IFERROR(INDEX(Table1_1,MATCH(G19,INDEX(Table1_1,,3),0),2),"") ->  | H19: =IF(OR(D19="",C19=""),"",D19*C19) ->  | J19: =IFERROR(INDEX(Table1_1,MATCH(G19,INDEX(Table1_1,,3),0),6),"") ->  | K19: =IFERROR(INDEX(Table1_1,MATCH(G19,INDEX(Table1_1,,3),0),7),"") ->  | L19: =IFERROR(INDEX(Table1_1,MATCH(G19,INDEX(Table1_1,,3),0),8),"") -> 
C20: 0 | D20: =IFERROR(INDEX(Table1_1,MATCH(G20,INDEX(Table1_1,,3),0),5),"") ->  | E20: =IFERROR(INDEX(Table1_1,MATCH(G20,INDEX(Table1_1,,3),0),2),"") ->  | H20: =IF(OR(D20="",C20=""),"",D20*C20) ->  | J20: =IFERROR(INDEX(Table1_1,MATCH(G20,INDEX(Table1_1,,3),0),6),"") ->  | K20: =IFERROR(INDEX(Table1_1,MATCH(G20,INDEX(Table1_1,,3),0),7),"") ->  | L20: =IFERROR(INDEX(Table1_1,MATCH(G20,INDEX(Table1_1,,3),0),8),"") -> 
C21: 0 | D21: =IFERROR(INDEX(Table1_1,MATCH(G21,INDEX(Table1_1,,3),0),5),"") ->  | E21: =IFERROR(INDEX(Table1_1,MATCH(G21,INDEX(Table1_1,,3),0),2),"") ->  | H21: =IF(OR(D21="",C21=""),"",D21*C21) ->  | J21: =IFERROR(INDEX(Table1_1,MATCH(G21,INDEX(Table1_1,,3),0),6),"") ->  | K21: =IFERROR(INDEX(Table1_1,MATCH(G21,INDEX(Table1_1,,3),0),7),"") ->  | L21: =IFERROR(INDEX(Table1_1,MATCH(G21,INDEX(Table1_1,,3),0),8),"") -> 
C22: 0 | D22: =IFERROR(INDEX(Table1_1,MATCH(G22,INDEX(Table1_1,,3),0),5),"") ->  | E22: =IFERROR(INDEX(Table1_1,MATCH(G22,INDEX(Table1_1,,3),0),2),"") ->  | H22: =IF(OR(D22="",C22=""),"",D22*C22) ->  | J22: =IFERROR(INDEX(Table1_1,MATCH(G22,INDEX(Table1_1,,3),0),6),"") ->  | K22: =IFERROR(INDEX(Table1_1,MATCH(G22,INDEX(Table1_1,,3),0),7),"") ->  | L22: =IFERROR(INDEX(Table1_1,MATCH(G22,INDEX(Table1_1,,3),0),8),"") -> 
C23: 0 | I23: =IF(OR(H23="",ISERROR(H31)),"",H23/$H$26) -> 
C24: 0 | I24: =IF(OR(H24="",ISERROR(H32)),"",H24/$H$26) -> 
E26: Total | H26: =SUM(H14:H24) -> 0 | I26: =SUM(I14:I25) -> 0
B27: =C8 -> 1 | C27: Yield portion | E27: Created by: Ayman Saleem
C29: portion | E29: Suggested price
B30: cost | C30: =H26/C10 -> 0 | E30: =C30 -> 0
B31: price | C31: =E31 -> 0 | E31: =H26*100/40 -> 0
B32: %cost | C32: =C30/C31/100 ->  | E32: =E30/E31/100 -> 
B33: Margin | C33: =C30-C31 -> 0 | E33: =E30-E31 -> 0

Sheet Pasta
B4: Author | C4: Shef/ | G4: DATE | H4: =TODAY() -> 2016-03-05
B5: Categories | C5: Main dishes/ Salad
B6: Tools | C6: 1
B8: Yield | C8: 1 | D8: PORTION
B9: Portion | C9: =+'Menu Analysis'!C107 -> 1
B10: Num portions | C10: 1
B12: ingredients
B13: Quantity | C13: Measurements units | D13: Cost | E13: Item Code | F13: Unit | G13: Item Name | H13: cost | I13: % of total | J13: isWarehouse&Direct | K13: isRecipe & Whole | L13: isFinished
C14: =IF(ISERROR(1/$C$8*$C$9),"",B14/$C$8*$C$9) -> 0 | D14: =IFERROR(INDEX(Table1_1,MATCH(G14,INDEX(Table1_1,,3),0),5),"") ->  | E14: =IFERROR(INDEX(Table1_1,MATCH(G14,INDEX(Table1_1,,3),0),2),"") ->  | F14: =IFERROR(INDEX(Table1_1,MATCH(G14,INDEX(Table1_1,,3),0),4),"") ->  | H14: =IF(OR(D14="",C14=""),"",D14*C14) ->  | I14: =IF(OR(H14="",ISERROR(H31)),"",H14/$H$31) ->  | J14: =IFERROR(INDEX(Table1_1,MATCH(G14,INDEX(Table1_1,,3),0),6),"") ->  | K14: =IFERROR(INDEX(Table1_1,MATCH(G14,INDEX(Table1_1,,3),0),7),"") ->  | L14: =IFERROR(INDEX(Table1_1,MATCH(G14,INDEX(Table1_1,,3),0),8),"") ->  | Q14: =INDEX(Table1_1,MATCH(G14,INDEX(Table1_1,,3),0),6) -> 
C15: 0
C16: 0
C17: 0
C18: 0
C19: 0
C20: 0
C21: 0
C22: 0
C23: 0
C24: 0 | I24: =IF(OR(H24="",ISERROR(#REF!)),"",H24/$H$31) -> 
C25: 0 | I25: =IF(OR(H25="",ISERROR(#REF!)),"",H25/$H$31) -> 
C26: 0 | I26: =IF(OR(H26="",ISERROR(#REF!)),"",H26/$H$31) -> 
C27: 0 | I27: =IF(OR(H27="",ISERROR(#REF!)),"",H27/$H$31) -> 
C28: 0 | I28: =IF(OR(H28="",ISERROR(#REF!)),"",H28/$H$31) -> 
C29: 0 | I29: =IF(OR(H29="",ISERROR(#REF!)),"",H29/$H$31) -> 
E31: Total | H31: =SUM(H14:H29) -> 0 | I31: =IF(#REF!=0,"",H31/$H$31) -> 
B32: =C8 -> 1 | C32: Yield portion | E32: Created by: Ayman Saleem
C34: portion | E34: Suggested price
B35: cost | C35: =H31/C10 -> 0 | E35: =C35 -> 0
B36: price | E36: =H31*100/32 -> 0
B37: %cost | C37: =C35/C36/100 ->  | E37: =E35/E36/100 -> 
B38: Margin | C38: =C35-C36 -> 0 | E38: =E35-E36 -> 0

Sheet Dessert
B4: Author | C4: Shef/ | G4: DATE | H4: =TODAY() -> 2016-03-05
B5: Categories | C5: Main dishes/ Salad
B6: Tools | C6: 1
B8: Yield | C8: 1 | D8: PORTION
B9: Portion | C9: =+'Menu Analysis'!C123 -> 1
B10: Num portions | C10: 1
B12: ingredients
B13: Quantity | C13: Measurements units | D13: Cost | E13: Item Code | F13: Unit | G13: Item Name | H13: cost | I13: % of total | J13: isWarehouse&Direct | K13: isRecipe & Whole | L13: isFinished
C14: =IF(ISERROR(1/$C$8*$C$9),"",B14/$C$8*$C$9) -> 0 | D14: =IFERROR(INDEX(Table1_1,MATCH(G14,INDEX(Table1_1,,3),0),5),"") ->  | E14: =IFERROR(INDEX(Table1_1,MATCH(G14,INDEX(Table1_1,,3),0),2),"") ->  | F14: =IFERROR(INDEX(Table1_1,MATCH(G14,INDEX(Table1_1,,3),0),4),"") ->  | H14: =IF(OR(D14="",C14=""),"",D14*C14) ->  | I14: =IF(OR(H14="",ISERROR(H31)),"",H14/$H$31) ->  | J14: =IFERROR(INDEX(Table1_1,MATCH(G14,INDEX(Table1_1,,3),0),6),"") ->  | K14: =IFERROR(INDEX(Table1_1,MATCH(G14,INDEX(Table1_1,,3),0),7),"") ->  | L14: =IFERROR(INDEX(Table1_1,MATCH(G14,INDEX(Table1_1,,3),0),8),"") ->  | Q14: =INDEX(Table1_1,MATCH(G14,INDEX(Table1_1,,3),0),6) -> 
C15: 0
C16: 0
C17: 0
C18: 0
C19: 0
C20: 0
C21: 0
C22: 0
C23: 0
C24: 0 | I24: =IF(OR(H24="",ISERROR(#REF!)),"",H24/$H$31) -> 
C25: 0 | I25: =IF(OR(H25="",ISERROR(#REF!)),"",H25/$H$31) -> 
C26: 0 | I26: =IF(OR(H26="",ISERROR(#REF!)),"",H26/$H$31) -> 
C27: 0 | I27: =IF(OR(H27="",ISERROR(#REF!)),"",H27/$H$31) -> 
C28: 0 | I28: =IF(OR(H28="",ISERROR(#REF!)),"",H28/$H$31) -> 
C29: 0 | I29: =IF(OR(H29="",ISERROR(#REF!)),"",H29/$H$31) -> 
E31: Total | H31: =SUM(H14:H29) -> 0 | I31: =IF(#REF!=0,"",H31/$H$31) -> 
B32: =C8 -> 1 | C32: Yield portion | E32: Created by: Ayman Saleem
C34: portion | E34: Suggested price
B35: cost | C35: =H31/C10 -> 0 | E35: =C35 -> 0
B36: price | E36: =H31*100/32 -> 0
B37: %cost | C37: =C35/C36/100 ->  | E37: =E35/E36/100 -> 
B38: Margin | C38: =C35-C36 -> 0 | E38: =E35-E36 -> 0

Sheet Total Warehouse&Direct
B1: Category | C1: Code | D1: Items Name | E1: Unit | F1: Total | G1: Souce | H1: Salad | I1: Sandwich | J1: Breacfast | K1: Pasta | L1: Dessert | M1: isWarehouse&Direct | N1: isFinished
C2: =Table1[[#This Row],[Code]] -> 0 | D2: =Table1[[#This Row],[Items Name]] -> 0 | E2: =Table1[[#This Row],[Unit]] -> 0 | F2: =+Table13[[#This Row],[Souce]]+Table13[[#This Row],[Salad]]+Table13[[#This Row],[Sandwich]]+Table13[[#This Row],[Breacfast]]+Table13[[#This Row],[Pasta]]+Table13[[#This Row],[Dessert]] -> 0 | G2: =SUMIF(Souce!$G$14:$G$357,Table13[[#This Row],[Items Name]],Souce!$C$14:$C$357) -> 0 | H2: =SUMIF(Salad!$G$14:$G$768,Table13[[#This Row],[Items Name]],Salad!$C$14:$C$768) -> 0 | I2: =SUMIF(Sandwich!$G$14:$G$454,Table13[[#This Row],[Items Name]],Sandwich!$C$14:$C$454) -> 0 | J2: =SUMIF(Breakfast!$G$14:$G$164,Table13[[#This Row],[Items Name]],Breakfast!$C$14:$C$164) -> 0 | K2: =SUMIF(Pasta!$G$14:$G$99,Table13[[#This Row],[Items Name]],Pasta!$C$14:$C$99) -> 0 | L2: =SUMIF(Dessert!$G$14:$G$40,Table13[[#This Row],[Items Name]],Dessert!$C$14:$C$40) -> 0 | M2: =Table1[[#This Row],[isWarehouse&Direct]] -> 0 | N2: =Table1[[#This Row],[isFinished]] -> 0
C3: =Table1[[#This Row],[Code]] -> 0 | D3: =Table1[[#This Row],[Items Name]] -> 0 | E3: =Table1[[#This Row],[Unit]] -> 0 | F3: =+Table13[[#This Row],[Souce]]+Table13[[#This Row],[Salad]]+Table13[[#This Row],[Sandwich]]+Table13[[#This Row],[Breacfast]]+Table13[[#This Row],[Pasta]]+Table13[[#This Row],[Dessert]] -> 0 | G3: =SUMIF(Souce!$G$14:$G$357,Table13[[#This Row],[Items Name]],Souce!$C$14:$C$357) -> 0 | H3: =SUMIF(Salad!$G$14:$G$768,Table13[[#This Row],[Items Name]],Salad!$C$14:$C$768) -> 0 | I3: =SUMIF(Sandwich!$G$14:$G$454,Table13[[#This Row],[Items Name]],Sandwich!$C$14:$C$454) -> 0 | J3: =SUMIF(Breakfast!$G$14:$G$164,Table13[[#This Row],[Items Name]],Breakfast!$C$14:$C$164) -> 0 | K3: =SUMIF(Pasta!$G$14:$G$99,Table13[[#This Row],[Items Name]],Pasta!$C$14:$C$99) -> 0 | L3: =SUMIF(Dessert!$G$14:$G$40,Table13[[#This Row],[Items Name]],Dessert!$C$14:$C$40) -> 0 | M3: =Table1[[#This Row],[isWarehouse&Direct]] -> 0 | N3: =Table1[[#This Row],[isFinished]] -> 0
C4: =Table1[[#This Row],[Code]] -> 120001 | D4: =Table1[[#This Row],[Items Name]] -> BEEF FILLET | E4: =Table1[[#This Row],[Unit]] -> 07 KG | F4: =+Table13[[#This Row],[Souce]]+Table13[[#This Row],[Salad]]+Table13[[#This Row],[Sandwich]]+Table13[[#This Row],[Breacfast]]+Table13[[#This Row],[Pasta]]+Table13[[#This Row],[Dessert]] -> 0 | G4: =SUMIF(Souce!$G$14:$G$357,Table13[[#This Row],[Items Name]],Souce!$C$14:$C$357) -> 0 | H4: =SUMIF(Salad!$G$14:$G$768,Table13[[#This Row],[Items Name]],Salad!$C$14:$C$768) -> 0 | I4: =SUMIF(Sandwich!$G$14:$G$454,Table13[[#This Row],[Items Name]],Sandwich!$C$14:$C$454) -> 0 | J4: =SUMIF(Breakfast!$G$14:$G$164,Table13[[#This Row],[Items Name]],Breakfast!$C$14:$C$164) -> 0 | K4: =SUMIF(Pasta!$G$14:$G$99,Table13[[#This Row],[Items Name]],Pasta!$C$14:$C$99) -> 0 | L4: =SUMIF(Dessert!$G$14:$G$40,Table13[[#This Row],[Items Name]],Dessert!$C$14:$C$40) -> 0 | M4: =Table1[[#This Row],[isWarehouse&Direct]] -> Warehouse | N4: =Table1[[#This Row],[isFinished]] -> Non-plant
C5: =Table1[[#This Row],[Code]] -> 120002 | D5: =Table1[[#This Row],[Items Name]] -> BEEF HELL Oriantal | E5: =Table1[[#This Row],[Unit]] -> 07 KG | F5: =+Table13[[#This Row],[Souce]]+Table13[[#This Row],[Salad]]+Table13[[#This Row],[Sandwich]]+Table13[[#This Row],[Breacfast]]+Table13[[#This Row],[Pasta]]+Table13[[#This Row],[Dessert]] -> 0 | G5: =SUMIF(Souce!$G$14:$G$357,Table13[[#This Row],[Items Name]],Souce!$C$14:$C$357) -> 0 | H5: =SUMIF(Salad!$G$14:$G$768,Table13[[#This Row],[Items Name]],Salad!$C$14:$C$768) -> 0 | I5: =SUMIF(Sandwich!$G$14:$G$454,Table13[[#This Row],[Items Name]],Sandwich!$C$14:$C$454) -> 0 | J5: =SUMIF(Breakfast!$G$14:$G$164,Table13[[#This Row],[Items Name]],Breakfast!$C$14:$C$164) -> 0 | K5: =SUMIF(Pasta!$G$14:$G$99,Table13[[#This Row],[Items Name]],Pasta!$C$14:$C$99) -> 0 | L5: =SUMIF(Dessert!$G$14:$G$40,Table13[[#This Row],[Items Name]],Dessert!$C$14:$C$40) -> 0 | M5: =Table1[[#This Row],[isWarehouse&Direct]] -> Warehouse | N5: =Table1[[#This Row],[isFinished]] -> Non-plant
C6: =Table1[[#This Row],[Code]] -> 120003 | D6: =Table1[[#This Row],[Items Name]] -> BEEFE NECK | E6: =Table1[[#This Row],[Unit]] -> 07 KG | F6: =+Table13[[#This Row],[Souce]]+Table13[[#This Row],[Salad]]+Table13[[#This Row],[Sandwich]]+Table13[[#This Row],[Breacfast]]+Table13[[#This Row],[Pasta]]+Table13[[#This Row],[Dessert]] -> 0 | G6: =SUMIF(Souce!$G$14:$G$357,Table13[[#This Row],[Items Name]],Souce!$C$14:$C$357) -> 0 | H6: =SUMIF(Salad!$G$14:$G$768,Table13[[#This Row],[Items Name]],Salad!$C$14:$C$768) -> 0 | I6: =SUMIF(Sandwich!$G$14:$G$454,Table13[[#This Row],[Items Name]],Sandwich!$C$14:$C$454) -> 0 | J6: =SUMIF(Breakfast!$G$14:$G$164,Table13[[#This Row],[Items Name]],Breakfast!$C$14:$C$164) -> 0 | K6: =SUMIF(Pasta!$G$14:$G$99,Table13[[#This Row],[Items Name]],Pasta!$C$14:$C$99) -> 0 | L6: =SUMIF(Dessert!$G$14:$G$40,Table13[[#This Row],[Items Name]],Dessert!$C$14:$C$40) -> 0 | M6: =Table1[[#This Row],[isWarehouse&Direct]] -> Warehouse | N6: =Table1[[#This Row],[isFinished]] -> Non-plant
C7: =Table1[[#This Row],[Code]] -> 120004 | D7: =Table1[[#This Row],[Items Name]] -> beef top side | E7: =Table1[[#This Row],[Unit]] -> 07 KG | F7: =+Table13[[#This Row],[Souce]]+Table13[[#This Row],[Salad]]+Table13[[#This Row],[Sandwich]]+Table13[[#This Row],[Breacfast]]+Table13[[#This Row],[Pasta]]+Table13[[#This Row],[Dessert]] -> 0 | G7: =SUMIF(Souce!$G$14:$G$357,Table13[[#This Row],[Items Name]],Souce!$C$14:$C$357) -> 0 | H7: =SUMIF(Salad!$G$14:$G$768,Table13[[#This Row],[Items Name]],Salad!$C$14:$C$768) -> 0 | I7: =SUMIF(Sandwich!$G$14:$G$454,Table13[[#This Row],[Items Name]],Sandwich!$C$14:$C$454) -> 0 | J7: =SUMIF(Breakfast!$G$14:$G$164,Table13[[#This Row],[Items Name]],Breakfast!$C$14:$C$164) -> 0 | K7: =SUMIF(Pasta!$G$14:$G$99,Table13[[#This Row],[Items Name]],Pasta!$C$14:$C$99) -> 0 | L7: =SUMIF(Dessert!$G$14:$G$40,Table13[[#This Row],[Items Name]],Dessert!$C$14:$C$40) -> 0 | M7: =Table1[[#This Row],[isWarehouse&Direct]] -> Warehouse | N7: =Table1[[#This Row],[isFinished]] -> Non-plant
C8: =Table1[[#This Row],[Code]] -> 120005 | D8: =Table1[[#This Row],[Items Name]] -> Smoked Beef (Tripianco) | E8: =Table1[[#This Row],[Unit]] -> 07 KG | F8: =+Table13[[#This Row],[Souce]]+Table13[[#This Row],[Salad]]+Table13[[#This Row],[Sandwich]]+Table13[[#This Row],[Breacfast]]+Table13[[#This Row],[Pasta]]+Table13[[#This Row],[Dessert]] -> 0 | G8: =SUMIF(Souce!$G$14:$G$357,Table13[[#This Row],[Items Name]],Souce!$C$14:$C$357) -> 0 | H8: =SUMIF(Salad!$G$14:$G$768,Table13[[#This Row],[Items Name]],Salad!$C$14:$C$768) -> 0 | I8: =SUMIF(Sandwich!$G$14:$G$454,Table13[[#This Row],[Items Name]],Sandwich!$C$14:$C$454) -> 0 | J8: =SUMIF(Breakfast!$G$14:$G$164,Table13[[#This Row],[Items Name]],Breakfast!$C$14:$C$164) -> 0 | K8: =SUMIF(Pasta!$G$14:$G$99,Table13[[#This Row],[Items Name]],Pasta!$C$14:$C$99) -> 0 | L8: =SUMIF(Dessert!$G$14:$G$40,Table13[[#This Row],[Items Name]],Dessert!$C$14:$C$40) -> 0 | M8: =Table1[[#This Row],[isWarehouse&Direct]] -> Warehouse | N8: =Table1[[#This Row],[isFinished]] -> Non-plant
C9: =Table1[[#This Row],[Code]] -> 120006 | D9: =Table1[[#This Row],[Items Name]] -> Meet Pepironi | E9: =Table1[[#This Row],[Unit]] -> 07 KG | F9: =+Table13[[#This Row],[Souce]]+Table13[[#This Row],[Salad]]+Table13[[#This Row],[Sandwich]]+Table13[[#This Row],[Breacfast]]+Table13[[#This Row],[Pasta]]+Table13[[#This Row],[Dessert]] -> 0 | G9: =SUMIF(Souce!$G$14:$G$357,Table13[[#This Row],[Items Name]],Souce!$C$14:$C$357) -> 0 | H9: =SUMIF(Salad!$G$14:$G$768,Table13[[#This Row],[Items Name]],Salad!$C$14:$C$768) -> 0 | I9: =SUMIF(Sandwich!$G$14:$G$454,Table13[[#This Row],[Items Name]],Sandwich!$C$14:$C$454) -> 0 | J9: =SUMIF(Breakfast!$G$14:$G$164,Table13[[#This Row],[Items Name]],Breakfast!$C$14:$C$164) -> 0 | K9: =SUMIF(Pasta!$G$14:$G$99,Table13[[#This Row],[Items Name]],Pasta!$C$14:$C$99) -> 0 | L9: =SUMIF(Dessert!$G$14:$G$40,Table13[[#This Row],[Items Name]],Dessert!$C$14:$C$40) -> 0 | M9: =Table1[[#This Row],[isWarehouse&Direct]] -> Warehouse | N9: =Table1[[#This Row],[isFinished]] -> Non-plant
C10: =Table1[[#This Row],[Code]] -> 120007 | D10: =Table1[[#This Row],[Items Name]] -> Mortadilla TURKY | E10: =Table1[[#This Row],[Unit]] -> 07 KG | F10: =+Table13[[#This Row],[Souce]]+Table13[[#This Row],[Salad]]+Table13[[#This Row],[Sandwich]]+Table13[[#This Row],[Breacfast]]+Table13[[#This Row],[Pasta]]+Table13[[#This Row],[Dessert]] -> 0 | G10: =SUMIF(Souce!$G$14:$G$357,Table13[[#This Row],[Items Name]],Souce!$C$14:$C$357) -> 0 | H10: =SUMIF(Salad!$G$14:$G$768,Table13[[#This Row],[Items Name]],Salad!$C$14:$C$768) -> 0 | I10: =SUMIF(Sandwich!$G$14:$G$454,Table13[[#This Row],[Items Name]],Sandwich!$C$14:$C$454) -> 0 | J10: =SUMIF(Breakfast!$G$14:$G$164,Table13[[#This Row],[Items Name]],Breakfast!$C$14:$C$164) -> 0 | K10: =SUMIF(Pasta!$G$14:$G$99,Table13[[#This Row],[Items Name]],Pasta!$C$14:$C$99) -> 0 | L10: =SUMIF(Dessert!$G$14:$G$40,Table13[[#This Row],[Items Name]],Dessert!$C$14:$C$40) -> 0 | M10: =Table1[[#This Row],[isWarehouse&Direct]] -> Warehouse | N10: =Table1[[#This Row],[isFinished]] -> Non-plant
C11: =Table1[[#This Row],[Code]] -> 120008 | D11: =Table1[[#This Row],[Items Name]] -> VEAL LEG IMPORTED | E11: =Table1[[#This Row],[Unit]] -> 07 KG | F11: =+Table13[[#This Row],[Souce]]+Table13[[#This Row],[Salad]]+Table13[[#This Row],[Sandwich]]+Table13[[#This Row],[Breacfast]]+Table13[[#This Row],[Pasta]]+Table13[[#This Row],[Dessert]] -> 0 | G11: =SUMIF(Souce!$G$14:$G$357,Table13[[#This Row],[Items Name]],Souce!$C$14:$C$357) -> 0 | H11: =SUMIF(Salad!$G$14:$G$768,Table13[[#This Row],[Items Name]],Salad!$C$14:$C$768) -> 0 | I11: =SUMIF(Sandwich!$G$14:$G$454,Table13[[#This Row],[Items Name]],Sandwich!$C$14:$C$454) -> 0 | J11: =SUMIF(Breakfast!$G$14:$G$164,Table13[[#This Row],[Items Name]],Breakfast!$C$14:$C$164) -> 0 | K11: =SUMIF(Pasta!$G$14:$G$99,Table13[[#This Row],[Items Name]],Pasta!$C$14:$C$99) -> 0 | L11: =SUMIF(Dessert!$G$14:$G$40,Table13[[#This Row],[Items Name]],Dessert!$C$14:$C$40) -> 0 | M11: =Table1[[#This Row],[isWarehouse&Direct]] -> Warehouse | N11: =Table1[[#This Row],[isFinished]] -> Non-plant
C12: =Table1[[#This Row],[Code]] -> 120009 | D12: =Table1[[#This Row],[Items Name]] -> Sausages | E12: =Table1[[#This Row],[Unit]] -> 07 KG | F12: =+Table13[[#This Row],[Souce]]+Table13[[#This Row],[Salad]]+Table13[[#This Row],[Sandwich]]+Table13[[#This Row],[Breacfast]]+Table13[[#This Row],[Pasta]]+Table13[[#This Row],[Dessert]] -> 0 | G12: =SUMIF(Souce!$G$14:$G$357,Table13[[#This Row],[Items Name]],Souce!$C$14:$C$357) -> 0 | H12: =SUMIF(Salad!$G$14:$G$768,Table13[[#This Row],[Items Name]],Salad!$C$14:$C$768) -> 0 | I12: =SUMIF(Sandwich!$G$14:$G$454,Table13[[#This Row],[Items Name]],Sandwich!$C$14:$C$454) -> 0 | J12: =SUMIF(Breakfast!$G$14:$G$164,Table13[[#This Row],[Items Name]],Breakfast!$C$14:$C$164) -> 0 | K12: =SUMIF(Pasta!$G$14:$G$99,Table13[[#This Row],[Items Name]],Pasta!$C$14:$C$99) -> 0 | L12: =SUMIF(Dessert!$G$14:$G$40,Table13[[#This Row],[Items Name]],Dessert!$C$14:$C$40) -> 0 | M12: =Table1[[#This Row],[isWarehouse&Direct]] -> Warehouse | N12: =Table1[[#This Row],[isFinished]] -> Non-plant
C13: =Table1[[#This Row],[Code]] -> 120100 | D13: =Table1[[#This Row],[Items Name]] -> roast beef | E13: =Table1[[#This Row],[Unit]] -> 07 KG | F13: =+Table13[[#This Row],[Souce]]+Table13[[#This Row],[Salad]]+Table13[[#This Row],[Sandwich]]+Table13[[#This Row],[Breacfast]]+Table13[[#This Row],[Pasta]]+Table13[[#This Row],[Dessert]] -> 0 | G13: =SUMIF(Souce!$G$14:$G$357,Table13[[#This Row],[Items Name]],Souce!$C$14:$C$357) -> 0 | H13: =SUMIF(Salad!$G$14:$G$768,Table13[[#This Row],[Items Name]],Salad!$C$14:$C$768) -> 0 | I13: =SUMIF(Sandwich!$G$14:$G$454,Table13[[#This Row],[Items Name]],Sandwich!$C$14:$C$454) -> 0 | J13: =SUMIF(Breakfast!$G$14:$G$164,Table13[[#This Row],[Items Name]],Breakfast!$C$14:$C$164) -> 0 | K13: =SUMIF(Pasta!$G$14:$G$99,Table13[[#This Row],[Items Name]],Pasta!$C$14:$C$99) -> 0 | L13: =SUMIF(Dessert!$G$14:$G$40,Table13[[#This Row],[Items Name]],Dessert!$C$14:$C$40) -> 0 | M13: =Table1[[#This Row],[isWarehouse&Direct]] -> Warehouse | N13: =Table1[[#This Row],[isFinished]] -> Non-plant
C14: =Table1[[#This Row],[Code]] -> 120101 | D14: =Table1[[#This Row],[Items Name]] -> roast beef cooked | E14: =Table1[[#This Row],[Unit]] -> 07 KG | F14: =+Table13[[#This Row],[Souce]]+Table13[[#This Row],[Salad]]+Table13[[#This Row],[Sandwich]]+Table13[[#This Row],[Breacfast]]+Table13[[#This Row],[Pasta]]+Table13[[#This Row],[Dessert]] -> 0 | G14: =SUMIF(Souce!$G$14:$G$357,Table13[[#This Row],[Items Name]],Souce!$C$14:$C$357) -> 0 | H14: =SUMIF(Salad!$G$14:$G$768,Table13[[#This Row],[Items Name]],Salad!$C$14:$C$768) -> 0 | I14: =SUMIF(Sandwich!$G$14:$G$454,Table13[[#This Row],[Items Name]],Sandwich!$C$14:$C$454) -> 0 | J14: =SUMIF(Breakfast!$G$14:$G$164,Table13[[#This Row],[Items Name]],Breakfast!$C$14:$C$164) -> 0 | K14: =SUMIF(Pasta!$G$14:$G$99,Table13[[#This Row],[Items Name]],Pasta!$C$14:$C$99) -> 0 | L14: =SUMIF(Dessert!$G$14:$G$40,Table13[[#This Row],[Items Name]],Dessert!$C$14:$C$40) -> 0 | M14: =Table1[[#This Row],[isWarehouse&Direct]] -> Warehouse | N14: =Table1[[#This Row],[isFinished]] -> Half of a plant
C15: =Table1[[#This Row],[Code]] -> 120102 | D15: =Table1[[#This Row],[Items Name]] -> Mortadilla Beef | E15: =Table1[[#This Row],[Unit]] -> 07 KG | F15: =+Table13[[#This Row],[Souce]]+Table13[[#This Row],[Salad]]+Table13[[#This Row],[Sandwich]]+Table13[[#This Row],[Breacfast]]+Table13[[#This Row],[Pasta]]+Table13[[#This Row],[Dessert]] -> 0 | G15: =SUMIF(Souce!$G$14:$G$357,Table13[[#This Row],[Items Name]],Souce!$C$14:$C$357) -> 0 | H15: =SUMIF(Salad!$G$14:$G$768,Table13[[#This Row],[Items Name]],Salad!$C$14:$C$768) -> 0 | I15: =SUMIF(Sandwich!$G$14:$G$454,Table13[[#This Row],[Items Name]],Sandwich!$C$14:$C$454) -> 0 | J15: =SUMIF(Breakfast!$G$14:$G$164,Table13[[#This Row],[Items Name]],Breakfast!$C$14:$C$164) -> 0 | K15: =SUMIF(Pasta!$G$14:$G$99,Table13[[#This Row],[Items Name]],Pasta!$C$14:$C$99) -> 0 | L15: =SUMIF(Dessert!$G$14:$G$40,Table13[[#This Row],[Items Name]],Dessert!$C$14:$C$40) -> 0 | M15: =Table1[[#This Row],[isWarehouse&Direct]] -> Warehouse | N15: =Table1[[#This Row],[isFinished]] -> Non-plant
C16: =Table1[[#This Row],[Code]] -> 120103 | D16: =Table1[[#This Row],[Items Name]] -> Hot Dog | E16: =Table1[[#This Row],[Unit]] -> 07 KG | F16: =+Table13[[#This Row],[Souce]]+Table13[[#This Row],[Salad]]+Table13[[#This Row],[Sandwich]]+Table13[[#This Row],[Breacfast]]+Table13[[#This Row],[Pasta]]+Table13[[#This Row],[Dessert]] -> 0 | G16: =SUMIF(Souce!$G$14:$G$357,Table13[[#This Row],[Items Name]],Souce!$C$14:$C$357) -> 0 | H16: =SUMIF(Salad!$G$14:$G$768,Table13[[#This Row],[Items Name]],Salad!$C$14:$C$768) -> 0 | I16: =SUMIF(Sandwich!$G$14:$G$454,Table13[[#This Row],[Items Name]],Sandwich!$C$14:$C$454) -> 0 | J16: =SUMIF(Breakfast!$G$14:$G$164,Table13[[#This Row],[Items Name]],Breakfast!$C$14:$C$164) -> 0 | K16: =SUMIF(Pasta!$G$14:$G$99,Table13[[#This Row],[Items Name]],Pasta!$C$14:$C$99) -> 0 | L16: =SUMIF(Dessert!$G$14:$G$40,Table13[[#This Row],[Items Name]],Dessert!$C$14:$C$40) -> 0 | M16: =Table1[[#This Row],[isWarehouse&Direct]] -> Warehouse | N16: =Table1[[#This Row],[isFinished]] -> Non-plant
C17: =Table1[[#This Row],[Code]] -> 121001 | D17: =Table1[[#This Row],[Items Name]] -> SF CRAB | E17: =Table1[[#This Row],[Unit]] -> 07 KG | F17: =+Table13[[#This Row],[Souce]]+Table13[[#This Row],[Salad]]+Table13[[#This Row],[Sandwich]]+Table13[[#This Row],[Breacfast]]+Table13[[#This Row],[Pasta]]+Table13[[#This Row],[Dessert]] -> 0 | G17: =SUMIF(Souce!$G$14:$G$357,Table13[[#This Row],[Items Name]],Souce!$C$14:$C$357) -> 0 | H17: =SUMIF(Salad!$G$14:$G$768,Table13[[#This Row],[Items Name]],Salad!$C$14:$C$768) -> 0 | I17: =SUMIF(Sandwich!$G$14:$G$454,Table13[[#This Row],[Items Name]],Sandwich!$C$14:$C$454) -> 0 | J17: =SUMIF(Breakfast!$G$14:$G$164,Table13[[#This Row],[Items Name]],Breakfast!$C$14:$C$164) -> 0 | K17: =SUMIF(Pasta!$G$14:$G$99,Table13[[#This Row],[Items Name]],Pasta!$C$14:$C$99) -> 0 | L17: =SUMIF(Dessert!$G$14:$G$40,Table13[[#This Row],[Items Name]],Dessert!$C$14:$C$40) -> 0 | M17: =Table1[[#This Row],[isWarehouse&Direct]] -> Warehouse | N17: =Table1[[#This Row],[isFinished]] -> Non-plant
C18: =Table1[[#This Row],[Code]] -> 121002 | D18: =Table1[[#This Row],[Items Name]] -> salmon smoked | E18: =Table1[[#This Row],[Unit]] -> 07 KG | F18: =+Table13[[#This Row],[Souce]]+Table13[[#This Row],[Salad]]+Table13[[#This Row],[Sandwich]]+Table13[[#This Row],[Breacfast]]+Table13[[#This Row],[Pasta]]+Table13[[#This Row],[Dessert]] -> 0 | G18: =SUMIF(Souce!$G$14:$G$357,Table13[[#This Row],[Items Name]],Souce!$C$14:$C$357) -> 0 | H18: =SUMIF(Salad!$G$14:$G$768,Table13[[#This Row],[Items Name]],Salad!$C$14:$C$768) -> 0 | I18: =SUMIF(Sandwich!$G$14:$G$454,Table13[[#This Row],[Items Name]],Sandwich!$C$14:$C$454) -> 0 | J18: =SUMIF(Breakfast!$G$14:$G$164,Table13[[#This Row],[Items Name]],Breakfast!$C$14:$C$164) -> 0 | K18: =SUMIF(Pasta!$G$14:$G$99,Table13[[#This Row],[Items Name]],Pasta!$C$14:$C$99) -> 0 | L18: =SUMIF(Dessert!$G$14:$G$40,Table13[[#This Row],[Items Name]],Dessert!$C$14:$C$40) -> 0 | M18: =Table1[[#This Row],[isWarehouse&Direct]] -> Warehouse | N18: =Table1[[#This Row],[isFinished]] -> Non-plant
C19: =Table1[[#This Row],[Code]] -> 121003 | D19: =Table1[[#This Row],[Items Name]] -> anchovies | E19: =Table1[[#This Row],[Unit]] -> 07 KG | F19: =+Table13[[#This Row],[Souce]]+Table13[[#This Row],[Salad]]+Table13[[#This Row],[Sandwich]]+Table13[[#This Row],[Breacfast]]+Table13[[#This Row],[Pasta]]+Table13[[#This Row],[Dessert]] -> 0 | G19: =SUMIF(Souce!$G$14:$G$357,Table13[[#This Row],[Items Name]],Souce!$C$14:$C$357) -> 0 | H19: =SUMIF(Salad!$G$14:$G$768,Table13[[#This Row],[Items Name]],Salad!$C$14:$C$768) -> 0 | I19: =SUMIF(Sandwich!$G$14:$G$454,Table13[[#This Row],[Items Name]],Sandwich!$C$14:$C$454) -> 0 | J19: =SUMIF(Breakfast!$G$14:$G$164,Table13[[#This Row],[Items Name]],Breakfast!$C$14:$C$164) -> 0 | K19: =SUMIF(Pasta!$G$14:$G$99,Table13[[#This Row],[Items Name]],Pasta!$C$14:$C$99) -> 0 | L19: =SUMIF(Dessert!$G$14:$G$40,Table13[[#This Row],[Items Name]],Dessert!$C$14:$C$40) -> 0 | M19: =Table1[[#This Row],[isWarehouse&Direct]] -> Warehouse | N19: =Table1[[#This Row],[isFinished]] -> Non-plant
C20: =Table1[[#This Row],[Code]] -> 121004 | D20: =Table1[[#This Row],[Items Name]] -> SF FISH FILLET | E20: =Table1[[#This Row],[Unit]] -> 07 KG | F20: =+Table13[[#This Row],[Souce]]+Table13[[#This Row],[Salad]]+Table13[[#This Row],[Sandwich]]+Table13[[#This Row],[Breacfast]]+Table13[[#This Row],[Pasta]]+Table13[[#This Row],[Dessert]] -> 0 | G20: =SUMIF(Souce!$G$14:$G$357,Table13[[#This Row],[Items Name]],Souce!$C$14:$C$357) -> 0 | H20: =SUMIF(Salad!$G$14:$G$768,Table13[[#This Row],[Items Name]],Salad!$C$14:$C$768) -> 0 | I20: =SUMIF(Sandwich!$G$14:$G$454,Table13[[#This Row],[Items Name]],Sandwich!$C$14:$C$454) -> 0 | J20: =SUMIF(Breakfast!$G$14:$G$164,Table13[[#This Row],[Items Name]],Breakfast!$C$14:$C$164) -> 0 | K20: =SUMIF(Pasta!$G$14:$G$99,Table13[[#This Row],[Items Name]],Pasta!$C$14:$C$99) -> 0 | L20: =SUMIF(Dessert!$G$14:$G$40,Table13[[#This Row],[Items Name]],Dessert!$C$14:$C$40) -> 0 | M20: =Table1[[#This Row],[isWarehouse&Direct]] -> Warehouse | N20: =Table1[[#This Row],[isFinished]] -> Non-plant
C21: =Table1[[#This Row],[Code]] -> 121005 | D21: =Table1[[#This Row],[Items Name]] -> SF ANCHOVIS 92 GR BOX 1*24 | E21: =Table1[[#This Row],[Unit]] -> 07 KG | F21: =+Table13[[#This Row],[Souce]]+Table13[[#This Row],[Salad]]+Table13[[#This Row],[Sandwich]]+Table13[[#This Row],[Breacfast]]+Table13[[#This Row],[Pasta]]+Table13[[#This Row],[Dessert]] -> 0 | G21: =SUMIF(Souce!$G$14:$G$357,Table13[[#This Row],[Items Name]],Souce!$C$14:$C$357) -> 0 | H21: =SUMIF(Salad!$G$14:$G$768,Table13[[#This Row],[Items Name]],Salad!$C$14:$C$768) -> 0 | I21: =SUMIF(Sandwich!$G$14:$G$454,Table13[[#This Row],[Items Name]],Sandwich!$C$14:$C$454) -> 0 | J21: =SUMIF(Breakfast!$G$14:$G$164,Table13[[#This Row],[Items Name]],Breakfast!$C$14:$C$164) -> 0 | K21: =SUMIF(Pasta!$G$14:$G$99,Table13[[#This Row],[Items Name]],Pasta!$C$14:$C$99) -> 0 | L21: =SUMIF(Dessert!$G$14:$G$40,Table13[[#This Row],[Items Name]],Dessert!$C$14:$C$40) -> 0 | M21: =Table1[[#This Row],[isWarehouse&Direct]] -> Warehouse | N21: =Table1[[#This Row],[isFinished]] -> Non-plant
C22: =Table1[[#This Row],[Code]] -> 121006 | D22: =Table1[[#This Row],[Items Name]] -> Tuna Chunks-Dolphin 1.8 KG | E22: =Table1[[#This Row],[Unit]] -> 07 KG | F22: =+Table13[[#This Row],[Souce]]+Table13[[#This Row],[Salad]]+Table13[[#This Row],[Sandwich]]+Table13[[#This Row],[Breacfast]]+Table13[[#This Row],[Pasta]]+Table13[[#This Row],[Dessert]] -> 0 | G22: =SUMIF(Souce!$G$14:$G$357,Table13[[#This Row],[Items Name]],Souce!$C$14:$C$357) -> 0 | H22: =SUMIF(Salad!$G$14:$G$768,Table13[[#This Row],[Items Name]],Salad!$C$14:$C$768) -> 0 | I22: =SUMIF(Sandwich!$G$14:$G$454,Table13[[#This Row],[Items Name]],Sandwich!$C$14:$C$454) -> 0 | J22: =SUMIF(Breakfast!$G$14:$G$164,Table13[[#This Row],[Items Name]],Breakfast!$C$14:$C$164) -> 0 | K22: =SUMIF(Pasta!$G$14:$G$99,Table13[[#This Row],[Items Name]],Pasta!$C$14:$C$99) -> 0 | L22: =SUMIF(Dessert!$G$14:$G$40,Table13[[#This Row],[Items Name]],Dessert!$C$14:$C$40) -> 0 | M22: =Table1[[#This Row],[isWarehouse&Direct]] -> Warehouse | N22: =Table1[[#This Row],[isFinished]] -> Non-plant
C23: =Table1[[#This Row],[Code]] -> 121007 | D23: =Table1[[#This Row],[Items Name]] -> TUNA Kg | E23: =Table1[[#This Row],[Unit]] -> 07 KG | F23: =+Table13[[#This Row],[Souce]]+Table13[[#This Row],[Salad]]+Table13[[#This Row],[Sandwich]]+Table13[[#This Row],[Breacfast]]+Table13[[#This Row],[Pasta]]+Table13[[#This Row],[Dessert]] -> 0 | G23: =SUMIF(Souce!$G$14:$G$357,Table13[[#This Row],[Items Name]],Souce!$C$14:$C$357) -> 0 | H23: =SUMIF(Salad!$G$14:$G$768,Table13[[#This Row],[Items Name]],Salad!$C$14:$C$768) -> 0 | I23: =SUMIF(Sandwich!$G$14:$G$454,Table13[[#This Row],[Items Name]],Sandwich!$C$14:$C$454) -> 0 | J23: =SUMIF(Breakfast!$G$14:$G$164,Table13[[#This Row],[Items Name]],Breakfast!$C$14:$C$164) -> 0 | K23: =SUMIF(Pasta!$G$14:$G$99,Table13[[#This Row],[Items Name]],Pasta!$C$14:$C$99) -> 0 | L23: =SUMIF(Dessert!$G$14:$G$40,Table13[[#This Row],[Items Name]],Dessert!$C$14:$C$40) -> 0 | M23: =Table1[[#This Row],[isWarehouse&Direct]] -> Warehouse | N23: =Table1[[#This Row],[isFinished]] -> Non-plant
C24: =Table1[[#This Row],[Code]] -> 121009 | D24: =Table1[[#This Row],[Items Name]] -> cooked salami | E24: =Table1[[#This Row],[Unit]] -> 07 KG | F24: =+Table13[[#This Row],[Souce]]+Table13[[#This Row],[Salad]]+Table13[[#This Row],[Sandwich]]+Table13[[#This Row],[Breacfast]]+Table13[[#This Row],[Pasta]]+Table13[[#This Row],[Dessert]] -> 0 | G24: =SUMIF(Souce!$G$14:$G$357,Table13[[#This Row],[Items Name]],Souce!$C$14:$C$357) -> 0 | H24: =SUMIF(Salad!$G$14:$G$768,Table13[[#This Row],[Items Name]],Salad!$C$14:$C$768) -> 0 | I24: =SUMIF(Sandwich!$G$14:$G$454,Table13[[#This Row],[Items Name]],Sandwich!$C$14:$C$454) -> 0 | J24: =SUMIF(Breakfast!$G$14:$G$164,Table13[[#This Row],[Items Name]],Breakfast!$C$14:$C$164) -> 0 | K24: =SUMIF(Pasta!$G$14:$G$99,Table13[[#This Row],[Items Name]],Pasta!$C$14:$C$99) -> 0 | L24: =SUMIF(Dessert!$G$14:$G$40,Table13[[#This Row],[Items Name]],Dessert!$C$14:$C$40) -> 0 | M24: =Table1[[#This Row],[isWarehouse&Direct]] -> Warehouse | N24: =Table1[[#This Row],[isFinished]] -> Half of a plant
C25: =Table1[[#This Row],[Code]] -> 121010 | D25: =Table1[[#This Row],[Items Name]] -> susis village (tbs) 200GR | E25: =Table1[[#This Row],[Unit]] -> 05 PKT | F25: =+Table13[[#This Row],[Souce]]+Table13[[#This Row],[Salad]]+Table13[[#This Row],[Sandwich]]+Table13[[#This Row],[Breacfast]]+Table13[[#This Row],[Pasta]]+Table13[[#This Row],[Dessert]] -> 0 | G25: =SUMIF(Souce!$G$14:$G$357,Table13[[#This Row],[Items Name]],Souce!$C$14:$C$357) -> 0 | H25: =SUMIF(Salad!$G$14:$G$768,Table13[[#This Row],[Items Name]],Salad!$C$14:$C$768) -> 0 | I25: =SUMIF(Sandwich!$G$14:$G$454,Table13[[#This Row],[Items Name]],Sandwich!$C$14:$C$454) -> 0 | J25: =SUMIF(Breakfast!$G$14:$G$164,Table13[[#This Row],[Items Name]],Breakfast!$C$14:$C$164) -> 0 | K25: =SUMIF(Pasta!$G$14:$G$99,Table13[[#This Row],[Items Name]],Pasta!$C$14:$C$99) -> 0 | L25: =SUMIF(Dessert!$G$14:$G$40,Table13[[#This Row],[Items Name]],Dessert!$C$14:$C$40) -> 0 | M25: =Table1[[#This Row],[isWarehouse&Direct]] -> Warehouse | N25: =Table1[[#This Row],[isFinished]] -> Non-plant
C26: =Table1[[#This Row],[Code]] -> 121011 | D26: =Table1[[#This Row],[Items Name]] -> Frozen shrimp | E26: =Table1[[#This Row],[Unit]] -> 07 KG | F26: =+Table13[[#This Row],[Souce]]+Table13[[#This Row],[Salad]]+Table13[[#This Row],[Sandwich]]+Table13[[#This Row],[Breacfast]]+Table13[[#This Row],[Pasta]]+Table13[[#This Row],[Dessert]] -> 0 | G26: =SUMIF(Souce!$G$14:$G$357,Table13[[#This Row],[Items Name]],Souce!$C$14:$C$357) -> 0 | H26: =SUMIF(Salad!$G$14:$G$768,Table13[[#This Row],[Items Name]],Salad!$C$14:$C$768) -> 0 | I26: =SUMIF(Sandwich!$G$14:$G$454,Table13[[#This Row],[Items Name]],Sandwich!$C$14:$C$454) -> 0 | J26: =SUMIF(Breakfast!$G$14:$G$164,Table13[[#This Row],[Items Name]],Breakfast!$C$14:$C$164) -> 0 | K26: =SUMIF(Pasta!$G$14:$G$99,Table13[[#This Row],[Items Name]],Pasta!$C$14:$C$99) -> 0 | L26: =SUMIF(Dessert!$G$14:$G$40,Table13[[#This Row],[Items Name]],Dessert!$C$14:$C$40) -> 0 | M26: =Table1[[#This Row],[isWarehouse&Direct]] -> Warehouse | N26: =Table1[[#This Row],[isFinished]] -> Non-plant
C27: =Table1[[#This Row],[Code]] -> 121012 | D27: =Table1[[#This Row],[Items Name]] -> kofta | E27: =Table1[[#This Row],[Unit]] -> 07 KG | F27: =+Table13[[#This Row],[Souce]]+Table13[[#This Row],[Salad]]+Table13[[#This Row],[Sandwich]]+Table13[[#This Row],[Breacfast]]+Table13[[#This Row],[Pasta]]+Table13[[#This Row],[Dessert]] -> 0 | G27: =SUMIF(Souce!$G$14:$G$357,Table13[[#This Row],[Items Name]],Souce!$C$14:$C$357) -> 0 | H27: =SUMIF(Salad!$G$14:$G$768,Table13[[#This Row],[Items Name]],Salad!$C$14:$C$768) -> 0 | I27: =SUMIF(Sandwich!$G$14:$G$454,Table13[[#This Row],[Items Name]],Sandwich!$C$14:$C$454) -> 0 | J27: =SUMIF(Breakfast!$G$14:$G$164,Table13[[#This Row],[Items Name]],Breakfast!$C$14:$C$164) -> 0 | K27: =SUMIF(Pasta!$G$14:$G$99,Table13[[#This Row],[Items Name]],Pasta!$C$14:$C$99) -> 0 | L27: =SUMIF(Dessert!$G$14:$G$40,Table13[[#This Row],[Items Name]],Dessert!$C$14:$C$40) -> 0 | M27: =Table1[[#This Row],[isWarehouse&Direct]] -> Warehouse | N27: =Table1[[#This Row],[isFinished]] -> Non-plant
C28: =Table1[[#This Row],[Code]] -> 121013 | D28: =Table1[[#This Row],[Items Name]] -> chicken nagts | E28: =Table1[[#This Row],[Unit]] -> 07 KG | F28: =+Table13[[#This Row],[Souce]]+Table13[[#This Row],[Salad]]+Table13[[#This Row],[Sandwich]]+Table13[[#This Row],[Breacfast]]+Table13[[#This Row],[Pasta]]+Table13[[#This Row],[Dessert]] -> 0 | G28: =SUMIF(Souce!$G$14:$G$357,Table13[[#This Row],[Items Name]],Souce!$C$14:$C$357) -> 0 | H28: =SUMIF(Salad!$G$14:$G$768,Table13[[#This Row],[Items Name]],Salad!$C$14:$C$768) -> 0 | I28: =SUMIF(Sandwich!$G$14:$G$454,Table13[[#This Row],[Items Name]],Sandwich!$C$14:$C$454) -> 0 | J28: =SUMIF(Breakfast!$G$14:$G$164,Table13[[#This Row],[Items Name]],Breakfast!$C$14:$C$164) -> 0 | K28: =SUMIF(Pasta!$G$14:$G$99,Table13[[#This Row],[Items Name]],Pasta!$C$14:$C$99) -> 0 | L28: =SUMIF(Dessert!$G$14:$G$40,Table13[[#This Row],[Items Name]],Dessert!$C$14:$C$40) -> 0 | M28: =Table1[[#This Row],[isWarehouse&Direct]] -> Warehouse | N28: =Table1[[#This Row],[isFinished]] -> Non-plant
C29: =Table1[[#This Row],[Code]] -> 121014 | D29: =Table1[[#This Row],[Items Name]] -> fish nagts | E29: =Table1[[#This Row],[Unit]] -> 07 KG | F29: =+Table13[[#This Row],[Souce]]+Table13[[#This Row],[Salad]]+Table13[[#This Row],[Sandwich]]+Table13[[#This Row],[Breacfast]]+Table13[[#This Row],[Pasta]]+Table13[[#This Row],[Dessert]] -> 0 | G29: =SUMIF(Souce!$G$14:$G$357,Table13[[#This Row],[Items Name]],Souce!$C$14:$C$357) -> 0 | H29: =SUMIF(Salad!$G$14:$G$768,Table13[[#This Row],[Items Name]],Salad!$C$14:$C$768) -> 0 | I29: =SUMIF(Sandwich!$G$14:$G$454,Table13[[#This Row],[Items Name]],Sandwich!$C$14:$C$454) -> 0 | J29: =SUMIF(Breakfast!$G$14:$G$164,Table13[[#This Row],[Items Name]],Breakfast!$C$14:$C$164) -> 0 | K29: =SUMIF(Pasta!$G$14:$G$99,Table13[[#This Row],[Items Name]],Pasta!$C$14:$C$99) -> 0 | L29: =SUMIF(Dessert!$G$14:$G$40,Table13[[#This Row],[Items Name]],Dessert!$C$14:$C$40) -> 0 | M29: =Table1[[#This Row],[isWarehouse&Direct]] -> Warehouse | N29: =Table1[[#This Row],[isFinished]] -> Non-plant
C30: =Table1[[#This Row],[Code]] -> 121015 | D30: =Table1[[#This Row],[Items Name]] -> Tuna Chunks-Dolny1.7 | E30: =Table1[[#This Row],[Unit]] -> 07 KG | F30: =+Table13[[#This Row],[Souce]]+Table13[[#This Row],[Salad]]+Table13[[#This Row],[Sandwich]]+Table13[[#This Row],[Breacfast]]+Table13[[#This Row],[Pasta]]+Table13[[#This Row],[Dessert]] -> 0 | G30: =SUMIF(Souce!$G$14:$G$357,Table13[[#This Row],[Items Name]],Souce!$C$14:$C$357) -> 0 | H30: =SUMIF(Salad!$G$14:$G$768,Table13[[#This Row],[Items Name]],Salad!$C$14:$C$768) -> 0 | I30: =SUMIF(Sandwich!$G$14:$G$454,Table13[[#This Row],[Items Name]],Sandwich!$C$14:$C$454) -> 0 | J30: =SUMIF(Breakfast!$G$14:$G$164,Table13[[#This Row],[Items Name]],Breakfast!$C$14:$C$164) -> 0 | K30: =SUMIF(Pasta!$G$14:$G$99,Table13[[#This Row],[Items Name]],Pasta!$C$14:$C$99) -> 0 | L30: =SUMIF(Dessert!$G$14:$G$40,Table13[[#This Row],[Items Name]],Dessert!$C$14:$C$40) -> 0 | M30: =Table1[[#This Row],[isWarehouse&Direct]] -> Warehouse | N30: =Table1[[#This Row],[isFinished]] -> Non-plant
C31: =Table1[[#This Row],[Code]] -> 121016 | D31: =Table1[[#This Row],[Items Name]] -> Sf Calimary | E31: =Table1[[#This Row],[Unit]] -> 07 KG | F31: =+Table13[[#This Row],[Souce]]+Table13[[#This Row],[Salad]]+Table13[[#This Row],[Sandwich]]+Table13[[#This Row],[Breacfast]]+Table13[[#This Row],[Pasta]]+Table13[[#This Row],[Dessert]] -> 0 | G31: =SUMIF(Souce!$G$14:$G$357,Table13[[#This Row],[Items Name]],Souce!$C$14:$C$357) -> 0 | H31: =SUMIF(Salad!$G$14:$G$768,Table13[[#This Row],[Items Name]],Salad!$C$14:$C$768) -> 0 | I31: =SUMIF(Sandwich!$G$14:$G$454,Table13[[#This Row],[Items Name]],Sandwich!$C$14:$C$454) -> 0 | J31: =SUMIF(Breakfast!$G$14:$G$164,Table13[[#This Row],[Items Name]],Breakfast!$C$14:$C$164) -> 0 | K31: =SUMIF(Pasta!$G$14:$G$99,Table13[[#This Row],[Items Name]],Pasta!$C$14:$C$99) -> 0 | L31: =SUMIF(Dessert!$G$14:$G$40,Table13[[#This Row],[Items Name]],Dessert!$C$14:$C$40) -> 0 | M31: =Table1[[#This Row],[isWarehouse&Direct]] -> 0 | N31: =Table1[[#This Row],[isFinished]] -> 0
C32: =Table1[[#This Row],[Code]] -> 122001 | D32: =Table1[[#This Row],[Items Name]] -> Chicken Breast | E32: =Table1[[#This Row],[Unit]] -> 07 KG | F32: =+Table13[[#This Row],[Souce]]+Table13[[#This Row],[Salad]]+Table13[[#This Row],[Sandwich]]+Table13[[#This Row],[Breacfast]]+Table13[[#This Row],[Pasta]]+Table13[[#This Row],[Dessert]] -> 0 | G32: =SUMIF(Souce!$G$14:$G$357,Table13[[#This Row],[Items Name]],Souce!$C$14:$C$357) -> 0 | H32: =SUMIF(Salad!$G$14:$G$768,Table13[[#This Row],[Items Name]],Salad!$C$14:$C$768) -> 0 | I32: =SUMIF(Sandwich!$G$14:$G$454,Table13[[#This Row],[Items Name]],Sandwich!$C$14:$C$454) -> 0 | J32: =SUMIF(Breakfast!$G$14:$G$164,Table13[[#This Row],[Items Name]],Breakfast!$C$14:$C$164) -> 0 | K32: =SUMIF(Pasta!$G$14:$G$99,Table13[[#This Row],[Items Name]],Pasta!$C$14:$C$99) -> 0 | L32: =SUMIF(Dessert!$G$14:$G$40,Table13[[#This Row],[Items Name]],Dessert!$C$14:$C$40) -> 0 | M32: =Table1[[#This Row],[isWarehouse&Direct]] -> 0 | N32: =Table1[[#This Row],[isFinished]] -> 0
C33: =Table1[[#This Row],[Code]] -> 122002 | D33: =Table1[[#This Row],[Items Name]] -> Chicken Whole Frozen | E33: =Table1[[#This Row],[Unit]] -> 07 KG | F33: =+Table13[[#This Row],[Souce]]+Table13[[#This Row],[Salad]]+Table13[[#This Row],[Sandwich]]+Table13[[#This Row],[Breacfast]]+Table13[[#This Row],[Pasta]]+Table13[[#This Row],[Dessert]] -> 0 | G33: =SUMIF(Souce!$G$14:$G$357,Table13[[#This Row],[Items Name]],Souce!$C$14:$C$357) -> 0 | H33: =SUMIF(Salad!$G$14:$G$768,Table13[[#This Row],[Items Name]],Salad!$C$14:$C$768) -> 0 | I33: =SUMIF(Sandwich!$G$14:$G$454,Table13[[#This Row],[Items Name]],Sandwich!$C$14:$C$454) -> 0 | J33: =SUMIF(Breakfast!$G$14:$G$164,Table13[[#This Row],[Items Name]],Breakfast!$C$14:$C$164) -> 0 | K33: =SUMIF(Pasta!$G$14:$G$99,Table13[[#This Row],[Items Name]],Pasta!$C$14:$C$99) -> 0 | L33: =SUMIF(Dessert!$G$14:$G$40,Table13[[#This Row],[Items Name]],Dessert!$C$14:$C$40) -> 0 | M33: =Table1[[#This Row],[isWarehouse&Direct]] -> 0 | N33: =Table1[[#This Row],[isFinished]] -> 0
C34: =Table1[[#This Row],[Code]] -> 122003 | D34: =Table1[[#This Row],[Items Name]] -> Mortadilla Chicken | E34: =Table1[[#This Row],[Unit]] -> 07 KG | F34: =+Table13[[#This Row],[Souce]]+Table13[[#This Row],[Salad]]+Table13[[#This Row],[Sandwich]]+Table13[[#This Row],[Breacfast]]+Table13[[#This Row],[Pasta]]+Table13[[#This Row],[Dessert]] -> 0 | G34: =SUMIF(Souce!$G$14:$G$357,Table13[[#This Row],[Items Name]],Souce!$C$14:$C$357) -> 0 | H34: =SUMIF(Salad!$G$14:$G$768,Table13[[#This Row],[Items Name]],Salad!$C$14:$C$768) -> 0 | I34: =SUMIF(Sandwich!$G$14:$G$454,Table13[[#This Row],[Items Name]],Sandwich!$C$14:$C$454) -> 0 | J34: =SUMIF(Breakfast!$G$14:$G$164,Table13[[#This Row],[Items Name]],Breakfast!$C$14:$C$164) -> 0 | K34: =SUMIF(Pasta!$G$14:$G$99,Table13[[#This Row],[Items Name]],Pasta!$C$14:$C$99) -> 0 | L34: =SUMIF(Dessert!$G$14:$G$40,Table13[[#This Row],[Items Name]],Dessert!$C$14:$C$40) -> 0 | M34: =Table1[[#This Row],[isWarehouse&Direct]] -> 0 | N34: =Table1[[#This Row],[isFinished]] -> 0
C35: =Table1[[#This Row],[Code]] -> 122006 | D35: =Table1[[#This Row],[Items Name]] -> chicken wwing | E35: =Table1[[#This Row],[Unit]] -> 07 KG | F35: =+Table13[[#This Row],[Souce]]+Table13[[#This Row],[Salad]]+Table13[[#This Row],[Sandwich]]+Table13[[#This Row],[Breacfast]]+Table13[[#This Row],[Pasta]]+Table13[[#This Row],[Dessert]] -> 0 | G35: =SUMIF(Souce!$G$14:$G$357,Table13[[#This Row],[Items Name]],Souce!$C$14:$C$357) -> 0 | H35: =SUMIF(Salad!$G$14:$G$768,Table13[[#This Row],[Items Name]],Salad!$C$14:$C$768) -> 0 | I35: =SUMIF(Sandwich!$G$14:$G$454,Table13[[#This Row],[Items Name]],Sandwich!$C$14:$C$454) -> 0 | J35: =SUMIF(Breakfast!$G$14:$G$164,Table13[[#This Row],[Items Name]],Breakfast!$C$14:$C$164) -> 0 | K35: =SUMIF(Pasta!$G$14:$G$99,Table13[[#This Row],[Items Name]],Pasta!$C$14:$C$99) -> 0 | L35: =SUMIF(Dessert!$G$14:$G$40,Table13[[#This Row],[Items Name]],Dessert!$C$14:$C$40) -> 0 | M35: =Table1[[#This Row],[isWarehouse&Direct]] -> 0 | N35: =Table1[[#This Row],[isFinished]] -> 0
C36: =Table1[[#This Row],[Code]] -> 122007 | D36: =Table1[[#This Row],[Items Name]] -> liver | E36: =Table1[[#This Row],[Unit]] -> 07 KG | F36: =+Table13[[#This Row],[Souce]]+Table13[[#This Row],[Salad]]+Table13[[#This Row],[Sandwich]]+Table13[[#This Row],[Breacfast]]+Table13[[#This Row],[Pasta]]+Table13[[#This Row],[Dessert]] -> 0 | G36: =SUMIF(Souce!$G$14:$G$357,Table13[[#This Row],[Items Name]],Souce!$C$14:$C$357) -> 0 | H36: =SUMIF(Salad!$G$14:$G$768,Table13[[#This Row],[Items Name]],Salad!$C$14:$C$768) -> 0 | I36: =SUMIF(Sandwich!$G$14:$G$454,Table13[[#This Row],[Items Name]],Sandwich!$C$14:$C$454) -> 0 | J36: =SUMIF(Breakfast!$G$14:$G$164,Table13[[#This Row],[Items Name]],Breakfast!$C$14:$C$164) -> 0 | K36: =SUMIF(Pasta!$G$14:$G$99,Table13[[#This Row],[Items Name]],Pasta!$C$14:$C$99) -> 0 | L36: =SUMIF(Dessert!$G$14:$G$40,Table13[[#This Row],[Items Name]],Dessert!$C$14:$C$40) -> 0 | M36: =Table1[[#This Row],[isWarehouse&Direct]] -> 0 | N36: =Table1[[#This Row],[isFinished]] -> 0
C37: =Table1[[#This Row],[Code]] -> 122008 | D37: =Table1[[#This Row],[Items Name]] -> chicken parts | E37: =Table1[[#This Row],[Unit]] -> 07 KG | F37: =+Table13[[#This Row],[Souce]]+Table13[[#This Row],[Salad]]+Table13[[#This Row],[Sandwich]]+Table13[[#This Row],[Breacfast]]+Table13[[#This Row],[Pasta]]+Table13[[#This Row],[Dessert]] -> 0 | G37: =SUMIF(Souce!$G$14:$G$357,Table13[[#This Row],[Items Name]],Souce!$C$14:$C$357) -> 0 | H37: =SUMIF(Salad!$G$14:$G$768,Table13[[#This Row],[Items Name]],Salad!$C$14:$C$768) -> 0 | I37: =SUMIF(Sandwich!$G$14:$G$454,Table13[[#This Row],[Items Name]],Sandwich!$C$14:$C$454) -> 0 | J37: =SUMIF(Breakfast!$G$14:$G$164,Table13[[#This Row],[Items Name]],Breakfast!$C$14:$C$164) -> 0 | K37: =SUMIF(Pasta!$G$14:$G$99,Table13[[#This Row],[Items Name]],Pasta!$C$14:$C$99) -> 0 | L37: =SUMIF(Dessert!$G$14:$G$40,Table13[[#This Row],[Items Name]],Dessert!$C$14:$C$40) -> 0 | M37: =Table1[[#This Row],[isWarehouse&Direct]] -> 0 | N37: =Table1[[#This Row],[isFinished]] -> 0
C38: =Table1[[#This Row],[Code]] -> 122009 | D38: =Table1[[#This Row],[Items Name]] -> shawarma | E38: =Table1[[#This Row],[Unit]] -> 07 KG | F38: =+Table13[[#This Row],[Souce]]+Table13[[#This Row],[Salad]]+Table13[[#This Row],[Sandwich]]+Table13[[#This Row],[Breacfast]]+Table13[[#This Row],[Pasta]]+Table13[[#This Row],[Dessert]] -> 0 | G38: =SUMIF(Souce!$G$14:$G$357,Table13[[#This Row],[Items Name]],Souce!$C$14:$C$357) -> 0 | H38: =SUMIF(Salad!$G$14:$G$768,Table13[[#This Row],[Items Name]],Salad!$C$14:$C$768) -> 0 | I38: =SUMIF(Sandwich!$G$14:$G$454,Table13[[#This Row],[Items Name]],Sandwich!$C$14:$C$454) -> 0 | J38: =SUMIF(Breakfast!$G$14:$G$164,Table13[[#This Row],[Items Name]],Breakfast!$C$14:$C$164) -> 0 | K38: =SUMIF(Pasta!$G$14:$G$99,Table13[[#This Row],[Items Name]],Pasta!$C$14:$C$99) -> 0 | L38: =SUMIF(Dessert!$G$14:$G$40,Table13[[#This Row],[Items Name]],Dessert!$C$14:$C$40) -> 0 | M38: =Table1[[#This Row],[isWarehouse&Direct]] -> 0 | N38: =Table1[[#This Row],[isFinished]] -> 0
C39: =Table1[[#This Row],[Code]] -> 122100 | D39: =Table1[[#This Row],[Items Name]] -> chicken parmezan | E39: =Table1[[#This Row],[Unit]] -> 07 KG | F39: =+Table13[[#This Row],[Souce]]+Table13[[#This Row],[Salad]]+Table13[[#This Row],[Sandwich]]+Table13[[#This Row],[Breacfast]]+Table13[[#This Row],[Pasta]]+Table13[[#This Row],[Dessert]] -> 0 | G39: =SUMIF(Souce!$G$14:$G$357,Table13[[#This Row],[Items Name]],Souce!$C$14:$C$357) -> 0 | H39: =SUMIF(Salad!$G$14:$G$768,Table13[[#This Row],[Items Name]],Salad!$C$14:$C$768) -> 0 | I39: =SUMIF(Sandwich!$G$14:$G$454,Table13[[#This Row],[Items Name]],Sandwich!$C$14:$C$454) -> 0 | J39: =SUMIF(Breakfast!$G$14:$G$164,Table13[[#This Row],[Items Name]],Breakfast!$C$14:$C$164) -> 0 | K39: =SUMIF(Pasta!$G$14:$G$99,Table13[[#This Row],[Items Name]],Pasta!$C$14:$C$99) -> 0 | L39: =SUMIF(Dessert!$G$14:$G$40,Table13[[#This Row],[Items Name]],Dessert!$C$14:$C$40) -> 0 | M39: =Table1[[#This Row],[isWarehouse&Direct]] -> 0 | N39: =Table1[[#This Row],[isFinished]] -> 0
C40: =Table1[[#This Row],[Code]] -> 122101 | D40: =Table1[[#This Row],[Items Name]] -> chicken spice | E40: =Table1[[#This Row],[Unit]] -> 07 KG | F40: =+Table13[[#This Row],[Souce]]+Table13[[#This Row],[Salad]]+Table13[[#This Row],[Sandwich]]+Table13[[#This Row],[Breacfast]]+Table13[[#This Row],[Pasta]]+Table13[[#This Row],[Dessert]] -> 0 | G40: =SUMIF(Souce!$G$14:$G$357,Table13[[#This Row],[Items Name]],Souce!$C$14:$C$357) -> 0 | H40: =SUMIF(Salad!$G$14:$G$768,Table13[[#This Row],[Items Name]],Salad!$C$14:$C$768) -> 0 | I40: =SUMIF(Sandwich!$G$14:$G$454,Table13[[#This Row],[Items Name]],Sandwich!$C$14:$C$454) -> 0 | J40: =SUMIF(Breakfast!$G$14:$G$164,Table13[[#This Row],[Items Name]],Breakfast!$C$14:$C$164) -> 0 | K40: =SUMIF(Pasta!$G$14:$G$99,Table13[[#This Row],[Items Name]],Pasta!$C$14:$C$99) -> 0 | L40: =SUMIF(Dessert!$G$14:$G$40,Table13[[#This Row],[Items Name]],Dessert!$C$14:$C$40) -> 0 | M40: =Table1[[#This Row],[isWarehouse&Direct]] -> 0 | N40: =Table1[[#This Row],[isFinished]] -> 0
C41: =Table1[[#This Row],[Code]] -> 122102 | D41: =Table1[[#This Row],[Items Name]] -> chickin pox | E41: =Table1[[#This Row],[Unit]] -> 07 KG | F41: =+Table13[[#This Row],[Souce]]+Table13[[#This Row],[Salad]]+Table13[[#This Row],[Sandwich]]+Table13[[#This Row],[Breacfast]]+Table13[[#This Row],[Pasta]]+Table13[[#This Row],[Dessert]] -> 0 | G41: =SUMIF(Souce!$G$14:$G$357,Table13[[#This Row],[Items Name]],Souce!$C$14:$C$357) -> 0 | H41: =SUMIF(Salad!$G$14:$G$768,Table13[[#This Row],[Items Name]],Salad!$C$14:$C$768) -> 0 | I41: =SUMIF(Sandwich!$G$14:$G$454,Table13[[#This Row],[Items Name]],Sandwich!$C$14:$C$454) -> 0 | J41: =SUMIF(Breakfast!$G$14:$G$164,Table13[[#This Row],[Items Name]],Breakfast!$C$14:$C$164) -> 0 | K41: =SUMIF(Pasta!$G$14:$G$99,Table13[[#This Row],[Items Name]],Pasta!$C$14:$C$99) -> 0 | L41: =SUMIF(Dessert!$G$14:$G$40,Table13[[#This Row],[Items Name]],Dessert!$C$14:$C$40) -> 0 | M41: =Table1[[#This Row],[isWarehouse&Direct]] -> 0 | N41: =Table1[[#This Row],[isFinished]] -> 0
C42: =Table1[[#This Row],[Code]] -> 122103 | D42: =Table1[[#This Row],[Items Name]] -> chickin almonden | E42: =Table1[[#This Row],[Unit]] -> 07 KG | F42: =+Table13[[#This Row],[Souce]]+Table13[[#This Row],[Salad]]+Table13[[#This Row],[Sandwich]]+Table13[[#This Row],[Breacfast]]+Table13[[#This Row],[Pasta]]+Table13[[#This Row],[Dessert]] -> 0 | G42: =SUMIF(Souce!$G$14:$G$357,Table13[[#This Row],[Items Name]],Souce!$C$14:$C$357) -> 0 | H42: =SUMIF(Salad!$G$14:$G$768,Table13[[#This Row],[Items Name]],Salad!$C$14:$C$768) -> 0 | I42: =SUMIF(Sandwich!$G$14:$G$454,Table13[[#This Row],[Items Name]],Sandwich!$C$14:$C$454) -> 0 | J42: =SUMIF(Breakfast!$G$14:$G$164,Table13[[#This Row],[Items Name]],Breakfast!$C$14:$C$164) -> 0 | K42: =SUMIF(Pasta!$G$14:$G$99,Table13[[#This Row],[Items Name]],Pasta!$C$14:$C$99) -> 0 | L42: =SUMIF(Dessert!$G$14:$G$40,Table13[[#This Row],[Items Name]],Dessert!$C$14:$C$40) -> 0 | M42: =Table1[[#This Row],[isWarehouse&Direct]] -> 0 | N42: =Table1[[#This Row],[isFinished]] -> 0
C43: =Table1[[#This Row],[Code]] -> 122104 | D43: =Table1[[#This Row],[Items Name]] -> sudorof turkeys | E43: =Table1[[#This Row],[Unit]] -> 07 KG | F43: =+Table13[[#This Row],[Souce]]+Table13[[#This Row],[Salad]]+Table13[[#This Row],[Sandwich]]+Table13[[#This Row],[Breacfast]]+Table13[[#This Row],[Pasta]]+Table13[[#This Row],[Dessert]] -> 0 | G43: =SUMIF(Souce!$G$14:$G$357,Table13[[#This Row],[Items Name]],Souce!$C$14:$C$357) -> 0 | H43: =SUMIF(Salad!$G$14:$G$768,Table13[[#This Row],[Items Name]],Salad!$C$14:$C$768) -> 0 | I43: =SUMIF(Sandwich!$G$14:$G$454,Table13[[#This Row],[Items Name]],Sandwich!$C$14:$C$454) -> 0 | J43: =SUMIF(Breakfast!$G$14:$G$164,Table13[[#This Row],[Items Name]],Breakfast!$C$14:$C$164) -> 0 | K43: =SUMIF(Pasta!$G$14:$G$99,Table13[[#This Row],[Items Name]],Pasta!$C$14:$C$99) -> 0 | L43: =SUMIF(Dessert!$G$14:$G$40,Table13[[#This Row],[Items Name]],Dessert!$C$14:$C$40) -> 0 | M43: =Table1[[#This Row],[isWarehouse&Direct]] -> 0 | N43: =Table1[[#This Row],[isFinished]] -> 0
C44: =Table1[[#This Row],[Code]] -> 122105 | D44: =Table1[[#This Row],[Items Name]] -> Whole turkeys | E44: =Table1[[#This Row],[Unit]] -> 07 KG | F44: =+Table13[[#This Row],[Souce]]+Table13[[#This Row],[Salad]]+Table13[[#This Row],[Sandwich]]+Table13[[#This Row],[Breacfast]]+Table13[[#This Row],[Pasta]]+Table13[[#This Row],[Dessert]] -> 0 | G44: =SUMIF(Souce!$G$14:$G$357,Table13[[#This Row],[Items Name]],Souce!$C$14:$C$357) -> 0 | H44: =SUMIF(Salad!$G$14:$G$768,Table13[[#This Row],[Items Name]],Salad!$C$14:$C$768) -> 0 | I44: =SUMIF(Sandwich!$G$14:$G$454,Table13[[#This Row],[Items Name]],Sandwich!$C$14:$C$454) -> 0 | J44: =SUMIF(Breakfast!$G$14:$G$164,Table13[[#This Row],[Items Name]],Breakfast!$C$14:$C$164) -> 0 | K44: =SUMIF(Pasta!$G$14:$G$99,Table13[[#This Row],[Items Name]],Pasta!$C$14:$C$99) -> 0 | L44: =SUMIF(Dessert!$G$14:$G$40,Table13[[#This Row],[Items Name]],Dessert!$C$14:$C$40) -> 0 | M44: =Table1[[#This Row],[isWarehouse&Direct]] -> 0 | N44: =Table1[[#This Row],[isFinished]] -> 0
C45: =Table1[[#This Row],[Code]] -> 122106 | D45: =Table1[[#This Row],[Items Name]] -> Chicken shish Ni | E45: =Table1[[#This Row],[Unit]] -> 07 KG | F45: =+Table13[[#This Row],[Souce]]+Table13[[#This Row],[Salad]]+Table13[[#This Row],[Sandwich]]+Table13[[#This Row],[Breacfast]]+Table13[[#This Row],[Pasta]]+Table13[[#This Row],[Dessert]] -> 0 | G45: =SUMIF(Souce!$G$14:$G$357,Table13[[#This Row],[Items Name]],Souce!$C$14:$C$357) -> 0 | H45: =SUMIF(Salad!$G$14:$G$768,Table13[[#This Row],[Items Name]],Salad!$C$14:$C$768) -> 0 | I45: =SUMIF(Sandwich!$G$14:$G$454,Table13[[#This Row],[Items Name]],Sandwich!$C$14:$C$454) -> 0 | J45: =SUMIF(Breakfast!$G$14:$G$164,Table13[[#This Row],[Items Name]],Breakfast!$C$14:$C$164) -> 0 | K45: =SUMIF(Pasta!$G$14:$G$99,Table13[[#This Row],[Items Name]],Pasta!$C$14:$C$99) -> 0 | L45: =SUMIF(Dessert!$G$14:$G$40,Table13[[#This Row],[Items Name]],Dessert!$C$14:$C$40) -> 0 | M45: =Table1[[#This Row],[isWarehouse&Direct]] -> 0 | N45: =Table1[[#This Row],[isFinished]] -> 0
C46: =Table1[[#This Row],[Code]] -> 122107 | D46: =Table1[[#This Row],[Items Name]] -> Chicken Fajita | E46: =Table1[[#This Row],[Unit]] -> 07 KG | F46: =+Table13[[#This Row],[Souce]]+Table13[[#This Row],[Salad]]+Table13[[#This Row],[Sandwich]]+Table13[[#This Row],[Breacfast]]+Table13[[#This Row],[Pasta]]+Table13[[#This Row],[Dessert]] -> 0 | G46: =SUMIF(Souce!$G$14:$G$357,Table13[[#This Row],[Items Name]],Souce!$C$14:$C$357) -> 0 | H46: =SUMIF(Salad!$G$14:$G$768,Table13[[#This Row],[Items Name]],Salad!$C$14:$C$768) -> 0 | I46: =SUMIF(Sandwich!$G$14:$G$454,Table13[[#This Row],[Items Name]],Sandwich!$C$14:$C$454) -> 0 | J46: =SUMIF(Breakfast!$G$14:$G$164,Table13[[#This Row],[Items Name]],Breakfast!$C$14:$C$164) -> 0 | K46: =SUMIF(Pasta!$G$14:$G$99,Table13[[#This Row],[Items Name]],Pasta!$C$14:$C$99) -> 0 | L46: =SUMIF(Dessert!$G$14:$G$40,Table13[[#This Row],[Items Name]],Dessert!$C$14:$C$40) -> 0 | M46: =Table1[[#This Row],[isWarehouse&Direct]] -> 0 | N46: =Table1[[#This Row],[isFinished]] -> 0
C47: =Table1[[#This Row],[Code]] -> 123002 | D47: =Table1[[#This Row],[Items Name]] -> Tomato Fresh | E47: =Table1[[#This Row],[Unit]] -> 07 KG | F47: =+Table13[[#This Row],[Souce]]+Table13[[#This Row],[Salad]]+Table13[[#This Row],[Sandwich]]+Table13[[#This Row],[Breacfast]]+Table13[[#This Row],[Pasta]]+Table13[[#This Row],[Dessert]] -> 0 | G47: =SUMIF(Souce!$G$14:$G$357,Table13[[#This Row],[Items Name]],Souce!$C$14:$C$357) -> 0 | H47: =SUMIF(Salad!$G$14:$G$768,Table13[[#This Row],[Items Name]],Salad!$C$14:$C$768) -> 0 | I47: =SUMIF(Sandwich!$G$14:$G$454,Table13[[#This Row],[Items Name]],Sandwich!$C$14:$C$454) -> 0 | J47: =SUMIF(Breakfast!$G$14:$G$164,Table13[[#This Row],[Items Name]],Breakfast!$C$14:$C$164) -> 0 | K47: =SUMIF(Pasta!$G$14:$G$99,Table13[[#This Row],[Items Name]],Pasta!$C$14:$C$99) -> 0 | L47: =SUMIF(Dessert!$G$14:$G$40,Table13[[#This Row],[Items Name]],Dessert!$C$14:$C$40) -> 0 | M47: =Table1[[#This Row],[isWarehouse&Direct]] -> 0 | N47: =Table1[[#This Row],[isFinished]] -> 0
C48: =Table1[[#This Row],[Code]] -> 123003 | D48: =Table1[[#This Row],[Items Name]] -> Cucumber | E48: =Table1[[#This Row],[Unit]] -> 07 KG | F48: =+Table13[[#This Row],[Souce]]+Table13[[#This Row],[Salad]]+Table13[[#This Row],[Sandwich]]+Table13[[#This Row],[Breacfast]]+Table13[[#This Row],[Pasta]]+Table13[[#This Row],[Dessert]] -> 0 | G48: =SUMIF(Souce!$G$14:$G$357,Table13[[#This Row],[Items Name]],Souce!$C$14:$C$357) -> 0 | H48: =SUMIF(Salad!$G$14:$G$768,Table13[[#This Row],[Items Name]],Salad!$C$14:$C$768) -> 0 | I48: =SUMIF(Sandwich!$G$14:$G$454,Table13[[#This Row],[Items Name]],Sandwich!$C$14:$C$454) -> 0 | J48: =SUMIF(Breakfast!$G$14:$G$164,Table13[[#This Row],[Items Name]],Breakfast!$C$14:$C$164) -> 0 | K48: =SUMIF(Pasta!$G$14:$G$99,Table13[[#This Row],[Items Name]],Pasta!$C$14:$C$99) -> 0 | L48: =SUMIF(Dessert!$G$14:$G$40,Table13[[#This Row],[Items Name]],Dessert!$C$14:$C$40) -> 0 | M48: =Table1[[#This Row],[isWarehouse&Direct]] -> 0 | N48: =Table1[[#This Row],[isFinished]] -> 0
C49: =Table1[[#This Row],[Code]] -> 123004 | D49: =Table1[[#This Row],[Items Name]] -> Mushroom | E49: =Table1[[#This Row],[Unit]] -> 14 Plate | F49: =+Table13[[#This Row],[Souce]]+Table13[[#This Row],[Salad]]+Table13[[#This Row],[Sandwich]]+Table13[[#This Row],[Breacfast]]+Table13[[#This Row],[Pasta]]+Table13[[#This Row],[Dessert]] -> 0 | G49: =SUMIF(Souce!$G$14:$G$357,Table13[[#This Row],[Items Name]],Souce!$C$14:$C$357) -> 0 | H49: =SUMIF(Salad!$G$14:$G$768,Table13[[#This Row],[Items Name]],Salad!$C$14:$C$768) -> 0 | I49: =SUMIF(Sandwich!$G$14:$G$454,Table13[[#This Row],[Items Name]],Sandwich!$C$14:$C$454) -> 0 | J49: =SUMIF(Breakfast!$G$14:$G$164,Table13[[#This Row],[Items Name]],Breakfast!$C$14:$C$164) -> 0 | K49: =SUMIF(Pasta!$G$14:$G$99,Table13[[#This Row],[Items Name]],Pasta!$C$14:$C$99) -> 0 | L49: =SUMIF(Dessert!$G$14:$G$40,Table13[[#This Row],[Items Name]],Dessert!$C$14:$C$40) -> 0 | M49: =Table1[[#This Row],[isWarehouse&Direct]] -> 0 | N49: =Table1[[#This Row],[isFinished]] -> 0
C50: =Table1[[#This Row],[Code]] -> 123005 | D50: =Table1[[#This Row],[Items Name]] -> Lettuce kaposha | E50: =Table1[[#This Row],[Unit]] -> 07 KG | F50: =+Table13[[#This Row],[Souce]]+Table13[[#This Row],[Salad]]+Table13[[#This Row],[Sandwich]]+Table13[[#This Row],[Breacfast]]+Table13[[#This Row],[Pasta]]+Table13[[#This Row],[Dessert]] -> 0 | G50: =SUMIF(Souce!$G$14:$G$357,Table13[[#This Row],[Items Name]],Souce!$C$14:$C$357) -> 0 | H50: =SUMIF(Salad!$G$14:$G$768,Table13[[#This Row],[Items Name]],Salad!$C$14:$C$768) -> 0 | I50: =SUMIF(Sandwich!$G$14:$G$454,Table13[[#This Row],[Items Name]],Sandwich!$C$14:$C$454) -> 0 | J50: =SUMIF(Breakfast!$G$14:$G$164,Table13[[#This Row],[Items Name]],Breakfast!$C$14:$C$164) -> 0 | K50: =SUMIF(Pasta!$G$14:$G$99,Table13[[#This Row],[Items Name]],Pasta!$C$14:$C$99) -> 0 | L50: =SUMIF(Dessert!$G$14:$G$40,Table13[[#This Row],[Items Name]],Dessert!$C$14:$C$40) -> 0 | M50: =Table1[[#This Row],[isWarehouse&Direct]] -> 0 | N50: =Table1[[#This Row],[isFinished]] -> 0
C51: =Table1[[#This Row],[Code]] -> 123006 | D51: =Table1[[#This Row],[Items Name]] -> Carrot | E51: =Table1[[#This Row],[Unit]] -> 07 KG | F51: =+Table13[[#This Row],[Souce]]+Table13[[#This Row],[Salad]]+Table13[[#This Row],[Sandwich]]+Table13[[#This Row],[Breacfast]]+Table13[[#This Row],[Pasta]]+Table13[[#This Row],[Dessert]] -> 0 | G51: =SUMIF(Souce!$G$14:$G$357,Table13[[#This Row],[Items Name]],Souce!$C$14:$C$357) -> 0 | H51: =SUMIF(Salad!$G$14:$G$768,Table13[[#This Row],[Items Name]],Salad!$C$14:$C$768) -> 0 | I51: =SUMIF(Sandwich!$G$14:$G$454,Table13[[#This Row],[Items Name]],Sandwich!$C$14:$C$454) -> 0 | J51: =SUMIF(Breakfast!$G$14:$G$164,Table13[[#This Row],[Items Name]],Breakfast!$C$14:$C$164) -> 0 | K51: =SUMIF(Pasta!$G$14:$G$99,Table13[[#This Row],[Items Name]],Pasta!$C$14:$C$99) -> 0 | L51: =SUMIF(Dessert!$G$14:$G$40,Table13[[#This Row],[Items Name]],Dessert!$C$14:$C$40) -> 0 | M51: =Table1[[#This Row],[isWarehouse&Direct]] -> 0 | N51: =Table1[[#This Row],[isFinished]] -> 0
C52: =Table1[[#This Row],[Code]] -> 123007 | D52: =Table1[[#This Row],[Items Name]] -> Celery | E52: =Table1[[#This Row],[Unit]] -> 07 KG | F52: =+Table13[[#This Row],[Souce]]+Table13[[#This Row],[Salad]]+Table13[[#This Row],[Sandwich]]+Table13[[#This Row],[Breacfast]]+Table13[[#This Row],[Pasta]]+Table13[[#This Row],[Dessert]] -> 0 | G52: =SUMIF(Souce!$G$14:$G$357,Table13[[#This Row],[Items Name]],Souce!$C$14:$C$357) -> 0 | H52: =SUMIF(Salad!$G$14:$G$768,Table13[[#This Row],[Items Name]],Salad!$C$14:$C$768) -> 0 | I52: =SUMIF(Sandwich!$G$14:$G$454,Table13[[#This Row],[Items Name]],Sandwich!$C$14:$C$454) -> 0 | J52: =SUMIF(Breakfast!$G$14:$G$164,Table13[[#This Row],[Items Name]],Breakfast!$C$14:$C$164) -> 0 | K52: =SUMIF(Pasta!$G$14:$G$99,Table13[[#This Row],[Items Name]],Pasta!$C$14:$C$99) -> 0 | L52: =SUMIF(Dessert!$G$14:$G$40,Table13[[#This Row],[Items Name]],Dessert!$C$14:$C$40) -> 0 | M52: =Table1[[#This Row],[isWarehouse&Direct]] -> 0 | N52: =Table1[[#This Row],[isFinished]] -> 0
C53: =Table1[[#This Row],[Code]] -> 123008 | D53: =Table1[[#This Row],[Items Name]] -> Ginger root | E53: =Table1[[#This Row],[Unit]] -> 07 KG | F53: =+Table13[[#This Row],[Souce]]+Table13[[#This Row],[Salad]]+Table13[[#This Row],[Sandwich]]+Table13[[#This Row],[Breacfast]]+Table13[[#This Row],[Pasta]]+Table13[[#This Row],[Dessert]] -> 0 | G53: =SUMIF(Souce!$G$14:$G$357,Table13[[#This Row],[Items Name]],Souce!$C$14:$C$357) -> 0 | H53: =SUMIF(Salad!$G$14:$G$768,Table13[[#This Row],[Items Name]],Salad!$C$14:$C$768) -> 0 | I53: =SUMIF(Sandwich!$G$14:$G$454,Table13[[#This Row],[Items Name]],Sandwich!$C$14:$C$454) -> 0 | J53: =SUMIF(Breakfast!$G$14:$G$164,Table13[[#This Row],[Items Name]],Breakfast!$C$14:$C$164) -> 0 | K53: =SUMIF(Pasta!$G$14:$G$99,Table13[[#This Row],[Items Name]],Pasta!$C$14:$C$99) -> 0 | L53: =SUMIF(Dessert!$G$14:$G$40,Table13[[#This Row],[Items Name]],Dessert!$C$14:$C$40) -> 0 | M53: =Table1[[#This Row],[isWarehouse&Direct]] -> 0 | N53: =Table1[[#This Row],[isFinished]] -> 0
C54: =Table1[[#This Row],[Code]] -> 123009 | D54: =Table1[[#This Row],[Items Name]] -> Coriander | E54: =Table1[[#This Row],[Unit]] -> 07 KG | F54: =+Table13[[#This Row],[Souce]]+Table13[[#This Row],[Salad]]+Table13[[#This Row],[Sandwich]]+Table13[[#This Row],[Breacfast]]+Table13[[#This Row],[Pasta]]+Table13[[#This Row],[Dessert]] -> 0 | G54: =SUMIF(Souce!$G$14:$G$357,Table13[[#This Row],[Items Name]],Souce!$C$14:$C$357) -> 0 | H54: =SUMIF(Salad!$G$14:$G$768,Table13[[#This Row],[Items Name]],Salad!$C$14:$C$768) -> 0 | I54: =SUMIF(Sandwich!$G$14:$G$454,Table13[[#This Row],[Items Name]],Sandwich!$C$14:$C$454) -> 0 | J54: =SUMIF(Breakfast!$G$14:$G$164,Table13[[#This Row],[Items Name]],Breakfast!$C$14:$C$164) -> 0 | K54: =SUMIF(Pasta!$G$14:$G$99,Table13[[#This Row],[Items Name]],Pasta!$C$14:$C$99) -> 0 | L54: =SUMIF(Dessert!$G$14:$G$40,Table13[[#This Row],[Items Name]],Dessert!$C$14:$C$40) -> 0 | M54: =Table1[[#This Row],[isWarehouse&Direct]] -> 0 | N54: =Table1[[#This Row],[isFinished]] -> 0
C55: =Table1[[#This Row],[Code]] -> 123010 | D55: =Table1[[#This Row],[Items Name]] -> Garlic | E55: =Table1[[#This Row],[Unit]] -> 07 KG | F55: =+Table13[[#This Row],[Souce]]+Table13[[#This Row],[Salad]]+Table13[[#This Row],[Sandwich]]+Table13[[#This Row],[Breacfast]]+Table13[[#This Row],[Pasta]]+Table13[[#This Row],[Dessert]] -> 0 | G55: =SUMIF(Souce!$G$14:$G$357,Table13[[#This Row],[Items Name]],Souce!$C$14:$C$357) -> 0 | H55: =SUMIF(Salad!$G$14:$G$768,Table13[[#This Row],[Items Name]],Salad!$C$14:$C$768) -> 0 | I55: =SUMIF(Sandwich!$G$14:$G$454,Table13[[#This Row],[Items Name]],Sandwich!$C$14:$C$454) -> 0 | J55: =SUMIF(Breakfast!$G$14:$G$164,Table13[[#This Row],[Items Name]],Breakfast!$C$14:$C$164) -> 0 | K55: =SUMIF(Pasta!$G$14:$G$99,Table13[[#This Row],[Items Name]],Pasta!$C$14:$C$99) -> 0 | L55: =SUMIF(Dessert!$G$14:$G$40,Table13[[#This Row],[Items Name]],Dessert!$C$14:$C$40) -> 0 | M55: =Table1[[#This Row],[isWarehouse&Direct]] -> 0 | N55: =Table1[[#This Row],[isFinished]] -> 0
C56: =Table1[[#This Row],[Code]] -> 123011 | D56: =Table1[[#This Row],[Items Name]] -> Tomato Shary | E56: =Table1[[#This Row],[Unit]] -> 07 KG | F56: =+Table13[[#This Row],[Souce]]+Table13[[#This Row],[Salad]]+Table13[[#This Row],[Sandwich]]+Table13[[#This Row],[Breacfast]]+Table13[[#This Row],[Pasta]]+Table13[[#This Row],[Dessert]] -> 0 | G56: =SUMIF(Souce!$G$14:$G$357,Table13[[#This Row],[Items Name]],Souce!$C$14:$C$357) -> 0 | H56: =SUMIF(Salad!$G$14:$G$768,Table13[[#This Row],[Items Name]],Salad!$C$14:$C$768) -> 0 | I56: =SUMIF(Sandwich!$G$14:$G$454,Table13[[#This Row],[Items Name]],Sandwich!$C$14:$C$454) -> 0 | J56: =SUMIF(Breakfast!$G$14:$G$164,Table13[[#This Row],[Items Name]],Breakfast!$C$14:$C$164) -> 0 | K56: =SUMIF(Pasta!$G$14:$G$99,Table13[[#This Row],[Items Name]],Pasta!$C$14:$C$99) -> 0 | L56: =SUMIF(Dessert!$G$14:$G$40,Table13[[#This Row],[Items Name]],Dessert!$C$14:$C$40) -> 0 | M56: =Table1[[#This Row],[isWarehouse&Direct]] -> 0 | N56: =Table1[[#This Row],[isFinished]] -> 0
C57: =Table1[[#This Row],[Code]] -> 123012 | D57: =Table1[[#This Row],[Items Name]] -> Jirjir | E57: =Table1[[#This Row],[Unit]] -> 07 KG | F57: =+Table13[[#This Row],[Souce]]+Table13[[#This Row],[Salad]]+Table13[[#This Row],[Sandwich]]+Table13[[#This Row],[Breacfast]]+Table13[[#This Row],[Pasta]]+Table13[[#This Row],[Dessert]] -> 0 | G57: =SUMIF(Souce!$G$14:$G$357,Table13[[#This Row],[Items Name]],Souce!$C$14:$C$357) -> 0 | H57: =SUMIF(Salad!$G$14:$G$768,Table13[[#This Row],[Items Name]],Salad!$C$14:$C$768) -> 0 | I57: =SUMIF(Sandwich!$G$14:$G$454,Table13[[#This Row],[Items Name]],Sandwich!$C$14:$C$454) -> 0 | J57: =SUMIF(Breakfast!$G$14:$G$164,Table13[[#This Row],[Items Name]],Breakfast!$C$14:$C$164) -> 0 | K57: =SUMIF(Pasta!$G$14:$G$99,Table13[[#This Row],[Items Name]],Pasta!$C$14:$C$99) -> 0 | L57: =SUMIF(Dessert!$G$14:$G$40,Table13[[#This Row],[Items Name]],Dessert!$C$14:$C$40) -> 0 | M57: =Table1[[#This Row],[isWarehouse&Direct]] -> 0 | N57: =Table1[[#This Row],[isFinished]] -> 0
C58: =Table1[[#This Row],[Code]] -> 123013 | D58: =Table1[[#This Row],[Items Name]] -> Basil | E58: =Table1[[#This Row],[Unit]] -> 07 KG | F58: =+Table13[[#This Row],[Souce]]+Table13[[#This Row],[Salad]]+Table13[[#This Row],[Sandwich]]+Table13[[#This Row],[Breacfast]]+Table13[[#This Row],[Pasta]]+Table13[[#This Row],[Dessert]] -> 0 | G58: =SUMIF(Souce!$G$14:$G$357,Table13[[#This Row],[Items Name]],Souce!$C$14:$C$357) -> 0 | H58: =SUMIF(Salad!$G$14:$G$768,Table13[[#This Row],[Items Name]],Salad!$C$14:$C$768) -> 0 | I58: =SUMIF(Sandwich!$G$14:$G$454,Table13[[#This Row],[Items Name]],Sandwich!$C$14:$C$454) -> 0 | J58: =SUMIF(Breakfast!$G$14:$G$164,Table13[[#This Row],[Items Name]],Breakfast!$C$14:$C$164) -> 0 | K58: =SUMIF(Pasta!$G$14:$G$99,Table13[[#This Row],[Items Name]],Pasta!$C$14:$C$99) -> 0 | L58: =SUMIF(Dessert!$G$14:$G$40,Table13[[#This Row],[Items Name]],Dessert!$C$14:$C$40) -> 0 | M58: =Table1[[#This Row],[isWarehouse&Direct]] -> 0 | N58: =Table1[[#This Row],[isFinished]] -> 0
C59: =Table1[[#This Row],[Code]] -> 123014 | D59: =Table1[[#This Row],[Items Name]] -> Cabbage Red | E59: =Table1[[#This Row],[Unit]] -> 07 KG | F59: =+Table13[[#This Row],[Souce]]+Table13[[#This Row],[Salad]]+Table13[[#This Row],[Sandwich]]+Table13[[#This Row],[Breacfast]]+Table13[[#This Row],[Pasta]]+Table13[[#This Row],[Dessert]] -> 0 | G59: =SUMIF(Souce!$G$14:$G$357,Table13[[#This Row],[Items Name]],Souce!$C$14:$C$357) -> 0 | H59: =SUMIF(Salad!$G$14:$G$768,Table13[[#This Row],[Items Name]],Salad!$C$14:$C$768) -> 0 | I59: =SUMIF(Sandwich!$G$14:$G$454,Table13[[#This Row],[Items Name]],Sandwich!$C$14:$C$454) -> 0 | J59: =SUMIF(Breakfast!$G$14:$G$164,Table13[[#This Row],[Items Name]],Breakfast!$C$14:$C$164) -> 0 | K59: =SUMIF(Pasta!$G$14:$G$99,Table13[[#This Row],[Items Name]],Pasta!$C$14:$C$99) -> 0 | L59: =SUMIF(Dessert!$G$14:$G$40,Table13[[#This Row],[Items Name]],Dessert!$C$14:$C$40) -> 0 | M59: =Table1[[#This Row],[isWarehouse&Direct]] -> 0 | N59: =Table1[[#This Row],[isFinished]] -> 0
C60: =Table1[[#This Row],[Code]] -> 123015 | D60: =Table1[[#This Row],[Items Name]] -> Aubergine Rmy | E60: =Table1[[#This Row],[Unit]] -> 07 KG | F60: =+Table13[[#This Row],[Souce]]+Table13[[#This Row],[Salad]]+Table13[[#This Row],[Sandwich]]+Table13[[#This Row],[Breacfast]]+Table13[[#This Row],[Pasta]]+Table13[[#This Row],[Dessert]] -> 0 | G60: =SUMIF(Souce!$G$14:$G$357,Table13[[#This Row],[Items Name]],Souce!$C$14:$C$357) -> 0 | H60: =SUMIF(Salad!$G$14:$G$768,Table13[[#This Row],[Items Name]],Salad!$C$14:$C$768) -> 0 | I60: =SUMIF(Sandwich!$G$14:$G$454,Table13[[#This Row],[Items Name]],Sandwich!$C$14:$C$454) -> 0 | J60: =SUMIF(Breakfast!$G$14:$G$164,Table13[[#This Row],[Items Name]],Breakfast!$C$14:$C$164) -> 0 | K60: =SUMIF(Pasta!$G$14:$G$99,Table13[[#This Row],[Items Name]],Pasta!$C$14:$C$99) -> 0 | L60: =SUMIF(Dessert!$G$14:$G$40,Table13[[#This Row],[Items Name]],Dessert!$C$14:$C$40) -> 0 | M60: =Table1[[#This Row],[isWarehouse&Direct]] -> 0 | N60: =Table1[[#This Row],[isFinished]] -> 0
C61: =Table1[[#This Row],[Code]] -> 123016 | D61: =Table1[[#This Row],[Items Name]] -> Marrow | E61: =Table1[[#This Row],[Unit]] -> 07 KG | F61: =+Table13[[#This Row],[Souce]]+Table13[[#This Row],[Salad]]+Table13[[#This Row],[Sandwich]]+Table13[[#This Row],[Breacfast]]+Table13[[#This Row],[Pasta]]+Table13[[#This Row],[Dessert]] -> 0 | G61: =SUMIF(Souce!$G$14:$G$357,Table13[[#This Row],[Items Name]],Souce!$C$14:$C$357) -> 0 | H61: =SUMIF(Salad!$G$14:$G$768,Table13[[#This Row],[Items Name]],Salad!$C$14:$C$768) -> 0 | I61: =SUMIF(Sandwich!$G$14:$G$454,Table13[[#This Row],[Items Name]],Sandwich!$C$14:$C$454) -> 0 | J61: =SUMIF(Breakfast!$G$14:$G$164,Table13[[#This Row],[Items Name]],Breakfast!$C$14:$C$164) -> 0 | K61: =SUMIF(Pasta!$G$14:$G$99,Table13[[#This Row],[Items Name]],Pasta!$C$14:$C$99) -> 0 | L61: =SUMIF(Dessert!$G$14:$G$40,Table13[[#This Row],[Items Name]],Dessert!$C$14:$C$40) -> 0 | M61: =Table1[[#This Row],[isWarehouse&Direct]] -> 0 | N61: =Table1[[#This Row],[isFinished]] -> 0
C62: =Table1[[#This Row],[Code]] -> 123017 | D62: =Table1[[#This Row],[Items Name]] -> Green Pepper Fresh | E62: =Table1[[#This Row],[Unit]] -> 07 KG | F62: =+Table13[[#This Row],[Souce]]+Table13[[#This Row],[Salad]]+Table13[[#This Row],[Sandwich]]+Table13[[#This Row],[Breacfast]]+Table13[[#This Row],[Pasta]]+Table13[[#This Row],[Dessert]] -> 0 | G62: =SUMIF(Souce!$G$14:$G$357,Table13[[#This Row],[Items Name]],Souce!$C$14:$C$357) -> 0 | H62: =SUMIF(Salad!$G$14:$G$768,Table13[[#This Row],[Items Name]],Salad!$C$14:$C$768) -> 0 | I62: =SUMIF(Sandwich!$G$14:$G$454,Table13[[#This Row],[Items Name]],Sandwich!$C$14:$C$454) -> 0 | J62: =SUMIF(Breakfast!$G$14:$G$164,Table13[[#This Row],[Items Name]],Breakfast!$C$14:$C$164) -> 0 | K62: =SUMIF(Pasta!$G$14:$G$99,Table13[[#This Row],[Items Name]],Pasta!$C$14:$C$99) -> 0 | L62: =SUMIF(Dessert!$G$14:$G$40,Table13[[#This Row],[Items Name]],Dessert!$C$14:$C$40) -> 0 | M62: =Table1[[#This Row],[isWarehouse&Direct]] -> 0 | N62: =Table1[[#This Row],[isFinished]] -> 0
C63: =Table1[[#This Row],[Code]] -> 123018 | D63: =Table1[[#This Row],[Items Name]] -> Red Pepper Fresh | E63: =Table1[[#This Row],[Unit]] -> 07 KG | F63: =+Table13[[#This Row],[Souce]]+Table13[[#This Row],[Salad]]+Table13[[#This Row],[Sandwich]]+Table13[[#This Row],[Breacfast]]+Table13[[#This Row],[Pasta]]+Table13[[#This Row],[Dessert]] -> 0 | G63: =SUMIF(Souce!$G$14:$G$357,Table13[[#This Row],[Items Name]],Souce!$C$14:$C$357) -> 0 | H63: =SUMIF(Salad!$G$14:$G$768,Table13[[#This Row],[Items Name]],Salad!$C$14:$C$768) -> 0 | I63: =SUMIF(Sandwich!$G$14:$G$454,Table13[[#This Row],[Items Name]],Sandwich!$C$14:$C$454) -> 0 | J63: =SUMIF(Breakfast!$G$14:$G$164,Table13[[#This Row],[Items Name]],Breakfast!$C$14:$C$164) -> 0 | K63: =SUMIF(Pasta!$G$14:$G$99,Table13[[#This Row],[Items Name]],Pasta!$C$14:$C$99) -> 0 | L63: =SUMIF(Dessert!$G$14:$G$40,Table13[[#This Row],[Items Name]],Dessert!$C$14:$C$40) -> 0 | M63: =Table1[[#This Row],[isWarehouse&Direct]] -> 0 | N63: =Table1[[#This Row],[isFinished]] -> 0
C64: =Table1[[#This Row],[Code]] -> 123019 | D64: =Table1[[#This Row],[Items Name]] -> Yellow Pepper Fresh | E64: =Table1[[#This Row],[Unit]] -> 07 KG | F64: =+Table13[[#This Row],[Souce]]+Table13[[#This Row],[Salad]]+Table13[[#This Row],[Sandwich]]+Table13[[#This Row],[Breacfast]]+Table13[[#This Row],[Pasta]]+Table13[[#This Row],[Dessert]] -> 0 | G64: =SUMIF(Souce!$G$14:$G$357,Table13[[#This Row],[Items Name]],Souce!$C$14:$C$357) -> 0 | H64: =SUMIF(Salad!$G$14:$G$768,Table13[[#This Row],[Items Name]],Salad!$C$14:$C$768) -> 0 | I64: =SUMIF(Sandwich!$G$14:$G$454,Table13[[#This Row],[Items Name]],Sandwich!$C$14:$C$454) -> 0 | J64: =SUMIF(Breakfast!$G$14:$G$164,Table13[[#This Row],[Items Name]],Breakfast!$C$14:$C$164) -> 0 | K64: =SUMIF(Pasta!$G$14:$G$99,Table13[[#This Row],[Items Name]],Pasta!$C$14:$C$99) -> 0 | L64: =SUMIF(Dessert!$G$14:$G$40,Table13[[#This Row],[Items Name]],Dessert!$C$14:$C$40) -> 0 | M64: =Table1[[#This Row],[isWarehouse&Direct]] -> 0 | N64: =Table1[[#This Row],[isFinished]] -> 0
C65: =Table1[[#This Row],[Code]] -> 123020 | D65: =Table1[[#This Row],[Items Name]] -> Onion | E65: =Table1[[#This Row],[Unit]] -> 07 KG | F65: =+Table13[[#This Row],[Souce]]+Table13[[#This Row],[Salad]]+Table13[[#This Row],[Sandwich]]+Table13[[#This Row],[Breacfast]]+Table13[[#This Row],[Pasta]]+Table13[[#This Row],[Dessert]] -> 0 | G65: =SUMIF(Souce!$G$14:$G$357,Table13[[#This Row],[Items Name]],Souce!$C$14:$C$357) -> 0 | H65: =SUMIF(Salad!$G$14:$G$768,Table13[[#This Row],[Items Name]],Salad!$C$14:$C$768) -> 0 | I65: =SUMIF(Sandwich!$G$14:$G$454,Table13[[#This Row],[Items Name]],Sandwich!$C$14:$C$454) -> 0 | J65: =SUMIF(Breakfast!$G$14:$G$164,Table13[[#This Row],[Items Name]],Breakfast!$C$14:$C$164) -> 0 | K65: =SUMIF(Pasta!$G$14:$G$99,Table13[[#This Row],[Items Name]],Pasta!$C$14:$C$99) -> 0 | L65: =SUMIF(Dessert!$G$14:$G$40,Table13[[#This Row],[Items Name]],Dessert!$C$14:$C$40) -> 0 | M65: =Table1[[#This Row],[isWarehouse&Direct]] -> 0 | N65: =Table1[[#This Row],[isFinished]] -> 0
C66: =Table1[[#This Row],[Code]] -> 123021 | D66: =Table1[[#This Row],[Items Name]] -> Potato Peeled | E66: =Table1[[#This Row],[Unit]] -> 07 KG | F66: =+Table13[[#This Row],[Souce]]+Table13[[#This Row],[Salad]]+Table13[[#This Row],[Sandwich]]+Table13[[#This Row],[Breacfast]]+Table13[[#This Row],[Pasta]]+Table13[[#This Row],[Dessert]] -> 0 | G66: =SUMIF(Souce!$G$14:$G$357,Table13[[#This Row],[Items Name]],Souce!$C$14:$C$357) -> 0 | H66: =SUMIF(Salad!$G$14:$G$768,Table13[[#This Row],[Items Name]],Salad!$C$14:$C$768) -> 0 | I66: =SUMIF(Sandwich!$G$14:$G$454,Table13[[#This Row],[Items Name]],Sandwich!$C$14:$C$454) -> 0 | J66: =SUMIF(Breakfast!$G$14:$G$164,Table13[[#This Row],[Items Name]],Breakfast!$C$14:$C$164) -> 0 | K66: =SUMIF(Pasta!$G$14:$G$99,Table13[[#This Row],[Items Name]],Pasta!$C$14:$C$99) -> 0 | L66: =SUMIF(Dessert!$G$14:$G$40,Table13[[#This Row],[Items Name]],Dessert!$C$14:$C$40) -> 0 | M66: =Table1[[#This Row],[isWarehouse&Direct]] -> 0 | N66: =Table1[[#This Row],[isFinished]] -> 0
C67: =Table1[[#This Row],[Code]] -> 123022 | D67: =Table1[[#This Row],[Items Name]] -> Lemon | E67: =Table1[[#This Row],[Unit]] -> 07 KG | F67: =+Table13[[#This Row],[Souce]]+Table13[[#This Row],[Salad]]+Table13[[#This Row],[Sandwich]]+Table13[[#This Row],[Breacfast]]+Table13[[#This Row],[Pasta]]+Table13[[#This Row],[Dessert]] -> 0 | G67: =SUMIF(Souce!$G$14:$G$357,Table13[[#This Row],[Items Name]],Souce!$C$14:$C$357) -> 0 | H67: =SUMIF(Salad!$G$14:$G$768,Table13[[#This Row],[Items Name]],Salad!$C$14:$C$768) -> 0 | I67: =SUMIF(Sandwich!$G$14:$G$454,Table13[[#This Row],[Items Name]],Sandwich!$C$14:$C$454) -> 0 | J67: =SUMIF(Breakfast!$G$14:$G$164,Table13[[#This Row],[Items Name]],Breakfast!$C$14:$C$164) -> 0 | K67: =SUMIF(Pasta!$G$14:$G$99,Table13[[#This Row],[Items Name]],Pasta!$C$14:$C$99) -> 0 | L67: =SUMIF(Dessert!$G$14:$G$40,Table13[[#This Row],[Items Name]],Dessert!$C$14:$C$40) -> 0 | M67: =Table1[[#This Row],[isWarehouse&Direct]] -> 0 | N67: =Table1[[#This Row],[isFinished]] -> 0
C68: =Table1[[#This Row],[Code]] -> 123023 | D68: =Table1[[#This Row],[Items Name]] -> Leek | E68: =Table1[[#This Row],[Unit]] -> 07 KG | F68: =+Table13[[#This Row],[Souce]]+Table13[[#This Row],[Salad]]+Table13[[#This Row],[Sandwich]]+Table13[[#This Row],[Breacfast]]+Table13[[#This Row],[Pasta]]+Table13[[#This Row],[Dessert]] -> 0 | G68: =SUMIF(Souce!$G$14:$G$357,Table13[[#This Row],[Items Name]],Souce!$C$14:$C$357) -> 0 | H68: =SUMIF(Salad!$G$14:$G$768,Table13[[#This Row],[Items Name]],Salad!$C$14:$C$768) -> 0 | I68: =SUMIF(Sandwich!$G$14:$G$454,Table13[[#This Row],[Items Name]],Sandwich!$C$14:$C$454) -> 0 | J68: =SUMIF(Breakfast!$G$14:$G$164,Table13[[#This Row],[Items Name]],Breakfast!$C$14:$C$164) -> 0 | K68: =SUMIF(Pasta!$G$14:$G$99,Table13[[#This Row],[Items Name]],Pasta!$C$14:$C$99) -> 0 | L68: =SUMIF(Dessert!$G$14:$G$40,Table13[[#This Row],[Items Name]],Dessert!$C$14:$C$40) -> 0 | M68: =Table1[[#This Row],[isWarehouse&Direct]] -> 0 | N68: =Table1[[#This Row],[isFinished]] -> 0
C69: =Table1[[#This Row],[Code]] -> 123024 | D69: =Table1[[#This Row],[Items Name]] -> Rose Marie | E69: =Table1[[#This Row],[Unit]] -> 07 KG | F69: =+Table13[[#This Row],[Souce]]+Table13[[#This Row],[Salad]]+Table13[[#This Row],[Sandwich]]+Table13[[#This Row],[Breacfast]]+Table13[[#This Row],[Pasta]]+Table13[[#This Row],[Dessert]] -> 0 | G69: =SUMIF(Souce!$G$14:$G$357,Table13[[#This Row],[Items Name]],Souce!$C$14:$C$357) -> 0 | H69: =SUMIF(Salad!$G$14:$G$768,Table13[[#This Row],[Items Name]],Salad!$C$14:$C$768) -> 0 | I69: =SUMIF(Sandwich!$G$14:$G$454,Table13[[#This Row],[Items Name]],Sandwich!$C$14:$C$454) -> 0 | J69: =SUMIF(Breakfast!$G$14:$G$164,Table13[[#This Row],[Items Name]],Breakfast!$C$14:$C$164) -> 0 | K69: =SUMIF(Pasta!$G$14:$G$99,Table13[[#This Row],[Items Name]],Pasta!$C$14:$C$99) -> 0 | L69: =SUMIF(Dessert!$G$14:$G$40,Table13[[#This Row],[Items Name]],Dessert!$C$14:$C$40) -> 0 | M69: =Table1[[#This Row],[isWarehouse&Direct]] -> 0 | N69: =Table1[[#This Row],[isFinished]] -> 0
C70: =Table1[[#This Row],[Code]] -> 123025 | D70: =Table1[[#This Row],[Items Name]] -> Mint | E70: =Table1[[#This Row],[Unit]] -> 07 KG | F70: =+Table13[[#This Row],[Souce]]+Table13[[#This Row],[Salad]]+Table13[[#This Row],[Sandwich]]+Table13[[#This Row],[Breacfast]]+Table13[[#This Row],[Pasta]]+Table13[[#This Row],[Dessert]] -> 0 | G70: =SUMIF(Souce!$G$14:$G$357,Table13[[#This Row],[Items Name]],Souce!$C$14:$C$357) -> 0 | H70: =SUMIF(Salad!$G$14:$G$768,Table13[[#This Row],[Items Name]],Salad!$C$14:$C$768) -> 0 | I70: =SUMIF(Sandwich!$G$14:$G$454,Table13[[#This Row],[Items Name]],Sandwich!$C$14:$C$454) -> 0 | J70: =SUMIF(Breakfast!$G$14:$G$164,Table13[[#This Row],[Items Name]],Breakfast!$C$14:$C$164) -> 0 | K70: =SUMIF(Pasta!$G$14:$G$99,Table13[[#This Row],[Items Name]],Pasta!$C$14:$C$99) -> 0 | L70: =SUMIF(Dessert!$G$14:$G$40,Table13[[#This Row],[Items Name]],Dessert!$C$14:$C$40) -> 0 | M70: =Table1[[#This Row],[isWarehouse&Direct]] -> 0 | N70: =Table1[[#This Row],[isFinished]] -> 0
C71: =Table1[[#This Row],[Code]] -> 123026 | D71: =Table1[[#This Row],[Items Name]] -> Vegitables | E71: =Table1[[#This Row],[Unit]] -> 07 KG | F71: =+Table13[[#This Row],[Souce]]+Table13[[#This Row],[Salad]]+Table13[[#This Row],[Sandwich]]+Table13[[#This Row],[Breacfast]]+Table13[[#This Row],[Pasta]]+Table13[[#This Row],[Dessert]] -> 0 | G71: =SUMIF(Souce!$G$14:$G$357,Table13[[#This Row],[Items Name]],Souce!$C$14:$C$357) -> 0 | H71: =SUMIF(Salad!$G$14:$G$768,Table13[[#This Row],[Items Name]],Salad!$C$14:$C$768) -> 0 | I71: =SUMIF(Sandwich!$G$14:$G$454,Table13[[#This Row],[Items Name]],Sandwich!$C$14:$C$454) -> 0 | J71: =SUMIF(Breakfast!$G$14:$G$164,Table13[[#This Row],[Items Name]],Breakfast!$C$14:$C$164) -> 0 | K71: =SUMIF(Pasta!$G$14:$G$99,Table13[[#This Row],[Items Name]],Pasta!$C$14:$C$99) -> 0 | L71: =SUMIF(Dessert!$G$14:$G$40,Table13[[#This Row],[Items Name]],Dessert!$C$14:$C$40) -> 0 | M71: =Table1[[#This Row],[isWarehouse&Direct]] -> 0 | N71: =Table1[[#This Row],[isFinished]] -> 0
C72: =Table1[[#This Row],[Code]] -> 123027 | D72: =Table1[[#This Row],[Items Name]] -> Lettuce Mava | E72: =Table1[[#This Row],[Unit]] -> 07 KG | F72: =+Table13[[#This Row],[Souce]]+Table13[[#This Row],[Salad]]+Table13[[#This Row],[Sandwich]]+Table13[[#This Row],[Breacfast]]+Table13[[#This Row],[Pasta]]+Table13[[#This Row],[Dessert]] -> 0 | G72: =SUMIF(Souce!$G$14:$G$357,Table13[[#This Row],[Items Name]],Souce!$C$14:$C$357) -> 0 | H72: =SUMIF(Salad!$G$14:$G$768,Table13[[#This Row],[Items Name]],Salad!$C$14:$C$768) -> 0 | I72: =SUMIF(Sandwich!$G$14:$G$454,Table13[[#This Row],[Items Name]],Sandwich!$C$14:$C$454) -> 0 | J72: =SUMIF(Breakfast!$G$14:$G$164,Table13[[#This Row],[Items Name]],Breakfast!$C$14:$C$164) -> 0 | K72: =SUMIF(Pasta!$G$14:$G$99,Table13[[#This Row],[Items Name]],Pasta!$C$14:$C$99) -> 0 | L72: =SUMIF(Dessert!$G$14:$G$40,Table13[[#This Row],[Items Name]],Dessert!$C$14:$C$40) -> 0 | M72: =Table1[[#This Row],[isWarehouse&Direct]] -> 0 | N72: =Table1[[#This Row],[isFinished]] -> 0
C73: =Table1[[#This Row],[Code]] -> 123028 | D73: =Table1[[#This Row],[Items Name]] -> water | E73: =Table1[[#This Row],[Unit]] -> 07 KG | F73: =+Table13[[#This Row],[Souce]]+Table13[[#This Row],[Salad]]+Table13[[#This Row],[Sandwich]]+Table13[[#This Row],[Breacfast]]+Table13[[#This Row],[Pasta]]+Table13[[#This Row],[Dessert]] -> 0 | G73: =SUMIF(Souce!$G$14:$G$357,Table13[[#This Row],[Items Name]],Souce!$C$14:$C$357) -> 0 | H73: =SUMIF(Salad!$G$14:$G$768,Table13[[#This Row],[Items Name]],Salad!$C$14:$C$768) -> 0 | I73: =SUMIF(Sandwich!$G$14:$G$454,Table13[[#This Row],[Items Name]],Sandwich!$C$14:$C$454) -> 0 | J73: =SUMIF(Breakfast!$G$14:$G$164,Table13[[#This Row],[Items Name]],Breakfast!$C$14:$C$164) -> 0 | K73: =SUMIF(Pasta!$G$14:$G$99,Table13[[#This Row],[Items Name]],Pasta!$C$14:$C$99) -> 0 | L73: =SUMIF(Dessert!$G$14:$G$40,Table13[[#This Row],[Items Name]],Dessert!$C$14:$C$40) -> 0 | M73: =Table1[[#This Row],[isWarehouse&Direct]] -> 0 | N73: =Table1[[#This Row],[isFinished]] -> 0
C74: =Table1[[#This Row],[Code]] -> 123029 | D74: =Table1[[#This Row],[Items Name]] -> Perrier water | E74: =Table1[[#This Row],[Unit]] -> 07 KG | F74: =+Table13[[#This Row],[Souce]]+Table13[[#This Row],[Salad]]+Table13[[#This Row],[Sandwich]]+Table13[[#This Row],[Breacfast]]+Table13[[#This Row],[Pasta]]+Table13[[#This Row],[Dessert]] -> 0 | G74: =SUMIF(Souce!$G$14:$G$357,Table13[[#This Row],[Items Name]],Souce!$C$14:$C$357) -> 0 | H74: =SUMIF(Salad!$G$14:$G$768,Table13[[#This Row],[Items Name]],Salad!$C$14:$C$768) -> 0 | I74: =SUMIF(Sandwich!$G$14:$G$454,Table13[[#This Row],[Items Name]],Sandwich!$C$14:$C$454) -> 0 | J74: =SUMIF(Breakfast!$G$14:$G$164,Table13[[#This Row],[Items Name]],Breakfast!$C$14:$C$164) -> 0 | K74: =SUMIF(Pasta!$G$14:$G$99,Table13[[#This Row],[Items Name]],Pasta!$C$14:$C$99) -> 0 | L74: =SUMIF(Dessert!$G$14:$G$40,Table13[[#This Row],[Items Name]],Dessert!$C$14:$C$40) -> 0 | M74: =Table1[[#This Row],[isWarehouse&Direct]] -> 0 | N74: =Table1[[#This Row],[isFinished]] -> 0
C75: =Table1[[#This Row],[Code]] -> 123100 | D75: =Table1[[#This Row],[Items Name]] -> Potato Bofrit | E75: =Table1[[#This Row],[Unit]] -> 07 KG | F75: =+Table13[[#This Row],[Souce]]+Table13[[#This Row],[Salad]]+Table13[[#This Row],[Sandwich]]+Table13[[#This Row],[Breacfast]]+Table13[[#This Row],[Pasta]]+Table13[[#This Row],[Dessert]] -> 0 | G75: =SUMIF(Souce!$G$14:$G$357,Table13[[#This Row],[Items Name]],Souce!$C$14:$C$357) -> 0 | H75: =SUMIF(Salad!$G$14:$G$768,Table13[[#This Row],[Items Name]],Salad!$C$14:$C$768) -> 0 | I75: =SUMIF(Sandwich!$G$14:$G$454,Table13[[#This Row],[Items Name]],Sandwich!$C$14:$C$454) -> 0 | J75: =SUMIF(Breakfast!$G$14:$G$164,Table13[[#This Row],[Items Name]],Breakfast!$C$14:$C$164) -> 0 | K75: =SUMIF(Pasta!$G$14:$G$99,Table13[[#This Row],[Items Name]],Pasta!$C$14:$C$99) -> 0 | L75: =SUMIF(Dessert!$G$14:$G$40,Table13[[#This Row],[Items Name]],Dessert!$C$14:$C$40) -> 0 | M75: =Table1[[#This Row],[isWarehouse&Direct]] -> 0 | N75: =Table1[[#This Row],[isFinished]] -> 0
C76: =Table1[[#This Row],[Code]] -> 123101 | D76: =Table1[[#This Row],[Items Name]] -> GREEN BEANS | E76: =Table1[[#This Row],[Unit]] -> 07 KG | F76: =+Table13[[#This Row],[Souce]]+Table13[[#This Row],[Salad]]+Table13[[#This Row],[Sandwich]]+Table13[[#This Row],[Breacfast]]+Table13[[#This Row],[Pasta]]+Table13[[#This Row],[Dessert]] -> 0 | G76: =SUMIF(Souce!$G$14:$G$357,Table13[[#This Row],[Items Name]],Souce!$C$14:$C$357) -> 0 | H76: =SUMIF(Salad!$G$14:$G$768,Table13[[#This Row],[Items Name]],Salad!$C$14:$C$768) -> 0 | I76: =SUMIF(Sandwich!$G$14:$G$454,Table13[[#This Row],[Items Name]],Sandwich!$C$14:$C$454) -> 0 | J76: =SUMIF(Breakfast!$G$14:$G$164,Table13[[#This Row],[Items Name]],Breakfast!$C$14:$C$164) -> 0 | K76: =SUMIF(Pasta!$G$14:$G$99,Table13[[#This Row],[Items Name]],Pasta!$C$14:$C$99) -> 0 | L76: =SUMIF(Dessert!$G$14:$G$40,Table13[[#This Row],[Items Name]],Dessert!$C$14:$C$40) -> 0 | M76: =Table1[[#This Row],[isWarehouse&Direct]] -> 0 | N76: =Table1[[#This Row],[isFinished]] -> 0
C77: =Table1[[#This Row],[Code]] -> 123102 | D77: =Table1[[#This Row],[Items Name]] -> Green beans FASOLIA | E77: =Table1[[#This Row],[Unit]] -> 07 KG | F77: =+Table13[[#This Row],[Souce]]+Table13[[#This Row],[Salad]]+Table13[[#This Row],[Sandwich]]+Table13[[#This Row],[Breacfast]]+Table13[[#This Row],[Pasta]]+Table13[[#This Row],[Dessert]] -> 0 | G77: =SUMIF(Souce!$G$14:$G$357,Table13[[#This Row],[Items Name]],Souce!$C$14:$C$357) -> 0 | H77: =SUMIF(Salad!$G$14:$G$768,Table13[[#This Row],[Items Name]],Salad!$C$14:$C$768) -> 0 | I77: =SUMIF(Sandwich!$G$14:$G$454,Table13[[#This Row],[Items Name]],Sandwich!$C$14:$C$454) -> 0 | J77: =SUMIF(Breakfast!$G$14:$G$164,Table13[[#This Row],[Items Name]],Breakfast!$C$14:$C$164) -> 0 | K77: =SUMIF(Pasta!$G$14:$G$99,Table13[[#This Row],[Items Name]],Pasta!$C$14:$C$99) -> 0 | L77: =SUMIF(Dessert!$G$14:$G$40,Table13[[#This Row],[Items Name]],Dessert!$C$14:$C$40) -> 0 | M77: =Table1[[#This Row],[isWarehouse&Direct]] -> 0 | N77: =Table1[[#This Row],[isFinished]] -> 0
C78: =Table1[[#This Row],[Code]] -> 123103 | D78: =Table1[[#This Row],[Items Name]] -> Brocolli | E78: =Table1[[#This Row],[Unit]] -> 07 KG | F78: =+Table13[[#This Row],[Souce]]+Table13[[#This Row],[Salad]]+Table13[[#This Row],[Sandwich]]+Table13[[#This Row],[Breacfast]]+Table13[[#This Row],[Pasta]]+Table13[[#This Row],[Dessert]] -> 0 | G78: =SUMIF(Souce!$G$14:$G$357,Table13[[#This Row],[Items Name]],Souce!$C$14:$C$357) -> 0 | H78: =SUMIF(Salad!$G$14:$G$768,Table13[[#This Row],[Items Name]],Salad!$C$14:$C$768) -> 0 | I78: =SUMIF(Sandwich!$G$14:$G$454,Table13[[#This Row],[Items Name]],Sandwich!$C$14:$C$454) -> 0 | J78: =SUMIF(Breakfast!$G$14:$G$164,Table13[[#This Row],[Items Name]],Breakfast!$C$14:$C$164) -> 0 | K78: =SUMIF(Pasta!$G$14:$G$99,Table13[[#This Row],[Items Name]],Pasta!$C$14:$C$99) -> 0 | L78: =SUMIF(Dessert!$G$14:$G$40,Table13[[#This Row],[Items Name]],Dessert!$C$14:$C$40) -> 0 | M78: =Table1[[#This Row],[isWarehouse&Direct]] -> 0 | N78: =Table1[[#This Row],[isFinished]] -> 0
B79: Category: 23 Fresh Vegatables & FRUIT FRESH | C79: =Table1[[#This Row],[Code]] -> 123104 | D79: =Table1[[#This Row],[Items Name]] -> Potato weadges | E79: =Table1[[#This Row],[Unit]] -> 07 KG | F79: =+Table13[[#This Row],[Souce]]+Table13[[#This Row],[Salad]]+Table13[[#This Row],[Sandwich]]+Table13[[#This Row],[Breacfast]]+Table13[[#This Row],[Pasta]]+Table13[[#This Row],[Dessert]] -> 0 | G79: =SUMIF(Souce!$G$14:$G$357,Table13[[#This Row],[Items Name]],Souce!$C$14:$C$357) -> 0 | H79: =SUMIF(Salad!$G$14:$G$768,Table13[[#This Row],[Items Name]],Salad!$C$14:$C$768) -> 0 | I79: =SUMIF(Sandwich!$G$14:$G$454,Table13[[#This Row],[Items Name]],Sandwich!$C$14:$C$454) -> 0 | J79: =SUMIF(Breakfast!$G$14:$G$164,Table13[[#This Row],[Items Name]],Breakfast!$C$14:$C$164) -> 0 | K79: =SUMIF(Pasta!$G$14:$G$99,Table13[[#This Row],[Items Name]],Pasta!$C$14:$C$99) -> 0 | L79: =SUMIF(Dessert!$G$14:$G$40,Table13[[#This Row],[Items Name]],Dessert!$C$14:$C$40) -> 0 | M79: =Table1[[#This Row],[isWarehouse&Direct]] -> 0 | N79: =Table1[[#This Row],[isFinished]] -> 0
C80: =Table1[[#This Row],[Code]] -> 123105 | D80: =Table1[[#This Row],[Items Name]] -> Appel Lobnani | E80: =Table1[[#This Row],[Unit]] -> 07 KG | F80: =+Table13[[#This Row],[Souce]]+Table13[[#This Row],[Salad]]+Table13[[#This Row],[Sandwich]]+Table13[[#This Row],[Breacfast]]+Table13[[#This Row],[Pasta]]+Table13[[#This Row],[Dessert]] -> 0 | G80: =SUMIF(Souce!$G$14:$G$357,Table13[[#This Row],[Items Name]],Souce!$C$14:$C$357) -> 0 | H80: =SUMIF(Salad!$G$14:$G$768,Table13[[#This Row],[Items Name]],Salad!$C$14:$C$768) -> 0 | I80: =SUMIF(Sandwich!$G$14:$G$454,Table13[[#This Row],[Items Name]],Sandwich!$C$14:$C$454) -> 0 | J80: =SUMIF(Breakfast!$G$14:$G$164,Table13[[#This Row],[Items Name]],Breakfast!$C$14:$C$164) -> 0 | K80: =SUMIF(Pasta!$G$14:$G$99,Table13[[#This Row],[Items Name]],Pasta!$C$14:$C$99) -> 0 | L80: =SUMIF(Dessert!$G$14:$G$40,Table13[[#This Row],[Items Name]],Dessert!$C$14:$C$40) -> 0 | M80: =Table1[[#This Row],[isWarehouse&Direct]] -> 0 | N80: =Table1[[#This Row],[isFinished]] -> 0
C81: =Table1[[#This Row],[Code]] -> 123106 | D81: =Table1[[#This Row],[Items Name]] -> Korat | E81: =Table1[[#This Row],[Unit]] -> 07 KG | F81: =+Table13[[#This Row],[Souce]]+Table13[[#This Row],[Salad]]+Table13[[#This Row],[Sandwich]]+Table13[[#This Row],[Breacfast]]+Table13[[#This Row],[Pasta]]+Table13[[#This Row],[Dessert]] -> 0 | G81: =SUMIF(Souce!$G$14:$G$357,Table13[[#This Row],[Items Name]],Souce!$C$14:$C$357) -> 0 | H81: =SUMIF(Salad!$G$14:$G$768,Table13[[#This Row],[Items Name]],Salad!$C$14:$C$768) -> 0 | I81: =SUMIF(Sandwich!$G$14:$G$454,Table13[[#This Row],[Items Name]],Sandwich!$C$14:$C$454) -> 0 | J81: =SUMIF(Breakfast!$G$14:$G$164,Table13[[#This Row],[Items Name]],Breakfast!$C$14:$C$164) -> 0 | K81: =SUMIF(Pasta!$G$14:$G$99,Table13[[#This Row],[Items Name]],Pasta!$C$14:$C$99) -> 0 | L81: =SUMIF(Dessert!$G$14:$G$40,Table13[[#This Row],[Items Name]],Dessert!$C$14:$C$40) -> 0 | M81: =Table1[[#This Row],[isWarehouse&Direct]] -> 0 | N81: =Table1[[#This Row],[isFinished]] -> 0
C82: =Table1[[#This Row],[Code]] -> 123001 | D82: =Table1[[#This Row],[Items Name]] -> PLUE PERRY FRUZEN | E82: =Table1[[#This Row],[Unit]] -> 07 KG | F82: =+Table13[[#This Row],[Souce]]+Table13[[#This Row],[Salad]]+Table13[[#This Row],[Sandwich]]+Table13[[#This Row],[Breacfast]]+Table13[[#This Row],[Pasta]]+Table13[[#This Row],[Dessert]] -> 0 | G82: =SUMIF(Souce!$G$14:$G$357,Table13[[#This Row],[Items Name]],Souce!$C$14:$C$357) -> 0 | H82: =SUMIF(Salad!$G$14:$G$768,Table13[[#This Row],[Items Name]],Salad!$C$14:$C$768) -> 0 | I82: =SUMIF(Sandwich!$G$14:$G$454,Table13[[#This Row],[Items Name]],Sandwich!$C$14:$C$454) -> 0 | J82: =SUMIF(Breakfast!$G$14:$G$164,Table13[[#This Row],[Items Name]],Breakfast!$C$14:$C$164) -> 0 | K82: =SUMIF(Pasta!$G$14:$G$99,Table13[[#This Row],[Items Name]],Pasta!$C$14:$C$99) -> 0 | L82: =SUMIF(Dessert!$G$14:$G$40,Table13[[#This Row],[Items Name]],Dessert!$C$14:$C$40) -> 0 | M82: =Table1[[#This Row],[isWarehouse&Direct]] -> 0 | N82: =Table1[[#This Row],[isFinished]] -> 0
C83: =Table1[[#This Row],[Code]] -> 125001 | D83: =Table1[[#This Row],[Items Name]] -> Butter Block Newzeland | E83: =Table1[[#This Row],[Unit]] -> 07 KG | F83: =+Table13[[#This Row],[Souce]]+Table13[[#This Row],[Salad]]+Table13[[#This Row],[Sandwich]]+Table13[[#This Row],[Breacfast]]+Table13[[#This Row],[Pasta]]+Table13[[#This Row],[Dessert]] -> 0 | G83: =SUMIF(Souce!$G$14:$G$357,Table13[[#This Row],[Items Name]],Souce!$C$14:$C$357) -> 0 | H83: =SUMIF(Salad!$G$14:$G$768,Table13[[#This Row],[Items Name]],Salad!$C$14:$C$768) -> 0 | I83: =SUMIF(Sandwich!$G$14:$G$454,Table13[[#This Row],[Items Name]],Sandwich!$C$14:$C$454) -> 0 | J83: =SUMIF(Breakfast!$G$14:$G$164,Table13[[#This Row],[Items Name]],Breakfast!$C$14:$C$164) -> 0 | K83: =SUMIF(Pasta!$G$14:$G$99,Table13[[#This Row],[Items Name]],Pasta!$C$14:$C$99) -> 0 | L83: =SUMIF(Dessert!$G$14:$G$40,Table13[[#This Row],[Items Name]],Dessert!$C$14:$C$40) -> 0 | M83: =Table1[[#This Row],[isWarehouse&Direct]] -> 0 | N83: =Table1[[#This Row],[isFinished]] -> 0
C84: =Table1[[#This Row],[Code]] -> 125002 | D84: =Table1[[#This Row],[Items Name]] -> Butter almarai unsl | E84: =Table1[[#This Row],[Unit]] -> 07 KG | F84: =+Table13[[#This Row],[Souce]]+Table13[[#This Row],[Salad]]+Table13[[#This Row],[Sandwich]]+Table13[[#This Row],[Breacfast]]+Table13[[#This Row],[Pasta]]+Table13[[#This Row],[Dessert]] -> 0 | G84: =SUMIF(Souce!$G$14:$G$357,Table13[[#This Row],[Items Name]],Souce!$C$14:$C$357) -> 0 | H84: =SUMIF(Salad!$G$14:$G$768,Table13[[#This Row],[Items Name]],Salad!$C$14:$C$768) -> 0 | I84: =SUMIF(Sandwich!$G$14:$G$454,Table13[[#This Row],[Items Name]],Sandwich!$C$14:$C$454) -> 0 | J84: =SUMIF(Breakfast!$G$14:$G$164,Table13[[#This Row],[Items Name]],Breakfast!$C$14:$C$164) -> 0 | K84: =SUMIF(Pasta!$G$14:$G$99,Table13[[#This Row],[Items Name]],Pasta!$C$14:$C$99) -> 0 | L84: =SUMIF(Dessert!$G$14:$G$40,Table13[[#This Row],[Items Name]],Dessert!$C$14:$C$40) -> 0 | M84: =Table1[[#This Row],[isWarehouse&Direct]] -> 0 | N84: =Table1[[#This Row],[isFinished]] -> 0
C85: =Table1[[#This Row],[Code]] -> 125003 | D85: =Table1[[#This Row],[Items Name]] -> Cheese Cheddar | E85: =Table1[[#This Row],[Unit]] -> 07 KG | F85: =+Table13[[#This Row],[Souce]]+Table13[[#This Row],[Salad]]+Table13[[#This Row],[Sandwich]]+Table13[[#This Row],[Breacfast]]+Table13[[#This Row],[Pasta]]+Table13[[#This Row],[Dessert]] -> 0 | G85: =SUMIF(Souce!$G$14:$G$357,Table13[[#This Row],[Items Name]],Souce!$C$14:$C$357) -> 0 | H85: =SUMIF(Salad!$G$14:$G$768,Table13[[#This Row],[Items Name]],Salad!$C$14:$C$768) -> 0 | I85: =SUMIF(Sandwich!$G$14:$G$454,Table13[[#This Row],[Items Name]],Sandwich!$C$14:$C$454) -> 0 | J85: =SUMIF(Breakfast!$G$14:$G$164,Table13[[#This Row],[Items Name]],Breakfast!$C$14:$C$164) -> 0 | K85: =SUMIF(Pasta!$G$14:$G$99,Table13[[#This Row],[Items Name]],Pasta!$C$14:$C$99) -> 0 | L85: =SUMIF(Dessert!$G$14:$G$40,Table13[[#This Row],[Items Name]],Dessert!$C$14:$C$40) -> 0 | M85: =Table1[[#This Row],[isWarehouse&Direct]] -> 0 | N85: =Table1[[#This Row],[isFinished]] -> 0
C86: =Table1[[#This Row],[Code]] -> 125004 | D86: =Table1[[#This Row],[Items Name]] -> Cheese Emmental-Local Arab Dairy | E86: =Table1[[#This Row],[Unit]] -> 07 KG | F86: =+Table13[[#This Row],[Souce]]+Table13[[#This Row],[Salad]]+Table13[[#This Row],[Sandwich]]+Table13[[#This Row],[Breacfast]]+Table13[[#This Row],[Pasta]]+Table13[[#This Row],[Dessert]] -> 0 | G86: =SUMIF(Souce!$G$14:$G$357,Table13[[#This Row],[Items Name]],Souce!$C$14:$C$357) -> 0 | H86: =SUMIF(Salad!$G$14:$G$768,Table13[[#This Row],[Items Name]],Salad!$C$14:$C$768) -> 0 | I86: =SUMIF(Sandwich!$G$14:$G$454,Table13[[#This Row],[Items Name]],Sandwich!$C$14:$C$454) -> 0 | J86: =SUMIF(Breakfast!$G$14:$G$164,Table13[[#This Row],[Items Name]],Breakfast!$C$14:$C$164) -> 0 | K86: =SUMIF(Pasta!$G$14:$G$99,Table13[[#This Row],[Items Name]],Pasta!$C$14:$C$99) -> 0 | L86: =SUMIF(Dessert!$G$14:$G$40,Table13[[#This Row],[Items Name]],Dessert!$C$14:$C$40) -> 0 | M86: =Table1[[#This Row],[isWarehouse&Direct]] -> 0 | N86: =Table1[[#This Row],[isFinished]] -> 0
C87: =Table1[[#This Row],[Code]] -> 125005 | D87: =Table1[[#This Row],[Items Name]] -> Cheese Parmisan / Grana | E87: =Table1[[#This Row],[Unit]] -> 07 KG | F87: =+Table13[[#This Row],[Souce]]+Table13[[#This Row],[Salad]]+Table13[[#This Row],[Sandwich]]+Table13[[#This Row],[Breacfast]]+Table13[[#This Row],[Pasta]]+Table13[[#This Row],[Dessert]] -> 0 | G87: =SUMIF(Souce!$G$14:$G$357,Table13[[#This Row],[Items Name]],Souce!$C$14:$C$357) -> 0 | H87: =SUMIF(Salad!$G$14:$G$768,Table13[[#This Row],[Items Name]],Salad!$C$14:$C$768) -> 0 | I87: =SUMIF(Sandwich!$G$14:$G$454,Table13[[#This Row],[Items Name]],Sandwich!$C$14:$C$454) -> 0 | J87: =SUMIF(Breakfast!$G$14:$G$164,Table13[[#This Row],[Items Name]],Breakfast!$C$14:$C$164) -> 0 | K87: =SUMIF(Pasta!$G$14:$G$99,Table13[[#This Row],[Items Name]],Pasta!$C$14:$C$99) -> 0 | L87: =SUMIF(Dessert!$G$14:$G$40,Table13[[#This Row],[Items Name]],Dessert!$C$14:$C$40) -> 0 | M87: =Table1[[#This Row],[isWarehouse&Direct]] -> 0 | N87: =Table1[[#This Row],[isFinished]] -> 0
C88: =Table1[[#This Row],[Code]] -> 125006 | D88: =Table1[[#This Row],[Items Name]] -> Milk Powder full cream | E88: =Table1[[#This Row],[Unit]] -> 07 KG | F88: =+Table13[[#This Row],[Souce]]+Table13[[#This Row],[Salad]]+Table13[[#This Row],[Sandwich]]+Table13[[#This Row],[Breacfast]]+Table13[[#This Row],[Pasta]]+Table13[[#This Row],[Dessert]] -> 0 | G88: =SUMIF(Souce!$G$14:$G$357,Table13[[#This Row],[Items Name]],Souce!$C$14:$C$357) -> 0 | H88: =SUMIF(Salad!$G$14:$G$768,Table13[[#This Row],[Items Name]],Salad!$C$14:$C$768) -> 0 | I88: =SUMIF(Sandwich!$G$14:$G$454,Table13[[#This Row],[Items Name]],Sandwich!$C$14:$C$454) -> 0 | J88: =SUMIF(Breakfast!$G$14:$G$164,Table13[[#This Row],[Items Name]],Breakfast!$C$14:$C$164) -> 0 | K88: =SUMIF(Pasta!$G$14:$G$99,Table13[[#This Row],[Items Name]],Pasta!$C$14:$C$99) -> 0 | L88: =SUMIF(Dessert!$G$14:$G$40,Table13[[#This Row],[Items Name]],Dessert!$C$14:$C$40) -> 0 | M88: =Table1[[#This Row],[isWarehouse&Direct]] -> 0 | N88: =Table1[[#This Row],[isFinished]] -> 0
C89: =Table1[[#This Row],[Code]] -> 125007 | D89: =Table1[[#This Row],[Items Name]] -> Eggs W [ Cover 30 P ] | E89: =Table1[[#This Row],[Unit]] -> 06 Each | F89: =+Table13[[#This Row],[Souce]]+Table13[[#This Row],[Salad]]+Table13[[#This Row],[Sandwich]]+Table13[[#This Row],[Breacfast]]+Table13[[#This Row],[Pasta]]+Table13[[#This Row],[Dessert]] -> 0 | G89: =SUMIF(Souce!$G$14:$G$357,Table13[[#This Row],[Items Name]],Souce!$C$14:$C$357) -> 0 | H89: =SUMIF(Salad!$G$14:$G$768,Table13[[#This Row],[Items Name]],Salad!$C$14:$C$768) -> 0 | I89: =SUMIF(Sandwich!$G$14:$G$454,Table13[[#This Row],[Items Name]],Sandwich!$C$14:$C$454) -> 0 | J89: =SUMIF(Breakfast!$G$14:$G$164,Table13[[#This Row],[Items Name]],Breakfast!$C$14:$C$164) -> 0 | K89: =SUMIF(Pasta!$G$14:$G$99,Table13[[#This Row],[Items Name]],Pasta!$C$14:$C$99) -> 0 | L89: =SUMIF(Dessert!$G$14:$G$40,Table13[[#This Row],[Items Name]],Dessert!$C$14:$C$40) -> 0 | M89: =Table1[[#This Row],[isWarehouse&Direct]] -> 0 | N89: =Table1[[#This Row],[isFinished]] -> 0
C90: =Table1[[#This Row],[Code]] -> 125008 | D90: =Table1[[#This Row],[Items Name]] -> Cheese rockford- danish | E90: =Table1[[#This Row],[Unit]] -> 07 KG | F90: =+Table13[[#This Row],[Souce]]+Table13[[#This Row],[Salad]]+Table13[[#This Row],[Sandwich]]+Table13[[#This Row],[Breacfast]]+Table13[[#This Row],[Pasta]]+Table13[[#This Row],[Dessert]] -> 0 | G90: =SUMIF(Souce!$G$14:$G$357,Table13[[#This Row],[Items Name]],Souce!$C$14:$C$357) -> 0 | H90: =SUMIF(Salad!$G$14:$G$768,Table13[[#This Row],[Items Name]],Salad!$C$14:$C$768) -> 0 | I90: =SUMIF(Sandwich!$G$14:$G$454,Table13[[#This Row],[Items Name]],Sandwich!$C$14:$C$454) -> 0 | J90: =SUMIF(Breakfast!$G$14:$G$164,Table13[[#This Row],[Items Name]],Breakfast!$C$14:$C$164) -> 0 | K90: =SUMIF(Pasta!$G$14:$G$99,Table13[[#This Row],[Items Name]],Pasta!$C$14:$C$99) -> 0 | L90: =SUMIF(Dessert!$G$14:$G$40,Table13[[#This Row],[Items Name]],Dessert!$C$14:$C$40) -> 0 | M90: =Table1[[#This Row],[isWarehouse&Direct]] -> 0 | N90: =Table1[[#This Row],[isFinished]] -> 0
C91: =Table1[[#This Row],[Code]] -> 125009 | D91: =Table1[[#This Row],[Items Name]] -> Cheese White Feta | E91: =Table1[[#This Row],[Unit]] -> 07 KG | F91: =+Table13[[#This Row],[Souce]]+Table13[[#This Row],[Salad]]+Table13[[#This Row],[Sandwich]]+Table13[[#This Row],[Breacfast]]+Table13[[#This Row],[Pasta]]+Table13[[#This Row],[Dessert]] -> 0 | G91: =SUMIF(Souce!$G$14:$G$357,Table13[[#This Row],[Items Name]],Souce!$C$14:$C$357) -> 0 | H91: =SUMIF(Salad!$G$14:$G$768,Table13[[#This Row],[Items Name]],Salad!$C$14:$C$768) -> 0 | I91: =SUMIF(Sandwich!$G$14:$G$454,Table13[[#This Row],[Items Name]],Sandwich!$C$14:$C$454) -> 0 | J91: =SUMIF(Breakfast!$G$14:$G$164,Table13[[#This Row],[Items Name]],Breakfast!$C$14:$C$164) -> 0 | K91: =SUMIF(Pasta!$G$14:$G$99,Table13[[#This Row],[Items Name]],Pasta!$C$14:$C$99) -> 0 | L91: =SUMIF(Dessert!$G$14:$G$40,Table13[[#This Row],[Items Name]],Dessert!$C$14:$C$40) -> 0 | M91: =Table1[[#This Row],[isWarehouse&Direct]] -> 0 | N91: =Table1[[#This Row],[isFinished]] -> 0
C92: =Table1[[#This Row],[Code]] -> 125010 | D92: =Table1[[#This Row],[Items Name]] -> CHEESE KIRI 1*12 PSC | E92: =Table1[[#This Row],[Unit]] -> 07 KG | F92: =+Table13[[#This Row],[Souce]]+Table13[[#This Row],[Salad]]+Table13[[#This Row],[Sandwich]]+Table13[[#This Row],[Breacfast]]+Table13[[#This Row],[Pasta]]+Table13[[#This Row],[Dessert]] -> 0 | G92: =SUMIF(Souce!$G$14:$G$357,Table13[[#This Row],[Items Name]],Souce!$C$14:$C$357) -> 0 | H92: =SUMIF(Salad!$G$14:$G$768,Table13[[#This Row],[Items Name]],Salad!$C$14:$C$768) -> 0 | I92: =SUMIF(Sandwich!$G$14:$G$454,Table13[[#This Row],[Items Name]],Sandwich!$C$14:$C$454) -> 0 | J92: =SUMIF(Breakfast!$G$14:$G$164,Table13[[#This Row],[Items Name]],Breakfast!$C$14:$C$164) -> 0 | K92: =SUMIF(Pasta!$G$14:$G$99,Table13[[#This Row],[Items Name]],Pasta!$C$14:$C$99) -> 0 | L92: =SUMIF(Dessert!$G$14:$G$40,Table13[[#This Row],[Items Name]],Dessert!$C$14:$C$40) -> 0 | M92: =Table1[[#This Row],[isWarehouse&Direct]] -> 0 | N92: =Table1[[#This Row],[isFinished]] -> 0
C93: =Table1[[#This Row],[Code]] -> 125011 | D93: =Table1[[#This Row],[Items Name]] -> Milk Condensed | E93: =Table1[[#This Row],[Unit]] -> 07 KG | F93: =+Table13[[#This Row],[Souce]]+Table13[[#This Row],[Salad]]+Table13[[#This Row],[Sandwich]]+Table13[[#This Row],[Breacfast]]+Table13[[#This Row],[Pasta]]+Table13[[#This Row],[Dessert]] -> 0 | G93: =SUMIF(Souce!$G$14:$G$357,Table13[[#This Row],[Items Name]],Souce!$C$14:$C$357) -> 0 | H93: =SUMIF(Salad!$G$14:$G$768,Table13[[#This Row],[Items Name]],Salad!$C$14:$C$768) -> 0 | I93: =SUMIF(Sandwich!$G$14:$G$454,Table13[[#This Row],[Items Name]],Sandwich!$C$14:$C$454) -> 0 | J93: =SUMIF(Breakfast!$G$14:$G$164,Table13[[#This Row],[Items Name]],Breakfast!$C$14:$C$164) -> 0 | K93: =SUMIF(Pasta!$G$14:$G$99,Table13[[#This Row],[Items Name]],Pasta!$C$14:$C$99) -> 0 | L93: =SUMIF(Dessert!$G$14:$G$40,Table13[[#This Row],[Items Name]],Dessert!$C$14:$C$40) -> 0 | M93: =Table1[[#This Row],[isWarehouse&Direct]] -> 0 | N93: =Table1[[#This Row],[isFinished]] -> 0
C94: =Table1[[#This Row],[Code]] -> 125012 | D94: =Table1[[#This Row],[Items Name]] -> Shortening Savola | E94: =Table1[[#This Row],[Unit]] -> 07 KG | F94: =+Table13[[#This Row],[Souce]]+Table13[[#This Row],[Salad]]+Table13[[#This Row],[Sandwich]]+Table13[[#This Row],[Breacfast]]+Table13[[#This Row],[Pasta]]+Table13[[#This Row],[Dessert]] -> 0 | G94: =SUMIF(Souce!$G$14:$G$357,Table13[[#This Row],[Items Name]],Souce!$C$14:$C$357) -> 0 | H94: =SUMIF(Salad!$G$14:$G$768,Table13[[#This Row],[Items Name]],Salad!$C$14:$C$768) -> 0 | I94: =SUMIF(Sandwich!$G$14:$G$454,Table13[[#This Row],[Items Name]],Sandwich!$C$14:$C$454) -> 0 | J94: =SUMIF(Breakfast!$G$14:$G$164,Table13[[#This Row],[Items Name]],Breakfast!$C$14:$C$164) -> 0 | K94: =SUMIF(Pasta!$G$14:$G$99,Table13[[#This Row],[Items Name]],Pasta!$C$14:$C$99) -> 0 | L94: =SUMIF(Dessert!$G$14:$G$40,Table13[[#This Row],[Items Name]],Dessert!$C$14:$C$40) -> 0 | M94: =Table1[[#This Row],[isWarehouse&Direct]] -> 0 | N94: =Table1[[#This Row],[isFinished]] -> 0
C95: =Table1[[#This Row],[Code]] -> 125013 | D95: =Table1[[#This Row],[Items Name]] -> Cheese Philadelphia | E95: =Table1[[#This Row],[Unit]] -> 07 KG | F95: =+Table13[[#This Row],[Souce]]+Table13[[#This Row],[Salad]]+Table13[[#This Row],[Sandwich]]+Table13[[#This Row],[Breacfast]]+Table13[[#This Row],[Pasta]]+Table13[[#This Row],[Dessert]] -> 0 | G95: =SUMIF(Souce!$G$14:$G$357,Table13[[#This Row],[Items Name]],Souce!$C$14:$C$357) -> 0 | H95: =SUMIF(Salad!$G$14:$G$768,Table13[[#This Row],[Items Name]],Salad!$C$14:$C$768) -> 0 | I95: =SUMIF(Sandwich!$G$14:$G$454,Table13[[#This Row],[Items Name]],Sandwich!$C$14:$C$454) -> 0 | J95: =SUMIF(Breakfast!$G$14:$G$164,Table13[[#This Row],[Items Name]],Breakfast!$C$14:$C$164) -> 0 | K95: =SUMIF(Pasta!$G$14:$G$99,Table13[[#This Row],[Items Name]],Pasta!$C$14:$C$99) -> 0 | L95: =SUMIF(Dessert!$G$14:$G$40,Table13[[#This Row],[Items Name]],Dessert!$C$14:$C$40) -> 0 | M95: =Table1[[#This Row],[isWarehouse&Direct]] -> 0 | N95: =Table1[[#This Row],[isFinished]] -> 0
C96: =Table1[[#This Row],[Code]] -> 125014 | D96: =Table1[[#This Row],[Items Name]] -> Cheese Gouda with Cumin-Holland Frico | E96: =Table1[[#This Row],[Unit]] -> 07 KG | F96: =+Table13[[#This Row],[Souce]]+Table13[[#This Row],[Salad]]+Table13[[#This Row],[Sandwich]]+Table13[[#This Row],[Breacfast]]+Table13[[#This Row],[Pasta]]+Table13[[#This Row],[Dessert]] -> 0 | G96: =SUMIF(Souce!$G$14:$G$357,Table13[[#This Row],[Items Name]],Souce!$C$14:$C$357) -> 0 | H96: =SUMIF(Salad!$G$14:$G$768,Table13[[#This Row],[Items Name]],Salad!$C$14:$C$768) -> 0 | I96: =SUMIF(Sandwich!$G$14:$G$454,Table13[[#This Row],[Items Name]],Sandwich!$C$14:$C$454) -> 0 | J96: =SUMIF(Breakfast!$G$14:$G$164,Table13[[#This Row],[Items Name]],Breakfast!$C$14:$C$164) -> 0 | K96: =SUMIF(Pasta!$G$14:$G$99,Table13[[#This Row],[Items Name]],Pasta!$C$14:$C$99) -> 0 | L96: =SUMIF(Dessert!$G$14:$G$40,Table13[[#This Row],[Items Name]],Dessert!$C$14:$C$40) -> 0 | M96: =Table1[[#This Row],[isWarehouse&Direct]] -> 0 | N96: =Table1[[#This Row],[isFinished]] -> 0
C97: =Table1[[#This Row],[Code]] -> 125015 | D97: =Table1[[#This Row],[Items Name]] -> ROMI CHEES | E97: =Table1[[#This Row],[Unit]] -> 07 KG | F97: =+Table13[[#This Row],[Souce]]+Table13[[#This Row],[Salad]]+Table13[[#This Row],[Sandwich]]+Table13[[#This Row],[Breacfast]]+Table13[[#This Row],[Pasta]]+Table13[[#This Row],[Dessert]] -> 0 | G97: =SUMIF(Souce!$G$14:$G$357,Table13[[#This Row],[Items Name]],Souce!$C$14:$C$357) -> 0 | H97: =SUMIF(Salad!$G$14:$G$768,Table13[[#This Row],[Items Name]],Salad!$C$14:$C$768) -> 0 | I97: =SUMIF(Sandwich!$G$14:$G$454,Table13[[#This Row],[Items Name]],Sandwich!$C$14:$C$454) -> 0 | J97: =SUMIF(Breakfast!$G$14:$G$164,Table13[[#This Row],[Items Name]],Breakfast!$C$14:$C$164) -> 0 | K97: =SUMIF(Pasta!$G$14:$G$99,Table13[[#This Row],[Items Name]],Pasta!$C$14:$C$99) -> 0 | L97: =SUMIF(Dessert!$G$14:$G$40,Table13[[#This Row],[Items Name]],Dessert!$C$14:$C$40) -> 0 | M97: =Table1[[#This Row],[isWarehouse&Direct]] -> 0 | N97: =Table1[[#This Row],[isFinished]] -> 0
C98: =Table1[[#This Row],[Code]] -> 125016 | D98: =Table1[[#This Row],[Items Name]] -> Cheese KiRi1*8 psc | E98: =Table1[[#This Row],[Unit]] -> 05 PKT | F98: =+Table13[[#This Row],[Souce]]+Table13[[#This Row],[Salad]]+Table13[[#This Row],[Sandwich]]+Table13[[#This Row],[Breacfast]]+Table13[[#This Row],[Pasta]]+Table13[[#This Row],[Dessert]] -> 0 | G98: =SUMIF(Souce!$G$14:$G$357,Table13[[#This Row],[Items Name]],Souce!$C$14:$C$357) -> 0 | H98: =SUMIF(Salad!$G$14:$G$768,Table13[[#This Row],[Items Name]],Salad!$C$14:$C$768) -> 0 | I98: =SUMIF(Sandwich!$G$14:$G$454,Table13[[#This Row],[Items Name]],Sandwich!$C$14:$C$454) -> 0 | J98: =SUMIF(Breakfast!$G$14:$G$164,Table13[[#This Row],[Items Name]],Breakfast!$C$14:$C$164) -> 0 | K98: =SUMIF(Pasta!$G$14:$G$99,Table13[[#This Row],[Items Name]],Pasta!$C$14:$C$99) -> 0 | L98: =SUMIF(Dessert!$G$14:$G$40,Table13[[#This Row],[Items Name]],Dessert!$C$14:$C$40) -> 0 | M98: =Table1[[#This Row],[isWarehouse&Direct]] -> 0 | N98: =Table1[[#This Row],[isFinished]] -> 0
C99: =Table1[[#This Row],[Code]] -> 125017 | D99: =Table1[[#This Row],[Items Name]] -> Unsalted Butter | E99: =Table1[[#This Row],[Unit]] -> 07 KG | F99: =+Table13[[#This Row],[Souce]]+Table13[[#This Row],[Salad]]+Table13[[#This Row],[Sandwich]]+Table13[[#This Row],[Breacfast]]+Table13[[#This Row],[Pasta]]+Table13[[#This Row],[Dessert]] -> 0 | G99: =SUMIF(Souce!$G$14:$G$357,Table13[[#This Row],[Items Name]],Souce!$C$14:$C$357) -> 0 | H99: =SUMIF(Salad!$G$14:$G$768,Table13[[#This Row],[Items Name]],Salad!$C$14:$C$768) -> 0 | I99: =SUMIF(Sandwich!$G$14:$G$454,Table13[[#This Row],[Items Name]],Sandwich!$C$14:$C$454) -> 0 | J99: =SUMIF(Breakfast!$G$14:$G$164,Table13[[#This Row],[Items Name]],Breakfast!$C$14:$C$164) -> 0 | K99: =SUMIF(Pasta!$G$14:$G$99,Table13[[#This Row],[Items Name]],Pasta!$C$14:$C$99) -> 0 | L99: =SUMIF(Dessert!$G$14:$G$40,Table13[[#This Row],[Items Name]],Dessert!$C$14:$C$40) -> 0 | M99: =Table1[[#This Row],[isWarehouse&Direct]] -> 0 | N99: =Table1[[#This Row],[isFinished]] -> 0
C100: =Table1[[#This Row],[Code]] -> 125018 | D100: =Table1[[#This Row],[Items Name]] -> BUTTER | E100: =Table1[[#This Row],[Unit]] -> 09 Gallon | F100: =+Table13[[#This Row],[Souce]]+Table13[[#This Row],[Salad]]+Table13[[#This Row],[Sandwich]]+Table13[[#This Row],[Breacfast]]+Table13[[#This Row],[Pasta]]+Table13[[#This Row],[Dessert]] -> 0 | G100: =SUMIF(Souce!$G$14:$G$357,Table13[[#This Row],[Items Name]],Souce!$C$14:$C$357) -> 0 | H100: =SUMIF(Salad!$G$14:$G$768,Table13[[#This Row],[Items Name]],Salad!$C$14:$C$768) -> 0 | I100: =SUMIF(Sandwich!$G$14:$G$454,Table13[[#This Row],[Items Name]],Sandwich!$C$14:$C$454) -> 0 | J100: =SUMIF(Breakfast!$G$14:$G$164,Table13[[#This Row],[Items Name]],Breakfast!$C$14:$C$164) -> 0 | K100: =SUMIF(Pasta!$G$14:$G$99,Table13[[#This Row],[Items Name]],Pasta!$C$14:$C$99) -> 0 | L100: =SUMIF(Dessert!$G$14:$G$40,Table13[[#This Row],[Items Name]],Dessert!$C$14:$C$40) -> 0 | M100: =Table1[[#This Row],[isWarehouse&Direct]] -> 0 | N100: =Table1[[#This Row],[isFinished]] -> 0
B101: Category: 25 Dairy Product | C101: =Table1[[#This Row],[Code]] -> 125019 | D101: =Table1[[#This Row],[Items Name]] -> BUTTER Boretion | E101: =Table1[[#This Row],[Unit]] -> 06 Each | F101: =+Table13[[#This Row],[Souce]]+Table13[[#This Row],[Salad]]+Table13[[#This Row],[Sandwich]]+Table13[[#This Row],[Breacfast]]+Table13[[#This Row],[Pasta]]+Table13[[#This Row],[Dessert]] -> 0 | G101: =SUMIF(Souce!$G$14:$G$357,Table13[[#This Row],[Items Name]],Souce!$C$14:$C$357) -> 0 | H101: =SUMIF(Salad!$G$14:$G$768,Table13[[#This Row],[Items Name]],Salad!$C$14:$C$768) -> 0 | I101: =SUMIF(Sandwich!$G$14:$G$454,Table13[[#This Row],[Items Name]],Sandwich!$C$14:$C$454) -> 0 | J101: =SUMIF(Breakfast!$G$14:$G$164,Table13[[#This Row],[Items Name]],Breakfast!$C$14:$C$164) -> 0 | K101: =SUMIF(Pasta!$G$14:$G$99,Table13[[#This Row],[Items Name]],Pasta!$C$14:$C$99) -> 0 | L101: =SUMIF(Dessert!$G$14:$G$40,Table13[[#This Row],[Items Name]],Dessert!$C$14:$C$40) -> 0 | M101: =Table1[[#This Row],[isWarehouse&Direct]] -> 0 | N101: =Table1[[#This Row],[isFinished]] -> 0
C102: =Table1[[#This Row],[Code]] -> 125020 | D102: =Table1[[#This Row],[Items Name]] -> cotag cheese | E102: =Table1[[#This Row],[Unit]] -> 07 KG | F102: =+Table13[[#This Row],[Souce]]+Table13[[#This Row],[Salad]]+Table13[[#This Row],[Sandwich]]+Table13[[#This Row],[Breacfast]]+Table13[[#This Row],[Pasta]]+Table13[[#This Row],[Dessert]] -> 0 | G102: =SUMIF(Souce!$G$14:$G$357,Table13[[#This Row],[Items Name]],Souce!$C$14:$C$357) -> 0 | H102: =SUMIF(Salad!$G$14:$G$768,Table13[[#This Row],[Items Name]],Salad!$C$14:$C$768) -> 0 | I102: =SUMIF(Sandwich!$G$14:$G$454,Table13[[#This Row],[Items Name]],Sandwich!$C$14:$C$454) -> 0 | J102: =SUMIF(Breakfast!$G$14:$G$164,Table13[[#This Row],[Items Name]],Breakfast!$C$14:$C$164) -> 0 | K102: =SUMIF(Pasta!$G$14:$G$99,Table13[[#This Row],[Items Name]],Pasta!$C$14:$C$99) -> 0 | L102: =SUMIF(Dessert!$G$14:$G$40,Table13[[#This Row],[Items Name]],Dessert!$C$14:$C$40) -> 0 | M102: =Table1[[#This Row],[isWarehouse&Direct]] -> 0 | N102: =Table1[[#This Row],[isFinished]] -> 0
C103: =Table1[[#This Row],[Code]] -> 125021 | D103: =Table1[[#This Row],[Items Name]] -> Milk fresh | E103: =Table1[[#This Row],[Unit]] -> 07 KG | F103: =+Table13[[#This Row],[Souce]]+Table13[[#This Row],[Salad]]+Table13[[#This Row],[Sandwich]]+Table13[[#This Row],[Breacfast]]+Table13[[#This Row],[Pasta]]+Table13[[#This Row],[Dessert]] -> 0 | G103: =SUMIF(Souce!$G$14:$G$357,Table13[[#This Row],[Items Name]],Souce!$C$14:$C$357) -> 0 | H103: =SUMIF(Salad!$G$14:$G$768,Table13[[#This Row],[Items Name]],Salad!$C$14:$C$768) -> 0 | I103: =SUMIF(Sandwich!$G$14:$G$454,Table13[[#This Row],[Items Name]],Sandwich!$C$14:$C$454) -> 0 | J103: =SUMIF(Breakfast!$G$14:$G$164,Table13[[#This Row],[Items Name]],Breakfast!$C$14:$C$164) -> 0 | K103: =SUMIF(Pasta!$G$14:$G$99,Table13[[#This Row],[Items Name]],Pasta!$C$14:$C$99) -> 0 | L103: =SUMIF(Dessert!$G$14:$G$40,Table13[[#This Row],[Items Name]],Dessert!$C$14:$C$40) -> 0 | M103: =Table1[[#This Row],[isWarehouse&Direct]] -> 0 | N103: =Table1[[#This Row],[isFinished]] -> 0
C104: =Table1[[#This Row],[Code]] -> 125022 | D104: =Table1[[#This Row],[Items Name]] -> Milk Bonny | E104: =Table1[[#This Row],[Unit]] -> 07 KG | F104: =+Table13[[#This Row],[Souce]]+Table13[[#This Row],[Salad]]+Table13[[#This Row],[Sandwich]]+Table13[[#This Row],[Breacfast]]+Table13[[#This Row],[Pasta]]+Table13[[#This Row],[Dessert]] -> 0 | G104: =SUMIF(Souce!$G$14:$G$357,Table13[[#This Row],[Items Name]],Souce!$C$14:$C$357) -> 0 | H104: =SUMIF(Salad!$G$14:$G$768,Table13[[#This Row],[Items Name]],Salad!$C$14:$C$768) -> 0 | I104: =SUMIF(Sandwich!$G$14:$G$454,Table13[[#This Row],[Items Name]],Sandwich!$C$14:$C$454) -> 0 | J104: =SUMIF(Breakfast!$G$14:$G$164,Table13[[#This Row],[Items Name]],Breakfast!$C$14:$C$164) -> 0 | K104: =SUMIF(Pasta!$G$14:$G$99,Table13[[#This Row],[Items Name]],Pasta!$C$14:$C$99) -> 0 | L104: =SUMIF(Dessert!$G$14:$G$40,Table13[[#This Row],[Items Name]],Dessert!$C$14:$C$40) -> 0 | M104: =Table1[[#This Row],[isWarehouse&Direct]] -> 0 | N104: =Table1[[#This Row],[isFinished]] -> 0
C105: =Table1[[#This Row],[Code]] -> 125023 | D105: =Table1[[#This Row],[Items Name]] -> Fresh Milk Yogurt | E105: =Table1[[#This Row],[Unit]] -> 07 KG | F105: =+Table13[[#This Row],[Souce]]+Table13[[#This Row],[Salad]]+Table13[[#This Row],[Sandwich]]+Table13[[#This Row],[Breacfast]]+Table13[[#This Row],[Pasta]]+Table13[[#This Row],[Dessert]] -> 0 | G105: =SUMIF(Souce!$G$14:$G$357,Table13[[#This Row],[Items Name]],Souce!$C$14:$C$357) -> 0 | H105: =SUMIF(Salad!$G$14:$G$768,Table13[[#This Row],[Items Name]],Salad!$C$14:$C$768) -> 0 | I105: =SUMIF(Sandwich!$G$14:$G$454,Table13[[#This Row],[Items Name]],Sandwich!$C$14:$C$454) -> 0 | J105: =SUMIF(Breakfast!$G$14:$G$164,Table13[[#This Row],[Items Name]],Breakfast!$C$14:$C$164) -> 0 | K105: =SUMIF(Pasta!$G$14:$G$99,Table13[[#This Row],[Items Name]],Pasta!$C$14:$C$99) -> 0 | L105: =SUMIF(Dessert!$G$14:$G$40,Table13[[#This Row],[Items Name]],Dessert!$C$14:$C$40) -> 0 | M105: =Table1[[#This Row],[isWarehouse&Direct]] -> 0 | N105: =Table1[[#This Row],[isFinished]] -> 0
C106: =Table1[[#This Row],[Code]] -> 125024 | D106: =Table1[[#This Row],[Items Name]] -> Chess mozeral | E106: =Table1[[#This Row],[Unit]] -> 07 KG | F106: =+Table13[[#This Row],[Souce]]+Table13[[#This Row],[Salad]]+Table13[[#This Row],[Sandwich]]+Table13[[#This Row],[Breacfast]]+Table13[[#This Row],[Pasta]]+Table13[[#This Row],[Dessert]] -> 0 | G106: =SUMIF(Souce!$G$14:$G$357,Table13[[#This Row],[Items Name]],Souce!$C$14:$C$357) -> 0 | H106: =SUMIF(Salad!$G$14:$G$768,Table13[[#This Row],[Items Name]],Salad!$C$14:$C$768) -> 0 | I106: =SUMIF(Sandwich!$G$14:$G$454,Table13[[#This Row],[Items Name]],Sandwich!$C$14:$C$454) -> 0 | J106: =SUMIF(Breakfast!$G$14:$G$164,Table13[[#This Row],[Items Name]],Breakfast!$C$14:$C$164) -> 0 | K106: =SUMIF(Pasta!$G$14:$G$99,Table13[[#This Row],[Items Name]],Pasta!$C$14:$C$99) -> 0 | L106: =SUMIF(Dessert!$G$14:$G$40,Table13[[#This Row],[Items Name]],Dessert!$C$14:$C$40) -> 0 | M106: =Table1[[#This Row],[isWarehouse&Direct]] -> 0 | N106: =Table1[[#This Row],[isFinished]] -> 0
C107: =Table1[[#This Row],[Code]] -> 125025 | D107: =Table1[[#This Row],[Items Name]] -> whip Cream Dessert 7 gr | E107: =Table1[[#This Row],[Unit]] -> 07 KG | F107: =+Table13[[#This Row],[Souce]]+Table13[[#This Row],[Salad]]+Table13[[#This Row],[Sandwich]]+Table13[[#This Row],[Breacfast]]+Table13[[#This Row],[Pasta]]+Table13[[#This Row],[Dessert]] -> 0 | G107: =SUMIF(Souce!$G$14:$G$357,Table13[[#This Row],[Items Name]],Souce!$C$14:$C$357) -> 0 | H107: =SUMIF(Salad!$G$14:$G$768,Table13[[#This Row],[Items Name]],Salad!$C$14:$C$768) -> 0 | I107: =SUMIF(Sandwich!$G$14:$G$454,Table13[[#This Row],[Items Name]],Sandwich!$C$14:$C$454) -> 0 | J107: =SUMIF(Breakfast!$G$14:$G$164,Table13[[#This Row],[Items Name]],Breakfast!$C$14:$C$164) -> 0 | K107: =SUMIF(Pasta!$G$14:$G$99,Table13[[#This Row],[Items Name]],Pasta!$C$14:$C$99) -> 0 | L107: =SUMIF(Dessert!$G$14:$G$40,Table13[[#This Row],[Items Name]],Dessert!$C$14:$C$40) -> 0 | M107: =Table1[[#This Row],[isWarehouse&Direct]] -> 0 | N107: =Table1[[#This Row],[isFinished]] -> 0
C108: =Table1[[#This Row],[Code]] -> 125026 | D108: =Table1[[#This Row],[Items Name]] -> creme laktevala | E108: =Table1[[#This Row],[Unit]] -> 07 KG | F108: =+Table13[[#This Row],[Souce]]+Table13[[#This Row],[Salad]]+Table13[[#This Row],[Sandwich]]+Table13[[#This Row],[Breacfast]]+Table13[[#This Row],[Pasta]]+Table13[[#This Row],[Dessert]] -> 0 | G108: =SUMIF(Souce!$G$14:$G$357,Table13[[#This Row],[Items Name]],Souce!$C$14:$C$357) -> 0 | H108: =SUMIF(Salad!$G$14:$G$768,Table13[[#This Row],[Items Name]],Salad!$C$14:$C$768) -> 0 | I108: =SUMIF(Sandwich!$G$14:$G$454,Table13[[#This Row],[Items Name]],Sandwich!$C$14:$C$454) -> 0 | J108: =SUMIF(Breakfast!$G$14:$G$164,Table13[[#This Row],[Items Name]],Breakfast!$C$14:$C$164) -> 0 | K108: =SUMIF(Pasta!$G$14:$G$99,Table13[[#This Row],[Items Name]],Pasta!$C$14:$C$99) -> 0 | L108: =SUMIF(Dessert!$G$14:$G$40,Table13[[#This Row],[Items Name]],Dessert!$C$14:$C$40) -> 0 | M108: =Table1[[#This Row],[isWarehouse&Direct]] -> 0 | N108: =Table1[[#This Row],[isFinished]] -> 0
C109: =Table1[[#This Row],[Code]] -> 125027 | D109: =Table1[[#This Row],[Items Name]] -> chees cream | E109: =Table1[[#This Row],[Unit]] -> 07 KG | F109: =+Table13[[#This Row],[Souce]]+Table13[[#This Row],[Salad]]+Table13[[#This Row],[Sandwich]]+Table13[[#This Row],[Breacfast]]+Table13[[#This Row],[Pasta]]+Table13[[#This Row],[Dessert]] -> 0 | G109: =SUMIF(Souce!$G$14:$G$357,Table13[[#This Row],[Items Name]],Souce!$C$14:$C$357) -> 0 | H109: =SUMIF(Salad!$G$14:$G$768,Table13[[#This Row],[Items Name]],Salad!$C$14:$C$768) -> 0 | I109: =SUMIF(Sandwich!$G$14:$G$454,Table13[[#This Row],[Items Name]],Sandwich!$C$14:$C$454) -> 0 | J109: =SUMIF(Breakfast!$G$14:$G$164,Table13[[#This Row],[Items Name]],Breakfast!$C$14:$C$164) -> 0 | K109: =SUMIF(Pasta!$G$14:$G$99,Table13[[#This Row],[Items Name]],Pasta!$C$14:$C$99) -> 0 | L109: =SUMIF(Dessert!$G$14:$G$40,Table13[[#This Row],[Items Name]],Dessert!$C$14:$C$40) -> 0 | M109: =Table1[[#This Row],[isWarehouse&Direct]] -> 0 | N109: =Table1[[#This Row],[isFinished]] -> 0
C110: =Table1[[#This Row],[Code]] -> 125030 | D110: =Table1[[#This Row],[Items Name]] -> chees mozeral banda | E110: =Table1[[#This Row],[Unit]] -> 07 KG | F110: =+Table13[[#This Row],[Souce]]+Table13[[#This Row],[Salad]]+Table13[[#This Row],[Sandwich]]+Table13[[#This Row],[Breacfast]]+Table13[[#This Row],[Pasta]]+Table13[[#This Row],[Dessert]] -> 0 | G110: =SUMIF(Souce!$G$14:$G$357,Table13[[#This Row],[Items Name]],Souce!$C$14:$C$357) -> 0 | H110: =SUMIF(Salad!$G$14:$G$768,Table13[[#This Row],[Items Name]],Salad!$C$14:$C$768) -> 0 | I110: =SUMIF(Sandwich!$G$14:$G$454,Table13[[#This Row],[Items Name]],Sandwich!$C$14:$C$454) -> 0 | J110: =SUMIF(Breakfast!$G$14:$G$164,Table13[[#This Row],[Items Name]],Breakfast!$C$14:$C$164) -> 0 | K110: =SUMIF(Pasta!$G$14:$G$99,Table13[[#This Row],[Items Name]],Pasta!$C$14:$C$99) -> 0 | L110: =SUMIF(Dessert!$G$14:$G$40,Table13[[#This Row],[Items Name]],Dessert!$C$14:$C$40) -> 0 | M110: =Table1[[#This Row],[isWarehouse&Direct]] -> 0 | N110: =Table1[[#This Row],[isFinished]] -> 0
C111: =Table1[[#This Row],[Code]] -> 125031 | D111: =Table1[[#This Row],[Items Name]] -> chees karish(3.5 KG) | E111: =Table1[[#This Row],[Unit]] -> 07 KG | F111: =+Table13[[#This Row],[Souce]]+Table13[[#This Row],[Salad]]+Table13[[#This Row],[Sandwich]]+Table13[[#This Row],[Breacfast]]+Table13[[#This Row],[Pasta]]+Table13[[#This Row],[Dessert]] -> 0 | G111: =SUMIF(Souce!$G$14:$G$357,Table13[[#This Row],[Items Name]],Souce!$C$14:$C$357) -> 0 | H111: =SUMIF(Salad!$G$14:$G$768,Table13[[#This Row],[Items Name]],Salad!$C$14:$C$768) -> 0 | I111: =SUMIF(Sandwich!$G$14:$G$454,Table13[[#This Row],[Items Name]],Sandwich!$C$14:$C$454) -> 0 | J111: =SUMIF(Breakfast!$G$14:$G$164,Table13[[#This Row],[Items Name]],Breakfast!$C$14:$C$164) -> 0 | K111: =SUMIF(Pasta!$G$14:$G$99,Table13[[#This Row],[Items Name]],Pasta!$C$14:$C$99) -> 0 | L111: =SUMIF(Dessert!$G$14:$G$40,Table13[[#This Row],[Items Name]],Dessert!$C$14:$C$40) -> 0 | M111: =Table1[[#This Row],[isWarehouse&Direct]] -> 0 | N111: =Table1[[#This Row],[isFinished]] -> 0
C112: =Table1[[#This Row],[Code]] -> 125032 | D112: =Table1[[#This Row],[Items Name]] -> creame chees | E112: =Table1[[#This Row],[Unit]] -> 09 Gallon | F112: =+Table13[[#This Row],[Souce]]+Table13[[#This Row],[Salad]]+Table13[[#This Row],[Sandwich]]+Table13[[#This Row],[Breacfast]]+Table13[[#This Row],[Pasta]]+Table13[[#This Row],[Dessert]] -> 0 | G112: =SUMIF(Souce!$G$14:$G$357,Table13[[#This Row],[Items Name]],Souce!$C$14:$C$357) -> 0 | H112: =SUMIF(Salad!$G$14:$G$768,Table13[[#This Row],[Items Name]],Salad!$C$14:$C$768) -> 0 | I112: =SUMIF(Sandwich!$G$14:$G$454,Table13[[#This Row],[Items Name]],Sandwich!$C$14:$C$454) -> 0 | J112: =SUMIF(Breakfast!$G$14:$G$164,Table13[[#This Row],[Items Name]],Breakfast!$C$14:$C$164) -> 0 | K112: =SUMIF(Pasta!$G$14:$G$99,Table13[[#This Row],[Items Name]],Pasta!$C$14:$C$99) -> 0 | L112: =SUMIF(Dessert!$G$14:$G$40,Table13[[#This Row],[Items Name]],Dessert!$C$14:$C$40) -> 0 | M112: =Table1[[#This Row],[isWarehouse&Direct]] -> 0 | N112: =Table1[[#This Row],[isFinished]] -> 0
C113: =Table1[[#This Row],[Code]] -> 125100 | D113: =Table1[[#This Row],[Items Name]] -> Cheese Mozyrela | E113: =Table1[[#This Row],[Unit]] -> 05 PKT | F113: =+Table13[[#This Row],[Souce]]+Table13[[#This Row],[Salad]]+Table13[[#This Row],[Sandwich]]+Table13[[#This Row],[Breacfast]]+Table13[[#This Row],[Pasta]]+Table13[[#This Row],[Dessert]] -> 0 | G113: =SUMIF(Souce!$G$14:$G$357,Table13[[#This Row],[Items Name]],Souce!$C$14:$C$357) -> 0 | H113: =SUMIF(Salad!$G$14:$G$768,Table13[[#This Row],[Items Name]],Salad!$C$14:$C$768) -> 0 | I113: =SUMIF(Sandwich!$G$14:$G$454,Table13[[#This Row],[Items Name]],Sandwich!$C$14:$C$454) -> 0 | J113: =SUMIF(Breakfast!$G$14:$G$164,Table13[[#This Row],[Items Name]],Breakfast!$C$14:$C$164) -> 0 | K113: =SUMIF(Pasta!$G$14:$G$99,Table13[[#This Row],[Items Name]],Pasta!$C$14:$C$99) -> 0 | L113: =SUMIF(Dessert!$G$14:$G$40,Table13[[#This Row],[Items Name]],Dessert!$C$14:$C$40) -> 0 | M113: =Table1[[#This Row],[isWarehouse&Direct]] -> 0 | N113: =Table1[[#This Row],[isFinished]] -> 0
C114: =Table1[[#This Row],[Code]] -> 125101 | D114: =Table1[[#This Row],[Items Name]] -> caramel sous gsf | E114: =Table1[[#This Row],[Unit]] -> 05 PKT | F114: =+Table13[[#This Row],[Souce]]+Table13[[#This Row],[Salad]]+Table13[[#This Row],[Sandwich]]+Table13[[#This Row],[Breacfast]]+Table13[[#This Row],[Pasta]]+Table13[[#This Row],[Dessert]] -> 0 | G114: =SUMIF(Souce!$G$14:$G$357,Table13[[#This Row],[Items Name]],Souce!$C$14:$C$357) -> 0 | H114: =SUMIF(Salad!$G$14:$G$768,Table13[[#This Row],[Items Name]],Salad!$C$14:$C$768) -> 0 | I114: =SUMIF(Sandwich!$G$14:$G$454,Table13[[#This Row],[Items Name]],Sandwich!$C$14:$C$454) -> 0 | J114: =SUMIF(Breakfast!$G$14:$G$164,Table13[[#This Row],[Items Name]],Breakfast!$C$14:$C$164) -> 0 | K114: =SUMIF(Pasta!$G$14:$G$99,Table13[[#This Row],[Items Name]],Pasta!$C$14:$C$99) -> 0 | L114: =SUMIF(Dessert!$G$14:$G$40,Table13[[#This Row],[Items Name]],Dessert!$C$14:$C$40) -> 0 | M114: =Table1[[#This Row],[isWarehouse&Direct]] -> 0 | N114: =Table1[[#This Row],[isFinished]] -> 0
C115: =Table1[[#This Row],[Code]] -> 125102 | D115: =Table1[[#This Row],[Items Name]] -> Yogurt labaneta | E115: =Table1[[#This Row],[Unit]] -> 07 KG | F115: =+Table13[[#This Row],[Souce]]+Table13[[#This Row],[Salad]]+Table13[[#This Row],[Sandwich]]+Table13[[#This Row],[Breacfast]]+Table13[[#This Row],[Pasta]]+Table13[[#This Row],[Dessert]] -> 0 | G115: =SUMIF(Souce!$G$14:$G$357,Table13[[#This Row],[Items Name]],Souce!$C$14:$C$357) -> 0 | H115: =SUMIF(Salad!$G$14:$G$768,Table13[[#This Row],[Items Name]],Salad!$C$14:$C$768) -> 0 | I115: =SUMIF(Sandwich!$G$14:$G$454,Table13[[#This Row],[Items Name]],Sandwich!$C$14:$C$454) -> 0 | J115: =SUMIF(Breakfast!$G$14:$G$164,Table13[[#This Row],[Items Name]],Breakfast!$C$14:$C$164) -> 0 | K115: =SUMIF(Pasta!$G$14:$G$99,Table13[[#This Row],[Items Name]],Pasta!$C$14:$C$99) -> 0 | L115: =SUMIF(Dessert!$G$14:$G$40,Table13[[#This Row],[Items Name]],Dessert!$C$14:$C$40) -> 0 | M115: =Table1[[#This Row],[isWarehouse&Direct]] -> 0 | N115: =Table1[[#This Row],[isFinished]] -> 0
C116: =Table1[[#This Row],[Code]] -> 125103 | D116: =Table1[[#This Row],[Items Name]] -> cream of labani | E116: =Table1[[#This Row],[Unit]] -> 04 Box | F116: =+Table13[[#This Row],[Souce]]+Table13[[#This Row],[Salad]]+Table13[[#This Row],[Sandwich]]+Table13[[#This Row],[Breacfast]]+Table13[[#This Row],[Pasta]]+Table13[[#This Row],[Dessert]] -> 0 | G116: =SUMIF(Souce!$G$14:$G$357,Table13[[#This Row],[Items Name]],Souce!$C$14:$C$357) -> 0 | H116: =SUMIF(Salad!$G$14:$G$768,Table13[[#This Row],[Items Name]],Salad!$C$14:$C$768) -> 0 | I116: =SUMIF(Sandwich!$G$14:$G$454,Table13[[#This Row],[Items Name]],Sandwich!$C$14:$C$454) -> 0 | J116: =SUMIF(Breakfast!$G$14:$G$164,Table13[[#This Row],[Items Name]],Breakfast!$C$14:$C$164) -> 0 | K116: =SUMIF(Pasta!$G$14:$G$99,Table13[[#This Row],[Items Name]],Pasta!$C$14:$C$99) -> 0 | L116: =SUMIF(Dessert!$G$14:$G$40,Table13[[#This Row],[Items Name]],Dessert!$C$14:$C$40) -> 0 | M116: =Table1[[#This Row],[isWarehouse&Direct]] -> 0 | N116: =Table1[[#This Row],[isFinished]] -> 0
C117: =Table1[[#This Row],[Code]] -> 125104 | D117: =Table1[[#This Row],[Items Name]] -> President whipped cream | E117: =Table1[[#This Row],[Unit]] -> 05 PKT | F117: =+Table13[[#This Row],[Souce]]+Table13[[#This Row],[Salad]]+Table13[[#This Row],[Sandwich]]+Table13[[#This Row],[Breacfast]]+Table13[[#This Row],[Pasta]]+Table13[[#This Row],[Dessert]] -> 0 | G117: =SUMIF(Souce!$G$14:$G$357,Table13[[#This Row],[Items Name]],Souce!$C$14:$C$357) -> 0 | H117: =SUMIF(Salad!$G$14:$G$768,Table13[[#This Row],[Items Name]],Salad!$C$14:$C$768) -> 0 | I117: =SUMIF(Sandwich!$G$14:$G$454,Table13[[#This Row],[Items Name]],Sandwich!$C$14:$C$454) -> 0 | J117: =SUMIF(Breakfast!$G$14:$G$164,Table13[[#This Row],[Items Name]],Breakfast!$C$14:$C$164) -> 0 | K117: =SUMIF(Pasta!$G$14:$G$99,Table13[[#This Row],[Items Name]],Pasta!$C$14:$C$99) -> 0 | L117: =SUMIF(Dessert!$G$14:$G$40,Table13[[#This Row],[Items Name]],Dessert!$C$14:$C$40) -> 0 | M117: =Table1[[#This Row],[isWarehouse&Direct]] -> 0 | N117: =Table1[[#This Row],[isFinished]] -> 0
C118: =Table1[[#This Row],[Code]] -> 125105 | D118: =Table1[[#This Row],[Items Name]] -> Cheese Haloumi | E118: =Table1[[#This Row],[Unit]] -> 07 KG | F118: =+Table13[[#This Row],[Souce]]+Table13[[#This Row],[Salad]]+Table13[[#This Row],[Sandwich]]+Table13[[#This Row],[Breacfast]]+Table13[[#This Row],[Pasta]]+Table13[[#This Row],[Dessert]] -> 0 | G118: =SUMIF(Souce!$G$14:$G$357,Table13[[#This Row],[Items Name]],Souce!$C$14:$C$357) -> 0 | H118: =SUMIF(Salad!$G$14:$G$768,Table13[[#This Row],[Items Name]],Salad!$C$14:$C$768) -> 0 | I118: =SUMIF(Sandwich!$G$14:$G$454,Table13[[#This Row],[Items Name]],Sandwich!$C$14:$C$454) -> 0 | J118: =SUMIF(Breakfast!$G$14:$G$164,Table13[[#This Row],[Items Name]],Breakfast!$C$14:$C$164) -> 0 | K118: =SUMIF(Pasta!$G$14:$G$99,Table13[[#This Row],[Items Name]],Pasta!$C$14:$C$99) -> 0 | L118: =SUMIF(Dessert!$G$14:$G$40,Table13[[#This Row],[Items Name]],Dessert!$C$14:$C$40) -> 0 | M118: =Table1[[#This Row],[isWarehouse&Direct]] -> 0 | N118: =Table1[[#This Row],[isFinished]] -> 0
C119: =Table1[[#This Row],[Code]] -> 125106 | D119: =Table1[[#This Row],[Items Name]] -> Whipping Cream | E119: =Table1[[#This Row],[Unit]] -> 01 Bottel | F119: =+Table13[[#This Row],[Souce]]+Table13[[#This Row],[Salad]]+Table13[[#This Row],[Sandwich]]+Table13[[#This Row],[Breacfast]]+Table13[[#This Row],[Pasta]]+Table13[[#This Row],[Dessert]] -> 0 | G119: =SUMIF(Souce!$G$14:$G$357,Table13[[#This Row],[Items Name]],Souce!$C$14:$C$357) -> 0 | H119: =SUMIF(Salad!$G$14:$G$768,Table13[[#This Row],[Items Name]],Salad!$C$14:$C$768) -> 0 | I119: =SUMIF(Sandwich!$G$14:$G$454,Table13[[#This Row],[Items Name]],Sandwich!$C$14:$C$454) -> 0 | J119: =SUMIF(Breakfast!$G$14:$G$164,Table13[[#This Row],[Items Name]],Breakfast!$C$14:$C$164) -> 0 | K119: =SUMIF(Pasta!$G$14:$G$99,Table13[[#This Row],[Items Name]],Pasta!$C$14:$C$99) -> 0 | L119: =SUMIF(Dessert!$G$14:$G$40,Table13[[#This Row],[Items Name]],Dessert!$C$14:$C$40) -> 0 | M119: =Table1[[#This Row],[isWarehouse&Direct]] -> 0 | N119: =Table1[[#This Row],[isFinished]] -> 0
C120: =Table1[[#This Row],[Code]] -> 125107 | D120: =Table1[[#This Row],[Items Name]] -> Cream of labani cook 1*12 | E120: =Table1[[#This Row],[Unit]] -> 01 Bottel | F120: =+Table13[[#This Row],[Souce]]+Table13[[#This Row],[Salad]]+Table13[[#This Row],[Sandwich]]+Table13[[#This Row],[Breacfast]]+Table13[[#This Row],[Pasta]]+Table13[[#This Row],[Dessert]] -> 0 | G120: =SUMIF(Souce!$G$14:$G$357,Table13[[#This Row],[Items Name]],Souce!$C$14:$C$357) -> 0 | H120: =SUMIF(Salad!$G$14:$G$768,Table13[[#This Row],[Items Name]],Salad!$C$14:$C$768) -> 0 | I120: =SUMIF(Sandwich!$G$14:$G$454,Table13[[#This Row],[Items Name]],Sandwich!$C$14:$C$454) -> 0 | J120: =SUMIF(Breakfast!$G$14:$G$164,Table13[[#This Row],[Items Name]],Breakfast!$C$14:$C$164) -> 0 | K120: =SUMIF(Pasta!$G$14:$G$99,Table13[[#This Row],[Items Name]],Pasta!$C$14:$C$99) -> 0 | L120: =SUMIF(Dessert!$G$14:$G$40,Table13[[#This Row],[Items Name]],Dessert!$C$14:$C$40) -> 0 | M120: =Table1[[#This Row],[isWarehouse&Direct]] -> 0 | N120: =Table1[[#This Row],[isFinished]] -> 0
C121: =Table1[[#This Row],[Code]] -> 125108 | D121: =Table1[[#This Row],[Items Name]] -> Beef Burger (10) | E121: =Table1[[#This Row],[Unit]] -> 04 Box 10 | F121: =+Table13[[#This Row],[Souce]]+Table13[[#This Row],[Salad]]+Table13[[#This Row],[Sandwich]]+Table13[[#This Row],[Breacfast]]+Table13[[#This Row],[Pasta]]+Table13[[#This Row],[Dessert]] -> 0 | G121: =SUMIF(Souce!$G$14:$G$357,Table13[[#This Row],[Items Name]],Souce!$C$14:$C$357) -> 0 | H121: =SUMIF(Salad!$G$14:$G$768,Table13[[#This Row],[Items Name]],Salad!$C$14:$C$768) -> 0 | I121: =SUMIF(Sandwich!$G$14:$G$454,Table13[[#This Row],[Items Name]],Sandwich!$C$14:$C$454) -> 0 | J121: =SUMIF(Breakfast!$G$14:$G$164,Table13[[#This Row],[Items Name]],Breakfast!$C$14:$C$164) -> 0 | K121: =SUMIF(Pasta!$G$14:$G$99,Table13[[#This Row],[Items Name]],Pasta!$C$14:$C$99) -> 0 | L121: =SUMIF(Dessert!$G$14:$G$40,Table13[[#This Row],[Items Name]],Dessert!$C$14:$C$40) -> 0 | M121: =Table1[[#This Row],[isWarehouse&Direct]] -> 0 | N121: =Table1[[#This Row],[isFinished]] -> 0
C122: =Table1[[#This Row],[Code]] -> 125109 | D122: =Table1[[#This Row],[Items Name]] -> grapes leave | E122: =Table1[[#This Row],[Unit]] -> 07 KG | F122: =+Table13[[#This Row],[Souce]]+Table13[[#This Row],[Salad]]+Table13[[#This Row],[Sandwich]]+Table13[[#This Row],[Breacfast]]+Table13[[#This Row],[Pasta]]+Table13[[#This Row],[Dessert]] -> 0 | G122: =SUMIF(Souce!$G$14:$G$357,Table13[[#This Row],[Items Name]],Souce!$C$14:$C$357) -> 0 | H122: =SUMIF(Salad!$G$14:$G$768,Table13[[#This Row],[Items Name]],Salad!$C$14:$C$768) -> 0 | I122: =SUMIF(Sandwich!$G$14:$G$454,Table13[[#This Row],[Items Name]],Sandwich!$C$14:$C$454) -> 0 | J122: =SUMIF(Breakfast!$G$14:$G$164,Table13[[#This Row],[Items Name]],Breakfast!$C$14:$C$164) -> 0 | K122: =SUMIF(Pasta!$G$14:$G$99,Table13[[#This Row],[Items Name]],Pasta!$C$14:$C$99) -> 0 | L122: =SUMIF(Dessert!$G$14:$G$40,Table13[[#This Row],[Items Name]],Dessert!$C$14:$C$40) -> 0 | M122: =Table1[[#This Row],[isWarehouse&Direct]] -> 0 | N122: =Table1[[#This Row],[isFinished]] -> 0
C123: =Table1[[#This Row],[Code]] -> 125110 | D123: =Table1[[#This Row],[Items Name]] -> Cheese Cheddar Slice | E123: =Table1[[#This Row],[Unit]] -> Peac | F123: =+Table13[[#This Row],[Souce]]+Table13[[#This Row],[Salad]]+Table13[[#This Row],[Sandwich]]+Table13[[#This Row],[Breacfast]]+Table13[[#This Row],[Pasta]]+Table13[[#This Row],[Dessert]] -> 0 | G123: =SUMIF(Souce!$G$14:$G$357,Table13[[#This Row],[Items Name]],Souce!$C$14:$C$357) -> 0 | H123: =SUMIF(Salad!$G$14:$G$768,Table13[[#This Row],[Items Name]],Salad!$C$14:$C$768) -> 0 | I123: =SUMIF(Sandwich!$G$14:$G$454,Table13[[#This Row],[Items Name]],Sandwich!$C$14:$C$454) -> 0 | J123: =SUMIF(Breakfast!$G$14:$G$164,Table13[[#This Row],[Items Name]],Breakfast!$C$14:$C$164) -> 0 | K123: =SUMIF(Pasta!$G$14:$G$99,Table13[[#This Row],[Items Name]],Pasta!$C$14:$C$99) -> 0 | L123: =SUMIF(Dessert!$G$14:$G$40,Table13[[#This Row],[Items Name]],Dessert!$C$14:$C$40) -> 0 | M123: =Table1[[#This Row],[isWarehouse&Direct]] -> 0 | N123: =Table1[[#This Row],[isFinished]] -> 0
C124: =Table1[[#This Row],[Code]] -> 125111 | D124: =Table1[[#This Row],[Items Name]] -> Chiken Burger | E124: =Table1[[#This Row],[Unit]] -> 04 Box 10 | F124: =+Table13[[#This Row],[Souce]]+Table13[[#This Row],[Salad]]+Table13[[#This Row],[Sandwich]]+Table13[[#This Row],[Breacfast]]+Table13[[#This Row],[Pasta]]+Table13[[#This Row],[Dessert]] -> 0 | G124: =SUMIF(Souce!$G$14:$G$357,Table13[[#This Row],[Items Name]],Souce!$C$14:$C$357) -> 0 | H124: =SUMIF(Salad!$G$14:$G$768,Table13[[#This Row],[Items Name]],Salad!$C$14:$C$768) -> 0 | I124: =SUMIF(Sandwich!$G$14:$G$454,Table13[[#This Row],[Items Name]],Sandwich!$C$14:$C$454) -> 0 | J124: =SUMIF(Breakfast!$G$14:$G$164,Table13[[#This Row],[Items Name]],Breakfast!$C$14:$C$164) -> 0 | K124: =SUMIF(Pasta!$G$14:$G$99,Table13[[#This Row],[Items Name]],Pasta!$C$14:$C$99) -> 0 | L124: =SUMIF(Dessert!$G$14:$G$40,Table13[[#This Row],[Items Name]],Dessert!$C$14:$C$40) -> 0 | M124: =Table1[[#This Row],[isWarehouse&Direct]] -> 0 | N124: =Table1[[#This Row],[isFinished]] -> 0
C125: =Table1[[#This Row],[Code]] -> 126001 | D125: =Table1[[#This Row],[Items Name]] -> SPICE CARNATION POWDER | E125: =Table1[[#This Row],[Unit]] -> 07 KG | F125: =+Table13[[#This Row],[Souce]]+Table13[[#This Row],[Salad]]+Table13[[#This Row],[Sandwich]]+Table13[[#This Row],[Breacfast]]+Table13[[#This Row],[Pasta]]+Table13[[#This Row],[Dessert]] -> 0 | G125: =SUMIF(Souce!$G$14:$G$357,Table13[[#This Row],[Items Name]],Souce!$C$14:$C$357) -> 0 | H125: =SUMIF(Salad!$G$14:$G$768,Table13[[#This Row],[Items Name]],Salad!$C$14:$C$768) -> 0 | I125: =SUMIF(Sandwich!$G$14:$G$454,Table13[[#This Row],[Items Name]],Sandwich!$C$14:$C$454) -> 0 | J125: =SUMIF(Breakfast!$G$14:$G$164,Table13[[#This Row],[Items Name]],Breakfast!$C$14:$C$164) -> 0 | K125: =SUMIF(Pasta!$G$14:$G$99,Table13[[#This Row],[Items Name]],Pasta!$C$14:$C$99) -> 0 | L125: =SUMIF(Dessert!$G$14:$G$40,Table13[[#This Row],[Items Name]],Dessert!$C$14:$C$40) -> 0 | M125: =Table1[[#This Row],[isWarehouse&Direct]] -> 0 | N125: =Table1[[#This Row],[isFinished]] -> 0
C126: =Table1[[#This Row],[Code]] -> 126002 | D126: =Table1[[#This Row],[Items Name]] -> Spices, Chilli red pepper Powder | E126: =Table1[[#This Row],[Unit]] -> 07 KG | F126: =+Table13[[#This Row],[Souce]]+Table13[[#This Row],[Salad]]+Table13[[#This Row],[Sandwich]]+Table13[[#This Row],[Breacfast]]+Table13[[#This Row],[Pasta]]+Table13[[#This Row],[Dessert]] -> 0 | G126: =SUMIF(Souce!$G$14:$G$357,Table13[[#This Row],[Items Name]],Souce!$C$14:$C$357) -> 0 | H126: =SUMIF(Salad!$G$14:$G$768,Table13[[#This Row],[Items Name]],Salad!$C$14:$C$768) -> 0 | I126: =SUMIF(Sandwich!$G$14:$G$454,Table13[[#This Row],[Items Name]],Sandwich!$C$14:$C$454) -> 0 | J126: =SUMIF(Breakfast!$G$14:$G$164,Table13[[#This Row],[Items Name]],Breakfast!$C$14:$C$164) -> 0 | K126: =SUMIF(Pasta!$G$14:$G$99,Table13[[#This Row],[Items Name]],Pasta!$C$14:$C$99) -> 0 | L126: =SUMIF(Dessert!$G$14:$G$40,Table13[[#This Row],[Items Name]],Dessert!$C$14:$C$40) -> 0 | M126: =Table1[[#This Row],[isWarehouse&Direct]] -> 0 | N126: =Table1[[#This Row],[isFinished]] -> 0
C127: =Table1[[#This Row],[Code]] -> 126003 | D127: =Table1[[#This Row],[Items Name]] -> Spices, Corriandar Powder | E127: =Table1[[#This Row],[Unit]] -> 07 KG | F127: =+Table13[[#This Row],[Souce]]+Table13[[#This Row],[Salad]]+Table13[[#This Row],[Sandwich]]+Table13[[#This Row],[Breacfast]]+Table13[[#This Row],[Pasta]]+Table13[[#This Row],[Dessert]] -> 0 | G127: =SUMIF(Souce!$G$14:$G$357,Table13[[#This Row],[Items Name]],Souce!$C$14:$C$357) -> 0 | H127: =SUMIF(Salad!$G$14:$G$768,Table13[[#This Row],[Items Name]],Salad!$C$14:$C$768) -> 0 | I127: =SUMIF(Sandwich!$G$14:$G$454,Table13[[#This Row],[Items Name]],Sandwich!$C$14:$C$454) -> 0 | J127: =SUMIF(Breakfast!$G$14:$G$164,Table13[[#This Row],[Items Name]],Breakfast!$C$14:$C$164) -> 0 | K127: =SUMIF(Pasta!$G$14:$G$99,Table13[[#This Row],[Items Name]],Pasta!$C$14:$C$99) -> 0 | L127: =SUMIF(Dessert!$G$14:$G$40,Table13[[#This Row],[Items Name]],Dessert!$C$14:$C$40) -> 0 | M127: =Table1[[#This Row],[isWarehouse&Direct]] -> 0 | N127: =Table1[[#This Row],[isFinished]] -> 0
C128: =Table1[[#This Row],[Code]] -> 126004 | D128: =Table1[[#This Row],[Items Name]] -> Spices, Cumin SEADS | E128: =Table1[[#This Row],[Unit]] -> 07 KG | F128: =+Table13[[#This Row],[Souce]]+Table13[[#This Row],[Salad]]+Table13[[#This Row],[Sandwich]]+Table13[[#This Row],[Breacfast]]+Table13[[#This Row],[Pasta]]+Table13[[#This Row],[Dessert]] -> 0 | G128: =SUMIF(Souce!$G$14:$G$357,Table13[[#This Row],[Items Name]],Souce!$C$14:$C$357) -> 0 | H128: =SUMIF(Salad!$G$14:$G$768,Table13[[#This Row],[Items Name]],Salad!$C$14:$C$768) -> 0 | I128: =SUMIF(Sandwich!$G$14:$G$454,Table13[[#This Row],[Items Name]],Sandwich!$C$14:$C$454) -> 0 | J128: =SUMIF(Breakfast!$G$14:$G$164,Table13[[#This Row],[Items Name]],Breakfast!$C$14:$C$164) -> 0 | K128: =SUMIF(Pasta!$G$14:$G$99,Table13[[#This Row],[Items Name]],Pasta!$C$14:$C$99) -> 0 | L128: =SUMIF(Dessert!$G$14:$G$40,Table13[[#This Row],[Items Name]],Dessert!$C$14:$C$40) -> 0 | M128: =Table1[[#This Row],[isWarehouse&Direct]] -> 0 | N128: =Table1[[#This Row],[isFinished]] -> 0
C129: =Table1[[#This Row],[Code]] -> 126005 | D129: =Table1[[#This Row],[Items Name]] -> Spices, Tumeric powder | E129: =Table1[[#This Row],[Unit]] -> 07 KG | F129: =+Table13[[#This Row],[Souce]]+Table13[[#This Row],[Salad]]+Table13[[#This Row],[Sandwich]]+Table13[[#This Row],[Breacfast]]+Table13[[#This Row],[Pasta]]+Table13[[#This Row],[Dessert]] -> 0 | G129: =SUMIF(Souce!$G$14:$G$357,Table13[[#This Row],[Items Name]],Souce!$C$14:$C$357) -> 0 | H129: =SUMIF(Salad!$G$14:$G$768,Table13[[#This Row],[Items Name]],Salad!$C$14:$C$768) -> 0 | I129: =SUMIF(Sandwich!$G$14:$G$454,Table13[[#This Row],[Items Name]],Sandwich!$C$14:$C$454) -> 0 | J129: =SUMIF(Breakfast!$G$14:$G$164,Table13[[#This Row],[Items Name]],Breakfast!$C$14:$C$164) -> 0 | K129: =SUMIF(Pasta!$G$14:$G$99,Table13[[#This Row],[Items Name]],Pasta!$C$14:$C$99) -> 0 | L129: =SUMIF(Dessert!$G$14:$G$40,Table13[[#This Row],[Items Name]],Dessert!$C$14:$C$40) -> 0 | M129: =Table1[[#This Row],[isWarehouse&Direct]] -> 0 | N129: =Table1[[#This Row],[isFinished]] -> 0
C130: =Table1[[#This Row],[Code]] -> 126006 | D130: =Table1[[#This Row],[Items Name]] -> Spices, Ginger Powder | E130: =Table1[[#This Row],[Unit]] -> 07 KG | F130: =+Table13[[#This Row],[Souce]]+Table13[[#This Row],[Salad]]+Table13[[#This Row],[Sandwich]]+Table13[[#This Row],[Breacfast]]+Table13[[#This Row],[Pasta]]+Table13[[#This Row],[Dessert]] -> 0 | G130: =SUMIF(Souce!$G$14:$G$357,Table13[[#This Row],[Items Name]],Souce!$C$14:$C$357) -> 0 | H130: =SUMIF(Salad!$G$14:$G$768,Table13[[#This Row],[Items Name]],Salad!$C$14:$C$768) -> 0 | I130: =SUMIF(Sandwich!$G$14:$G$454,Table13[[#This Row],[Items Name]],Sandwich!$C$14:$C$454) -> 0 | J130: =SUMIF(Breakfast!$G$14:$G$164,Table13[[#This Row],[Items Name]],Breakfast!$C$14:$C$164) -> 0 | K130: =SUMIF(Pasta!$G$14:$G$99,Table13[[#This Row],[Items Name]],Pasta!$C$14:$C$99) -> 0 | L130: =SUMIF(Dessert!$G$14:$G$40,Table13[[#This Row],[Items Name]],Dessert!$C$14:$C$40) -> 0 | M130: =Table1[[#This Row],[isWarehouse&Direct]] -> 0 | N130: =Table1[[#This Row],[isFinished]] -> 0
C131: =Table1[[#This Row],[Code]] -> 126007 | D131: =Table1[[#This Row],[Items Name]] -> Spices, habet el baraka Seeds | E131: =Table1[[#This Row],[Unit]] -> 07 KG | F131: =+Table13[[#This Row],[Souce]]+Table13[[#This Row],[Salad]]+Table13[[#This Row],[Sandwich]]+Table13[[#This Row],[Breacfast]]+Table13[[#This Row],[Pasta]]+Table13[[#This Row],[Dessert]] -> 0 | G131: =SUMIF(Souce!$G$14:$G$357,Table13[[#This Row],[Items Name]],Souce!$C$14:$C$357) -> 0 | H131: =SUMIF(Salad!$G$14:$G$768,Table13[[#This Row],[Items Name]],Salad!$C$14:$C$768) -> 0 | I131: =SUMIF(Sandwich!$G$14:$G$454,Table13[[#This Row],[Items Name]],Sandwich!$C$14:$C$454) -> 0 | J131: =SUMIF(Breakfast!$G$14:$G$164,Table13[[#This Row],[Items Name]],Breakfast!$C$14:$C$164) -> 0 | K131: =SUMIF(Pasta!$G$14:$G$99,Table13[[#This Row],[Items Name]],Pasta!$C$14:$C$99) -> 0 | L131: =SUMIF(Dessert!$G$14:$G$40,Table13[[#This Row],[Items Name]],Dessert!$C$14:$C$40) -> 0 | M131: =Table1[[#This Row],[isWarehouse&Direct]] -> 0 | N131: =Table1[[#This Row],[isFinished]] -> 0
C132: =Table1[[#This Row],[Code]] -> 126008 | D132: =Table1[[#This Row],[Items Name]] -> Spices, Nut Meg powder | E132: =Table1[[#This Row],[Unit]] -> 07 KG | F132: =+Table13[[#This Row],[Souce]]+Table13[[#This Row],[Salad]]+Table13[[#This Row],[Sandwich]]+Table13[[#This Row],[Breacfast]]+Table13[[#This Row],[Pasta]]+Table13[[#This Row],[Dessert]] -> 0 | G132: =SUMIF(Souce!$G$14:$G$357,Table13[[#This Row],[Items Name]],Souce!$C$14:$C$357) -> 0 | H132: =SUMIF(Salad!$G$14:$G$768,Table13[[#This Row],[Items Name]],Salad!$C$14:$C$768) -> 0 | I132: =SUMIF(Sandwich!$G$14:$G$454,Table13[[#This Row],[Items Name]],Sandwich!$C$14:$C$454) -> 0 | J132: =SUMIF(Breakfast!$G$14:$G$164,Table13[[#This Row],[Items Name]],Breakfast!$C$14:$C$164) -> 0 | K132: =SUMIF(Pasta!$G$14:$G$99,Table13[[#This Row],[Items Name]],Pasta!$C$14:$C$99) -> 0 | L132: =SUMIF(Dessert!$G$14:$G$40,Table13[[#This Row],[Items Name]],Dessert!$C$14:$C$40) -> 0 | M132: =Table1[[#This Row],[isWarehouse&Direct]] -> 0 | N132: =Table1[[#This Row],[isFinished]] -> 0
C133: =Table1[[#This Row],[Code]] -> 126009 | D133: =Table1[[#This Row],[Items Name]] -> Herbs Dry, Oregano dried | E133: =Table1[[#This Row],[Unit]] -> 07 KG | F133: =+Table13[[#This Row],[Souce]]+Table13[[#This Row],[Salad]]+Table13[[#This Row],[Sandwich]]+Table13[[#This Row],[Breacfast]]+Table13[[#This Row],[Pasta]]+Table13[[#This Row],[Dessert]] -> 0 | G133: =SUMIF(Souce!$G$14:$G$357,Table13[[#This Row],[Items Name]],Souce!$C$14:$C$357) -> 0 | H133: =SUMIF(Salad!$G$14:$G$768,Table13[[#This Row],[Items Name]],Salad!$C$14:$C$768) -> 0 | I133: =SUMIF(Sandwich!$G$14:$G$454,Table13[[#This Row],[Items Name]],Sandwich!$C$14:$C$454) -> 0 | J133: =SUMIF(Breakfast!$G$14:$G$164,Table13[[#This Row],[Items Name]],Breakfast!$C$14:$C$164) -> 0 | K133: =SUMIF(Pasta!$G$14:$G$99,Table13[[#This Row],[Items Name]],Pasta!$C$14:$C$99) -> 0 | L133: =SUMIF(Dessert!$G$14:$G$40,Table13[[#This Row],[Items Name]],Dessert!$C$14:$C$40) -> 0 | M133: =Table1[[#This Row],[isWarehouse&Direct]] -> 0 | N133: =Table1[[#This Row],[isFinished]] -> 0
C134: =Table1[[#This Row],[Code]] -> 126010 | D134: =Table1[[#This Row],[Items Name]] -> Herbs, Oregano powder | E134: =Table1[[#This Row],[Unit]] -> 07 KG | F134: =+Table13[[#This Row],[Souce]]+Table13[[#This Row],[Salad]]+Table13[[#This Row],[Sandwich]]+Table13[[#This Row],[Breacfast]]+Table13[[#This Row],[Pasta]]+Table13[[#This Row],[Dessert]] -> 0 | G134: =SUMIF(Souce!$G$14:$G$357,Table13[[#This Row],[Items Name]],Souce!$C$14:$C$357) -> 0 | H134: =SUMIF(Salad!$G$14:$G$768,Table13[[#This Row],[Items Name]],Salad!$C$14:$C$768) -> 0 | I134: =SUMIF(Sandwich!$G$14:$G$454,Table13[[#This Row],[Items Name]],Sandwich!$C$14:$C$454) -> 0 | J134: =SUMIF(Breakfast!$G$14:$G$164,Table13[[#This Row],[Items Name]],Breakfast!$C$14:$C$164) -> 0 | K134: =SUMIF(Pasta!$G$14:$G$99,Table13[[#This Row],[Items Name]],Pasta!$C$14:$C$99) -> 0 | L134: =SUMIF(Dessert!$G$14:$G$40,Table13[[#This Row],[Items Name]],Dessert!$C$14:$C$40) -> 0 | M134: =Table1[[#This Row],[isWarehouse&Direct]] -> 0 | N134: =Table1[[#This Row],[isFinished]] -> 0
C135: =Table1[[#This Row],[Code]] -> 126011 | D135: =Table1[[#This Row],[Items Name]] -> Spices, Paprika | E135: =Table1[[#This Row],[Unit]] -> 07 KG | F135: =+Table13[[#This Row],[Souce]]+Table13[[#This Row],[Salad]]+Table13[[#This Row],[Sandwich]]+Table13[[#This Row],[Breacfast]]+Table13[[#This Row],[Pasta]]+Table13[[#This Row],[Dessert]] -> 0 | G135: =SUMIF(Souce!$G$14:$G$357,Table13[[#This Row],[Items Name]],Souce!$C$14:$C$357) -> 0 | H135: =SUMIF(Salad!$G$14:$G$768,Table13[[#This Row],[Items Name]],Salad!$C$14:$C$768) -> 0 | I135: =SUMIF(Sandwich!$G$14:$G$454,Table13[[#This Row],[Items Name]],Sandwich!$C$14:$C$454) -> 0 | J135: =SUMIF(Breakfast!$G$14:$G$164,Table13[[#This Row],[Items Name]],Breakfast!$C$14:$C$164) -> 0 | K135: =SUMIF(Pasta!$G$14:$G$99,Table13[[#This Row],[Items Name]],Pasta!$C$14:$C$99) -> 0 | L135: =SUMIF(Dessert!$G$14:$G$40,Table13[[#This Row],[Items Name]],Dessert!$C$14:$C$40) -> 0 | M135: =Table1[[#This Row],[isWarehouse&Direct]] -> 0 | N135: =Table1[[#This Row],[isFinished]] -> 0
C136: =Table1[[#This Row],[Code]] -> 126012 | D136: =Table1[[#This Row],[Items Name]] -> Spices, Black pepper powder | E136: =Table1[[#This Row],[Unit]] -> 07 KG | F136: =+Table13[[#This Row],[Souce]]+Table13[[#This Row],[Salad]]+Table13[[#This Row],[Sandwich]]+Table13[[#This Row],[Breacfast]]+Table13[[#This Row],[Pasta]]+Table13[[#This Row],[Dessert]] -> 0 | G136: =SUMIF(Souce!$G$14:$G$357,Table13[[#This Row],[Items Name]],Souce!$C$14:$C$357) -> 0 | H136: =SUMIF(Salad!$G$14:$G$768,Table13[[#This Row],[Items Name]],Salad!$C$14:$C$768) -> 0 | I136: =SUMIF(Sandwich!$G$14:$G$454,Table13[[#This Row],[Items Name]],Sandwich!$C$14:$C$454) -> 0 | J136: =SUMIF(Breakfast!$G$14:$G$164,Table13[[#This Row],[Items Name]],Breakfast!$C$14:$C$164) -> 0 | K136: =SUMIF(Pasta!$G$14:$G$99,Table13[[#This Row],[Items Name]],Pasta!$C$14:$C$99) -> 0 | L136: =SUMIF(Dessert!$G$14:$G$40,Table13[[#This Row],[Items Name]],Dessert!$C$14:$C$40) -> 0 | M136: =Table1[[#This Row],[isWarehouse&Direct]] -> 0 | N136: =Table1[[#This Row],[isFinished]] -> 0
C137: =Table1[[#This Row],[Code]] -> 126013 | D137: =Table1[[#This Row],[Items Name]] -> Pepper, portionpack | E137: =Table1[[#This Row],[Unit]] -> 07 KG | F137: =+Table13[[#This Row],[Souce]]+Table13[[#This Row],[Salad]]+Table13[[#This Row],[Sandwich]]+Table13[[#This Row],[Breacfast]]+Table13[[#This Row],[Pasta]]+Table13[[#This Row],[Dessert]] -> 0 | G137: =SUMIF(Souce!$G$14:$G$357,Table13[[#This Row],[Items Name]],Souce!$C$14:$C$357) -> 0 | H137: =SUMIF(Salad!$G$14:$G$768,Table13[[#This Row],[Items Name]],Salad!$C$14:$C$768) -> 0 | I137: =SUMIF(Sandwich!$G$14:$G$454,Table13[[#This Row],[Items Name]],Sandwich!$C$14:$C$454) -> 0 | J137: =SUMIF(Breakfast!$G$14:$G$164,Table13[[#This Row],[Items Name]],Breakfast!$C$14:$C$164) -> 0 | K137: =SUMIF(Pasta!$G$14:$G$99,Table13[[#This Row],[Items Name]],Pasta!$C$14:$C$99) -> 0 | L137: =SUMIF(Dessert!$G$14:$G$40,Table13[[#This Row],[Items Name]],Dessert!$C$14:$C$40) -> 0 | M137: =Table1[[#This Row],[isWarehouse&Direct]] -> 0 | N137: =Table1[[#This Row],[isFinished]] -> 0
C138: =Table1[[#This Row],[Code]] -> 126014 | D138: =Table1[[#This Row],[Items Name]] -> Spices, White pepper powder | E138: =Table1[[#This Row],[Unit]] -> 07 KG | F138: =+Table13[[#This Row],[Souce]]+Table13[[#This Row],[Salad]]+Table13[[#This Row],[Sandwich]]+Table13[[#This Row],[Breacfast]]+Table13[[#This Row],[Pasta]]+Table13[[#This Row],[Dessert]] -> 0 | G138: =SUMIF(Souce!$G$14:$G$357,Table13[[#This Row],[Items Name]],Souce!$C$14:$C$357) -> 0 | H138: =SUMIF(Salad!$G$14:$G$768,Table13[[#This Row],[Items Name]],Salad!$C$14:$C$768) -> 0 | I138: =SUMIF(Sandwich!$G$14:$G$454,Table13[[#This Row],[Items Name]],Sandwich!$C$14:$C$454) -> 0 | J138: =SUMIF(Breakfast!$G$14:$G$164,Table13[[#This Row],[Items Name]],Breakfast!$C$14:$C$164) -> 0 | K138: =SUMIF(Pasta!$G$14:$G$99,Table13[[#This Row],[Items Name]],Pasta!$C$14:$C$99) -> 0 | L138: =SUMIF(Dessert!$G$14:$G$40,Table13[[#This Row],[Items Name]],Dessert!$C$14:$C$40) -> 0 | M138: =Table1[[#This Row],[isWarehouse&Direct]] -> 0 | N138: =Table1[[#This Row],[isFinished]] -> 0
C139: =Table1[[#This Row],[Code]] -> 126015 | D139: =Table1[[#This Row],[Items Name]] -> Pepper, white | E139: =Table1[[#This Row],[Unit]] -> 07 KG | F139: =+Table13[[#This Row],[Souce]]+Table13[[#This Row],[Salad]]+Table13[[#This Row],[Sandwich]]+Table13[[#This Row],[Breacfast]]+Table13[[#This Row],[Pasta]]+Table13[[#This Row],[Dessert]] -> 0 | G139: =SUMIF(Souce!$G$14:$G$357,Table13[[#This Row],[Items Name]],Souce!$C$14:$C$357) -> 0 | H139: =SUMIF(Salad!$G$14:$G$768,Table13[[#This Row],[Items Name]],Salad!$C$14:$C$768) -> 0 | I139: =SUMIF(Sandwich!$G$14:$G$454,Table13[[#This Row],[Items Name]],Sandwich!$C$14:$C$454) -> 0 | J139: =SUMIF(Breakfast!$G$14:$G$164,Table13[[#This Row],[Items Name]],Breakfast!$C$14:$C$164) -> 0 | K139: =SUMIF(Pasta!$G$14:$G$99,Table13[[#This Row],[Items Name]],Pasta!$C$14:$C$99) -> 0 | L139: =SUMIF(Dessert!$G$14:$G$40,Table13[[#This Row],[Items Name]],Dessert!$C$14:$C$40) -> 0 | M139: =Table1[[#This Row],[isWarehouse&Direct]] -> 0 | N139: =Table1[[#This Row],[isFinished]] -> 0
C140: =Table1[[#This Row],[Code]] -> 126016 | D140: =Table1[[#This Row],[Items Name]] -> Spices, Cloves Seeds | E140: =Table1[[#This Row],[Unit]] -> 07 KG | F140: =+Table13[[#This Row],[Souce]]+Table13[[#This Row],[Salad]]+Table13[[#This Row],[Sandwich]]+Table13[[#This Row],[Breacfast]]+Table13[[#This Row],[Pasta]]+Table13[[#This Row],[Dessert]] -> 0 | G140: =SUMIF(Souce!$G$14:$G$357,Table13[[#This Row],[Items Name]],Souce!$C$14:$C$357) -> 0 | H140: =SUMIF(Salad!$G$14:$G$768,Table13[[#This Row],[Items Name]],Salad!$C$14:$C$768) -> 0 | I140: =SUMIF(Sandwich!$G$14:$G$454,Table13[[#This Row],[Items Name]],Sandwich!$C$14:$C$454) -> 0 | J140: =SUMIF(Breakfast!$G$14:$G$164,Table13[[#This Row],[Items Name]],Breakfast!$C$14:$C$164) -> 0 | K140: =SUMIF(Pasta!$G$14:$G$99,Table13[[#This Row],[Items Name]],Pasta!$C$14:$C$99) -> 0 | L140: =SUMIF(Dessert!$G$14:$G$40,Table13[[#This Row],[Items Name]],Dessert!$C$14:$C$40) -> 0 | M140: =Table1[[#This Row],[isWarehouse&Direct]] -> 0 | N140: =Table1[[#This Row],[isFinished]] -> 0
C141: =Table1[[#This Row],[Code]] -> 126017 | D141: =Table1[[#This Row],[Items Name]] -> Spices, mixed ( boharat) | E141: =Table1[[#This Row],[Unit]] -> 07 KG | F141: =+Table13[[#This Row],[Souce]]+Table13[[#This Row],[Salad]]+Table13[[#This Row],[Sandwich]]+Table13[[#This Row],[Breacfast]]+Table13[[#This Row],[Pasta]]+Table13[[#This Row],[Dessert]] -> 0 | G141: =SUMIF(Souce!$G$14:$G$357,Table13[[#This Row],[Items Name]],Souce!$C$14:$C$357) -> 0 | H141: =SUMIF(Salad!$G$14:$G$768,Table13[[#This Row],[Items Name]],Salad!$C$14:$C$768) -> 0 | I141: =SUMIF(Sandwich!$G$14:$G$454,Table13[[#This Row],[Items Name]],Sandwich!$C$14:$C$454) -> 0 | J141: =SUMIF(Breakfast!$G$14:$G$164,Table13[[#This Row],[Items Name]],Breakfast!$C$14:$C$164) -> 0 | K141: =SUMIF(Pasta!$G$14:$G$99,Table13[[#This Row],[Items Name]],Pasta!$C$14:$C$99) -> 0 | L141: =SUMIF(Dessert!$G$14:$G$40,Table13[[#This Row],[Items Name]],Dessert!$C$14:$C$40) -> 0 | M141: =Table1[[#This Row],[isWarehouse&Direct]] -> 0 | N141: =Table1[[#This Row],[isFinished]] -> 0
C142: =Table1[[#This Row],[Code]] -> 126018 | D142: =Table1[[#This Row],[Items Name]] -> Satard | E142: =Table1[[#This Row],[Unit]] -> 05 PKT | F142: =+Table13[[#This Row],[Souce]]+Table13[[#This Row],[Salad]]+Table13[[#This Row],[Sandwich]]+Table13[[#This Row],[Breacfast]]+Table13[[#This Row],[Pasta]]+Table13[[#This Row],[Dessert]] -> 0 | G142: =SUMIF(Souce!$G$14:$G$357,Table13[[#This Row],[Items Name]],Souce!$C$14:$C$357) -> 0 | H142: =SUMIF(Salad!$G$14:$G$768,Table13[[#This Row],[Items Name]],Salad!$C$14:$C$768) -> 0 | I142: =SUMIF(Sandwich!$G$14:$G$454,Table13[[#This Row],[Items Name]],Sandwich!$C$14:$C$454) -> 0 | J142: =SUMIF(Breakfast!$G$14:$G$164,Table13[[#This Row],[Items Name]],Breakfast!$C$14:$C$164) -> 0 | K142: =SUMIF(Pasta!$G$14:$G$99,Table13[[#This Row],[Items Name]],Pasta!$C$14:$C$99) -> 0 | L142: =SUMIF(Dessert!$G$14:$G$40,Table13[[#This Row],[Items Name]],Dessert!$C$14:$C$40) -> 0 | M142: =Table1[[#This Row],[isWarehouse&Direct]] -> 0 | N142: =Table1[[#This Row],[isFinished]] -> 0
C143: =Table1[[#This Row],[Code]] -> 126019 | D143: =Table1[[#This Row],[Items Name]] -> Salt Cooks soft for food | E143: =Table1[[#This Row],[Unit]] -> 07 KG | F143: =+Table13[[#This Row],[Souce]]+Table13[[#This Row],[Salad]]+Table13[[#This Row],[Sandwich]]+Table13[[#This Row],[Breacfast]]+Table13[[#This Row],[Pasta]]+Table13[[#This Row],[Dessert]] -> 0 | G143: =SUMIF(Souce!$G$14:$G$357,Table13[[#This Row],[Items Name]],Souce!$C$14:$C$357) -> 0 | H143: =SUMIF(Salad!$G$14:$G$768,Table13[[#This Row],[Items Name]],Salad!$C$14:$C$768) -> 0 | I143: =SUMIF(Sandwich!$G$14:$G$454,Table13[[#This Row],[Items Name]],Sandwich!$C$14:$C$454) -> 0 | J143: =SUMIF(Breakfast!$G$14:$G$164,Table13[[#This Row],[Items Name]],Breakfast!$C$14:$C$164) -> 0 | K143: =SUMIF(Pasta!$G$14:$G$99,Table13[[#This Row],[Items Name]],Pasta!$C$14:$C$99) -> 0 | L143: =SUMIF(Dessert!$G$14:$G$40,Table13[[#This Row],[Items Name]],Dessert!$C$14:$C$40) -> 0 | M143: =Table1[[#This Row],[isWarehouse&Direct]] -> 0 | N143: =Table1[[#This Row],[isFinished]] -> 0
C144: =Table1[[#This Row],[Code]] -> 126020 | D144: =Table1[[#This Row],[Items Name]] -> Spices, Cloves powder | E144: =Table1[[#This Row],[Unit]] -> 07 KG | F144: =+Table13[[#This Row],[Souce]]+Table13[[#This Row],[Salad]]+Table13[[#This Row],[Sandwich]]+Table13[[#This Row],[Breacfast]]+Table13[[#This Row],[Pasta]]+Table13[[#This Row],[Dessert]] -> 0 | G144: =SUMIF(Souce!$G$14:$G$357,Table13[[#This Row],[Items Name]],Souce!$C$14:$C$357) -> 0 | H144: =SUMIF(Salad!$G$14:$G$768,Table13[[#This Row],[Items Name]],Salad!$C$14:$C$768) -> 0 | I144: =SUMIF(Sandwich!$G$14:$G$454,Table13[[#This Row],[Items Name]],Sandwich!$C$14:$C$454) -> 0 | J144: =SUMIF(Breakfast!$G$14:$G$164,Table13[[#This Row],[Items Name]],Breakfast!$C$14:$C$164) -> 0 | K144: =SUMIF(Pasta!$G$14:$G$99,Table13[[#This Row],[Items Name]],Pasta!$C$14:$C$99) -> 0 | L144: =SUMIF(Dessert!$G$14:$G$40,Table13[[#This Row],[Items Name]],Dessert!$C$14:$C$40) -> 0 | M144: =Table1[[#This Row],[isWarehouse&Direct]] -> 0 | N144: =Table1[[#This Row],[isFinished]] -> 0
C145: =Table1[[#This Row],[Code]] -> 126021 | D145: =Table1[[#This Row],[Items Name]] -> Spices, seasoning mix grilled | E145: =Table1[[#This Row],[Unit]] -> 07 KG | F145: =+Table13[[#This Row],[Souce]]+Table13[[#This Row],[Salad]]+Table13[[#This Row],[Sandwich]]+Table13[[#This Row],[Breacfast]]+Table13[[#This Row],[Pasta]]+Table13[[#This Row],[Dessert]] -> 0 | G145: =SUMIF(Souce!$G$14:$G$357,Table13[[#This Row],[Items Name]],Souce!$C$14:$C$357) -> 0 | H145: =SUMIF(Salad!$G$14:$G$768,Table13[[#This Row],[Items Name]],Salad!$C$14:$C$768) -> 0 | I145: =SUMIF(Sandwich!$G$14:$G$454,Table13[[#This Row],[Items Name]],Sandwich!$C$14:$C$454) -> 0 | J145: =SUMIF(Breakfast!$G$14:$G$164,Table13[[#This Row],[Items Name]],Breakfast!$C$14:$C$164) -> 0 | K145: =SUMIF(Pasta!$G$14:$G$99,Table13[[#This Row],[Items Name]],Pasta!$C$14:$C$99) -> 0 | L145: =SUMIF(Dessert!$G$14:$G$40,Table13[[#This Row],[Items Name]],Dessert!$C$14:$C$40) -> 0 | M145: =Table1[[#This Row],[isWarehouse&Direct]] -> 0 | N145: =Table1[[#This Row],[isFinished]] -> 0
C146: =Table1[[#This Row],[Code]] -> 126022 | D146: =Table1[[#This Row],[Items Name]] -> CINAMOUN POWDER | E146: =Table1[[#This Row],[Unit]] -> 07 KG | F146: =+Table13[[#This Row],[Souce]]+Table13[[#This Row],[Salad]]+Table13[[#This Row],[Sandwich]]+Table13[[#This Row],[Breacfast]]+Table13[[#This Row],[Pasta]]+Table13[[#This Row],[Dessert]] -> 0 | G146: =SUMIF(Souce!$G$14:$G$357,Table13[[#This Row],[Items Name]],Souce!$C$14:$C$357) -> 0 | H146: =SUMIF(Salad!$G$14:$G$768,Table13[[#This Row],[Items Name]],Salad!$C$14:$C$768) -> 0 | I146: =SUMIF(Sandwich!$G$14:$G$454,Table13[[#This Row],[Items Name]],Sandwich!$C$14:$C$454) -> 0 | J146: =SUMIF(Breakfast!$G$14:$G$164,Table13[[#This Row],[Items Name]],Breakfast!$C$14:$C$164) -> 0 | K146: =SUMIF(Pasta!$G$14:$G$99,Table13[[#This Row],[Items Name]],Pasta!$C$14:$C$99) -> 0 | L146: =SUMIF(Dessert!$G$14:$G$40,Table13[[#This Row],[Items Name]],Dessert!$C$14:$C$40) -> 0 | M146: =Table1[[#This Row],[isWarehouse&Direct]] -> 0 | N146: =Table1[[#This Row],[isFinished]] -> 0
C147: =Table1[[#This Row],[Code]] -> 126024 | D147: =Table1[[#This Row],[Items Name]] -> lowra paper | E147: =Table1[[#This Row],[Unit]] -> 07 KG | F147: =+Table13[[#This Row],[Souce]]+Table13[[#This Row],[Salad]]+Table13[[#This Row],[Sandwich]]+Table13[[#This Row],[Breacfast]]+Table13[[#This Row],[Pasta]]+Table13[[#This Row],[Dessert]] -> 0 | G147: =SUMIF(Souce!$G$14:$G$357,Table13[[#This Row],[Items Name]],Souce!$C$14:$C$357) -> 0 | H147: =SUMIF(Salad!$G$14:$G$768,Table13[[#This Row],[Items Name]],Salad!$C$14:$C$768) -> 0 | I147: =SUMIF(Sandwich!$G$14:$G$454,Table13[[#This Row],[Items Name]],Sandwich!$C$14:$C$454) -> 0 | J147: =SUMIF(Breakfast!$G$14:$G$164,Table13[[#This Row],[Items Name]],Breakfast!$C$14:$C$164) -> 0 | K147: =SUMIF(Pasta!$G$14:$G$99,Table13[[#This Row],[Items Name]],Pasta!$C$14:$C$99) -> 0 | L147: =SUMIF(Dessert!$G$14:$G$40,Table13[[#This Row],[Items Name]],Dessert!$C$14:$C$40) -> 0 | M147: =Table1[[#This Row],[isWarehouse&Direct]] -> 0 | N147: =Table1[[#This Row],[isFinished]] -> 0
C148: =Table1[[#This Row],[Code]] -> 126025 | D148: =Table1[[#This Row],[Items Name]] -> habahan | E148: =Table1[[#This Row],[Unit]] -> 07 KG | F148: =+Table13[[#This Row],[Souce]]+Table13[[#This Row],[Salad]]+Table13[[#This Row],[Sandwich]]+Table13[[#This Row],[Breacfast]]+Table13[[#This Row],[Pasta]]+Table13[[#This Row],[Dessert]] -> 0 | G148: =SUMIF(Souce!$G$14:$G$357,Table13[[#This Row],[Items Name]],Souce!$C$14:$C$357) -> 0 | H148: =SUMIF(Salad!$G$14:$G$768,Table13[[#This Row],[Items Name]],Salad!$C$14:$C$768) -> 0 | I148: =SUMIF(Sandwich!$G$14:$G$454,Table13[[#This Row],[Items Name]],Sandwich!$C$14:$C$454) -> 0 | J148: =SUMIF(Breakfast!$G$14:$G$164,Table13[[#This Row],[Items Name]],Breakfast!$C$14:$C$164) -> 0 | K148: =SUMIF(Pasta!$G$14:$G$99,Table13[[#This Row],[Items Name]],Pasta!$C$14:$C$99) -> 0 | L148: =SUMIF(Dessert!$G$14:$G$40,Table13[[#This Row],[Items Name]],Dessert!$C$14:$C$40) -> 0 | M148: =Table1[[#This Row],[isWarehouse&Direct]] -> 0 | N148: =Table1[[#This Row],[isFinished]] -> 0
C149: =Table1[[#This Row],[Code]] -> 126026 | D149: =Table1[[#This Row],[Items Name]] -> pepper hot | E149: =Table1[[#This Row],[Unit]] -> 07 KG | F149: =+Table13[[#This Row],[Souce]]+Table13[[#This Row],[Salad]]+Table13[[#This Row],[Sandwich]]+Table13[[#This Row],[Breacfast]]+Table13[[#This Row],[Pasta]]+Table13[[#This Row],[Dessert]] -> 0 | G149: =SUMIF(Souce!$G$14:$G$357,Table13[[#This Row],[Items Name]],Souce!$C$14:$C$357) -> 0 | H149: =SUMIF(Salad!$G$14:$G$768,Table13[[#This Row],[Items Name]],Salad!$C$14:$C$768) -> 0 | I149: =SUMIF(Sandwich!$G$14:$G$454,Table13[[#This Row],[Items Name]],Sandwich!$C$14:$C$454) -> 0 | J149: =SUMIF(Breakfast!$G$14:$G$164,Table13[[#This Row],[Items Name]],Breakfast!$C$14:$C$164) -> 0 | K149: =SUMIF(Pasta!$G$14:$G$99,Table13[[#This Row],[Items Name]],Pasta!$C$14:$C$99) -> 0 | L149: =SUMIF(Dessert!$G$14:$G$40,Table13[[#This Row],[Items Name]],Dessert!$C$14:$C$40) -> 0 | M149: =Table1[[#This Row],[isWarehouse&Direct]] -> 0 | N149: =Table1[[#This Row],[isFinished]] -> 0
C150: =Table1[[#This Row],[Code]] -> 126031 | D150: =Table1[[#This Row],[Items Name]] -> Baksmt | E150: =Table1[[#This Row],[Unit]] -> 07 KG | F150: =+Table13[[#This Row],[Souce]]+Table13[[#This Row],[Salad]]+Table13[[#This Row],[Sandwich]]+Table13[[#This Row],[Breacfast]]+Table13[[#This Row],[Pasta]]+Table13[[#This Row],[Dessert]] -> 0 | G150: =SUMIF(Souce!$G$14:$G$357,Table13[[#This Row],[Items Name]],Souce!$C$14:$C$357) -> 0 | H150: =SUMIF(Salad!$G$14:$G$768,Table13[[#This Row],[Items Name]],Salad!$C$14:$C$768) -> 0 | I150: =SUMIF(Sandwich!$G$14:$G$454,Table13[[#This Row],[Items Name]],Sandwich!$C$14:$C$454) -> 0 | J150: =SUMIF(Breakfast!$G$14:$G$164,Table13[[#This Row],[Items Name]],Breakfast!$C$14:$C$164) -> 0 | K150: =SUMIF(Pasta!$G$14:$G$99,Table13[[#This Row],[Items Name]],Pasta!$C$14:$C$99) -> 0 | L150: =SUMIF(Dessert!$G$14:$G$40,Table13[[#This Row],[Items Name]],Dessert!$C$14:$C$40) -> 0 | M150: =Table1[[#This Row],[isWarehouse&Direct]] -> 0 | N150: =Table1[[#This Row],[isFinished]] -> 0
C151: =Table1[[#This Row],[Code]] -> 126041 | D151: =Table1[[#This Row],[Items Name]] -> Homouss | E151: =Table1[[#This Row],[Unit]] -> 07 KG | F151: =+Table13[[#This Row],[Souce]]+Table13[[#This Row],[Salad]]+Table13[[#This Row],[Sandwich]]+Table13[[#This Row],[Breacfast]]+Table13[[#This Row],[Pasta]]+Table13[[#This Row],[Dessert]] -> 0 | G151: =SUMIF(Souce!$G$14:$G$357,Table13[[#This Row],[Items Name]],Souce!$C$14:$C$357) -> 0 | H151: =SUMIF(Salad!$G$14:$G$768,Table13[[#This Row],[Items Name]],Salad!$C$14:$C$768) -> 0 | I151: =SUMIF(Sandwich!$G$14:$G$454,Table13[[#This Row],[Items Name]],Sandwich!$C$14:$C$454) -> 0 | J151: =SUMIF(Breakfast!$G$14:$G$164,Table13[[#This Row],[Items Name]],Breakfast!$C$14:$C$164) -> 0 | K151: =SUMIF(Pasta!$G$14:$G$99,Table13[[#This Row],[Items Name]],Pasta!$C$14:$C$99) -> 0 | L151: =SUMIF(Dessert!$G$14:$G$40,Table13[[#This Row],[Items Name]],Dessert!$C$14:$C$40) -> 0 | M151: =Table1[[#This Row],[isWarehouse&Direct]] -> 0 | N151: =Table1[[#This Row],[isFinished]] -> 0
C152: =Table1[[#This Row],[Code]] -> 126042 | D152: =Table1[[#This Row],[Items Name]] -> Cary Powder | E152: =Table1[[#This Row],[Unit]] -> 07 KG | F152: =+Table13[[#This Row],[Souce]]+Table13[[#This Row],[Salad]]+Table13[[#This Row],[Sandwich]]+Table13[[#This Row],[Breacfast]]+Table13[[#This Row],[Pasta]]+Table13[[#This Row],[Dessert]] -> 0 | G152: =SUMIF(Souce!$G$14:$G$357,Table13[[#This Row],[Items Name]],Souce!$C$14:$C$357) -> 0 | H152: =SUMIF(Salad!$G$14:$G$768,Table13[[#This Row],[Items Name]],Salad!$C$14:$C$768) -> 0 | I152: =SUMIF(Sandwich!$G$14:$G$454,Table13[[#This Row],[Items Name]],Sandwich!$C$14:$C$454) -> 0 | J152: =SUMIF(Breakfast!$G$14:$G$164,Table13[[#This Row],[Items Name]],Breakfast!$C$14:$C$164) -> 0 | K152: =SUMIF(Pasta!$G$14:$G$99,Table13[[#This Row],[Items Name]],Pasta!$C$14:$C$99) -> 0 | L152: =SUMIF(Dessert!$G$14:$G$40,Table13[[#This Row],[Items Name]],Dessert!$C$14:$C$40) -> 0 | M152: =Table1[[#This Row],[isWarehouse&Direct]] -> 0 | N152: =Table1[[#This Row],[isFinished]] -> 0
C153: =Table1[[#This Row],[Code]] -> 126043 | D153: =Table1[[#This Row],[Items Name]] -> Corcom | E153: =Table1[[#This Row],[Unit]] -> 07 KG | F153: =+Table13[[#This Row],[Souce]]+Table13[[#This Row],[Salad]]+Table13[[#This Row],[Sandwich]]+Table13[[#This Row],[Breacfast]]+Table13[[#This Row],[Pasta]]+Table13[[#This Row],[Dessert]] -> 0 | G153: =SUMIF(Souce!$G$14:$G$357,Table13[[#This Row],[Items Name]],Souce!$C$14:$C$357) -> 0 | H153: =SUMIF(Salad!$G$14:$G$768,Table13[[#This Row],[Items Name]],Salad!$C$14:$C$768) -> 0 | I153: =SUMIF(Sandwich!$G$14:$G$454,Table13[[#This Row],[Items Name]],Sandwich!$C$14:$C$454) -> 0 | J153: =SUMIF(Breakfast!$G$14:$G$164,Table13[[#This Row],[Items Name]],Breakfast!$C$14:$C$164) -> 0 | K153: =SUMIF(Pasta!$G$14:$G$99,Table13[[#This Row],[Items Name]],Pasta!$C$14:$C$99) -> 0 | L153: =SUMIF(Dessert!$G$14:$G$40,Table13[[#This Row],[Items Name]],Dessert!$C$14:$C$40) -> 0 | M153: =Table1[[#This Row],[isWarehouse&Direct]] -> 0 | N153: =Table1[[#This Row],[isFinished]] -> 0
C154: =Table1[[#This Row],[Code]] -> 126044 | D154: =Table1[[#This Row],[Items Name]] -> Maggi Cubs | E154: =Table1[[#This Row],[Unit]] -> 06 Each | F154: =+Table13[[#This Row],[Souce]]+Table13[[#This Row],[Salad]]+Table13[[#This Row],[Sandwich]]+Table13[[#This Row],[Breacfast]]+Table13[[#This Row],[Pasta]]+Table13[[#This Row],[Dessert]] -> 0 | G154: =SUMIF(Souce!$G$14:$G$357,Table13[[#This Row],[Items Name]],Souce!$C$14:$C$357) -> 0 | H154: =SUMIF(Salad!$G$14:$G$768,Table13[[#This Row],[Items Name]],Salad!$C$14:$C$768) -> 0 | I154: =SUMIF(Sandwich!$G$14:$G$454,Table13[[#This Row],[Items Name]],Sandwich!$C$14:$C$454) -> 0 | J154: =SUMIF(Breakfast!$G$14:$G$164,Table13[[#This Row],[Items Name]],Breakfast!$C$14:$C$164) -> 0 | K154: =SUMIF(Pasta!$G$14:$G$99,Table13[[#This Row],[Items Name]],Pasta!$C$14:$C$99) -> 0 | L154: =SUMIF(Dessert!$G$14:$G$40,Table13[[#This Row],[Items Name]],Dessert!$C$14:$C$40) -> 0 | M154: =Table1[[#This Row],[isWarehouse&Direct]] -> 0 | N154: =Table1[[#This Row],[isFinished]] -> 0
C155: =Table1[[#This Row],[Code]] -> 126045 | D155: =Table1[[#This Row],[Items Name]] -> Maggi(chicken shawrma) | E155: =Table1[[#This Row],[Unit]] -> 07 KG | F155: =+Table13[[#This Row],[Souce]]+Table13[[#This Row],[Salad]]+Table13[[#This Row],[Sandwich]]+Table13[[#This Row],[Breacfast]]+Table13[[#This Row],[Pasta]]+Table13[[#This Row],[Dessert]] -> 0 | G155: =SUMIF(Souce!$G$14:$G$357,Table13[[#This Row],[Items Name]],Souce!$C$14:$C$357) -> 0 | H155: =SUMIF(Salad!$G$14:$G$768,Table13[[#This Row],[Items Name]],Salad!$C$14:$C$768) -> 0 | I155: =SUMIF(Sandwich!$G$14:$G$454,Table13[[#This Row],[Items Name]],Sandwich!$C$14:$C$454) -> 0 | J155: =SUMIF(Breakfast!$G$14:$G$164,Table13[[#This Row],[Items Name]],Breakfast!$C$14:$C$164) -> 0 | K155: =SUMIF(Pasta!$G$14:$G$99,Table13[[#This Row],[Items Name]],Pasta!$C$14:$C$99) -> 0 | L155: =SUMIF(Dessert!$G$14:$G$40,Table13[[#This Row],[Items Name]],Dessert!$C$14:$C$40) -> 0 | M155: =Table1[[#This Row],[isWarehouse&Direct]] -> 0 | N155: =Table1[[#This Row],[isFinished]] -> 0
C156: =Table1[[#This Row],[Code]] -> 126046 | D156: =Table1[[#This Row],[Items Name]] -> Garlic Powder | E156: =Table1[[#This Row],[Unit]] -> 07 KG | F156: =+Table13[[#This Row],[Souce]]+Table13[[#This Row],[Salad]]+Table13[[#This Row],[Sandwich]]+Table13[[#This Row],[Breacfast]]+Table13[[#This Row],[Pasta]]+Table13[[#This Row],[Dessert]] -> 0 | G156: =SUMIF(Souce!$G$14:$G$357,Table13[[#This Row],[Items Name]],Souce!$C$14:$C$357) -> 0 | H156: =SUMIF(Salad!$G$14:$G$768,Table13[[#This Row],[Items Name]],Salad!$C$14:$C$768) -> 0 | I156: =SUMIF(Sandwich!$G$14:$G$454,Table13[[#This Row],[Items Name]],Sandwich!$C$14:$C$454) -> 0 | J156: =SUMIF(Breakfast!$G$14:$G$164,Table13[[#This Row],[Items Name]],Breakfast!$C$14:$C$164) -> 0 | K156: =SUMIF(Pasta!$G$14:$G$99,Table13[[#This Row],[Items Name]],Pasta!$C$14:$C$99) -> 0 | L156: =SUMIF(Dessert!$G$14:$G$40,Table13[[#This Row],[Items Name]],Dessert!$C$14:$C$40) -> 0 | M156: =Table1[[#This Row],[isWarehouse&Direct]] -> 0 | N156: =Table1[[#This Row],[isFinished]] -> 0
C157: =Table1[[#This Row],[Code]] -> 127001 | D157: =Table1[[#This Row],[Items Name]] -> Pasta, Farfall | E157: =Table1[[#This Row],[Unit]] -> 07 KG | F157: =+Table13[[#This Row],[Souce]]+Table13[[#This Row],[Salad]]+Table13[[#This Row],[Sandwich]]+Table13[[#This Row],[Breacfast]]+Table13[[#This Row],[Pasta]]+Table13[[#This Row],[Dessert]] -> 0 | G157: =SUMIF(Souce!$G$14:$G$357,Table13[[#This Row],[Items Name]],Souce!$C$14:$C$357) -> 0 | H157: =SUMIF(Salad!$G$14:$G$768,Table13[[#This Row],[Items Name]],Salad!$C$14:$C$768) -> 0 | I157: =SUMIF(Sandwich!$G$14:$G$454,Table13[[#This Row],[Items Name]],Sandwich!$C$14:$C$454) -> 0 | J157: =SUMIF(Breakfast!$G$14:$G$164,Table13[[#This Row],[Items Name]],Breakfast!$C$14:$C$164) -> 0 | K157: =SUMIF(Pasta!$G$14:$G$99,Table13[[#This Row],[Items Name]],Pasta!$C$14:$C$99) -> 0 | L157: =SUMIF(Dessert!$G$14:$G$40,Table13[[#This Row],[Items Name]],Dessert!$C$14:$C$40) -> 0 | M157: =Table1[[#This Row],[isWarehouse&Direct]] -> 0 | N157: =Table1[[#This Row],[isFinished]] -> 0
C158: =Table1[[#This Row],[Code]] -> 127002 | D158: =Table1[[#This Row],[Items Name]] -> Pasta, Penne- Local | E158: =Table1[[#This Row],[Unit]] -> 07 KG | F158: =+Table13[[#This Row],[Souce]]+Table13[[#This Row],[Salad]]+Table13[[#This Row],[Sandwich]]+Table13[[#This Row],[Breacfast]]+Table13[[#This Row],[Pasta]]+Table13[[#This Row],[Dessert]] -> 0 | G158: =SUMIF(Souce!$G$14:$G$357,Table13[[#This Row],[Items Name]],Souce!$C$14:$C$357) -> 0 | H158: =SUMIF(Salad!$G$14:$G$768,Table13[[#This Row],[Items Name]],Salad!$C$14:$C$768) -> 0 | I158: =SUMIF(Sandwich!$G$14:$G$454,Table13[[#This Row],[Items Name]],Sandwich!$C$14:$C$454) -> 0 | J158: =SUMIF(Breakfast!$G$14:$G$164,Table13[[#This Row],[Items Name]],Breakfast!$C$14:$C$164) -> 0 | K158: =SUMIF(Pasta!$G$14:$G$99,Table13[[#This Row],[Items Name]],Pasta!$C$14:$C$99) -> 0 | L158: =SUMIF(Dessert!$G$14:$G$40,Table13[[#This Row],[Items Name]],Dessert!$C$14:$C$40) -> 0 | M158: =Table1[[#This Row],[isWarehouse&Direct]] -> 0 | N158: =Table1[[#This Row],[isFinished]] -> 0
C159: =Table1[[#This Row],[Code]] -> 127003 | D159: =Table1[[#This Row],[Items Name]] -> Pasta, Noodles 500G | E159: =Table1[[#This Row],[Unit]] -> 07 KG | F159: =+Table13[[#This Row],[Souce]]+Table13[[#This Row],[Salad]]+Table13[[#This Row],[Sandwich]]+Table13[[#This Row],[Breacfast]]+Table13[[#This Row],[Pasta]]+Table13[[#This Row],[Dessert]] -> 0 | G159: =SUMIF(Souce!$G$14:$G$357,Table13[[#This Row],[Items Name]],Souce!$C$14:$C$357) -> 0 | H159: =SUMIF(Salad!$G$14:$G$768,Table13[[#This Row],[Items Name]],Salad!$C$14:$C$768) -> 0 | I159: =SUMIF(Sandwich!$G$14:$G$454,Table13[[#This Row],[Items Name]],Sandwich!$C$14:$C$454) -> 0 | J159: =SUMIF(Breakfast!$G$14:$G$164,Table13[[#This Row],[Items Name]],Breakfast!$C$14:$C$164) -> 0 | K159: =SUMIF(Pasta!$G$14:$G$99,Table13[[#This Row],[Items Name]],Pasta!$C$14:$C$99) -> 0 | L159: =SUMIF(Dessert!$G$14:$G$40,Table13[[#This Row],[Items Name]],Dessert!$C$14:$C$40) -> 0 | M159: =Table1[[#This Row],[isWarehouse&Direct]] -> 0 | N159: =Table1[[#This Row],[isFinished]] -> 0
C160: =Table1[[#This Row],[Code]] -> 127004 | D160: =Table1[[#This Row],[Items Name]] -> Pasta, Penne Zara | E160: =Table1[[#This Row],[Unit]] -> 07 KG | F160: =+Table13[[#This Row],[Souce]]+Table13[[#This Row],[Salad]]+Table13[[#This Row],[Sandwich]]+Table13[[#This Row],[Breacfast]]+Table13[[#This Row],[Pasta]]+Table13[[#This Row],[Dessert]] -> 0 | G160: =SUMIF(Souce!$G$14:$G$357,Table13[[#This Row],[Items Name]],Souce!$C$14:$C$357) -> 0 | H160: =SUMIF(Salad!$G$14:$G$768,Table13[[#This Row],[Items Name]],Salad!$C$14:$C$768) -> 0 | I160: =SUMIF(Sandwich!$G$14:$G$454,Table13[[#This Row],[Items Name]],Sandwich!$C$14:$C$454) -> 0 | J160: =SUMIF(Breakfast!$G$14:$G$164,Table13[[#This Row],[Items Name]],Breakfast!$C$14:$C$164) -> 0 | K160: =SUMIF(Pasta!$G$14:$G$99,Table13[[#This Row],[Items Name]],Pasta!$C$14:$C$99) -> 0 | L160: =SUMIF(Dessert!$G$14:$G$40,Table13[[#This Row],[Items Name]],Dessert!$C$14:$C$40) -> 0 | M160: =Table1[[#This Row],[isWarehouse&Direct]] -> 0 | N160: =Table1[[#This Row],[isFinished]] -> 0
B161: Category: 30 Finsh Product | C161: =Table1[[#This Row],[Code]] -> 127005 | D161: =Table1[[#This Row],[Items Name]] -> Pasta, Spagetti | E161: =Table1[[#This Row],[Unit]] -> 07 KG | F161: =+Table13[[#This Row],[Souce]]+Table13[[#This Row],[Salad]]+Table13[[#This Row],[Sandwich]]+Table13[[#This Row],[Breacfast]]+Table13[[#This Row],[Pasta]]+Table13[[#This Row],[Dessert]] -> 0 | G161: =SUMIF(Souce!$G$14:$G$357,Table13[[#This Row],[Items Name]],Souce!$C$14:$C$357) -> 0 | H161: =SUMIF(Salad!$G$14:$G$768,Table13[[#This Row],[Items Name]],Salad!$C$14:$C$768) -> 0 | I161: =SUMIF(Sandwich!$G$14:$G$454,Table13[[#This Row],[Items Name]],Sandwich!$C$14:$C$454) -> 0 | J161: =SUMIF(Breakfast!$G$14:$G$164,Table13[[#This Row],[Items Name]],Breakfast!$C$14:$C$164) -> 0 | K161: =SUMIF(Pasta!$G$14:$G$99,Table13[[#This Row],[Items Name]],Pasta!$C$14:$C$99) -> 0 | L161: =SUMIF(Dessert!$G$14:$G$40,Table13[[#This Row],[Items Name]],Dessert!$C$14:$C$40) -> 0 | M161: =Table1[[#This Row],[isWarehouse&Direct]] -> 0 | N161: =Table1[[#This Row],[isFinished]] -> 0
C162: =Table1[[#This Row],[Code]] -> 127006 | D162: =Table1[[#This Row],[Items Name]] -> Pasta, She3reya vermacelli | E162: =Table1[[#This Row],[Unit]] -> 07 KG | F162: =+Table13[[#This Row],[Souce]]+Table13[[#This Row],[Salad]]+Table13[[#This Row],[Sandwich]]+Table13[[#This Row],[Breacfast]]+Table13[[#This Row],[Pasta]]+Table13[[#This Row],[Dessert]] -> 0 | G162: =SUMIF(Souce!$G$14:$G$357,Table13[[#This Row],[Items Name]],Souce!$C$14:$C$357) -> 0 | H162: =SUMIF(Salad!$G$14:$G$768,Table13[[#This Row],[Items Name]],Salad!$C$14:$C$768) -> 0 | I162: =SUMIF(Sandwich!$G$14:$G$454,Table13[[#This Row],[Items Name]],Sandwich!$C$14:$C$454) -> 0 | J162: =SUMIF(Breakfast!$G$14:$G$164,Table13[[#This Row],[Items Name]],Breakfast!$C$14:$C$164) -> 0 | K162: =SUMIF(Pasta!$G$14:$G$99,Table13[[#This Row],[Items Name]],Pasta!$C$14:$C$99) -> 0 | L162: =SUMIF(Dessert!$G$14:$G$40,Table13[[#This Row],[Items Name]],Dessert!$C$14:$C$40) -> 0 | M162: =Table1[[#This Row],[isWarehouse&Direct]] -> 0 | N162: =Table1[[#This Row],[isFinished]] -> 0
C163: =Table1[[#This Row],[Code]] -> 127009 | D163: =Table1[[#This Row],[Items Name]] -> Dark CHOCOLATE (super Moist ) 500 G | E163: =Table1[[#This Row],[Unit]] -> 04 Box | F163: =+Table13[[#This Row],[Souce]]+Table13[[#This Row],[Salad]]+Table13[[#This Row],[Sandwich]]+Table13[[#This Row],[Breacfast]]+Table13[[#This Row],[Pasta]]+Table13[[#This Row],[Dessert]] -> 0 | G163: =SUMIF(Souce!$G$14:$G$357,Table13[[#This Row],[Items Name]],Souce!$C$14:$C$357) -> 0 | H163: =SUMIF(Salad!$G$14:$G$768,Table13[[#This Row],[Items Name]],Salad!$C$14:$C$768) -> 0 | I163: =SUMIF(Sandwich!$G$14:$G$454,Table13[[#This Row],[Items Name]],Sandwich!$C$14:$C$454) -> 0 | J163: =SUMIF(Breakfast!$G$14:$G$164,Table13[[#This Row],[Items Name]],Breakfast!$C$14:$C$164) -> 0 | K163: =SUMIF(Pasta!$G$14:$G$99,Table13[[#This Row],[Items Name]],Pasta!$C$14:$C$99) -> 0 | L163: =SUMIF(Dessert!$G$14:$G$40,Table13[[#This Row],[Items Name]],Dessert!$C$14:$C$40) -> 0 | M163: =Table1[[#This Row],[isWarehouse&Direct]] -> 0 | N163: =Table1[[#This Row],[isFinished]] -> 0
C164: =Table1[[#This Row],[Code]] -> 127010 | D164: =Table1[[#This Row],[Items Name]] -> Chocolat Chips 300 Gr | E164: =Table1[[#This Row],[Unit]] -> 04 Box | F164: =+Table13[[#This Row],[Souce]]+Table13[[#This Row],[Salad]]+Table13[[#This Row],[Sandwich]]+Table13[[#This Row],[Breacfast]]+Table13[[#This Row],[Pasta]]+Table13[[#This Row],[Dessert]] -> 0 | G164: =SUMIF(Souce!$G$14:$G$357,Table13[[#This Row],[Items Name]],Souce!$C$14:$C$357) -> 0 | H164: =SUMIF(Salad!$G$14:$G$768,Table13[[#This Row],[Items Name]],Salad!$C$14:$C$768) -> 0 | I164: =SUMIF(Sandwich!$G$14:$G$454,Table13[[#This Row],[Items Name]],Sandwich!$C$14:$C$454) -> 0 | J164: =SUMIF(Breakfast!$G$14:$G$164,Table13[[#This Row],[Items Name]],Breakfast!$C$14:$C$164) -> 0 | K164: =SUMIF(Pasta!$G$14:$G$99,Table13[[#This Row],[Items Name]],Pasta!$C$14:$C$99) -> 0 | L164: =SUMIF(Dessert!$G$14:$G$40,Table13[[#This Row],[Items Name]],Dessert!$C$14:$C$40) -> 0 | M164: =Table1[[#This Row],[isWarehouse&Direct]] -> 0 | N164: =Table1[[#This Row],[isFinished]] -> 0
C165: =Table1[[#This Row],[Code]] -> 127012 | D165: =Table1[[#This Row],[Items Name]] -> pasta lazany(500gr) | E165: =Table1[[#This Row],[Unit]] -> 05 PKT | F165: =+Table13[[#This Row],[Souce]]+Table13[[#This Row],[Salad]]+Table13[[#This Row],[Sandwich]]+Table13[[#This Row],[Breacfast]]+Table13[[#This Row],[Pasta]]+Table13[[#This Row],[Dessert]] -> 0 | G165: =SUMIF(Souce!$G$14:$G$357,Table13[[#This Row],[Items Name]],Souce!$C$14:$C$357) -> 0 | H165: =SUMIF(Salad!$G$14:$G$768,Table13[[#This Row],[Items Name]],Salad!$C$14:$C$768) -> 0 | I165: =SUMIF(Sandwich!$G$14:$G$454,Table13[[#This Row],[Items Name]],Sandwich!$C$14:$C$454) -> 0 | J165: =SUMIF(Breakfast!$G$14:$G$164,Table13[[#This Row],[Items Name]],Breakfast!$C$14:$C$164) -> 0 | K165: =SUMIF(Pasta!$G$14:$G$99,Table13[[#This Row],[Items Name]],Pasta!$C$14:$C$99) -> 0 | L165: =SUMIF(Dessert!$G$14:$G$40,Table13[[#This Row],[Items Name]],Dessert!$C$14:$C$40) -> 0 | M165: =Table1[[#This Row],[isWarehouse&Direct]] -> 0 | N165: =Table1[[#This Row],[isFinished]] -> 0
C166: =Table1[[#This Row],[Code]] -> 127013 | D166: =Table1[[#This Row],[Items Name]] -> PASTS FETSHENY | E166: =Table1[[#This Row],[Unit]] -> 07 KG | F166: =+Table13[[#This Row],[Souce]]+Table13[[#This Row],[Salad]]+Table13[[#This Row],[Sandwich]]+Table13[[#This Row],[Breacfast]]+Table13[[#This Row],[Pasta]]+Table13[[#This Row],[Dessert]] -> 0 | G166: =SUMIF(Souce!$G$14:$G$357,Table13[[#This Row],[Items Name]],Souce!$C$14:$C$357) -> 0 | H166: =SUMIF(Salad!$G$14:$G$768,Table13[[#This Row],[Items Name]],Salad!$C$14:$C$768) -> 0 | I166: =SUMIF(Sandwich!$G$14:$G$454,Table13[[#This Row],[Items Name]],Sandwich!$C$14:$C$454) -> 0 | J166: =SUMIF(Breakfast!$G$14:$G$164,Table13[[#This Row],[Items Name]],Breakfast!$C$14:$C$164) -> 0 | K166: =SUMIF(Pasta!$G$14:$G$99,Table13[[#This Row],[Items Name]],Pasta!$C$14:$C$99) -> 0 | L166: =SUMIF(Dessert!$G$14:$G$40,Table13[[#This Row],[Items Name]],Dessert!$C$14:$C$40) -> 0 | M166: =Table1[[#This Row],[isWarehouse&Direct]] -> 0 | N166: =Table1[[#This Row],[isFinished]] -> 0
C167: =Table1[[#This Row],[Code]] -> 127014 | D167: =Table1[[#This Row],[Items Name]] -> past langoni | E167: =Table1[[#This Row],[Unit]] -> 05 PKT | F167: =+Table13[[#This Row],[Souce]]+Table13[[#This Row],[Salad]]+Table13[[#This Row],[Sandwich]]+Table13[[#This Row],[Breacfast]]+Table13[[#This Row],[Pasta]]+Table13[[#This Row],[Dessert]] -> 0 | G167: =SUMIF(Souce!$G$14:$G$357,Table13[[#This Row],[Items Name]],Souce!$C$14:$C$357) -> 0 | H167: =SUMIF(Salad!$G$14:$G$768,Table13[[#This Row],[Items Name]],Salad!$C$14:$C$768) -> 0 | I167: =SUMIF(Sandwich!$G$14:$G$454,Table13[[#This Row],[Items Name]],Sandwich!$C$14:$C$454) -> 0 | J167: =SUMIF(Breakfast!$G$14:$G$164,Table13[[#This Row],[Items Name]],Breakfast!$C$14:$C$164) -> 0 | K167: =SUMIF(Pasta!$G$14:$G$99,Table13[[#This Row],[Items Name]],Pasta!$C$14:$C$99) -> 0 | L167: =SUMIF(Dessert!$G$14:$G$40,Table13[[#This Row],[Items Name]],Dessert!$C$14:$C$40) -> 0 | M167: =Table1[[#This Row],[isWarehouse&Direct]] -> 0 | N167: =Table1[[#This Row],[isFinished]] -> 0
C168: =Table1[[#This Row],[Code]] -> 128001 | D168: =Table1[[#This Row],[Items Name]] -> Rice white | E168: =Table1[[#This Row],[Unit]] -> 07 KG | F168: =+Table13[[#This Row],[Souce]]+Table13[[#This Row],[Salad]]+Table13[[#This Row],[Sandwich]]+Table13[[#This Row],[Breacfast]]+Table13[[#This Row],[Pasta]]+Table13[[#This Row],[Dessert]] -> 0 | G168: =SUMIF(Souce!$G$14:$G$357,Table13[[#This Row],[Items Name]],Souce!$C$14:$C$357) -> 0 | H168: =SUMIF(Salad!$G$14:$G$768,Table13[[#This Row],[Items Name]],Salad!$C$14:$C$768) -> 0 | I168: =SUMIF(Sandwich!$G$14:$G$454,Table13[[#This Row],[Items Name]],Sandwich!$C$14:$C$454) -> 0 | J168: =SUMIF(Breakfast!$G$14:$G$164,Table13[[#This Row],[Items Name]],Breakfast!$C$14:$C$164) -> 0 | K168: =SUMIF(Pasta!$G$14:$G$99,Table13[[#This Row],[Items Name]],Pasta!$C$14:$C$99) -> 0 | L168: =SUMIF(Dessert!$G$14:$G$40,Table13[[#This Row],[Items Name]],Dessert!$C$14:$C$40) -> 0 | M168: =Table1[[#This Row],[isWarehouse&Direct]] -> 0 | N168: =Table1[[#This Row],[isFinished]] -> 0
C169: =Table1[[#This Row],[Code]] -> 128002 | D169: =Table1[[#This Row],[Items Name]] -> Ketchup | E169: =Table1[[#This Row],[Unit]] -> 07 KG | F169: =+Table13[[#This Row],[Souce]]+Table13[[#This Row],[Salad]]+Table13[[#This Row],[Sandwich]]+Table13[[#This Row],[Breacfast]]+Table13[[#This Row],[Pasta]]+Table13[[#This Row],[Dessert]] -> 0 | G169: =SUMIF(Souce!$G$14:$G$357,Table13[[#This Row],[Items Name]],Souce!$C$14:$C$357) -> 0 | H169: =SUMIF(Salad!$G$14:$G$768,Table13[[#This Row],[Items Name]],Salad!$C$14:$C$768) -> 0 | I169: =SUMIF(Sandwich!$G$14:$G$454,Table13[[#This Row],[Items Name]],Sandwich!$C$14:$C$454) -> 0 | J169: =SUMIF(Breakfast!$G$14:$G$164,Table13[[#This Row],[Items Name]],Breakfast!$C$14:$C$164) -> 0 | K169: =SUMIF(Pasta!$G$14:$G$99,Table13[[#This Row],[Items Name]],Pasta!$C$14:$C$99) -> 0 | L169: =SUMIF(Dessert!$G$14:$G$40,Table13[[#This Row],[Items Name]],Dessert!$C$14:$C$40) -> 0 | M169: =Table1[[#This Row],[isWarehouse&Direct]] -> 0 | N169: =Table1[[#This Row],[isFinished]] -> 0
C170: =Table1[[#This Row],[Code]] -> 128003 | D170: =Table1[[#This Row],[Items Name]] -> Mustard Dijon | E170: =Table1[[#This Row],[Unit]] -> 07 KG | F170: =+Table13[[#This Row],[Souce]]+Table13[[#This Row],[Salad]]+Table13[[#This Row],[Sandwich]]+Table13[[#This Row],[Breacfast]]+Table13[[#This Row],[Pasta]]+Table13[[#This Row],[Dessert]] -> 0 | G170: =SUMIF(Souce!$G$14:$G$357,Table13[[#This Row],[Items Name]],Souce!$C$14:$C$357) -> 0 | H170: =SUMIF(Salad!$G$14:$G$768,Table13[[#This Row],[Items Name]],Salad!$C$14:$C$768) -> 0 | I170: =SUMIF(Sandwich!$G$14:$G$454,Table13[[#This Row],[Items Name]],Sandwich!$C$14:$C$454) -> 0 | J170: =SUMIF(Breakfast!$G$14:$G$164,Table13[[#This Row],[Items Name]],Breakfast!$C$14:$C$164) -> 0 | K170: =SUMIF(Pasta!$G$14:$G$99,Table13[[#This Row],[Items Name]],Pasta!$C$14:$C$99) -> 0 | L170: =SUMIF(Dessert!$G$14:$G$40,Table13[[#This Row],[Items Name]],Dessert!$C$14:$C$40) -> 0 | M170: =Table1[[#This Row],[isWarehouse&Direct]] -> 0 | N170: =Table1[[#This Row],[isFinished]] -> 0
C171: =Table1[[#This Row],[Code]] -> 128004 | D171: =Table1[[#This Row],[Items Name]] -> Olive Oil Saporito | E171: =Table1[[#This Row],[Unit]] -> 12 LTR | F171: =+Table13[[#This Row],[Souce]]+Table13[[#This Row],[Salad]]+Table13[[#This Row],[Sandwich]]+Table13[[#This Row],[Breacfast]]+Table13[[#This Row],[Pasta]]+Table13[[#This Row],[Dessert]] -> 0 | G171: =SUMIF(Souce!$G$14:$G$357,Table13[[#This Row],[Items Name]],Souce!$C$14:$C$357) -> 0 | H171: =SUMIF(Salad!$G$14:$G$768,Table13[[#This Row],[Items Name]],Salad!$C$14:$C$768) -> 0 | I171: =SUMIF(Sandwich!$G$14:$G$454,Table13[[#This Row],[Items Name]],Sandwich!$C$14:$C$454) -> 0 | J171: =SUMIF(Breakfast!$G$14:$G$164,Table13[[#This Row],[Items Name]],Breakfast!$C$14:$C$164) -> 0 | K171: =SUMIF(Pasta!$G$14:$G$99,Table13[[#This Row],[Items Name]],Pasta!$C$14:$C$99) -> 0 | L171: =SUMIF(Dessert!$G$14:$G$40,Table13[[#This Row],[Items Name]],Dessert!$C$14:$C$40) -> 0 | M171: =Table1[[#This Row],[isWarehouse&Direct]] -> 0 | N171: =Table1[[#This Row],[isFinished]] -> 0
C172: =Table1[[#This Row],[Code]] -> 128005 | D172: =Table1[[#This Row],[Items Name]] -> Olives Black Sliced | E172: =Table1[[#This Row],[Unit]] -> 07 KG | F172: =+Table13[[#This Row],[Souce]]+Table13[[#This Row],[Salad]]+Table13[[#This Row],[Sandwich]]+Table13[[#This Row],[Breacfast]]+Table13[[#This Row],[Pasta]]+Table13[[#This Row],[Dessert]] -> 0 | G172: =SUMIF(Souce!$G$14:$G$357,Table13[[#This Row],[Items Name]],Souce!$C$14:$C$357) -> 0 | H172: =SUMIF(Salad!$G$14:$G$768,Table13[[#This Row],[Items Name]],Salad!$C$14:$C$768) -> 0 | I172: =SUMIF(Sandwich!$G$14:$G$454,Table13[[#This Row],[Items Name]],Sandwich!$C$14:$C$454) -> 0 | J172: =SUMIF(Breakfast!$G$14:$G$164,Table13[[#This Row],[Items Name]],Breakfast!$C$14:$C$164) -> 0 | K172: =SUMIF(Pasta!$G$14:$G$99,Table13[[#This Row],[Items Name]],Pasta!$C$14:$C$99) -> 0 | L172: =SUMIF(Dessert!$G$14:$G$40,Table13[[#This Row],[Items Name]],Dessert!$C$14:$C$40) -> 0 | M172: =Table1[[#This Row],[isWarehouse&Direct]] -> 0 | N172: =Table1[[#This Row],[isFinished]] -> 0
C173: =Table1[[#This Row],[Code]] -> 128006 | D173: =Table1[[#This Row],[Items Name]] -> Mayonnaise | E173: =Table1[[#This Row],[Unit]] -> 07 KG | F173: =+Table13[[#This Row],[Souce]]+Table13[[#This Row],[Salad]]+Table13[[#This Row],[Sandwich]]+Table13[[#This Row],[Breacfast]]+Table13[[#This Row],[Pasta]]+Table13[[#This Row],[Dessert]] -> 0 | G173: =SUMIF(Souce!$G$14:$G$357,Table13[[#This Row],[Items Name]],Souce!$C$14:$C$357) -> 0 | H173: =SUMIF(Salad!$G$14:$G$768,Table13[[#This Row],[Items Name]],Salad!$C$14:$C$768) -> 0 | I173: =SUMIF(Sandwich!$G$14:$G$454,Table13[[#This Row],[Items Name]],Sandwich!$C$14:$C$454) -> 0 | J173: =SUMIF(Breakfast!$G$14:$G$164,Table13[[#This Row],[Items Name]],Breakfast!$C$14:$C$164) -> 0 | K173: =SUMIF(Pasta!$G$14:$G$99,Table13[[#This Row],[Items Name]],Pasta!$C$14:$C$99) -> 0 | L173: =SUMIF(Dessert!$G$14:$G$40,Table13[[#This Row],[Items Name]],Dessert!$C$14:$C$40) -> 0 | M173: =Table1[[#This Row],[isWarehouse&Direct]] -> 0 | N173: =Table1[[#This Row],[isFinished]] -> 0
C174: =Table1[[#This Row],[Code]] -> 128007 | D174: =Table1[[#This Row],[Items Name]] -> Olives Black Calamata | E174: =Table1[[#This Row],[Unit]] -> 07 KG | F174: =+Table13[[#This Row],[Souce]]+Table13[[#This Row],[Salad]]+Table13[[#This Row],[Sandwich]]+Table13[[#This Row],[Breacfast]]+Table13[[#This Row],[Pasta]]+Table13[[#This Row],[Dessert]] -> 0 | G174: =SUMIF(Souce!$G$14:$G$357,Table13[[#This Row],[Items Name]],Souce!$C$14:$C$357) -> 0 | H174: =SUMIF(Salad!$G$14:$G$768,Table13[[#This Row],[Items Name]],Salad!$C$14:$C$768) -> 0 | I174: =SUMIF(Sandwich!$G$14:$G$454,Table13[[#This Row],[Items Name]],Sandwich!$C$14:$C$454) -> 0 | J174: =SUMIF(Breakfast!$G$14:$G$164,Table13[[#This Row],[Items Name]],Breakfast!$C$14:$C$164) -> 0 | K174: =SUMIF(Pasta!$G$14:$G$99,Table13[[#This Row],[Items Name]],Pasta!$C$14:$C$99) -> 0 | L174: =SUMIF(Dessert!$G$14:$G$40,Table13[[#This Row],[Items Name]],Dessert!$C$14:$C$40) -> 0 | M174: =Table1[[#This Row],[isWarehouse&Direct]] -> 0 | N174: =Table1[[#This Row],[isFinished]] -> 0
C175: =Table1[[#This Row],[Code]] -> 128008 | D175: =Table1[[#This Row],[Items Name]] -> Green Pepper Corn- pickled | E175: =Table1[[#This Row],[Unit]] -> 07 KG | F175: =+Table13[[#This Row],[Souce]]+Table13[[#This Row],[Salad]]+Table13[[#This Row],[Sandwich]]+Table13[[#This Row],[Breacfast]]+Table13[[#This Row],[Pasta]]+Table13[[#This Row],[Dessert]] -> 0 | G175: =SUMIF(Souce!$G$14:$G$357,Table13[[#This Row],[Items Name]],Souce!$C$14:$C$357) -> 0 | H175: =SUMIF(Salad!$G$14:$G$768,Table13[[#This Row],[Items Name]],Salad!$C$14:$C$768) -> 0 | I175: =SUMIF(Sandwich!$G$14:$G$454,Table13[[#This Row],[Items Name]],Sandwich!$C$14:$C$454) -> 0 | J175: =SUMIF(Breakfast!$G$14:$G$164,Table13[[#This Row],[Items Name]],Breakfast!$C$14:$C$164) -> 0 | K175: =SUMIF(Pasta!$G$14:$G$99,Table13[[#This Row],[Items Name]],Pasta!$C$14:$C$99) -> 0 | L175: =SUMIF(Dessert!$G$14:$G$40,Table13[[#This Row],[Items Name]],Dessert!$C$14:$C$40) -> 0 | M175: =Table1[[#This Row],[isWarehouse&Direct]] -> 0 | N175: =Table1[[#This Row],[isFinished]] -> 0
C176: =Table1[[#This Row],[Code]] -> 128009 | D176: =Table1[[#This Row],[Items Name]] -> Sweet Corn whole canned | E176: =Table1[[#This Row],[Unit]] -> 07 KG | F176: =+Table13[[#This Row],[Souce]]+Table13[[#This Row],[Salad]]+Table13[[#This Row],[Sandwich]]+Table13[[#This Row],[Breacfast]]+Table13[[#This Row],[Pasta]]+Table13[[#This Row],[Dessert]] -> 0 | G176: =SUMIF(Souce!$G$14:$G$357,Table13[[#This Row],[Items Name]],Souce!$C$14:$C$357) -> 0 | H176: =SUMIF(Salad!$G$14:$G$768,Table13[[#This Row],[Items Name]],Salad!$C$14:$C$768) -> 0 | I176: =SUMIF(Sandwich!$G$14:$G$454,Table13[[#This Row],[Items Name]],Sandwich!$C$14:$C$454) -> 0 | J176: =SUMIF(Breakfast!$G$14:$G$164,Table13[[#This Row],[Items Name]],Breakfast!$C$14:$C$164) -> 0 | K176: =SUMIF(Pasta!$G$14:$G$99,Table13[[#This Row],[Items Name]],Pasta!$C$14:$C$99) -> 0 | L176: =SUMIF(Dessert!$G$14:$G$40,Table13[[#This Row],[Items Name]],Dessert!$C$14:$C$40) -> 0 | M176: =Table1[[#This Row],[isWarehouse&Direct]] -> 0 | N176: =Table1[[#This Row],[isFinished]] -> 0
C177: =Table1[[#This Row],[Code]] -> 128010 | D177: =Table1[[#This Row],[Items Name]] -> Sauce, Hot | E177: =Table1[[#This Row],[Unit]] -> 07 KG | F177: =+Table13[[#This Row],[Souce]]+Table13[[#This Row],[Salad]]+Table13[[#This Row],[Sandwich]]+Table13[[#This Row],[Breacfast]]+Table13[[#This Row],[Pasta]]+Table13[[#This Row],[Dessert]] -> 0 | G177: =SUMIF(Souce!$G$14:$G$357,Table13[[#This Row],[Items Name]],Souce!$C$14:$C$357) -> 0 | H177: =SUMIF(Salad!$G$14:$G$768,Table13[[#This Row],[Items Name]],Salad!$C$14:$C$768) -> 0 | I177: =SUMIF(Sandwich!$G$14:$G$454,Table13[[#This Row],[Items Name]],Sandwich!$C$14:$C$454) -> 0 | J177: =SUMIF(Breakfast!$G$14:$G$164,Table13[[#This Row],[Items Name]],Breakfast!$C$14:$C$164) -> 0 | K177: =SUMIF(Pasta!$G$14:$G$99,Table13[[#This Row],[Items Name]],Pasta!$C$14:$C$99) -> 0 | L177: =SUMIF(Dessert!$G$14:$G$40,Table13[[#This Row],[Items Name]],Dessert!$C$14:$C$40) -> 0 | M177: =Table1[[#This Row],[isWarehouse&Direct]] -> 0 | N177: =Table1[[#This Row],[isFinished]] -> 0
C178: =Table1[[#This Row],[Code]] -> 128011 | D178: =Table1[[#This Row],[Items Name]] -> Tomato Paste | E178: =Table1[[#This Row],[Unit]] -> 07 KG | F178: =+Table13[[#This Row],[Souce]]+Table13[[#This Row],[Salad]]+Table13[[#This Row],[Sandwich]]+Table13[[#This Row],[Breacfast]]+Table13[[#This Row],[Pasta]]+Table13[[#This Row],[Dessert]] -> 0 | G178: =SUMIF(Souce!$G$14:$G$357,Table13[[#This Row],[Items Name]],Souce!$C$14:$C$357) -> 0 | H178: =SUMIF(Salad!$G$14:$G$768,Table13[[#This Row],[Items Name]],Salad!$C$14:$C$768) -> 0 | I178: =SUMIF(Sandwich!$G$14:$G$454,Table13[[#This Row],[Items Name]],Sandwich!$C$14:$C$454) -> 0 | J178: =SUMIF(Breakfast!$G$14:$G$164,Table13[[#This Row],[Items Name]],Breakfast!$C$14:$C$164) -> 0 | K178: =SUMIF(Pasta!$G$14:$G$99,Table13[[#This Row],[Items Name]],Pasta!$C$14:$C$99) -> 0 | L178: =SUMIF(Dessert!$G$14:$G$40,Table13[[#This Row],[Items Name]],Dessert!$C$14:$C$40) -> 0 | M178: =Table1[[#This Row],[isWarehouse&Direct]] -> .135G | N178: =Table1[[#This Row],[isFinished]] -> 0
C179: =Table1[[#This Row],[Code]] -> 128012 | D179: =Table1[[#This Row],[Items Name]] -> White Vingar | E179: =Table1[[#This Row],[Unit]] -> 12 LTR | F179: =+Table13[[#This Row],[Souce]]+Table13[[#This Row],[Salad]]+Table13[[#This Row],[Sandwich]]+Table13[[#This Row],[Breacfast]]+Table13[[#This Row],[Pasta]]+Table13[[#This Row],[Dessert]] -> 0 | G179: =SUMIF(Souce!$G$14:$G$357,Table13[[#This Row],[Items Name]],Souce!$C$14:$C$357) -> 0 | H179: =SUMIF(Salad!$G$14:$G$768,Table13[[#This Row],[Items Name]],Salad!$C$14:$C$768) -> 0 | I179: =SUMIF(Sandwich!$G$14:$G$454,Table13[[#This Row],[Items Name]],Sandwich!$C$14:$C$454) -> 0 | J179: =SUMIF(Breakfast!$G$14:$G$164,Table13[[#This Row],[Items Name]],Breakfast!$C$14:$C$164) -> 0 | K179: =SUMIF(Pasta!$G$14:$G$99,Table13[[#This Row],[Items Name]],Pasta!$C$14:$C$99) -> 0 | L179: =SUMIF(Dessert!$G$14:$G$40,Table13[[#This Row],[Items Name]],Dessert!$C$14:$C$40) -> 0 | M179: =Table1[[#This Row],[isWarehouse&Direct]] -> 0 | N179: =Table1[[#This Row],[isFinished]] -> 0
C180: =Table1[[#This Row],[Code]] -> 128013 | D180: =Table1[[#This Row],[Items Name]] -> Chick peas in brine boiled | E180: =Table1[[#This Row],[Unit]] -> 03 Gr | F180: =+Table13[[#This Row],[Souce]]+Table13[[#This Row],[Salad]]+Table13[[#This Row],[Sandwich]]+Table13[[#This Row],[Breacfast]]+Table13[[#This Row],[Pasta]]+Table13[[#This Row],[Dessert]] -> 0 | G180: =SUMIF(Souce!$G$14:$G$357,Table13[[#This Row],[Items Name]],Souce!$C$14:$C$357) -> 0 | H180: =SUMIF(Salad!$G$14:$G$768,Table13[[#This Row],[Items Name]],Salad!$C$14:$C$768) -> 0 | I180: =SUMIF(Sandwich!$G$14:$G$454,Table13[[#This Row],[Items Name]],Sandwich!$C$14:$C$454) -> 0 | J180: =SUMIF(Breakfast!$G$14:$G$164,Table13[[#This Row],[Items Name]],Breakfast!$C$14:$C$164) -> 0 | K180: =SUMIF(Pasta!$G$14:$G$99,Table13[[#This Row],[Items Name]],Pasta!$C$14:$C$99) -> 0 | L180: =SUMIF(Dessert!$G$14:$G$40,Table13[[#This Row],[Items Name]],Dessert!$C$14:$C$40) -> 0 | M180: =Table1[[#This Row],[isWarehouse&Direct]] -> 0 | N180: =Table1[[#This Row],[isFinished]] -> 0
C181: =Table1[[#This Row],[Code]] -> 128014 | D181: =Table1[[#This Row],[Items Name]] -> Chicken Broth cubes magi | E181: =Table1[[#This Row],[Unit]] -> 07 KG | F181: =+Table13[[#This Row],[Souce]]+Table13[[#This Row],[Salad]]+Table13[[#This Row],[Sandwich]]+Table13[[#This Row],[Breacfast]]+Table13[[#This Row],[Pasta]]+Table13[[#This Row],[Dessert]] -> 0 | G181: =SUMIF(Souce!$G$14:$G$357,Table13[[#This Row],[Items Name]],Souce!$C$14:$C$357) -> 0 | H181: =SUMIF(Salad!$G$14:$G$768,Table13[[#This Row],[Items Name]],Salad!$C$14:$C$768) -> 0 | I181: =SUMIF(Sandwich!$G$14:$G$454,Table13[[#This Row],[Items Name]],Sandwich!$C$14:$C$454) -> 0 | J181: =SUMIF(Breakfast!$G$14:$G$164,Table13[[#This Row],[Items Name]],Breakfast!$C$14:$C$164) -> 0 | K181: =SUMIF(Pasta!$G$14:$G$99,Table13[[#This Row],[Items Name]],Pasta!$C$14:$C$99) -> 0 | L181: =SUMIF(Dessert!$G$14:$G$40,Table13[[#This Row],[Items Name]],Dessert!$C$14:$C$40) -> 0 | M181: =Table1[[#This Row],[isWarehouse&Direct]] -> 0 | N181: =Table1[[#This Row],[isFinished]] -> 0
C182: =Table1[[#This Row],[Code]] -> 128015 | D182: =Table1[[#This Row],[Items Name]] -> Sun Dried Tomatoes | E182: =Table1[[#This Row],[Unit]] -> 07 KG | F182: =+Table13[[#This Row],[Souce]]+Table13[[#This Row],[Salad]]+Table13[[#This Row],[Sandwich]]+Table13[[#This Row],[Breacfast]]+Table13[[#This Row],[Pasta]]+Table13[[#This Row],[Dessert]] -> 0 | G182: =SUMIF(Souce!$G$14:$G$357,Table13[[#This Row],[Items Name]],Souce!$C$14:$C$357) -> 0 | H182: =SUMIF(Salad!$G$14:$G$768,Table13[[#This Row],[Items Name]],Salad!$C$14:$C$768) -> 0 | I182: =SUMIF(Sandwich!$G$14:$G$454,Table13[[#This Row],[Items Name]],Sandwich!$C$14:$C$454) -> 0 | J182: =SUMIF(Breakfast!$G$14:$G$164,Table13[[#This Row],[Items Name]],Breakfast!$C$14:$C$164) -> 0 | K182: =SUMIF(Pasta!$G$14:$G$99,Table13[[#This Row],[Items Name]],Pasta!$C$14:$C$99) -> 0 | L182: =SUMIF(Dessert!$G$14:$G$40,Table13[[#This Row],[Items Name]],Dessert!$C$14:$C$40) -> 0 | M182: =Table1[[#This Row],[isWarehouse&Direct]] -> 0 | N182: =Table1[[#This Row],[isFinished]] -> 0
C183: =Table1[[#This Row],[Code]] -> 128016 | D183: =Table1[[#This Row],[Items Name]] -> Oil Sunflower Al Aseel | E183: =Table1[[#This Row],[Unit]] -> 12 LTR | F183: =+Table13[[#This Row],[Souce]]+Table13[[#This Row],[Salad]]+Table13[[#This Row],[Sandwich]]+Table13[[#This Row],[Breacfast]]+Table13[[#This Row],[Pasta]]+Table13[[#This Row],[Dessert]] -> 0 | G183: =SUMIF(Souce!$G$14:$G$357,Table13[[#This Row],[Items Name]],Souce!$C$14:$C$357) -> 0 | H183: =SUMIF(Salad!$G$14:$G$768,Table13[[#This Row],[Items Name]],Salad!$C$14:$C$768) -> 0 | I183: =SUMIF(Sandwich!$G$14:$G$454,Table13[[#This Row],[Items Name]],Sandwich!$C$14:$C$454) -> 0 | J183: =SUMIF(Breakfast!$G$14:$G$164,Table13[[#This Row],[Items Name]],Breakfast!$C$14:$C$164) -> 0 | K183: =SUMIF(Pasta!$G$14:$G$99,Table13[[#This Row],[Items Name]],Pasta!$C$14:$C$99) -> 0 | L183: =SUMIF(Dessert!$G$14:$G$40,Table13[[#This Row],[Items Name]],Dessert!$C$14:$C$40) -> 0 | M183: =Table1[[#This Row],[isWarehouse&Direct]] -> 0 | N183: =Table1[[#This Row],[isFinished]] -> 0
C184: =Table1[[#This Row],[Code]] -> 128017 | D184: =Table1[[#This Row],[Items Name]] -> Oil Veagtable | E184: =Table1[[#This Row],[Unit]] -> 12 LTR | F184: =+Table13[[#This Row],[Souce]]+Table13[[#This Row],[Salad]]+Table13[[#This Row],[Sandwich]]+Table13[[#This Row],[Breacfast]]+Table13[[#This Row],[Pasta]]+Table13[[#This Row],[Dessert]] -> 0 | G184: =SUMIF(Souce!$G$14:$G$357,Table13[[#This Row],[Items Name]],Souce!$C$14:$C$357) -> 0 | H184: =SUMIF(Salad!$G$14:$G$768,Table13[[#This Row],[Items Name]],Salad!$C$14:$C$768) -> 0 | I184: =SUMIF(Sandwich!$G$14:$G$454,Table13[[#This Row],[Items Name]],Sandwich!$C$14:$C$454) -> 0 | J184: =SUMIF(Breakfast!$G$14:$G$164,Table13[[#This Row],[Items Name]],Breakfast!$C$14:$C$164) -> 0 | K184: =SUMIF(Pasta!$G$14:$G$99,Table13[[#This Row],[Items Name]],Pasta!$C$14:$C$99) -> 0 | L184: =SUMIF(Dessert!$G$14:$G$40,Table13[[#This Row],[Items Name]],Dessert!$C$14:$C$40) -> 0 | M184: =Table1[[#This Row],[isWarehouse&Direct]] -> 0 | N184: =Table1[[#This Row],[isFinished]] -> 0
C185: =Table1[[#This Row],[Code]] -> 128018 | D185: =Table1[[#This Row],[Items Name]] -> Sauce, Sweet Chilli | E185: =Table1[[#This Row],[Unit]] -> 07 KG | F185: =+Table13[[#This Row],[Souce]]+Table13[[#This Row],[Salad]]+Table13[[#This Row],[Sandwich]]+Table13[[#This Row],[Breacfast]]+Table13[[#This Row],[Pasta]]+Table13[[#This Row],[Dessert]] -> 0 | G185: =SUMIF(Souce!$G$14:$G$357,Table13[[#This Row],[Items Name]],Souce!$C$14:$C$357) -> 0 | H185: =SUMIF(Salad!$G$14:$G$768,Table13[[#This Row],[Items Name]],Salad!$C$14:$C$768) -> 0 | I185: =SUMIF(Sandwich!$G$14:$G$454,Table13[[#This Row],[Items Name]],Sandwich!$C$14:$C$454) -> 0 | J185: =SUMIF(Breakfast!$G$14:$G$164,Table13[[#This Row],[Items Name]],Breakfast!$C$14:$C$164) -> 0 | K185: =SUMIF(Pasta!$G$14:$G$99,Table13[[#This Row],[Items Name]],Pasta!$C$14:$C$99) -> 0 | L185: =SUMIF(Dessert!$G$14:$G$40,Table13[[#This Row],[Items Name]],Dessert!$C$14:$C$40) -> 0 | M185: =Table1[[#This Row],[isWarehouse&Direct]] -> 0 | N185: =Table1[[#This Row],[isFinished]] -> 0
C186: =Table1[[#This Row],[Code]] -> 128019 | D186: =Table1[[#This Row],[Items Name]] -> Sodium Carbonate | E186: =Table1[[#This Row],[Unit]] -> 07 KG | F186: =+Table13[[#This Row],[Souce]]+Table13[[#This Row],[Salad]]+Table13[[#This Row],[Sandwich]]+Table13[[#This Row],[Breacfast]]+Table13[[#This Row],[Pasta]]+Table13[[#This Row],[Dessert]] -> 0 | G186: =SUMIF(Souce!$G$14:$G$357,Table13[[#This Row],[Items Name]],Souce!$C$14:$C$357) -> 0 | H186: =SUMIF(Salad!$G$14:$G$768,Table13[[#This Row],[Items Name]],Salad!$C$14:$C$768) -> 0 | I186: =SUMIF(Sandwich!$G$14:$G$454,Table13[[#This Row],[Items Name]],Sandwich!$C$14:$C$454) -> 0 | J186: =SUMIF(Breakfast!$G$14:$G$164,Table13[[#This Row],[Items Name]],Breakfast!$C$14:$C$164) -> 0 | K186: =SUMIF(Pasta!$G$14:$G$99,Table13[[#This Row],[Items Name]],Pasta!$C$14:$C$99) -> 0 | L186: =SUMIF(Dessert!$G$14:$G$40,Table13[[#This Row],[Items Name]],Dessert!$C$14:$C$40) -> 0 | M186: =Table1[[#This Row],[isWarehouse&Direct]] -> 0 | N186: =Table1[[#This Row],[isFinished]] -> 0
C187: =Table1[[#This Row],[Code]] -> 128020 | D187: =Table1[[#This Row],[Items Name]] -> EGG NODILES 1*400 GR | E187: =Table1[[#This Row],[Unit]] -> 05 PKT | F187: =+Table13[[#This Row],[Souce]]+Table13[[#This Row],[Salad]]+Table13[[#This Row],[Sandwich]]+Table13[[#This Row],[Breacfast]]+Table13[[#This Row],[Pasta]]+Table13[[#This Row],[Dessert]] -> 0 | G187: =SUMIF(Souce!$G$14:$G$357,Table13[[#This Row],[Items Name]],Souce!$C$14:$C$357) -> 0 | H187: =SUMIF(Salad!$G$14:$G$768,Table13[[#This Row],[Items Name]],Salad!$C$14:$C$768) -> 0 | I187: =SUMIF(Sandwich!$G$14:$G$454,Table13[[#This Row],[Items Name]],Sandwich!$C$14:$C$454) -> 0 | J187: =SUMIF(Breakfast!$G$14:$G$164,Table13[[#This Row],[Items Name]],Breakfast!$C$14:$C$164) -> 0 | K187: =SUMIF(Pasta!$G$14:$G$99,Table13[[#This Row],[Items Name]],Pasta!$C$14:$C$99) -> 0 | L187: =SUMIF(Dessert!$G$14:$G$40,Table13[[#This Row],[Items Name]],Dessert!$C$14:$C$40) -> 0 | M187: =Table1[[#This Row],[isWarehouse&Direct]] -> 0 | N187: =Table1[[#This Row],[isFinished]] -> 0
C188: =Table1[[#This Row],[Code]] -> 128021 | D188: =Table1[[#This Row],[Items Name]] -> Whit Sugar | E188: =Table1[[#This Row],[Unit]] -> 07 KG | F188: =+Table13[[#This Row],[Souce]]+Table13[[#This Row],[Salad]]+Table13[[#This Row],[Sandwich]]+Table13[[#This Row],[Breacfast]]+Table13[[#This Row],[Pasta]]+Table13[[#This Row],[Dessert]] -> 0 | G188: =SUMIF(Souce!$G$14:$G$357,Table13[[#This Row],[Items Name]],Souce!$C$14:$C$357) -> 0 | H188: =SUMIF(Salad!$G$14:$G$768,Table13[[#This Row],[Items Name]],Salad!$C$14:$C$768) -> 0 | I188: =SUMIF(Sandwich!$G$14:$G$454,Table13[[#This Row],[Items Name]],Sandwich!$C$14:$C$454) -> 0 | J188: =SUMIF(Breakfast!$G$14:$G$164,Table13[[#This Row],[Items Name]],Breakfast!$C$14:$C$164) -> 0 | K188: =SUMIF(Pasta!$G$14:$G$99,Table13[[#This Row],[Items Name]],Pasta!$C$14:$C$99) -> 0 | L188: =SUMIF(Dessert!$G$14:$G$40,Table13[[#This Row],[Items Name]],Dessert!$C$14:$C$40) -> 0 | M188: =Table1[[#This Row],[isWarehouse&Direct]] -> 0 | N188: =Table1[[#This Row],[isFinished]] -> 0
C189: =Table1[[#This Row],[Code]] -> 128022 | D189: =Table1[[#This Row],[Items Name]] -> Jam | E189: =Table1[[#This Row],[Unit]] -> 06 Each | F189: =+Table13[[#This Row],[Souce]]+Table13[[#This Row],[Salad]]+Table13[[#This Row],[Sandwich]]+Table13[[#This Row],[Breacfast]]+Table13[[#This Row],[Pasta]]+Table13[[#This Row],[Dessert]] -> 0 | G189: =SUMIF(Souce!$G$14:$G$357,Table13[[#This Row],[Items Name]],Souce!$C$14:$C$357) -> 0 | H189: =SUMIF(Salad!$G$14:$G$768,Table13[[#This Row],[Items Name]],Salad!$C$14:$C$768) -> 0 | I189: =SUMIF(Sandwich!$G$14:$G$454,Table13[[#This Row],[Items Name]],Sandwich!$C$14:$C$454) -> 0 | J189: =SUMIF(Breakfast!$G$14:$G$164,Table13[[#This Row],[Items Name]],Breakfast!$C$14:$C$164) -> 0 | K189: =SUMIF(Pasta!$G$14:$G$99,Table13[[#This Row],[Items Name]],Pasta!$C$14:$C$99) -> 0 | L189: =SUMIF(Dessert!$G$14:$G$40,Table13[[#This Row],[Items Name]],Dessert!$C$14:$C$40) -> 0 | M189: =Table1[[#This Row],[isWarehouse&Direct]] -> 0 | N189: =Table1[[#This Row],[isFinished]] -> 0
C190: =Table1[[#This Row],[Code]] -> 128023 | D190: =Table1[[#This Row],[Items Name]] -> Browen Sugar | E190: =Table1[[#This Row],[Unit]] -> 15 Jar | F190: =+Table13[[#This Row],[Souce]]+Table13[[#This Row],[Salad]]+Table13[[#This Row],[Sandwich]]+Table13[[#This Row],[Breacfast]]+Table13[[#This Row],[Pasta]]+Table13[[#This Row],[Dessert]] -> 0 | G190: =SUMIF(Souce!$G$14:$G$357,Table13[[#This Row],[Items Name]],Souce!$C$14:$C$357) -> 0 | H190: =SUMIF(Salad!$G$14:$G$768,Table13[[#This Row],[Items Name]],Salad!$C$14:$C$768) -> 0 | I190: =SUMIF(Sandwich!$G$14:$G$454,Table13[[#This Row],[Items Name]],Sandwich!$C$14:$C$454) -> 0 | J190: =SUMIF(Breakfast!$G$14:$G$164,Table13[[#This Row],[Items Name]],Breakfast!$C$14:$C$164) -> 0 | K190: =SUMIF(Pasta!$G$14:$G$99,Table13[[#This Row],[Items Name]],Pasta!$C$14:$C$99) -> 0 | L190: =SUMIF(Dessert!$G$14:$G$40,Table13[[#This Row],[Items Name]],Dessert!$C$14:$C$40) -> 0 | M190: =Table1[[#This Row],[isWarehouse&Direct]] -> 0 | N190: =Table1[[#This Row],[isFinished]] -> 0
C191: =Table1[[#This Row],[Code]] -> 128024 | D191: =Table1[[#This Row],[Items Name]] -> Sauce, Ranch dressing | E191: =Table1[[#This Row],[Unit]] -> 07 KG | F191: =+Table13[[#This Row],[Souce]]+Table13[[#This Row],[Salad]]+Table13[[#This Row],[Sandwich]]+Table13[[#This Row],[Breacfast]]+Table13[[#This Row],[Pasta]]+Table13[[#This Row],[Dessert]] -> 0 | G191: =SUMIF(Souce!$G$14:$G$357,Table13[[#This Row],[Items Name]],Souce!$C$14:$C$357) -> 0 | H191: =SUMIF(Salad!$G$14:$G$768,Table13[[#This Row],[Items Name]],Salad!$C$14:$C$768) -> 0 | I191: =SUMIF(Sandwich!$G$14:$G$454,Table13[[#This Row],[Items Name]],Sandwich!$C$14:$C$454) -> 0 | J191: =SUMIF(Breakfast!$G$14:$G$164,Table13[[#This Row],[Items Name]],Breakfast!$C$14:$C$164) -> 0 | K191: =SUMIF(Pasta!$G$14:$G$99,Table13[[#This Row],[Items Name]],Pasta!$C$14:$C$99) -> 0 | L191: =SUMIF(Dessert!$G$14:$G$40,Table13[[#This Row],[Items Name]],Dessert!$C$14:$C$40) -> 0 | M191: =Table1[[#This Row],[isWarehouse&Direct]] -> 0 | N191: =Table1[[#This Row],[isFinished]] -> 0
C192: =Table1[[#This Row],[Code]] -> 128025 | D192: =Table1[[#This Row],[Items Name]] -> Sugar Cane Honey | E192: =Table1[[#This Row],[Unit]] -> 07 KG | F192: =+Table13[[#This Row],[Souce]]+Table13[[#This Row],[Salad]]+Table13[[#This Row],[Sandwich]]+Table13[[#This Row],[Breacfast]]+Table13[[#This Row],[Pasta]]+Table13[[#This Row],[Dessert]] -> 0 | G192: =SUMIF(Souce!$G$14:$G$357,Table13[[#This Row],[Items Name]],Souce!$C$14:$C$357) -> 0 | H192: =SUMIF(Salad!$G$14:$G$768,Table13[[#This Row],[Items Name]],Salad!$C$14:$C$768) -> 0 | I192: =SUMIF(Sandwich!$G$14:$G$454,Table13[[#This Row],[Items Name]],Sandwich!$C$14:$C$454) -> 0 | J192: =SUMIF(Breakfast!$G$14:$G$164,Table13[[#This Row],[Items Name]],Breakfast!$C$14:$C$164) -> 0 | K192: =SUMIF(Pasta!$G$14:$G$99,Table13[[#This Row],[Items Name]],Pasta!$C$14:$C$99) -> 0 | L192: =SUMIF(Dessert!$G$14:$G$40,Table13[[#This Row],[Items Name]],Dessert!$C$14:$C$40) -> 0 | M192: =Table1[[#This Row],[isWarehouse&Direct]] -> 0 | N192: =Table1[[#This Row],[isFinished]] -> 0
C193: =Table1[[#This Row],[Code]] -> 128026 | D193: =Table1[[#This Row],[Items Name]] -> FLOUR WHITE PAKT * 1 K G | E193: =Table1[[#This Row],[Unit]] -> 05 PKT | F193: =+Table13[[#This Row],[Souce]]+Table13[[#This Row],[Salad]]+Table13[[#This Row],[Sandwich]]+Table13[[#This Row],[Breacfast]]+Table13[[#This Row],[Pasta]]+Table13[[#This Row],[Dessert]] -> 0 | G193: =SUMIF(Souce!$G$14:$G$357,Table13[[#This Row],[Items Name]],Souce!$C$14:$C$357) -> 0 | H193: =SUMIF(Salad!$G$14:$G$768,Table13[[#This Row],[Items Name]],Salad!$C$14:$C$768) -> 0 | I193: =SUMIF(Sandwich!$G$14:$G$454,Table13[[#This Row],[Items Name]],Sandwich!$C$14:$C$454) -> 0 | J193: =SUMIF(Breakfast!$G$14:$G$164,Table13[[#This Row],[Items Name]],Breakfast!$C$14:$C$164) -> 0 | K193: =SUMIF(Pasta!$G$14:$G$99,Table13[[#This Row],[Items Name]],Pasta!$C$14:$C$99) -> 0 | L193: =SUMIF(Dessert!$G$14:$G$40,Table13[[#This Row],[Items Name]],Dessert!$C$14:$C$40) -> 0 | M193: =Table1[[#This Row],[isWarehouse&Direct]] -> 0 | N193: =Table1[[#This Row],[isFinished]] -> 0
C194: =Table1[[#This Row],[Code]] -> 128027 | D194: =Table1[[#This Row],[Items Name]] -> olives blackwhole | E194: =Table1[[#This Row],[Unit]] -> 07 KG | F194: =+Table13[[#This Row],[Souce]]+Table13[[#This Row],[Salad]]+Table13[[#This Row],[Sandwich]]+Table13[[#This Row],[Breacfast]]+Table13[[#This Row],[Pasta]]+Table13[[#This Row],[Dessert]] -> 0 | G194: =SUMIF(Souce!$G$14:$G$357,Table13[[#This Row],[Items Name]],Souce!$C$14:$C$357) -> 0 | H194: =SUMIF(Salad!$G$14:$G$768,Table13[[#This Row],[Items Name]],Salad!$C$14:$C$768) -> 0 | I194: =SUMIF(Sandwich!$G$14:$G$454,Table13[[#This Row],[Items Name]],Sandwich!$C$14:$C$454) -> 0 | J194: =SUMIF(Breakfast!$G$14:$G$164,Table13[[#This Row],[Items Name]],Breakfast!$C$14:$C$164) -> 0 | K194: =SUMIF(Pasta!$G$14:$G$99,Table13[[#This Row],[Items Name]],Pasta!$C$14:$C$99) -> 0 | L194: =SUMIF(Dessert!$G$14:$G$40,Table13[[#This Row],[Items Name]],Dessert!$C$14:$C$40) -> 0 | M194: =Table1[[#This Row],[isWarehouse&Direct]] -> 0 | N194: =Table1[[#This Row],[isFinished]] -> 0
C195: =Table1[[#This Row],[Code]] -> 128028 | D195: =Table1[[#This Row],[Items Name]] -> olives Green | E195: =Table1[[#This Row],[Unit]] -> 07 KG | F195: =+Table13[[#This Row],[Souce]]+Table13[[#This Row],[Salad]]+Table13[[#This Row],[Sandwich]]+Table13[[#This Row],[Breacfast]]+Table13[[#This Row],[Pasta]]+Table13[[#This Row],[Dessert]] -> 0 | G195: =SUMIF(Souce!$G$14:$G$357,Table13[[#This Row],[Items Name]],Souce!$C$14:$C$357) -> 0 | H195: =SUMIF(Salad!$G$14:$G$768,Table13[[#This Row],[Items Name]],Salad!$C$14:$C$768) -> 0 | I195: =SUMIF(Sandwich!$G$14:$G$454,Table13[[#This Row],[Items Name]],Sandwich!$C$14:$C$454) -> 0 | J195: =SUMIF(Breakfast!$G$14:$G$164,Table13[[#This Row],[Items Name]],Breakfast!$C$14:$C$164) -> 0 | K195: =SUMIF(Pasta!$G$14:$G$99,Table13[[#This Row],[Items Name]],Pasta!$C$14:$C$99) -> 0 | L195: =SUMIF(Dessert!$G$14:$G$40,Table13[[#This Row],[Items Name]],Dessert!$C$14:$C$40) -> 0 | M195: =Table1[[#This Row],[isWarehouse&Direct]] -> 0 | N195: =Table1[[#This Row],[isFinished]] -> 0
C196: =Table1[[#This Row],[Code]] -> 128029 | D196: =Table1[[#This Row],[Items Name]] -> geeen peppercorns in vinagar | E196: =Table1[[#This Row],[Unit]] -> 15 Jar | F196: =+Table13[[#This Row],[Souce]]+Table13[[#This Row],[Salad]]+Table13[[#This Row],[Sandwich]]+Table13[[#This Row],[Breacfast]]+Table13[[#This Row],[Pasta]]+Table13[[#This Row],[Dessert]] -> 0 | G196: =SUMIF(Souce!$G$14:$G$357,Table13[[#This Row],[Items Name]],Souce!$C$14:$C$357) -> 0 | H196: =SUMIF(Salad!$G$14:$G$768,Table13[[#This Row],[Items Name]],Salad!$C$14:$C$768) -> 0 | I196: =SUMIF(Sandwich!$G$14:$G$454,Table13[[#This Row],[Items Name]],Sandwich!$C$14:$C$454) -> 0 | J196: =SUMIF(Breakfast!$G$14:$G$164,Table13[[#This Row],[Items Name]],Breakfast!$C$14:$C$164) -> 0 | K196: =SUMIF(Pasta!$G$14:$G$99,Table13[[#This Row],[Items Name]],Pasta!$C$14:$C$99) -> 0 | L196: =SUMIF(Dessert!$G$14:$G$40,Table13[[#This Row],[Items Name]],Dessert!$C$14:$C$40) -> 0 | M196: =Table1[[#This Row],[isWarehouse&Direct]] -> 0 | N196: =Table1[[#This Row],[isFinished]] -> 0
C197: =Table1[[#This Row],[Code]] -> 128030 | D197: =Table1[[#This Row],[Items Name]] -> basmte rice | E197: =Table1[[#This Row],[Unit]] -> 07 KG | F197: =+Table13[[#This Row],[Souce]]+Table13[[#This Row],[Salad]]+Table13[[#This Row],[Sandwich]]+Table13[[#This Row],[Breacfast]]+Table13[[#This Row],[Pasta]]+Table13[[#This Row],[Dessert]] -> 0 | G197: =SUMIF(Souce!$G$14:$G$357,Table13[[#This Row],[Items Name]],Souce!$C$14:$C$357) -> 0 | H197: =SUMIF(Salad!$G$14:$G$768,Table13[[#This Row],[Items Name]],Salad!$C$14:$C$768) -> 0 | I197: =SUMIF(Sandwich!$G$14:$G$454,Table13[[#This Row],[Items Name]],Sandwich!$C$14:$C$454) -> 0 | J197: =SUMIF(Breakfast!$G$14:$G$164,Table13[[#This Row],[Items Name]],Breakfast!$C$14:$C$164) -> 0 | K197: =SUMIF(Pasta!$G$14:$G$99,Table13[[#This Row],[Items Name]],Pasta!$C$14:$C$99) -> 0 | L197: =SUMIF(Dessert!$G$14:$G$40,Table13[[#This Row],[Items Name]],Dessert!$C$14:$C$40) -> 0 | M197: =Table1[[#This Row],[isWarehouse&Direct]] -> 0 | N197: =Table1[[#This Row],[isFinished]] -> 0
C198: =Table1[[#This Row],[Code]] -> 128031 | D198: =Table1[[#This Row],[Items Name]] -> rosito rice | E198: =Table1[[#This Row],[Unit]] -> 07 KG | F198: =+Table13[[#This Row],[Souce]]+Table13[[#This Row],[Salad]]+Table13[[#This Row],[Sandwich]]+Table13[[#This Row],[Breacfast]]+Table13[[#This Row],[Pasta]]+Table13[[#This Row],[Dessert]] -> 0 | G198: =SUMIF(Souce!$G$14:$G$357,Table13[[#This Row],[Items Name]],Souce!$C$14:$C$357) -> 0 | H198: =SUMIF(Salad!$G$14:$G$768,Table13[[#This Row],[Items Name]],Salad!$C$14:$C$768) -> 0 | I198: =SUMIF(Sandwich!$G$14:$G$454,Table13[[#This Row],[Items Name]],Sandwich!$C$14:$C$454) -> 0 | J198: =SUMIF(Breakfast!$G$14:$G$164,Table13[[#This Row],[Items Name]],Breakfast!$C$14:$C$164) -> 0 | K198: =SUMIF(Pasta!$G$14:$G$99,Table13[[#This Row],[Items Name]],Pasta!$C$14:$C$99) -> 0 | L198: =SUMIF(Dessert!$G$14:$G$40,Table13[[#This Row],[Items Name]],Dessert!$C$14:$C$40) -> 0 | M198: =Table1[[#This Row],[isWarehouse&Direct]] -> 0 | N198: =Table1[[#This Row],[isFinished]] -> 0
C199: =Table1[[#This Row],[Code]] -> 128032 | D199: =Table1[[#This Row],[Items Name]] -> sesame oil heynes | E199: =Table1[[#This Row],[Unit]] -> 07 KG | F199: =+Table13[[#This Row],[Souce]]+Table13[[#This Row],[Salad]]+Table13[[#This Row],[Sandwich]]+Table13[[#This Row],[Breacfast]]+Table13[[#This Row],[Pasta]]+Table13[[#This Row],[Dessert]] -> 0 | G199: =SUMIF(Souce!$G$14:$G$357,Table13[[#This Row],[Items Name]],Souce!$C$14:$C$357) -> 0 | H199: =SUMIF(Salad!$G$14:$G$768,Table13[[#This Row],[Items Name]],Salad!$C$14:$C$768) -> 0 | I199: =SUMIF(Sandwich!$G$14:$G$454,Table13[[#This Row],[Items Name]],Sandwich!$C$14:$C$454) -> 0 | J199: =SUMIF(Breakfast!$G$14:$G$164,Table13[[#This Row],[Items Name]],Breakfast!$C$14:$C$164) -> 0 | K199: =SUMIF(Pasta!$G$14:$G$99,Table13[[#This Row],[Items Name]],Pasta!$C$14:$C$99) -> 0 | L199: =SUMIF(Dessert!$G$14:$G$40,Table13[[#This Row],[Items Name]],Dessert!$C$14:$C$40) -> 0 | M199: =Table1[[#This Row],[isWarehouse&Direct]] -> 0 | N199: =Table1[[#This Row],[isFinished]] -> 0
C200: =Table1[[#This Row],[Code]] -> 128033 | D200: =Table1[[#This Row],[Items Name]] -> seweet corn | E200: =Table1[[#This Row],[Unit]] -> 04 Box | F200: =+Table13[[#This Row],[Souce]]+Table13[[#This Row],[Salad]]+Table13[[#This Row],[Sandwich]]+Table13[[#This Row],[Breacfast]]+Table13[[#This Row],[Pasta]]+Table13[[#This Row],[Dessert]] -> 0 | G200: =SUMIF(Souce!$G$14:$G$357,Table13[[#This Row],[Items Name]],Souce!$C$14:$C$357) -> 0 | H200: =SUMIF(Salad!$G$14:$G$768,Table13[[#This Row],[Items Name]],Salad!$C$14:$C$768) -> 0 | I200: =SUMIF(Sandwich!$G$14:$G$454,Table13[[#This Row],[Items Name]],Sandwich!$C$14:$C$454) -> 0 | J200: =SUMIF(Breakfast!$G$14:$G$164,Table13[[#This Row],[Items Name]],Breakfast!$C$14:$C$164) -> 0 | K200: =SUMIF(Pasta!$G$14:$G$99,Table13[[#This Row],[Items Name]],Pasta!$C$14:$C$99) -> 0 | L200: =SUMIF(Dessert!$G$14:$G$40,Table13[[#This Row],[Items Name]],Dessert!$C$14:$C$40) -> 0 | M200: =Table1[[#This Row],[isWarehouse&Direct]] -> 0 | N200: =Table1[[#This Row],[isFinished]] -> 0
... 456 more rows

Sheet production
A1: Category | B1: Code | C1: Items Name | D1: Unit | E1: Cost Pris | F1: Opening balance | G1: Purchases | H1: T.In | I1: T.Out | J1: Wast | K1: Cloes balance | L1: Using | M1: Actually Using | N1: Short &Over
A2: Beverge
A3: Juice | B3: 21000 | C3: =+Prchi!#REF! ->  | D3: 07 KG | E3: =+Prchi!#REF! ->  | G3: =+Prchi!#REF! ->  | L3: =(K3+J3+I3)-(H3+G3+F3) ->  | M3: =+Table13[[#This Row],[Total]] -> 0 | N3: =+L3+M3 -> 
A4: Category: 20 Meat | B4: 120001 | C4: =+Prchi!C3 -> BEEF FILLET | D4: 07 KG | E4: =+Prchi!E3 -> 0 | G4: =+Prchi!AL3 -> 0 | L4: =(K4+J4+I4)-(H4+G4+F4) -> 0 | M4: =+Table13[[#This Row],[Total]] -> 0 | N4: =+L4+M4 -> 0
B5: 120002 | C5: =+Prchi!C4 -> BEEF HELL Oriantal | D5: 07 KG | E5: =+Prchi!E4 -> 0 | G5: =+Prchi!AL4 -> 0 | L5: 0 | M5: =+Table13[[#This Row],[Total]] -> 0 | N5: 0
B6: 120003 | C6: =+Prchi!C5 -> BEEFE NECK | D6: 07 KG | E6: =+Prchi!E5 -> 0 | G6: =+Prchi!AL5 -> 0 | L6: 0 | M6: =+Table13[[#This Row],[Total]] -> 0 | N6: 0
B7: 120004 | C7: =+Prchi!C6 -> beef top side | D7: 07 KG | E7: =+Prchi!E6 -> 0 | G7: =+Prchi!AL6 -> 0 | L7: 0 | M7: =+Table13[[#This Row],[Total]] -> 0 | N7: 0
B8: 120005 | C8: =+Prchi!C7 -> Smoked Beef (Tripianco) | D8: 07 KG | E8: =+Prchi!E7 -> 0 | G8: =+Prchi!AL7 -> 0 | L8: 0 | M8: =+Table13[[#This Row],[Total]] -> 0 | N8: 0
B9: 120006 | C9: =+Prchi!C8 -> Meet Pepironi | D9: 07 KG | E9: =+Prchi!E8 -> 31.57 | G9: =+Prchi!AL8 -> 0 | L9: 0 | M9: =+Table13[[#This Row],[Total]] -> 0 | N9: 0
B10: 120007 | C10: =+Prchi!C9 -> Mortadilla TURKY | D10: 07 KG | E10: =+Prchi!E9 -> 54.95 | F10: 0.25 | G10: =+Prchi!AL9 -> 0 | L10: -0.25 | M10: =+Table13[[#This Row],[Total]] -> 0 | N10: -0.25
B11: 120008 | C11: =+Prchi!C10 -> VEAL LEG IMPORTED | D11: 07 KG | E11: =+Prchi!E10 -> 0 | G11: =+Prchi!AL10 -> 0 | L11: 0 | M11: =+Table13[[#This Row],[Total]] -> 0 | N11: 0
B12: 120009 | C12: =+Prchi!C11 -> Sausages | D12: 07 KG | E12: =+Prchi!E11 -> 5.5 | G12: =+Prchi!AL11 -> 0 | L12: 0 | M12: =+Table13[[#This Row],[Total]] -> 0 | N12: 0
B13: 120100 | C13: =+Prchi!C12 -> roast beef | D13: 07 KG | E13: =+Prchi!E12 -> 0 | G13: =+Prchi!AL12 -> 0 | L13: 0 | M13: =+Table13[[#This Row],[Total]] -> 0 | N13: 0
B14: 120101 | C14: =+Prchi!C13 -> roast beef cooked | D14: 07 KG | E14: =+Prchi!E13 -> 0 | G14: =+Prchi!AL13 -> 0 | L14: 0 | M14: =+Table13[[#This Row],[Total]] -> 0 | N14: 0
B15: 120102 | C15: =+Prchi!C14 -> Mortadilla Beef | D15: 07 KG | E15: =+Prchi!E14 -> 56.95 | G15: =+Prchi!AL14 -> 0 | L15: 0 | M15: =+Table13[[#This Row],[Total]] -> 0 | N15: 0
B16: 120103 | C16: =+Prchi!C15 -> Hot Dog | D16: 07 KG | E16: =+Prchi!E15 -> 18.06 | F16: 10 | G16: =+Prchi!AL15 -> 0 | L16: -10 | M16: =+Table13[[#This Row],[Total]] -> 0 | N16: -10
A17: Category: 21 Sea Food | B17: 121001 | C17: =+Prchi!C16 -> SF CRAB | D17: 07 KG | E17: =+Prchi!E16 -> 0 | G17: =+Prchi!AL16 -> 0 | L17: 0 | M17: =+Table13[[#This Row],[Total]] -> 0 | N17: 0
B18: 121002 | C18: =+Prchi!C17 -> salmon smoked | D18: 07 KG | E18: =+Prchi!E17 -> 0 | G18: =+Prchi!AL17 -> 0 | L18: 0 | M18: =+Table13[[#This Row],[Total]] -> 0 | N18: 0
B19: 121003 | C19: =+Prchi!C18 -> anchovies | D19: 07 KG | E19: =+Prchi!E18 -> 0 | G19: =+Prchi!AL18 -> 0 | L19: 0 | M19: =+Table13[[#This Row],[Total]] -> 0 | N19: 0
B20: 121004 | C20: =+Prchi!C19 -> SF FISH FILLET | D20: 07 KG | E20: =+Prchi!E19 -> 0 | G20: =+Prchi!AL19 -> 0 | L20: 0 | M20: =+Table13[[#This Row],[Total]] -> 0 | N20: 0
B21: 121005 | C21: =+Prchi!C20 -> SF ANCHOVIS 92 GR BOX 1*24 | D21: 07 KG | E21: =+Prchi!E20 -> 0 | G21: =+Prchi!AL20 -> 0 | L21: 0 | M21: =+Table13[[#This Row],[Total]] -> 0 | N21: 0
B22: 121006 | C22: =+Prchi!C21 -> Tuna Chunks-Dolphin 1.8 KG | D22: 07 KG | E22: =+Prchi!E21 -> 39.75 | F22: 0.26 | G22: =+Prchi!AL21 -> 0 | L22: -0.26 | M22: =+Table13[[#This Row],[Total]] -> 0 | N22: -0.26
B23: 121007 | C23: =+Prchi!C22 -> TUNA Kg | D23: 07 KG | E23: =+Prchi!E22 -> 0 | G23: =+Prchi!AL22 -> 0 | L23: 0 | M23: =+Table13[[#This Row],[Total]] -> 0 | N23: 0
B24: 121009 | C24: =+Prchi!C23 -> cooked salami | D24: 07 KG | E24: =+Prchi!E23 -> 0 | G24: =+Prchi!AL23 -> 0 | L24: 0 | M24: =+Table13[[#This Row],[Total]] -> 0 | N24: 0
B25: 121010 | C25: =+Prchi!C24 -> susis village (tbs) 200GR | D25: 05 PKT | E25: =+Prchi!E24 -> 0 | G25: =+Prchi!AL24 -> 0 | L25: 0 | M25: =+Table13[[#This Row],[Total]] -> 0 | N25: 0
B26: 121011 | C26: =+Prchi!C25 -> Frozen shrimp | D26: 07 KG | E26: =+Prchi!E25 -> 65 | F26: 0.9 | G26: =+Prchi!AL25 -> 0 | L26: -0.9 | M26: =+Table13[[#This Row],[Total]] -> 0 | N26: -0.9
B27: 121012 | C27: =+Prchi!C26 -> kofta | D27: 07 KG | E27: =+Prchi!E26 -> 0 | G27: =+Prchi!AL26 -> 0 | L27: 0 | M27: =+Table13[[#This Row],[Total]] -> 0 | N27: 0
B28: 121013 | C28: =+Prchi!C27 -> chicken nagts | D28: 07 KG | E28: =+Prchi!E27 -> 0 | G28: =+Prchi!AL27 -> 0 | L28: 0 | M28: =+Table13[[#This Row],[Total]] -> 0 | N28: 0
B29: 121014 | C29: =+Prchi!C28 -> fish nagts | D29: 07 KG | E29: =+Prchi!E28 -> 0 | G29: =+Prchi!AL28 -> 0 | L29: 0 | M29: =+Table13[[#This Row],[Total]] -> 0 | N29: 0
B30: 121015 | C30: =+Prchi!C29 -> Tuna Chunks-Dolny1.7 | D30: 07 KG | E30: =+Prchi!E29 -> 0 | G30: =+Prchi!AL29 -> 0 | L30: 0 | M30: =+Table13[[#This Row],[Total]] -> 0 | N30: 0
B31: 121016 | C31: =+Prchi!C30 -> Sf Calimary | D31: 07 KG | E31: =+Prchi!E30 -> 0 | G31: =+Prchi!AL30 -> 0 | L31: 0 | M31: =+Table13[[#This Row],[Total]] -> 0 | N31: 0
A32: Category: 22 Poyultry | B32: 122001 | C32: =+Prchi!C31 -> Chicken Breast | D32: 07 KG | E32: =+Prchi!E31 -> 47 | G32: =+Prchi!AL31 -> 0 | L32: 0 | M32: =+Table13[[#This Row],[Total]] -> 0 | N32: 0
B33: 122002 | C33: =+Prchi!C32 -> Chicken Whole Frozen | D33: 07 KG | E33: =+Prchi!E32 -> 0 | G33: =+Prchi!AL32 -> 0 | L33: 0 | M33: =+Table13[[#This Row],[Total]] -> 0 | N33: 0
B34: 122003 | C34: =+Prchi!C33 -> Mortadilla Chicken | D34: 07 KG | E34: =+Prchi!E33 -> 0 | F34: 0.3 | G34: =+Prchi!AL33 -> 0 | L34: -0.3 | M34: =+Table13[[#This Row],[Total]] -> 0 | N34: -0.3
B35: 122006 | C35: =+Prchi!C34 -> frank fort Chicken | D35: 07 KG | E35: =+Prchi!E34 -> 18.05555556 | G35: =+Prchi!AL34 -> 0 | L35: 0 | M35: =+Table13[[#This Row],[Total]] -> 0 | N35: 0
B36: 122007 | C36: =+Prchi!C35 -> liver | D36: 07 KG | E36: =+Prchi!E35 -> 0 | G36: =+Prchi!AL35 -> 0 | L36: 0 | M36: =+Table13[[#This Row],[Total]] -> 0 | N36: 0
B37: 122008 | C37: =+Prchi!C36 -> chicken parts | D37: 07 KG | E37: =+Prchi!E36 -> 0 | G37: =+Prchi!AL36 -> 0 | L37: 0 | M37: =+Table13[[#This Row],[Total]] -> 0 | N37: 0
B38: 122009 | C38: =+Prchi!C37 -> shawarma | D38: 07 KG | E38: =+Prchi!E37 -> 0 | G38: =+Prchi!AL37 -> 0 | L38: 0 | M38: =+Table13[[#This Row],[Total]] -> 0 | N38: 0
B39: 122100 | C39: =+Prchi!C38 -> chicken parmezan | D39: 07 KG | E39: =+Prchi!E38 -> 0 | G39: =+Prchi!AL38 -> 0 | L39: 0 | M39: =+Table13[[#This Row],[Total]] -> 0 | N39: 0
B40: 122101 | C40: =+Prchi!C39 -> chicken spice | D40: 07 KG | E40: =+Prchi!E39 -> 0 | G40: =+Prchi!AL39 -> 0 | L40: 0 | M40: =+Table13[[#This Row],[Total]] -> 0 | N40: 0
B41: 122102 | C41: =+Prchi!C40 -> chickin pox | D41: 07 KG | E41: =+Prchi!E40 -> 0 | G41: =+Prchi!AL40 -> 0 | L41: 0 | M41: =+Table13[[#This Row],[Total]] -> 0 | N41: 0
B42: 122103 | C42: =+Prchi!C41 -> chickin almonden | D42: 07 KG | E42: =+Prchi!E41 -> 0 | G42: =+Prchi!AL41 -> 0 | L42: 0 | M42: =+Table13[[#This Row],[Total]] -> 0 | N42: 0
B43: 122104 | C43: =+Prchi!C42 -> sudorof turkeys | D43: 07 KG | E43: =+Prchi!E42 -> 0 | G43: =+Prchi!AL42 -> 0 | L43: 0 | M43: =+Table13[[#This Row],[Total]] -> 0 | N43: 0
B44: 122105 | C44: =+Prchi!C43 -> Whole turkeys | D44: 07 KG | E44: =+Prchi!E43 -> 0 | G44: =+Prchi!AL43 -> 0 | L44: 0 | M44: =+Table13[[#This Row],[Total]] -> 0 | N44: 0
B45: 122106 | C45: =+Prchi!C44 -> Chicken shish Ni | D45: 07 KG | E45: =+Prchi!E44 -> 0 | G45: =+Prchi!AL44 -> 0 | L45: 0 | M45: =+Table13[[#This Row],[Total]] -> 0 | N45: 0
B46: 122107 | C46: =+Prchi!C45 -> Chicken Fajita | D46: 07 KG | E46: =+Prchi!E45 -> 0 | G46: =+Prchi!AL45 -> 0 | L46: 0 | M46: =+Table13[[#This Row],[Total]] -> 0 | N46: 0
A47: Category: 23 Fresh Vegatables & FRUIT FRESH | B47: 123002 | C47: =+Prchi!C46 -> Tomato Fresh | D47: 07 KG | E47: =+Prchi!E46 -> 0 | G47: =+Prchi!AL46 -> 0 | L47: 0 | M47: =+Table13[[#This Row],[Total]] -> 0 | N47: 0
B48: 123003 | C48: =+Prchi!C47 -> Cucumber | D48: 07 KG | E48: =+Prchi!E47 -> 6.95 | F48: 0.2 | G48: =+Prchi!AL47 -> 0 | L48: -0.2 | M48: =+Table13[[#This Row],[Total]] -> 0 | N48: -0.2
B49: 123004 | C49: =+Prchi!C48 -> Mushroom | D49: 14 Plate | E49: =+Prchi!E48 -> 47.8 | F49: 0.2 | G49: =+Prchi!AL48 -> 0 | L49: -0.2 | M49: =+Table13[[#This Row],[Total]] -> 0 | N49: -0.2
B50: 123005 | C50: =+Prchi!C49 -> Lettuce kaposha | D50: 07 KG | E50: =+Prchi!E49 -> 18.95 | F50: 2 | G50: =+Prchi!AL49 -> 0 | L50: -2 | M50: =+Table13[[#This Row],[Total]] -> 0 | N50: -2
B51: 123006 | C51: =+Prchi!C50 -> Carrot | D51: 07 KG | E51: =+Prchi!E50 -> 9.94 | F51: 0.4 | G51: =+Prchi!AL50 -> 0 | L51: -0.4 | M51: =+Table13[[#This Row],[Total]] -> 0 | N51: -0.4
B52: 123007 | C52: =+Prchi!C51 -> Celery | D52: 07 KG | E52: =+Prchi!E51 -> 0 | G52: =+Prchi!AL51 -> 0 | L52: 0 | M52: =+Table13[[#This Row],[Total]] -> 0 | N52: 0
B53: 123008 | C53: =+Prchi!C52 -> Ginger root | D53: 07 KG | E53: =+Prchi!E52 -> 14.95 | G53: =+Prchi!AL52 -> 0 | L53: 0 | M53: =+Table13[[#This Row],[Total]] -> 0 | N53: 0
B54: 123009 | C54: =+Prchi!C53 -> Coriander | D54: 07 KG | E54: =+Prchi!E53 -> 0 | G54: =+Prchi!AL53 -> 0 | L54: 0 | M54: =+Table13[[#This Row],[Total]] -> 0 | N54: 0
B55: 123010 | C55: =+Prchi!C54 -> Garlic | D55: 07 KG | E55: =+Prchi!E54 -> 0 | G55: =+Prchi!AL54 -> 0 | L55: 0 | M55: =+Table13[[#This Row],[Total]] -> 0 | N55: 0
B56: 123011 | C56: =+Prchi!C55 -> Tomato Shary | D56: 07 KG | E56: =+Prchi!E55 -> 71.8 | F56: 0.05 | G56: =+Prchi!AL55 -> 0 | L56: -0.05 | M56: =+Table13[[#This Row],[Total]] -> 0 | N56: -0.05
B57: 123012 | C57: =+Prchi!C56 -> Jirjir | D57: 07 KG | E57: =+Prchi!E56 -> 0.95 | F57: 0.1 | G57: =+Prchi!AL56 -> 0 | L57: -0.1 | M57: =+Table13[[#This Row],[Total]] -> 0 | N57: -0.1
B58: 123013 | C58: =+Prchi!C57 -> Basil | D58: 07 KG | E58: =+Prchi!E57 -> 0 | G58: =+Prchi!AL57 -> 0 | L58: 0 | M58: =+Table13[[#This Row],[Total]] -> 0 | N58: 0
B59: 123014 | C59: =+Prchi!C58 -> Cabbage Red | D59: 07 KG | E59: =+Prchi!E58 -> 0 | G59: =+Prchi!AL58 -> 0 | L59: 0 | M59: =+Table13[[#This Row],[Total]] -> 0 | N59: 0
B60: 123015 | C60: =+Prchi!C59 -> Aubergine Rmy | D60: 07 KG | E60: =+Prchi!E59 -> 0 | G60: =+Prchi!AL59 -> 0 | L60: 0 | M60: =+Table13[[#This Row],[Total]] -> 0 | N60: 0
B61: 123016 | C61: =+Prchi!C60 -> Marrow | D61: 07 KG | E61: =+Prchi!E60 -> 0 | G61: =+Prchi!AL60 -> 0 | L61: 0 | M61: =+Table13[[#This Row],[Total]] -> 0 | N61: 0
B62: 123017 | C62: =+Prchi!C61 -> Green Pepper Fresh | D62: 07 KG | E62: =+Prchi!E61 -> 9.95 | F62: 0.1 | G62: =+Prchi!AL61 -> 0 | L62: -0.1 | M62: =+Table13[[#This Row],[Total]] -> 0 | N62: -0.1
B63: 123018 | C63: =+Prchi!C62 -> Red Pepper Fresh | D63: 07 KG | E63: =+Prchi!E62 -> 21.95 | F63: 0.4 | G63: =+Prchi!AL62 -> 0 | L63: -0.4 | M63: =+Table13[[#This Row],[Total]] -> 0 | N63: -0.4
B64: 123019 | C64: =+Prchi!C63 -> Yellow Pepper Fresh | D64: 07 KG | E64: =+Prchi!E63 -> 21.95 | F64: 0.4 | G64: =+Prchi!AL63 -> 0 | L64: -0.4 | M64: =+Table13[[#This Row],[Total]] -> 0 | N64: -0.4
B65: 123020 | C65: =+Prchi!C64 -> Onion | D65: 07 KG | E65: =+Prchi!E64 -> 12.95 | F65: 0.45 | G65: =+Prchi!AL64 -> 0 | L65: -0.45 | M65: =+Table13[[#This Row],[Total]] -> 0 | N65: -0.45
B66: 123021 | C66: =+Prchi!C65 -> Potato Peeled | D66: 07 KG | E66: =+Prchi!E65 -> 0 | G66: =+Prchi!AL65 -> 0 | L66: 0 | M66: =+Table13[[#This Row],[Total]] -> 0 | N66: 0
B67: 123022 | C67: =+Prchi!C66 -> Lemon | D67: 07 KG | E67: =+Prchi!E66 -> 7.95 | G67: =+Prchi!AL66 -> 0 | L67: 0 | M67: =+Table13[[#This Row],[Total]] -> 0 | N67: 0
B68: 123023 | C68: =+Prchi!C67 -> Leek | D68: 07 KG | E68: =+Prchi!E67 -> 0 | G68: =+Prchi!AL67 -> 0 | L68: =(K68+J68+I68)-(H68+G68+F68) -> 0 | M68: =+Table13[[#This Row],[Total]] -> 0 | N68: =+L68+M68 -> 0
B69: 123024 | C69: =+Prchi!C68 -> Rose Marie | D69: 07 KG | E69: =+Prchi!E68 -> 0 | G69: =+Prchi!AL68 -> 0 | L69: 0 | M69: =+Table13[[#This Row],[Total]] -> 0 | N69: 0
B70: 123025 | C70: =+Prchi!C69 -> Mint | D70: 07 KG | E70: =+Prchi!E69 -> 0.95 | G70: =+Prchi!AL69 -> 0 | L70: 0 | M70: =+Table13[[#This Row],[Total]] -> 0 | N70: 0
B71: 123026 | C71: =+Prchi!C70 -> Vegitables | D71: 07 KG | E71: =+Prchi!E70 -> 0 | G71: =+Prchi!AL70 -> 0 | L71: 0 | M71: =+Table13[[#This Row],[Total]] -> 0 | N71: 0
B72: 123027 | C72: =+Prchi!C71 -> Lettuce Mava | D72: 07 KG | E72: =+Prchi!E71 -> 0 | G72: =+Prchi!AL71 -> 0 | L72: 0 | M72: =+Table13[[#This Row],[Total]] -> 0 | N72: 0
B73: 123028 | C73: =+Prchi!C72 -> water | D73: 07 KG | E73: =+Prchi!E72 -> 0.42375 | G73: =+Prchi!AL72 -> 0 | L73: 0 | M73: =+Table13[[#This Row],[Total]] -> 0 | N73: 0
B74: 123029 | C74: =+Prchi!C73 -> 0 | D74: 07 KG | E74: =+Prchi!E73 -> 0 | G74: =+Prchi!AL73 -> 0 | L74: 0 | M74: =+Table13[[#This Row],[Total]] -> 0 | N74: 0
B75: 123100 | C75: =+Prchi!C74 -> Potato Bofrit | D75: 07 KG | E75: =+Prchi!E74 -> 7.5 | G75: =+Prchi!AL74 -> 0 | L75: 0 | M75: =+Table13[[#This Row],[Total]] -> 0 | N75: 0
B76: 123101 | C76: =+Prchi!C75 -> Faut BEANS | D76: 07 KG | E76: =+Prchi!E75 -> 0 | G76: =+Prchi!AL75 -> 0 | L76: 0 | M76: =+Table13[[#This Row],[Total]] -> 0 | N76: 0
B77: 123102 | C77: =+Prchi!C76 -> Green beans FASOLIA | D77: 07 KG | E77: =+Prchi!E76 -> 0 | G77: =+Prchi!AL76 -> 0 | L77: 0 | M77: =+Table13[[#This Row],[Total]] -> 0 | N77: 0
B78: 123103 | C78: =+Prchi!C77 -> Brocolli | D78: 07 KG | E78: =+Prchi!E77 -> 49.95 | F78: 0.2 | G78: =+Prchi!AL77 -> 0 | L78: -0.2 | M78: =+Table13[[#This Row],[Total]] -> 0 | N78: -0.2
B79: 123104 | C79: =+Prchi!C78 -> Potato weadges | D79: 07 KG | E79: =+Prchi!E78 -> 0 | G79: =+Prchi!AL78 -> 0 | L79: 0 | M79: =+Table13[[#This Row],[Total]] -> 0 | N79: 0
B80: 123105 | C80: =+Prchi!C79 -> Appel Lobnani | D80: 07 KG | E80: =+Prchi!E79 -> 7.95 | G80: =+Prchi!AL79 -> 0 | L80: 0 | M80: =+Table13[[#This Row],[Total]] -> 0 | N80: 0
B81: 123106 | C81: =+Prchi!C80 -> Korat | D81: 07 KG | E81: =+Prchi!E80 -> 0 | G81: =+Prchi!AL80 -> 0 | L81: 0 | M81: =+Table13[[#This Row],[Total]] -> 0 | N81: 0
A82: Category: 24 Frozen Vegatables | B82: 123001 | C82: =+Prchi!C81 -> PLUE PERRY FRUZEN | D82: 07 KG | E82: =+Prchi!E81 -> 0 | G82: =+Prchi!AL81 -> 0 | L82: 0 | M82: =+Table13[[#This Row],[Total]] -> 0 | N82: 0
A83: Category: 25 Dairy Product | B83: 125001 | C83: =+Prchi!C82 -> Butter Block Newzeland | D83: 07 KG | E83: =+Prchi!E82 -> 0 | G83: =+Prchi!AL82 -> 0 | L83: 0 | M83: =+Table13[[#This Row],[Total]] -> 0 | N83: 0
B84: 125002 | C84: =+Prchi!C83 -> Butter almarai unsl | D84: 07 KG | E84: =+Prchi!E83 -> 39.5 | G84: =+Prchi!AL83 -> 0 | L84: 0 | M84: =+Table13[[#This Row],[Total]] -> 0 | N84: 0
B85: 125003 | C85: =+Prchi!C84 -> Cheese Cheddar | D85: 07 KG | E85: =+Prchi!E84 -> 60 | F85: 0.5 | G85: =+Prchi!AL84 -> 0 | L85: -0.5 | M85: =+Table13[[#This Row],[Total]] -> 0 | N85: -0.5
B86: 125004 | C86: =+Prchi!C85 -> Cheese Emmental-Local Arab Dairy | D86: 07 KG | E86: =+Prchi!E85 -> 0 | G86: =+Prchi!AL85 -> 0 | L86: 0 | M86: =+Table13[[#This Row],[Total]] -> 0 | N86: 0
B87: 125005 | C87: =+Prchi!C86 -> Cheese Parmisan / Grana | D87: 07 KG | E87: =+Prchi!E86 -> 90.75 | F87: 0.1 | G87: =+Prchi!AL86 -> 0 | L87: -0.1 | M87: =+Table13[[#This Row],[Total]] -> 0 | N87: -0.1
B88: 125006 | C88: =+Prchi!C87 -> Milk Powder full cream | D88: 07 KG | E88: =+Prchi!E87 -> 0 | G88: =+Prchi!AL87 -> 0 | L88: 0 | M88: =+Table13[[#This Row],[Total]] -> 0 | N88: 0
B89: 125007 | C89: =+Prchi!C88 -> Eggs W [ Cover 30 P ] | D89: 06 Each | E89: =+Prchi!E88 -> 0.475 | F89: 10 | G89: =+Prchi!AL88 -> 0 | L89: -10 | M89: =+Table13[[#This Row],[Total]] -> 0 | N89: -10
B90: 125008 | C90: =+Prchi!C89 -> Cheese rockford- danish | D90: 07 KG | E90: =+Prchi!E89 -> 0 | G90: =+Prchi!AL89 -> 0 | L90: 0 | M90: =+Table13[[#This Row],[Total]] -> 0 | N90: 0
B91: 125009 | C91: =+Prchi!C90 -> Cheese White Feta | D91: 07 KG | E91: =+Prchi!E90 -> 29 | G91: =+Prchi!AL90 -> 0 | L91: 0 | M91: =+Table13[[#This Row],[Total]] -> 0 | N91: 0
B92: 125010 | C92: =+Prchi!C91 -> CHEESE KIRI 1*12 PSC | D92: 07 KG | E92: =+Prchi!E91 -> 0 | G92: =+Prchi!AL91 -> 0 | L92: 0 | M92: =+Table13[[#This Row],[Total]] -> 0 | N92: 0
B93: 125011 | C93: =+Prchi!C92 -> Milk Condensed | D93: 07 KG | E93: =+Prchi!E92 -> 0 | G93: =+Prchi!AL92 -> 0 | L93: 0 | M93: =+Table13[[#This Row],[Total]] -> 0 | N93: 0
B94: 125012 | C94: =+Prchi!C93 -> Shortening Savola | D94: 07 KG | E94: =+Prchi!E93 -> 0 | G94: =+Prchi!AL93 -> 0 | L94: 0 | M94: =+Table13[[#This Row],[Total]] -> 0 | N94: 0
B95: 125013 | C95: =+Prchi!C94 -> Cheese Philadelphia | D95: 07 KG | E95: =+Prchi!E94 -> 42.5 | G95: =+Prchi!AL94 -> 0 | L95: 0 | M95: =+Table13[[#This Row],[Total]] -> 0 | N95: 0
B96: 125014 | C96: =+Prchi!C95 -> Cheese Gouda with Cumin-Holland Frico | D96: 07 KG | E96: =+Prchi!E95 -> 0 | G96: =+Prchi!AL95 -> 0 | L96: 0 | M96: =+Table13[[#This Row],[Total]] -> 0 | N96: 0
B97: 125015 | C97: =+Prchi!C96 -> ROMI CHEES | D97: 07 KG | E97: =+Prchi!E96 -> 0 | G97: =+Prchi!AL96 -> 0 | L97: 0 | M97: =+Table13[[#This Row],[Total]] -> 0 | N97: 0
B98: 125016 | C98: =+Prchi!C97 -> Cheese KiRi1*8 psc | D98: 05 PKT | E98: =+Prchi!E97 -> 0 | G98: =+Prchi!AL97 -> 0 | L98: 0 | M98: =+Table13[[#This Row],[Total]] -> 0 | N98: 0
B99: 125017 | C99: =+Prchi!C98 -> Unsalted Butter | D99: 07 KG | E99: =+Prchi!E98 -> 40 | G99: =+Prchi!AL98 -> 0 | L99: 0 | M99: =+Table13[[#This Row],[Total]] -> 0 | N99: 0
B100: 125018 | C100: =+Prchi!C99 -> BUTTER | D100: 09 Gallon | E100: =+Prchi!E99 -> 0 | G100: =+Prchi!AL99 -> 0 | L100: 0 | M100: =+Table13[[#This Row],[Total]] -> 0 | N100: 0
B101: 125019 | C101: =+Prchi!C100 -> BUTTER Boretion | D101: 06 Each | E101: =+Prchi!E100 -> 1.5 | F101: 135 | G101: =+Prchi!AL100 -> 0 | L101: -135 | M101: =+Table13[[#This Row],[Total]] -> 0 | N101: -135
B102: 125020 | C102: =+Prchi!C101 -> cotag cheese | D102: 07 KG | E102: =+Prchi!E101 -> 0 | G102: =+Prchi!AL101 -> 0 | L102: 0 | M102: =+Table13[[#This Row],[Total]] -> 0 | N102: 0
B103: 125021 | C103: =+Prchi!C102 -> Milk fresh | D103: 07 KG | E103: =+Prchi!E102 -> 4.5 | G103: =+Prchi!AL102 -> 0 | L103: 0 | M103: =+Table13[[#This Row],[Total]] -> 0 | N103: 0
B104: 125022 | C104: =+Prchi!C103 -> Milk Bonny | D104: 07 KG | E104: =+Prchi!E103 -> 14.70588235 | G104: =+Prchi!AL103 -> 0 | L104: 0 | M104: =+Table13[[#This Row],[Total]] -> 0 | N104: 0
B105: 125023 | C105: =+Prchi!C104 -> Fresh Milk Yogurt | D105: 07 KG | E105: =+Prchi!E104 -> 7 | G105: =+Prchi!AL104 -> 0 | L105: 0 | M105: =+Table13[[#This Row],[Total]] -> 0 | N105: 0
B106: 125024 | C106: =+Prchi!C105 -> Chess mozeral | D106: 07 KG | E106: =+Prchi!E105 -> 36.61111111 | G106: =+Prchi!AL105 -> 0 | L106: 0 | M106: =+Table13[[#This Row],[Total]] -> 0 | N106: 0
B107: 125025 | C107: =+Prchi!C106 -> whip Cream Dessert 7 gr | D107: 07 KG | E107: =+Prchi!E106 -> 82.63888889 | G107: =+Prchi!AL106 -> 0 | L107: 0 | M107: =+Table13[[#This Row],[Total]] -> 0 | N107: 0
B108: 125026 | C108: =+Prchi!C107 -> creme laktevala | D108: 07 KG | E108: =+Prchi!E107 -> 0 | G108: =+Prchi!AL107 -> 0 | L108: 0 | M108: =+Table13[[#This Row],[Total]] -> 0 | N108: 0
B109: 125027 | C109: =+Prchi!C108 -> chees cream | D109: 07 KG | E109: =+Prchi!E108 -> 0 | G109: =+Prchi!AL108 -> 0 | L109: 0 | M109: =+Table13[[#This Row],[Total]] -> 0 | N109: 0
B110: 125030 | C110: =+Prchi!C109 -> chees mozeral banda | D110: 07 KG | E110: =+Prchi!E109 -> 0 | G110: =+Prchi!AL109 -> 0 | L110: 0 | M110: =+Table13[[#This Row],[Total]] -> 0 | N110: 0
B111: 125031 | C111: =+Prchi!C110 -> chees karish(3.5 KG) | D111: 07 KG | E111: =+Prchi!E110 -> 0 | G111: =+Prchi!AL110 -> 0 | L111: 0 | M111: =+Table13[[#This Row],[Total]] -> 0 | N111: 0
B112: 125032 | C112: =+Prchi!C111 -> creame chees | D112: 09 Gallon | E112: =+Prchi!E111 -> 0 | G112: =+Prchi!AL111 -> 0 | L112: 0 | M112: =+Table13[[#This Row],[Total]] -> 0 | N112: 0
B113: 125100 | C113: =+Prchi!C112 -> Whipping Cream Bar | D113: 05 PKT | E113: =+Prchi!E112 -> 22 | G113: =+Prchi!AL112 -> 0 | L113: 0 | M113: =+Table13[[#This Row],[Total]] -> 0 | N113: 0
B114: 125101 | C114: =+Prchi!C113 -> Cream bar (bok) | D114: 05 PKT | E114: =+Prchi!E113 -> 19.95 | G114: =+Prchi!AL113 -> 0 | L114: 0 | M114: =+Table13[[#This Row],[Total]] -> 0 | N114: 0
B115: 125102 | C115: =+Prchi!C114 -> Labneh .200g | D115: 07 KG | E115: =+Prchi!E114 -> 0 | G115: =+Prchi!AL114 -> 0 | L115: 0 | M115: =+Table13[[#This Row],[Total]] -> 0 | N115: 0
B116: 125103 | C116: =+Prchi!C115 -> cream of labani | D116: 04 Box | E116: =+Prchi!E115 -> 0 | G116: =+Prchi!AL115 -> 0 | L116: 0 | M116: =+Table13[[#This Row],[Total]] -> 0 | N116: 0
B117: 125104 | C117: =+Prchi!C116 -> President whipped cream.250 g | D117: 05 PKT | E117: =+Prchi!E116 -> 67.8 | G117: =+Prchi!AL116 -> 0 | L117: 0 | M117: =+Table13[[#This Row],[Total]] -> 0 | N117: 0
B118: 125105 | C118: =+Prchi!C117 -> Cheese Haloumi | D118: 07 KG | E118: =+Prchi!E117 -> 14.25 | F118: 0.4 | G118: =+Prchi!AL117 -> 0 | L118: -0.4 | M118: =+Table13[[#This Row],[Total]] -> 0 | N118: -0.4
B119: 125106 | C119: =+Prchi!C118 -> Whipping Cream | D119: 01 Bottel | E119: =+Prchi!E118 -> 19.95 | G119: =+Prchi!AL118 -> 0 | L119: 0 | M119: =+Table13[[#This Row],[Total]] -> 0 | N119: 0
B120: 125107 | C120: =+Prchi!C119 -> Cream of labani cook 1*12 | D120: 01 Bottel | E120: =+Prchi!E119 -> 22 | F120: 0.35 | G120: =+Prchi!AL119 -> 0 | L120: -0.35 | M120: =+Table13[[#This Row],[Total]] -> 0 | N120: -0.35
B121: 125108 | C121: =+Prchi!C120 -> Beef Burger (10) | D121: 04 Box 10 | E121: =+Prchi!E120 -> 2.5 | G121: =+Prchi!AL120 -> 0 | L121: 0 | M121: =+Table13[[#This Row],[Total]] -> 0 | N121: 0
B122: 125109 | C122: =+Prchi!C121 -> grapes leave | D122: 07 KG | E122: =+Prchi!E121 -> 0 | G122: =+Prchi!AL121 -> 0 | L122: 0 | M122: =+Table13[[#This Row],[Total]] -> 0 | N122: 0
B123: 125110 | C123: =+Prchi!C122 -> Cheese Cheddar Slice | D123: Peac | E123: =+Prchi!E122 -> 0.675 | G123: =+Prchi!AL122 -> 0 | L123: 0 | M123: =+Table13[[#This Row],[Total]] -> 0 | N123: 0
B124: 125111 | C124: =+Prchi!C123 -> Chiken Burger | D124: 04 Box 10 | E124: =+Prchi!E123 -> 0 | F124: 4 | G124: =+Prchi!AL123 -> 0 | L124: -4 | M124: =+Table13[[#This Row],[Total]] -> 0 | N124: -4
A125: Category: 26 SPICES | B125: 126001 | C125: =+Prchi!C124 -> SPICE CARNATION POWDER | D125: 07 KG | E125: =+Prchi!E124 -> 0 | G125: =+Prchi!AL124 -> 0 | L125: 0 | M125: =+Table13[[#This Row],[Total]] -> 0 | N125: 0
B126: 126002 | C126: =+Prchi!C125 -> Spices, Chilli red pepper Powder | D126: 07 KG | E126: =+Prchi!E125 -> 56 | F126: 0.32 | G126: =+Prchi!AL125 -> 0 | L126: -0.32 | M126: =+Table13[[#This Row],[Total]] -> 0 | N126: -0.32
B127: 126003 | C127: =+Prchi!C126 -> Spices, Corriandar Powder | D127: 07 KG | E127: =+Prchi!E126 -> 0 | G127: =+Prchi!AL126 -> 0 | L127: 0 | M127: =+Table13[[#This Row],[Total]] -> 0 | N127: 0
B128: 126004 | C128: =+Prchi!C127 -> Spices, Cumin SEADS | D128: 07 KG | E128: =+Prchi!E127 -> 60 | F128: 0.02 | G128: =+Prchi!AL127 -> 0 | L128: -0.02 | M128: =+Table13[[#This Row],[Total]] -> 0 | N128: -0.02
B129: 126005 | C129: =+Prchi!C128 -> Spices, Tumeric powder | D129: 07 KG | E129: =+Prchi!E128 -> 0 | G129: =+Prchi!AL128 -> 0 | L129: 0 | M129: =+Table13[[#This Row],[Total]] -> 0 | N129: 0
B130: 126006 | C130: =+Prchi!C129 -> Spices, Ginger Powder | D130: 07 KG | E130: =+Prchi!E129 -> 0 | G130: =+Prchi!AL129 -> 0 | L130: 0 | M130: =+Table13[[#This Row],[Total]] -> 0 | N130: 0
B131: 126007 | C131: =+Prchi!C130 -> Spices, habet el baraka Seeds | D131: 07 KG | E131: =+Prchi!E130 -> 0 | G131: =+Prchi!AL130 -> 0 | L131: 0 | M131: =+Table13[[#This Row],[Total]] -> 0 | N131: 0
B132: 126008 | C132: =+Prchi!C131 -> Spices, Nut Meg powder | D132: 07 KG | E132: =+Prchi!E131 -> 0 | G132: =+Prchi!AL131 -> 0 | L132: =(K132+J132+I132)-(H132+G132+F132) -> 0 | M132: =+Table13[[#This Row],[Total]] -> 0 | N132: =+L132+M132 -> 0
B133: 126009 | C133: =+Prchi!C132 -> Herbs Dry, Oregano dried | D133: 07 KG | E133: =+Prchi!E132 -> 0 | G133: =+Prchi!AL132 -> 0 | L133: 0 | M133: =+Table13[[#This Row],[Total]] -> 0 | N133: 0
B134: 126010 | C134: =+Prchi!C133 -> Herbs, Oregano powder | D134: 07 KG | E134: =+Prchi!E133 -> 135 | F134: 0.15 | G134: =+Prchi!AL133 -> 0 | L134: -0.15 | M134: =+Table13[[#This Row],[Total]] -> 0 | N134: -0.15
B135: 126011 | C135: =+Prchi!C134 -> Spices, Paprika | D135: 07 KG | E135: =+Prchi!E134 -> 0 | G135: =+Prchi!AL134 -> 0 | L135: 0 | M135: =+Table13[[#This Row],[Total]] -> 0 | N135: 0
B136: 126012 | C136: =+Prchi!C135 -> Spices, Black pepper powder | D136: 07 KG | E136: =+Prchi!E135 -> 54.5 | F136: 0.3 | G136: =+Prchi!AL135 -> 0 | L136: -0.3 | M136: =+Table13[[#This Row],[Total]] -> 0 | N136: -0.3
B137: 126013 | C137: =+Prchi!C136 -> Pepper, portionpack | D137: 07 KG | E137: =+Prchi!E136 -> 0 | G137: =+Prchi!AL136 -> 0 | L137: 0 | M137: =+Table13[[#This Row],[Total]] -> 0 | N137: 0
B138: 126014 | C138: =+Prchi!C137 -> Spices, White pepper powder | D138: 07 KG | E138: =+Prchi!E137 -> 0 | G138: =+Prchi!AL137 -> 0 | L138: 0 | M138: =+Table13[[#This Row],[Total]] -> 0 | N138: 0
B139: 126015 | C139: =+Prchi!C138 -> Pepper, white | D139: 07 KG | E139: =+Prchi!E138 -> 0 | G139: =+Prchi!AL138 -> 0 | L139: 0 | M139: =+Table13[[#This Row],[Total]] -> 0 | N139: 0
B140: 126016 | C140: =+Prchi!C139 -> Spices, Cloves Seeds | D140: 07 KG | E140: =+Prchi!E139 -> 0 | G140: =+Prchi!AL139 -> 0 | L140: 0 | M140: =+Table13[[#This Row],[Total]] -> 0 | N140: 0
B141: 126017 | C141: =+Prchi!C140 -> Spices, mixed ( boharat) | D141: 07 KG | E141: =+Prchi!E140 -> 0 | G141: =+Prchi!AL140 -> 0 | L141: 0 | M141: =+Table13[[#This Row],[Total]] -> 0 | N141: 0
B142: 126018 | C142: =+Prchi!C141 -> Satard | D142: 05 PKT | E142: =+Prchi!E141 -> 60 | F142: 0.07 | G142: =+Prchi!AL141 -> 0 | L142: -0.07 | M142: =+Table13[[#This Row],[Total]] -> 0 | N142: -0.07
B143: 126019 | C143: =+Prchi!C142 -> Salt Cooks soft for food | D143: 07 KG | E143: =+Prchi!E142 -> 2.5 | F143: 0.4 | G143: =+Prchi!AL142 -> 0 | L143: -0.4 | M143: =+Table13[[#This Row],[Total]] -> 0 | N143: -0.4
B144: 126020 | C144: =+Prchi!C143 -> Spices, Cloves powder | D144: 07 KG | E144: =+Prchi!E143 -> 0 | G144: =+Prchi!AL143 -> 0 | L144: 0 | M144: =+Table13[[#This Row],[Total]] -> 0 | N144: 0
B145: 126021 | C145: =+Prchi!C144 -> Spices, seasoning mix grilled | D145: 07 KG | E145: =+Prchi!E144 -> 0 | G145: =+Prchi!AL144 -> 0 | L145: 0 | M145: =+Table13[[#This Row],[Total]] -> 0 | N145: 0
B146: 126022 | C146: =+Prchi!C145 -> CINAMOUN POWDER | D146: 07 KG | E146: =+Prchi!E145 -> 37 | F146: 0.3 | G146: =+Prchi!AL145 -> 0 | L146: -0.3 | M146: =+Table13[[#This Row],[Total]] -> 0 | N146: -0.3
B147: 126024 | C147: =+Prchi!C146 -> lowra paper | D147: 07 KG | E147: =+Prchi!E146 -> 0 | G147: =+Prchi!AL146 -> 0 | L147: 0 | M147: =+Table13[[#This Row],[Total]] -> 0 | N147: 0
B148: 126025 | C148: =+Prchi!C147 -> habahan | D148: 07 KG | E148: =+Prchi!E147 -> 0 | G148: =+Prchi!AL147 -> 0 | L148: 0 | M148: =+Table13[[#This Row],[Total]] -> 0 | N148: 0
B149: 126026 | C149: =+Prchi!C148 -> pepper hot | D149: 07 KG | E149: =+Prchi!E148 -> 0 | G149: =+Prchi!AL148 -> 0 | L149: 0 | M149: =+Table13[[#This Row],[Total]] -> 0 | N149: 0
B150: 126031 | C150: =+Prchi!C149 -> Baksmt | D150: 07 KG | E150: =+Prchi!E149 -> 0 | G150: =+Prchi!AL149 -> 0 | L150: 0 | M150: =+Table13[[#This Row],[Total]] -> 0 | N150: 0
B151: 126041 | C151: =+Prchi!C150 -> Homouss | D151: 07 KG | E151: =+Prchi!E150 -> 0 | G151: =+Prchi!AL150 -> 0 | L151: 0 | M151: =+Table13[[#This Row],[Total]] -> 0 | N151: 0
B152: 126042 | C152: =+Prchi!C151 -> Cary Powder | D152: 07 KG | E152: =+Prchi!E151 -> 0 | G152: =+Prchi!AL151 -> 0 | L152: 0 | M152: =+Table13[[#This Row],[Total]] -> 0 | N152: 0
B153: 126043 | C153: =+Prchi!C152 -> Corcom | D153: 07 KG | E153: =+Prchi!E152 -> 0 | G153: =+Prchi!AL152 -> 0 | L153: 0 | M153: =+Table13[[#This Row],[Total]] -> 0 | N153: 0
B154: 126044 | C154: =+Prchi!C153 -> Maggi Cubs | D154: 06 Each | E154: =+Prchi!E153 -> 0.625 | F154: 34 | G154: =+Prchi!AL153 -> 0 | L154: -34 | M154: =+Table13[[#This Row],[Total]] -> 0 | N154: -34
B155: 126045 | C155: =+Prchi!C154 -> Maggi(chicken shawrma) | D155: 07 KG | E155: =+Prchi!E154 -> 4.75 | G155: =+Prchi!AL154 -> 0 | L155: 0 | M155: =+Table13[[#This Row],[Total]] -> 0 | N155: 0
B156: 126046 | C156: =+Prchi!C155 -> Garlic Powder | D156: 07 KG | E156: =+Prchi!E155 -> 45 | F156: 0.29 | G156: =+Prchi!AL155 -> 0 | L156: -0.29 | M156: =+Table13[[#This Row],[Total]] -> 0 | N156: -0.29
A157: Category: 27 PASTA | B157: 127001 | C157: =+Prchi!C156 -> Pasta, Farfall | D157: 07 KG | E157: =+Prchi!E156 -> 0 | G157: =+Prchi!AL156 -> 0 | L157: 0 | M157: =+Table13[[#This Row],[Total]] -> 0 | N157: 0
B158: 127002 | C158: =+Prchi!C157 -> Pasta, Penne- Local | D158: 07 KG | E158: =+Prchi!E157 -> 7.9 | F158: 1 | G158: =+Prchi!AL157 -> 0 | L158: -1 | M158: =+Table13[[#This Row],[Total]] -> 0 | N158: -1
B159: 127003 | C159: =+Prchi!C158 -> Pasta, Noodles 500G | D159: 07 KG | E159: =+Prchi!E158 -> 0 | G159: =+Prchi!AL158 -> 0 | L159: 0 | M159: =+Table13[[#This Row],[Total]] -> 0 | N159: 0
B160: 127004 | C160: =+Prchi!C159 -> Pasta, Penne Zara | D160: 07 KG | E160: =+Prchi!E159 -> 0 | G160: =+Prchi!AL159 -> 0 | L160: 0 | M160: =+Table13[[#This Row],[Total]] -> 0 | N160: 0
B161: 127005 | C161: =+Prchi!C160 -> Pasta, Spagetti | D161: 07 KG | E161: =+Prchi!E160 -> 0 | G161: =+Prchi!AL160 -> 0 | L161: 0 | M161: =+Table13[[#This Row],[Total]] -> 0 | N161: 0
B162: 127006 | C162: =+Prchi!C161 -> Pasta, She3reya vermacelli | D162: 07 KG | E162: =+Prchi!E161 -> 0 | G162: =+Prchi!AL161 -> 0 | L162: 0 | M162: =+Table13[[#This Row],[Total]] -> 0 | N162: 0
B163: 127009 | C163: =+Prchi!C162 -> Dark CHOCOLATE (super Moist ) 500 G | D163: 04 Box | E163: =+Prchi!E162 -> 8.5 | G163: =+Prchi!AL162 -> 0 | L163: 0 | M163: =+Table13[[#This Row],[Total]] -> 0 | N163: 0
B164: 127010 | C164: =+Prchi!C163 -> Chocolat Chips 300 Gr | D164: 04 Box | E164: =+Prchi!E163 -> 57.5 | G164: =+Prchi!AL163 -> 0 | L164: 0 | M164: =+Table13[[#This Row],[Total]] -> 0 | N164: 0
B165: 127012 | C165: =+Prchi!C164 -> pasta lazany(500gr) | D165: 05 PKT | E165: =+Prchi!E164 -> 0 | G165: =+Prchi!AL164 -> 0 | L165: 0 | M165: =+Table13[[#This Row],[Total]] -> 0 | N165: 0
B166: 127013 | C166: =+Prchi!C165 -> PASTS FETSHENY | D166: 07 KG | E166: =+Prchi!E165 -> 0 | G166: =+Prchi!AL165 -> 0 | L166: 0 | M166: =+Table13[[#This Row],[Total]] -> 0 | N166: 0
B167: 127014 | C167: =+Prchi!C166 -> past langoni | D167: 05 PKT | E167: =+Prchi!E166 -> 0 | G167: =+Prchi!AL166 -> 0 | L167: 0 | M167: =+Table13[[#This Row],[Total]] -> 0 | N167: 0
A168: Category: 28 CANNED & BOTTLE | B168: 128001 | C168: =+Prchi!C167 -> Rice white | D168: 07 KG | E168: =+Prchi!E167 -> 0 | G168: =+Prchi!AL167 -> 0 | L168: 0 | M168: =+Table13[[#This Row],[Total]] -> 0 | N168: 0
B169: 128002 | C169: =+Prchi!C168 -> Ketchup | D169: 07 KG | E169: =+Prchi!E168 -> 4 | F169: 1.25 | G169: =+Prchi!AL168 -> 0 | L169: -1.25 | M169: =+Table13[[#This Row],[Total]] -> 0 | N169: -1.25
B170: 128003 | C170: =+Prchi!C169 -> Mustard Dijon | D170: 07 KG | E170: =+Prchi!E169 -> 7.222222222 | G170: =+Prchi!AL169 -> 0 | L170: 0 | M170: =+Table13[[#This Row],[Total]] -> 0 | N170: 0
B171: 128004 | C171: =+Prchi!C170 -> Olive Oil Saporito | D171: 12 LTR | E171: =+Prchi!E170 -> 26.5 | F171: 0.2 | G171: =+Prchi!AL170 -> 0 | L171: -0.2 | M171: =+Table13[[#This Row],[Total]] -> 0 | N171: -0.2
B172: 128005 | C172: =+Prchi!C171 -> Olives Black Sliced | D172: 07 KG | E172: =+Prchi!E171 -> 18 | F172: 0.25 | G172: =+Prchi!AL171 -> 0 | L172: -0.25 | M172: =+Table13[[#This Row],[Total]] -> 0 | N172: -0.25
B173: 128006 | C173: =+Prchi!C172 -> Mayonnaise | D173: 07 KG | E173: =+Prchi!E172 -> 12.5 | F173: 0.956 | G173: =+Prchi!AL172 -> 0 | L173: -0.956 | M173: =+Table13[[#This Row],[Total]] -> 0 | N173: -0.956
B174: 128007 | C174: =+Prchi!C173 -> Olives Black Calamata | D174: 07 KG | E174: =+Prchi!E173 -> 0 | F174: 0.25 | G174: =+Prchi!AL173 -> 0 | L174: -0.25 | M174: =+Table13[[#This Row],[Total]] -> 0 | N174: -0.25
B175: 128008 | C175: =+Prchi!C174 -> Green Pepper Corn- pickled | D175: 07 KG | E175: =+Prchi!E174 -> 0 | G175: =+Prchi!AL174 -> 0 | L175: 0 | M175: =+Table13[[#This Row],[Total]] -> 0 | N175: 0
B176: 128009 | C176: =+Prchi!C175 -> Sweet Corn whole canned | D176: 07 KG | E176: =+Prchi!E175 -> 5 | G176: =+Prchi!AL175 -> 0 | L176: 0 | M176: =+Table13[[#This Row],[Total]] -> 0 | N176: 0
B177: 128010 | C177: =+Prchi!C176 -> Sauce, Hot | D177: 07 KG | E177: =+Prchi!E176 -> 0 | G177: =+Prchi!AL176 -> 0 | L177: 0 | M177: =+Table13[[#This Row],[Total]] -> 0 | N177: 0
B178: 128011 | C178: =+Prchi!C177 -> Tomato Paste | D178: 07 KG | E178: =+Prchi!E177 -> 9.85 | F178: 0.54 | G178: =+Prchi!AL177 -> 0 | L178: -0.54 | M178: =+Table13[[#This Row],[Total]] -> 0 | N178: -0.54
B179: 128012 | C179: =+Prchi!C178 -> White Vingar | D179: 12 LTR | E179: =+Prchi!E178 -> 12 | F179: 0.05 | G179: =+Prchi!AL178 -> 0 | L179: -0.05 | M179: =+Table13[[#This Row],[Total]] -> 0 | N179: -0.05
B180: 128013 | C180: =+Prchi!C179 -> Chick peas in brine boiled | D180: 03 Gr | E180: =+Prchi!E179 -> 0 | G180: =+Prchi!AL179 -> 0 | L180: 0 | M180: =+Table13[[#This Row],[Total]] -> 0 | N180: 0
B181: 128014 | C181: =+Prchi!C180 -> Chicken Broth cubes magi | D181: 07 KG | E181: =+Prchi!E180 -> 0 | G181: =+Prchi!AL180 -> 0 | L181: 0 | M181: =+Table13[[#This Row],[Total]] -> 0 | N181: 0
B182: 128015 | C182: =+Prchi!C181 -> Sun Dried Tomatoes | D182: 07 KG | E182: =+Prchi!E181 -> 45 | G182: =+Prchi!AL181 -> 0 | L182: 0 | M182: =+Table13[[#This Row],[Total]] -> 0 | N182: 0
B183: 128016 | C183: =+Prchi!C182 -> Oil Sunflower Al Aseel | D183: 12 LTR | E183: =+Prchi!E182 -> 0 | G183: =+Prchi!AL182 -> 0 | L183: 0 | M183: =+Table13[[#This Row],[Total]] -> 0 | N183: 0
B184: 128017 | C184: =+Prchi!C183 -> Oil Veagtable | D184: 12 LTR | E184: =+Prchi!E183 -> 10 | G184: =+Prchi!AL183 -> 0 | L184: 0 | M184: =+Table13[[#This Row],[Total]] -> 0 | N184: 0
B185: 128018 | C185: =+Prchi!C184 -> Sauce, Sweet Chilli | D185: 07 KG | E185: =+Prchi!E184 -> 0 | G185: =+Prchi!AL184 -> 0 | L185: 0 | M185: =+Table13[[#This Row],[Total]] -> 0 | N185: 0
B186: 128019 | C186: =+Prchi!C185 -> Sodium Carbonate | D186: 07 KG | E186: =+Prchi!E185 -> 30 | F186: 0.2 | G186: =+Prchi!AL185 -> 0 | L186: -0.2 | M186: =+Table13[[#This Row],[Total]] -> 0 | N186: -0.2
B187: 128020 | C187: =+Prchi!C186 -> EGG NODILES 1*400 GR | D187: 05 PKT | E187: =+Prchi!E186 -> 0 | G187: =+Prchi!AL186 -> 0 | L187: 0 | M187: =+Table13[[#This Row],[Total]] -> 0 | N187: 0
B188: 128021 | C188: =+Prchi!C187 -> Whit Sugar | D188: 07 KG | E188: =+Prchi!E187 -> 2.995 | G188: =+Prchi!AL187 -> 0 | L188: 0 | M188: =+Table13[[#This Row],[Total]] -> 0 | N188: 0
B189: 128022 | C189: =+Prchi!C188 -> Jam | D189: 06 Each | E189: =+Prchi!E188 -> 1.5 | G189: =+Prchi!AL188 -> 0 | L189: 0 | M189: =+Table13[[#This Row],[Total]] -> 0 | N189: 0
B190: 128023 | C190: =+Prchi!C189 -> Browen Sugar | D190: 15 Jar | E190: =+Prchi!E189 -> 21.5 | G190: =+Prchi!AL189 -> 0 | L190: 0 | M190: =+Table13[[#This Row],[Total]] -> 0 | N190: 0
B191: 128024 | C191: =+Prchi!C190 -> Sauce, Ranch dressing | D191: 07 KG | E191: =+Prchi!E190 -> 0 | G191: =+Prchi!AL190 -> 0 | L191: 0 | M191: =+Table13[[#This Row],[Total]] -> 0 | N191: 0
B192: 128025 | C192: =+Prchi!C191 -> Sugar Cane Honey | D192: 07 KG | E192: =+Prchi!E191 -> 0 | G192: =+Prchi!AL191 -> 0 | L192: 0 | M192: =+Table13[[#This Row],[Total]] -> 0 | N192: 0
B193: 128026 | C193: =+Prchi!C192 -> FLOUR WHITE PAKT * 1 K G | D193: 05 PKT | E193: =+Prchi!E192 -> 3.5 | F193: 1 | G193: =+Prchi!AL192 -> 0 | L193: -1 | M193: =+Table13[[#This Row],[Total]] -> 0 | N193: -1
B194: 128027 | C194: =+Prchi!C193 -> olives blackwhole | D194: 07 KG | E194: =+Prchi!E193 -> 0 | G194: =+Prchi!AL193 -> 0 | L194: 0 | M194: =+Table13[[#This Row],[Total]] -> 0 | N194: 0
B195: 128028 | C195: =+Prchi!C194 -> olives Green | D195: 07 KG | E195: =+Prchi!E194 -> 19 | G195: =+Prchi!AL194 -> 0 | L195: 0 | M195: =+Table13[[#This Row],[Total]] -> 0 | N195: 0
B196: 128029 | C196: =+Prchi!C195 -> geeen peppercorns in vinagar | D196: 15 Jar | E196: =+Prchi!E195 -> 0 | G196: =+Prchi!AL195 -> 0 | L196: =(K196+J196+I196)-(H196+G196+F196) -> 0 | M196: =+Table13[[#This Row],[Total]] -> 0 | N196: =+L196+M196 -> 0
B197: 128030 | C197: =+Prchi!C196 -> basmte rice | D197: 07 KG | E197: =+Prchi!E196 -> 0 | G197: =+Prchi!AL196 -> 0 | L197: 0 | M197: =+Table13[[#This Row],[Total]] -> 0 | N197: 0
B198: 128031 | C198: =+Prchi!C197 -> rosito rice | D198: 07 KG | E198: =+Prchi!E197 -> 0 | G198: =+Prchi!AL197 -> 0 | L198: 0 | M198: =+Table13[[#This Row],[Total]] -> 0 | N198: 0
B199: 128032 | C199: =+Prchi!C198 -> sesame oil heynes | D199: 07 KG | E199: =+Prchi!E198 -> 0 | G199: =+Prchi!AL198 -> 0 | L199: 0 | M199: =+Table13[[#This Row],[Total]] -> 0 | N199: 0
B200: 128033 | C200: =+Prchi!C199 -> seweet corn | D200: 04 Box | E200: =+Prchi!E199 -> 0 | G200: =+Prchi!AL199 -> 0 | L200: 0 | M200: =+Table13[[#This Row],[Total]] -> 0 | N200: 0
... 428 more rows

Sheet Menu Analysis
B2: Menu Section One: | C2: Breacfast
A3: Code | B3: Menu Item name | C3: Number Sold | D3: Menu Mix % (Popularity) | E3: Item Food Cost | F3: Menu Item Price | G3: Food Cost % | H3: Contribution Margin | I3: Total Food Cost | J3: Total Revenue | K3: Total Contribution Profit | L3: Profitability Rank % | M3: Profitability Grade | N3: Popularity Grade | O3: Menu Engineering Quadrant
A5: =IFERROR(INDEX(Table1_1,MATCH(B5,INDEX(Table1_1,,3),0),2),"") -> 140000 | B5: Arbic Breacfast | C5: 1 | D5: =IFERROR(C5/SUM($C$5:$C$23),"") -> 0.1428571429 | E5: =Breakfast!$H$27 -> 0 | F5: =Breakfast!$E$32 -> 29 | G5: =IFERROR(E5/F5,"") -> 0 | H5: =IFERROR(F5-E5,"") -> 29 | I5: =IFERROR(E5*C5,"") -> 0 | J5: =IFERROR(F5*C5,"") -> 29 | K5: =IFERROR(J5-I5,"") -> 29 | L5: =IFERROR(K5/SUM($K$5:$K$25),"") -> 0.475 | M5: =IFERROR(IF(B5="","",IF(K5>$K$24,"Bad","Good")),"") -> Bad | N5: =IFERROR(IF(C5="","",IF(L5>$K$24,"Bad","Good")),"") -> Good | O5: =IF((AND(M5="Bad",N5="Bad")),"STAR",(IF((AND(M5="Bad",N5="Good")),"ENIGMA",(IF((AND(M5="Good",N5="Bad")),"PLOWHORSE",(IF((AND(M5="Good",N5="Good")),"DOG",(IF((AND(M5="",N5="")),"BLANK"))))))))) -> ENIGMA
A6: 140001 | B6: Contenintal Breakfast | C6: 1 | D6: 0.1428571429 | E6: =Breakfast!#REF! ->  | G6: =IFERROR(E6/F6,"") ->  | H6: =IFERROR(F6-E6,"") ->  | I6: =IFERROR(E6*C6,"") ->  | J6: =IFERROR(F6*C6,"") -> 0 | K6: =IFERROR(J6-I6,"") ->  | M6: =IFERROR(IF(B6="","",IF(K6>$K$24,"Bad","Good")),"") -> Bad | N6: =IFERROR(IF(C6="","",IF(L6>$K$24,"Bad","Good")),"") -> Bad | O6: =IF((AND(M6="H",N6="H")),"STAR",(IF((AND(M6="H",N6="Good")),"ENIGMA",(IF((AND(M6="Good",N6="H")),"PLOWHORSE",(IF((AND(M6="Good",N6="Good")),"DOG",(IF((AND(M6="",N6="")),"BLANK"))))))))) -> FALSE
A7: 140002 | B7: Oasis Breakfast | C7: 1 | D7: 0.1428571429 | E7: =Breakfast!#REF! ->  | J7: 0 | K7: =IFERROR(J7-I7,"") ->  | M7: =IFERROR(IF(B7="","",IF(K7>$K$24,"Bad","Good")),"") -> Bad | N7: =IFERROR(IF(C7="","",IF(L7>$K$24,"Bad","Good")),"") -> Bad | O7: FALSE
A8: 140003 | B8: Chicken Supreme Crepe | C8: 1 | D8: 0.1428571429 | E8: =Breakfast!#REF! ->  | J8: 0 | M8: Bad | N8: Bad | O8: FALSE
A9: 140004 | B9: Rosted Turkey Crepe | C9: 1 | D9: 0.1428571429 | E9: =Breakfast!#REF! ->  | J9: 0 | M9: Bad | N9: Bad | O9: FALSE
A10: 140005 | B10: Crepe Nutella with Vanilla Ice Cream | C10: 1 | D10: 0.1428571429 | E10: =Breakfast!#REF! ->  | J10: 0 | M10: Bad | N10: Bad | O10: FALSE
A11: 140006 | B11: Banana Crepe & Nutella | C11: 1 | D11: 0.1428571429 | E11: =Breakfast!#REF! ->  | J11: 0 | M11: Bad | N11: Bad | O11: FALSE
D12: 0 | E12: =IFERROR(INDEX(Table1_1,MATCH(B12,INDEX(Table1_1,,3),0),5),"") ->  | J12: 0 | O12: BLANK
D13: 0 | J13: 0 | O13: BLANK
D14: 0 | J14: 0 | O14: BLANK
D15: 0 | J15: 0 | O15: BLANK
D16: 0 | J16: 0 | O16: BLANK
D17: 0 | J17: 0 | O17: BLANK
D18: 0 | J18: 0 | O18: BLANK
D19: 0 | J19: 0 | O19: BLANK
D20: 0 | J20: 0 | O20: BLANK
D21: 0 | J21: 0 | O21: =IF((AND(M21="H",N21="H")),"STAR",(IF((AND(M21="H",N21="L")),"ENIGMA",(IF((AND(M21="L",N21="H")),"PLOWHORSE",(IF((AND(M21="L",N21="L")),"DOG",(IF((AND(M21="",N21="")),"BLANK"))))))))) -> BLANK
D22: 0 | J22: 0 | O22: =IF((AND(M22="H",N22="H")),"STAR",(IF((AND(M22="H",N22="L")),"ENIGMA",(IF((AND(M22="L",N22="H")),"PLOWHORSE",(IF((AND(M22="L",N22="L")),"DOG",(IF((AND(M22="",N22="")),"BLANK"))))))))) -> BLANK
D23: 0 | J23: 0 | O23: =IF((AND(M23="H",N23="H")),"STAR",(IF((AND(M23="H",N23="L")),"ENIGMA",(IF((AND(M23="L",N23="H")),"PLOWHORSE",(IF((AND(M23="L",N23="L")),"DOG",(IF((AND(M23="",N23="")),"BLANK"))))))))) -> BLANK
C24: AVG= | D24: =IFERROR(SUM(D5:D23)/(SUMPRODUCT((D5:D23<>0)*1)),"") -> 0.1428571429 | J24: AVG= | K24: =IFERROR(SUM(K5:K23)/(SUMPRODUCT((K5:K23<>0)*1)),"") -> 1.526315789 | L24: 0.025
J25: Total | K25: =IFERROR(SUM(K5:K24),"") -> 30.52631579
B30: Menu Section One: | C30: Salad
A31: Code | B31: Menu Item name | C31: Number Sold | D31: Menu Mix % (Popularity) | E31: Item Food Cost | F31: Menu Item Price | G31: Food Cost % | H31: Contribution Margin | I31: Total Food Cost | J31: Total Revenue | K31: Total Contribution Profit | L31: Profitability Rank % | M31: Profitability Grade | N31: Popularity Grade | O31: Menu Engineering Quadrant
A33: =IFERROR(INDEX(Table1_1,MATCH(B33,INDEX(Table1_1,,3),0),2),"") -> 140017 | B33: Caesar Chicken Salad | C33: 1 | D33: =IFERROR(C33/SUM($C$5:$C$23),"") -> 0.1428571429 | E33: =Salad!$H$22 -> 0 | G33: =IFERROR(E33/F33,"") ->  | H33: =IFERROR(F33-E33,"") -> 0 | I33: =IFERROR(E33*C33,"") -> 0 | J33: =IFERROR(F33*C33,"") -> 0 | K33: =IFERROR(J33-I33,"") -> 0 | L33: =IFERROR(K33/SUM($K$5:$K$25),"") -> 0 | M33: =IFERROR(IF(B33="","",IF(K33>$K$24,"Bad","Good")),"") -> Good | N33: Good | O33: =IF((AND(M33="Bad",N33="Bad")),"STAR",(IF((AND(M33="Bad",N33="Good")),"ENIGMA",(IF((AND(M33="Good",N33="Bad")),"PLOWHORSE",(IF((AND(M33="Good",N33="Good")),"DOG",(IF((AND(M33="",N33="")),"BLANK"))))))))) -> DOG
A34: 140018 | B34: Caesar Shrimp Salad | C34: 1 | D34: 0.1428571429 | E34: =Salad!#REF! ->  | G34: =IFERROR(E34/F34,"") ->  | H34: =IFERROR(F34-E34,"") ->  | I34: =IFERROR(E34*C34,"") ->  | J34: =IFERROR(F34*C34,"") -> 0 | K34: =IFERROR(J34-I34,"") ->  | M34: Bad | N34: Bad | O34: =IF((AND(M34="H",N34="H")),"STAR",(IF((AND(M34="H",N34="Good")),"ENIGMA",(IF((AND(M34="Good",N34="H")),"PLOWHORSE",(IF((AND(M34="Good",N34="Good")),"DOG",(IF((AND(M34="",N34="")),"BLANK"))))))))) -> FALSE
A35: 140019 | B35: Greek Salad | C35: 1 | D35: 0.1428571429 | E35: =Salad!#REF! ->  | J35: 0 | M35: Bad | N35: Bad | O35: FALSE
A36: 140020 | B36: Tuna Salad | C36: 1 | D36: 0.1428571429 | E36: =Salad!#REF! ->  | J36: 0 | M36: Bad | N36: Bad | O36: FALSE
A37: 140021 | B37: Rocca Salad | C37: 1 | D37: 0.1428571429 | E37: =Salad!#REF! ->  | J37: 0 | M37: Bad | N37: Bad | O37: FALSE
D38: 0 | E38: =IFERROR(INDEX(Table1_1,MATCH(B38,INDEX(Table1_1,,3),0),5),"") ->  | J38: 0 | O38: BLANK
D39: 0 | J39: 0 | O39: BLANK
D40: 0 | J40: 0 | O40: BLANK
C41: AVG= | D41: =IFERROR(SUM(D33:D40)/(SUMPRODUCT((D33:D40<>0)*1)),"") -> 0.1428571429 | J41: AVG= | K41: =IFERROR(SUM(K33:K40)/(SUMPRODUCT((K33:K40<>0)*1)),"") -> 0 | L41: 0
J42: Total | K42: =IFERROR(SUM(K33:K41),"") -> 0
B46: Menu Section One: | C46: Sandwich
A47: Code | B47: Menu Item name | C47: Number Sold | D47: Menu Mix % (Popularity) | E47: Item Food Cost | F47: Menu Item Price | G47: Food Cost % | H47: Contribution Margin | I47: Total Food Cost | J47: Total Revenue | K47: Total Contribution Profit | L47: Profitability Rank % | M47: Profitability Grade | N47: Popularity Grade | O47: Menu Engineering Quadrant
A49: =IFERROR(INDEX(Table1_1,MATCH(B49,INDEX(Table1_1,,3),0),2),"") -> 140024 | B49: Burgers Beef | C49: 1 | D49: =IFERROR(C49/SUM($C$5:$C$23),"") -> 0.1428571429 | E49: =Sandwich!$H$26 -> 0 | G49: =IFERROR(E49/F49,"") ->  | H49: =IFERROR(F49-E49,"") -> 0 | I49: =IFERROR(E49*C49,"") -> 0 | J49: =IFERROR(F49*C49,"") -> 0 | K49: =IFERROR(J49-I49,"") -> 0 | L49: =IFERROR(K49/SUM($K$5:$K$25),"") -> 0 | M49: =IFERROR(IF(B49="","",IF(K49>$K$24,"Bad","Good")),"") -> Good | N49: =IFERROR(IF(C49="","",IF(L49>$K$24,"Bad","Good")),"") -> Good | O49: =IF((AND(M49="Bad",N49="Bad")),"STAR",(IF((AND(M49="Bad",N49="Good")),"ENIGMA",(IF((AND(M49="Good",N49="Bad")),"PLOWHORSE",(IF((AND(M49="Good",N49="Good")),"DOG",(IF((AND(M49="",N49="")),"BLANK"))))))))) -> DOG
A50: =IFERROR(INDEX(Table1_1,MATCH(B50,INDEX(Table1_1,,3),0),2),"") -> 140025 | B50: Burgers Chicken | C50: 1 | D50: =IFERROR(C50/SUM($C$5:$C$23),"") -> 0.1428571429 | E50: =Sandwich!#REF! ->  | G50: =IFERROR(E50/F50,"") ->  | H50: =IFERROR(F50-E50,"") ->  | I50: =IFERROR(E50*C50,"") ->  | J50: =IFERROR(F50*C50,"") -> 0 | K50: =IFERROR(J50-I50,"") ->  | L50: =IFERROR(K50/SUM($K$5:$K$25),"") ->  | M50: =IFERROR(IF(B50="","",IF(K50>$K$24,"Bad","Good")),"") -> Bad | N50: =IFERROR(IF(C50="","",IF(L50>$K$24,"Bad","Good")),"") -> Bad | O50: =IF((AND(M50="Bad",N50="Bad")),"STAR",(IF((AND(M50="Bad",N50="Good")),"ENIGMA",(IF((AND(M50="Good",N50="Bad")),"PLOWHORSE",(IF((AND(M50="Good",N50="Good")),"DOG",(IF((AND(M50="",N50="")),"BLANK"))))))))) -> STAR
A51: 140026 | B51: Mexican Chilli Chicken | C51: 1 | D51: 0.1428571429 | E51: =Sandwich!#REF! ->  | J51: 0 | M51: Bad | N51: Bad | O51: STAR
A52: 140027 | B52: Chicken Panini with Corn | C52: 1 | D52: 0.1428571429 | E52: =Sandwich!#REF! ->  | J52: 0 | M52: Bad | N52: Bad | O52: STAR
A53: 140028 | B53: Tuna Sandwich | C53: 1 | D53: 0.1428571429 | E53: =Sandwich!#REF! ->  | J53: 0 | M53: Bad | N53: Bad | O53: STAR
A54: 140029 | B54: Hot Dog Sandwich | C54: 1 | D54: 0.1428571429 | E54: =Sandwich!#REF! ->  | J54: 0 | M54: Bad | N54: Bad | O54: STAR
A55: 140030 | B55: Rasted Turkey Sandwich | C55: 1 | D55: 0.1428571429 | E55: =Sandwich!#REF! ->  | J55: 0 | M55: Bad | N55: Bad | O55: STAR
A56: 140031 | B56: Grilled Haloumi Sandwich | C56: 1 | D56: 0.1428571429 | E56: =Sandwich!#REF! ->  | J56: 0 | M56: Bad | N56: Bad | O56: STAR
A57: 140032 | B57: Pizza Sandwich | C57: 1 | D57: 0.1428571429 | E57: =Sandwich!#REF! ->  | J57: 0 | M57: Bad | N57: Bad | O57: STAR
A58: 140033 | B58: Deluxe Club Sandwich | C58: 1 | D58: 0.1428571429 | E58: =Sandwich!#REF! ->  | G58: =IFERROR(E58/F58,"") ->  | H58: =IFERROR(F58-E58,"") ->  | I58: =IFERROR(E58*C58,"") ->  | J58: =IFERROR(F58*C58,"") -> 0 | K58: =IFERROR(J58-I58,"") ->  | M58: =IFERROR(IF(B58="","",IF(K58>$K$24,"Bad","Good")),"") -> Bad | N58: =IFERROR(IF(C58="","",IF(L58>$K$24,"Bad","Good")),"") -> Bad | O58: =IF((AND(M58="Bad",N58="Bad")),"STAR",(IF((AND(M58="Bad",N58="Good")),"ENIGMA",(IF((AND(M58="Good",N58="Bad")),"PLOWHORSE",(IF((AND(M58="Good",N58="Good")),"DOG",(IF((AND(M58="",N58="")),"BLANK"))))))))) -> STAR
A59: 140034 | B59: Slice Grild Chicken Sandwich | C59: 1 | D59: 0.1428571429 | E59: =IFERROR(INDEX(Table1_1,MATCH(B59,INDEX(Table1_1,,3),0),5),"") ->  | G59: =IFERROR(E59/F59,"") ->  | H59: =IFERROR(F59-E59,"") ->  | I59: =IFERROR(E59*C59,"") ->  | J59: =IFERROR(F59*C59,"") -> 0 | K59: =IFERROR(J59-I59,"") ->  | M59: =IFERROR(IF(B59="","",IF(K59>$K$24,"Bad","Good")),"") -> Bad | N59: =IFERROR(IF(C59="","",IF(L59>$K$24,"Bad","Good")),"") -> Bad | O59: =IF((AND(M59="Bad",N59="Bad")),"STAR",(IF((AND(M59="Bad",N59="Good")),"ENIGMA",(IF((AND(M59="Good",N59="Bad")),"PLOWHORSE",(IF((AND(M59="Good",N59="Good")),"DOG",(IF((AND(M59="",N59="")),"BLANK"))))))))) -> STAR
D60: 0 | E60: =IFERROR(INDEX(Table1_1,MATCH(B60,INDEX(Table1_1,,3),0),5),"") ->  | J60: 0 | O60: BLANK
C61: AVG= | D61: =IFERROR(SUM(D49:D60)/(SUMPRODUCT((D49:D60<>0)*1)),"") -> 0.1428571429 | J61: AVG= | K61: =IFERROR(SUM(K49:K60)/(SUMPRODUCT((K49:K60<>0)*1)),"") -> 0 | L61: =IFERROR(K61/SUM($K$5:$K$25),"") -> 0
J62: Total | K62: =IFERROR(SUM(K49:K61),"") -> 0
B65: Menu Section One: | C65: Main Cors
A66: Code | B66: Menu Item name | C66: Number Sold | D66: Menu Mix % (Popularity) | E66: Item Food Cost | F66: Menu Item Price | G66: Food Cost % | H66: Contribution Margin | I66: Total Food Cost | J66: Total Revenue | K66: Total Contribution Profit | L66: Profitability Rank % | M66: Profitability Grade | N66: Popularity Grade | O66: Menu Engineering Quadrant
A68: =IFERROR(INDEX(Table1_1,MATCH(B68,INDEX(Table1_1,,3),0),2),"") ->  | D68: =IFERROR(C68/SUM($C$5:$C$23),"") -> 0 | E68: =IFERROR(INDEX(Table1_1,MATCH(B68,INDEX(Table1_1,,3),0),5),"") ->  | F68: =Breakfast!$E$32 -> 29 | G68: =IFERROR(E68/F68,"") ->  | H68: =IFERROR(F68-E68,"") ->  | I68: =IFERROR(E68*C68,"") ->  | J68: =IFERROR(F68*C68,"") -> 0 | K68: =IFERROR(J68-I68,"") ->  | L68: =IFERROR(K68/SUM($K$5:$K$25),"") ->  | M68: =IFERROR(IF(B68="","",IF(K68>$K$24,"Bad","Good")),"") ->  | N68: =IFERROR(IF(C68="","",IF(L68>$K$24,"Bad","Good")),"") ->  | O68: =IF((AND(M68="Bad",N68="Bad")),"STAR",(IF((AND(M68="Bad",N68="Good")),"ENIGMA",(IF((AND(M68="Good",N68="Bad")),"PLOWHORSE",(IF((AND(M68="Good",N68="Good")),"DOG",(IF((AND(M68="",N68="")),"BLANK"))))))))) -> BLANK
